Workbook

Sheet Registrace ZBP
A1: Start. čís. | B1: Příjmení | C1: Jméno | D1: Pohl. | E1: Rok narození | F1: ID tratě | G1: Klub | H1: ID závodu | I1: Název závodu | J1: Délka tr. (km) | K1: Kategorie (lokální) | L1: Kategorie lokální popis | M1: Kategorie ZBP | N1: Kategorie ZBP Popis | O1: Čas | P1: Pořadí celkové | Q1: Pořadí Kat.Lok | R1: Pořadí Kat.ZBP | S1: Body ZBP | T1: ID String | U1: Dupl.
A2: 16 | B2: Szabó | C2: Jakub | D2: m | E2: 2005 | F2: H | H2: 1 | I2: =VLOOKUP(H2,'Závody a tratě'!$B:$C,2,0) -> „Sokolák“ Plaveč u Znojma | J2: =VLOOKUP(H2&"x"&F2,'Závody a tratě'!$A:$F,6,0) -> 3 | K2: =VLOOKUP(TEXT(H2,"000")&UPPER(D2)&TEXT(E2,"0000"),'Kategorie lokální'!$A$2:$F$300,6,TRUE) -> LMA | L2: =VLOOKUP(TEXT(H2,"000")&UPPER(D2)&TEXT(E2,"0000"),'Kategorie lokální'!$A$2:$G$300,7,TRUE) -> L: Muži do 39 | M2: =VLOOKUP(UPPER(D2)&TEXT(E2,"0000"),'Kategorie ZBP'!$A$2:$E$30,5,TRUE) -> MA | N2: =VLOOKUP(M2,'Kategorie ZBP'!$E:$F,2,0) -> Muži do 39 | O2: =VLOOKUP(H2&"x"&A2,Stopky!I:J,2,0) -> 0.0096875 | P2: 1 | Q2: 1 | R2: 1 | S2: =IF(ISERROR(VLOOKUP(H2&"x"&F2&"xANO",'Závody a tratě'!L:L,1,0))=TRUE,0,_xlfn.IFNA(VLOOKUP(R2,'Body ZBP'!$A$1:$B$40,2,0),0)) -> 0 | T2: =H2&"x"&A2 -> 1x16 | U2: =IF(T2<>"x",COUNTIF($T$2:$T$3000,T2),"") -> 1
A3: 50 | B3: Bulín | C3: Jindřich | D3: m | E3: 1967 | F3: H | G3: Sokol Plaveč | H3: 1 | I3: =VLOOKUP(H3,'Závody a tratě'!$B:$C,2,0) -> „Sokolák“ Plaveč u Znojma | J3: =VLOOKUP(H3&"x"&F3,'Závody a tratě'!$A:$F,6,0) -> 3 | K3: =VLOOKUP(TEXT(H3,"000")&UPPER(D3)&TEXT(E3,"0000"),'Kategorie lokální'!$A$2:$F$300,6,TRUE) -> LMC | L3: =VLOOKUP(TEXT(H3,"000")&UPPER(D3)&TEXT(E3,"0000"),'Kategorie lokální'!$A$2:$G$300,7,TRUE) -> L: Muži 50 - 59 | M3: =VLOOKUP(UPPER(D3)&TEXT(E3,"0000"),'Kategorie ZBP'!$A$2:$E$30,5,TRUE) -> MC | N3: =VLOOKUP(M3,'Kategorie ZBP'!$E:$F,2,0) -> Muži 50 - 59 | O3: =VLOOKUP(H3&"x"&A3,Stopky!I:J,2,0) -> 0.01295138889 | P3: 2 | Q3: 1 | R3: 1 | S3: =IF(ISERROR(VLOOKUP(H3&"x"&F3&"xANO",'Závody a tratě'!L:L,1,0))=TRUE,0,_xlfn.IFNA(VLOOKUP(R3,'Body ZBP'!$A$1:$B$40,2,0),0)) -> 0 | T3: =H3&"x"&A3 -> 1x50 | U3: =IF(T3<>"x",COUNTIF($T$2:$T$3000,T3),"") -> 1
A4: 2 | B4: Čabala | C4: Vojtěch | D4: m | E4: 1993 | F4: M6 | G4: Rabbits Znojmo | H4: 1 | I4: =VLOOKUP(H4,'Závody a tratě'!$B:$C,2,0) -> „Sokolák“ Plaveč u Znojma | J4: =VLOOKUP(H4&"x"&F4,'Závody a tratě'!$A:$F,6,0) -> 6 | K4: =VLOOKUP(TEXT(H4,"000")&UPPER(D4)&TEXT(E4,"0000"),'Kategorie lokální'!$A$2:$F$300,6,TRUE) -> LMA | L4: =VLOOKUP(TEXT(H4,"000")&UPPER(D4)&TEXT(E4,"0000"),'Kategorie lokální'!$A$2:$G$300,7,TRUE) -> L: Muži do 39 | M4: =VLOOKUP(UPPER(D4)&TEXT(E4,"0000"),'Kategorie ZBP'!$A$2:$E$30,5,TRUE) -> MA | N4: =VLOOKUP(M4,'Kategorie ZBP'!$E:$F,2,0) -> Muži do 39 | O4: =VLOOKUP(H4&"x"&A4,Stopky!I:J,2,0) -> 0.01546296296 | P4: 1 | Q4: 1 | R4: 1 | S4: =IF(ISERROR(VLOOKUP(H4&"x"&F4&"xANO",'Závody a tratě'!L:L,1,0))=TRUE,0,_xlfn.IFNA(VLOOKUP(R4,'Body ZBP'!$A$1:$B$40,2,0),0)) -> 30 | T4: =H4&"x"&A4 -> 1x2 | U4: =IF(T4<>"x",COUNTIF($T$2:$T$3000,T4),"") -> 1
A5: 40 | B5: Hrdina | C5: Tomáš | D5: m | E5: 1979 | F5: M6 | G5: AC mor. Slavia | H5: 1 | I5: =VLOOKUP(H5,'Závody a tratě'!$B:$C,2,0) -> „Sokolák“ Plaveč u Znojma | J5: =VLOOKUP(H5&"x"&F5,'Závody a tratě'!$A:$F,6,0) -> 6 | K5: =VLOOKUP(TEXT(H5,"000")&UPPER(D5)&TEXT(E5,"0000"),'Kategorie lokální'!$A$2:$F$300,6,TRUE) -> LMA | L5: =VLOOKUP(TEXT(H5,"000")&UPPER(D5)&TEXT(E5,"0000"),'Kategorie lokální'!$A$2:$G$300,7,TRUE) -> L: Muži do 39 | M5: =VLOOKUP(UPPER(D5)&TEXT(E5,"0000"),'Kategorie ZBP'!$A$2:$E$30,5,TRUE) -> MA | N5: =VLOOKUP(M5,'Kategorie ZBP'!$E:$F,2,0) -> Muži do 39 | O5: =VLOOKUP(H5&"x"&A5,Stopky!I:J,2,0) -> 0.01563657407 | P5: 2 | Q5: 2 | R5: 2 | S5: =IF(ISERROR(VLOOKUP(H5&"x"&F5&"xANO",'Závody a tratě'!L:L,1,0))=TRUE,0,_xlfn.IFNA(VLOOKUP(R5,'Body ZBP'!$A$1:$B$40,2,0),0)) -> 25 | T5: =H5&"x"&A5 -> 1x40 | U5: =IF(T5<>"x",COUNTIF($T$2:$T$3000,T5),"") -> 1
A6: 45 | B6: Vintrlík | C6: Martin | D6: m | E6: 1977 | F6: M6 | G6: Křepice, okr. Břeclav | H6: 1 | I6: =VLOOKUP(H6,'Závody a tratě'!$B:$C,2,0) -> „Sokolák“ Plaveč u Znojma | J6: =VLOOKUP(H6&"x"&F6,'Závody a tratě'!$A:$F,6,0) -> 6 | K6: =VLOOKUP(TEXT(H6,"000")&UPPER(D6)&TEXT(E6,"0000"),'Kategorie lokální'!$A$2:$F$300,6,TRUE) -> LMB | L6: =VLOOKUP(TEXT(H6,"000")&UPPER(D6)&TEXT(E6,"0000"),'Kategorie lokální'!$A$2:$G$300,7,TRUE) -> L: Muži 40 - 49 | M6: =VLOOKUP(UPPER(D6)&TEXT(E6,"0000"),'Kategorie ZBP'!$A$2:$E$30,5,TRUE) -> MB | N6: =VLOOKUP(M6,'Kategorie ZBP'!$E:$F,2,0) -> Muži 40 - 49 | O6: =VLOOKUP(H6&"x"&A6,Stopky!I:J,2,0) -> 0.01597222222 | P6: 3 | Q6: 1 | R6: 1 | S6: =IF(ISERROR(VLOOKUP(H6&"x"&F6&"xANO",'Závody a tratě'!L:L,1,0))=TRUE,0,_xlfn.IFNA(VLOOKUP(R6,'Body ZBP'!$A$1:$B$40,2,0),0)) -> 30 | T6: =H6&"x"&A6 -> 1x45 | U6: =IF(T6<>"x",COUNTIF($T$2:$T$3000,T6),"") -> 1
A7: 28 | B7: Kratochvíl | C7: Pavel | D7: m | E7: 1960 | F7: M6 | G7: Atletic Třebíč | H7: 1 | I7: =VLOOKUP(H7,'Závody a tratě'!$B:$C,2,0) -> „Sokolák“ Plaveč u Znojma | J7: =VLOOKUP(H7&"x"&F7,'Závody a tratě'!$A:$F,6,0) -> 6 | K7: =VLOOKUP(TEXT(H7,"000")&UPPER(D7)&TEXT(E7,"0000"),'Kategorie lokální'!$A$2:$F$300,6,TRUE) -> LMC | L7: =VLOOKUP(TEXT(H7,"000")&UPPER(D7)&TEXT(E7,"0000"),'Kategorie lokální'!$A$2:$G$300,7,TRUE) -> L: Muži 50 - 59 | M7: =VLOOKUP(UPPER(D7)&TEXT(E7,"0000"),'Kategorie ZBP'!$A$2:$E$30,5,TRUE) -> MC | N7: =VLOOKUP(M7,'Kategorie ZBP'!$E:$F,2,0) -> Muži 50 - 59 | O7: =VLOOKUP(H7&"x"&A7,Stopky!I:J,2,0) -> 0.01666666667 | P7: 4 | Q7: 1 | R7: 1 | S7: =IF(ISERROR(VLOOKUP(H7&"x"&F7&"xANO",'Závody a tratě'!L:L,1,0))=TRUE,0,_xlfn.IFNA(VLOOKUP(R7,'Body ZBP'!$A$1:$B$40,2,0),0)) -> 30 | T7: =H7&"x"&A7 -> 1x28 | U7: =IF(T7<>"x",COUNTIF($T$2:$T$3000,T7),"") -> 1
A8: 44 | B8: Fučík | C8: Karel | D8: m | E8: 1972 | F8: M6 | G8: Černím | H8: 1 | I8: =VLOOKUP(H8,'Závody a tratě'!$B:$C,2,0) -> „Sokolák“ Plaveč u Znojma | J8: =VLOOKUP(H8&"x"&F8,'Závody a tratě'!$A:$F,6,0) -> 6 | K8: =VLOOKUP(TEXT(H8,"000")&UPPER(D8)&TEXT(E8,"0000"),'Kategorie lokální'!$A$2:$F$300,6,TRUE) -> LMB | L8: =VLOOKUP(TEXT(H8,"000")&UPPER(D8)&TEXT(E8,"0000"),'Kategorie lokální'!$A$2:$G$300,7,TRUE) -> L: Muži 40 - 49 | M8: =VLOOKUP(UPPER(D8)&TEXT(E8,"0000"),'Kategorie ZBP'!$A$2:$E$30,5,TRUE) -> MB | N8: =VLOOKUP(M8,'Kategorie ZBP'!$E:$F,2,0) -> Muži 40 - 49 | O8: =VLOOKUP(H8&"x"&A8,Stopky!I:J,2,0) -> 0.01675925926 | P8: 5 | Q8: 2 | R8: 2 | S8: =IF(ISERROR(VLOOKUP(H8&"x"&F8&"xANO",'Závody a tratě'!L:L,1,0))=TRUE,0,_xlfn.IFNA(VLOOKUP(R8,'Body ZBP'!$A$1:$B$40,2,0),0)) -> 25 | T8: =H8&"x"&A8 -> 1x44 | U8: =IF(T8<>"x",COUNTIF($T$2:$T$3000,T8),"") -> 1
A9: 12 | B9: Šrámek | C9: Ondřej | D9: m | E9: 1997 | F9: M6 | G9: Lukov | H9: 1 | I9: =VLOOKUP(H9,'Závody a tratě'!$B:$C,2,0) -> „Sokolák“ Plaveč u Znojma | J9: =VLOOKUP(H9&"x"&F9,'Závody a tratě'!$A:$F,6,0) -> 6 | K9: =VLOOKUP(TEXT(H9,"000")&UPPER(D9)&TEXT(E9,"0000"),'Kategorie lokální'!$A$2:$F$300,6,TRUE) -> LMA | L9: =VLOOKUP(TEXT(H9,"000")&UPPER(D9)&TEXT(E9,"0000"),'Kategorie lokální'!$A$2:$G$300,7,TRUE) -> L: Muži do 39 | M9: =VLOOKUP(UPPER(D9)&TEXT(E9,"0000"),'Kategorie ZBP'!$A$2:$E$30,5,TRUE) -> MA | N9: =VLOOKUP(M9,'Kategorie ZBP'!$E:$F,2,0) -> Muži do 39 | O9: =VLOOKUP(H9&"x"&A9,Stopky!I:J,2,0) -> 0.01721064815 | P9: 6 | Q9: 3 | R9: 3 | S9: =IF(ISERROR(VLOOKUP(H9&"x"&F9&"xANO",'Závody a tratě'!L:L,1,0))=TRUE,0,_xlfn.IFNA(VLOOKUP(R9,'Body ZBP'!$A$1:$B$40,2,0),0)) -> 21 | T9: =H9&"x"&A9 -> 1x12 | U9: =IF(T9<>"x",COUNTIF($T$2:$T$3000,T9),"") -> 1
A10: 3 | B10: Blaha | C10: Daniel | D10: m | E10: 2002 | F10: M6 | H10: 1 | I10: =VLOOKUP(H10,'Závody a tratě'!$B:$C,2,0) -> „Sokolák“ Plaveč u Znojma | J10: =VLOOKUP(H10&"x"&F10,'Závody a tratě'!$A:$F,6,0) -> 6 | K10: =VLOOKUP(TEXT(H10,"000")&UPPER(D10)&TEXT(E10,"0000"),'Kategorie lokální'!$A$2:$F$300,6,TRUE) -> LMA | L10: =VLOOKUP(TEXT(H10,"000")&UPPER(D10)&TEXT(E10,"0000"),'Kategorie lokální'!$A$2:$G$300,7,TRUE) -> L: Muži do 39 | M10: =VLOOKUP(UPPER(D10)&TEXT(E10,"0000"),'Kategorie ZBP'!$A$2:$E$30,5,TRUE) -> MA | N10: =VLOOKUP(M10,'Kategorie ZBP'!$E:$F,2,0) -> Muži do 39 | O10: =VLOOKUP(H10&"x"&A10,Stopky!I:J,2,0) -> 0.01743055556 | P10: 7 | Q10: 4 | R10: 4 | S10: =IF(ISERROR(VLOOKUP(H10&"x"&F10&"xANO",'Závody a tratě'!L:L,1,0))=TRUE,0,_xlfn.IFNA(VLOOKUP(R10,'Body ZBP'!$A$1:$B$40,2,0),0)) -> 18 | T10: =H10&"x"&A10 -> 1x3 | U10: =IF(T10<>"x",COUNTIF($T$2:$T$3000,T10),"") -> 1
A11: 39 | B11: Holub | C11: Pavel | D11: m | E11: 1980 | F11: M6 | G11: Rabbits Znojmo | H11: 1 | I11: =VLOOKUP(H11,'Závody a tratě'!$B:$C,2,0) -> „Sokolák“ Plaveč u Znojma | J11: =VLOOKUP(H11&"x"&F11,'Závody a tratě'!$A:$F,6,0) -> 6 | K11: =VLOOKUP(TEXT(H11,"000")&UPPER(D11)&TEXT(E11,"0000"),'Kategorie lokální'!$A$2:$F$300,6,TRUE) -> LMA | L11: =VLOOKUP(TEXT(H11,"000")&UPPER(D11)&TEXT(E11,"0000"),'Kategorie lokální'!$A$2:$G$300,7,TRUE) -> L: Muži do 39 | M11: =VLOOKUP(UPPER(D11)&TEXT(E11,"0000"),'Kategorie ZBP'!$A$2:$E$30,5,TRUE) -> MA | N11: =VLOOKUP(M11,'Kategorie ZBP'!$E:$F,2,0) -> Muži do 39 | O11: =VLOOKUP(H11&"x"&A11,Stopky!I:J,2,0) -> 0.01783564815 | P11: 8 | Q11: 5 | R11: 5 | S11: =IF(ISERROR(VLOOKUP(H11&"x"&F11&"xANO",'Závody a tratě'!L:L,1,0))=TRUE,0,_xlfn.IFNA(VLOOKUP(R11,'Body ZBP'!$A$1:$B$40,2,0),0)) -> 16 | T11: =H11&"x"&A11 -> 1x39 | U11: =IF(T11<>"x",COUNTIF($T$2:$T$3000,T11),"") -> 1
A12: 36 | B12: Vyklický | C12: Miroslav | D12: m | E12: 1991 | F12: M6 | G12: TJ Těšetice | H12: 1 | I12: =VLOOKUP(H12,'Závody a tratě'!$B:$C,2,0) -> „Sokolák“ Plaveč u Znojma | J12: =VLOOKUP(H12&"x"&F12,'Závody a tratě'!$A:$F,6,0) -> 6 | K12: =VLOOKUP(TEXT(H12,"000")&UPPER(D12)&TEXT(E12,"0000"),'Kategorie lokální'!$A$2:$F$300,6,TRUE) -> LMA | L12: =VLOOKUP(TEXT(H12,"000")&UPPER(D12)&TEXT(E12,"0000"),'Kategorie lokální'!$A$2:$G$300,7,TRUE) -> L: Muži do 39 | M12: =VLOOKUP(UPPER(D12)&TEXT(E12,"0000"),'Kategorie ZBP'!$A$2:$E$30,5,TRUE) -> MA | N12: =VLOOKUP(M12,'Kategorie ZBP'!$E:$F,2,0) -> Muži do 39 | O12: =VLOOKUP(H12&"x"&A12,Stopky!I:J,2,0) -> 0.01831018519 | P12: 9 | Q12: 6 | R12: 6 | S12: =IF(ISERROR(VLOOKUP(H12&"x"&F12&"xANO",'Závody a tratě'!L:L,1,0))=TRUE,0,_xlfn.IFNA(VLOOKUP(R12,'Body ZBP'!$A$1:$B$40,2,0),0)) -> 15 | T12: =H12&"x"&A12 -> 1x36 | U12: =IF(T12<>"x",COUNTIF($T$2:$T$3000,T12),"") -> 1
A13: 13 | B13: Souček | C13: Tomáš | D13: m | E13: 1989 | F13: M6 | G13: Rabbits Znojmo | H13: 1 | I13: =VLOOKUP(H13,'Závody a tratě'!$B:$C,2,0) -> „Sokolák“ Plaveč u Znojma | J13: =VLOOKUP(H13&"x"&F13,'Závody a tratě'!$A:$F,6,0) -> 6 | K13: =VLOOKUP(TEXT(H13,"000")&UPPER(D13)&TEXT(E13,"0000"),'Kategorie lokální'!$A$2:$F$300,6,TRUE) -> LMA | L13: =VLOOKUP(TEXT(H13,"000")&UPPER(D13)&TEXT(E13,"0000"),'Kategorie lokální'!$A$2:$G$300,7,TRUE) -> L: Muži do 39 | M13: =VLOOKUP(UPPER(D13)&TEXT(E13,"0000"),'Kategorie ZBP'!$A$2:$E$30,5,TRUE) -> MA | N13: =VLOOKUP(M13,'Kategorie ZBP'!$E:$F,2,0) -> Muži do 39 | O13: =VLOOKUP(H13&"x"&A13,Stopky!I:J,2,0) -> 0.01853009259 | P13: 10 | Q13: 7 | R13: 7 | S13: =IF(ISERROR(VLOOKUP(H13&"x"&F13&"xANO",'Závody a tratě'!L:L,1,0))=TRUE,0,_xlfn.IFNA(VLOOKUP(R13,'Body ZBP'!$A$1:$B$40,2,0),0)) -> 14 | T13: =H13&"x"&A13 -> 1x13 | U13: =IF(T13<>"x",COUNTIF($T$2:$T$3000,T13),"") -> 1
A14: 46 | B14: Januška | C14: Ivan | D14: m | E14: 1958 | F14: M6 | G14: Šanov | H14: 1 | I14: =VLOOKUP(H14,'Závody a tratě'!$B:$C,2,0) -> „Sokolák“ Plaveč u Znojma | J14: =VLOOKUP(H14&"x"&F14,'Závody a tratě'!$A:$F,6,0) -> 6 | K14: =VLOOKUP(TEXT(H14,"000")&UPPER(D14)&TEXT(E14,"0000"),'Kategorie lokální'!$A$2:$F$300,6,TRUE) -> LMD | L14: =VLOOKUP(TEXT(H14,"000")&UPPER(D14)&TEXT(E14,"0000"),'Kategorie lokální'!$A$2:$G$300,7,TRUE) -> L: Muži od 60 | M14: =VLOOKUP(UPPER(D14)&TEXT(E14,"0000"),'Kategorie ZBP'!$A$2:$E$30,5,TRUE) -> MD | N14: =VLOOKUP(M14,'Kategorie ZBP'!$E:$F,2,0) -> Muži nad 60 | O14: =VLOOKUP(H14&"x"&A14,Stopky!I:J,2,0) -> 0.01855324074 | P14: 11 | Q14: 1 | R14: 1 | S14: =IF(ISERROR(VLOOKUP(H14&"x"&F14&"xANO",'Závody a tratě'!L:L,1,0))=TRUE,0,_xlfn.IFNA(VLOOKUP(R14,'Body ZBP'!$A$1:$B$40,2,0),0)) -> 30 | T14: =H14&"x"&A14 -> 1x46 | U14: =IF(T14<>"x",COUNTIF($T$2:$T$3000,T14),"") -> 1
A15: 48 | B15: Hrubý | C15: Karel | D15: m | E15: 1974 | F15: M6 | G15: FK Bojanovice | H15: 1 | I15: =VLOOKUP(H15,'Závody a tratě'!$B:$C,2,0) -> „Sokolák“ Plaveč u Znojma | J15: =VLOOKUP(H15&"x"&F15,'Závody a tratě'!$A:$F,6,0) -> 6 | K15: =VLOOKUP(TEXT(H15,"000")&UPPER(D15)&TEXT(E15,"0000"),'Kategorie lokální'!$A$2:$F$300,6,TRUE) -> LMB | L15: =VLOOKUP(TEXT(H15,"000")&UPPER(D15)&TEXT(E15,"0000"),'Kategorie lokální'!$A$2:$G$300,7,TRUE) -> L: Muži 40 - 49 | M15: =VLOOKUP(UPPER(D15)&TEXT(E15,"0000"),'Kategorie ZBP'!$A$2:$E$30,5,TRUE) -> MB | N15: =VLOOKUP(M15,'Kategorie ZBP'!$E:$F,2,0) -> Muži 40 - 49 | O15: =VLOOKUP(H15&"x"&A15,Stopky!I:J,2,0) -> 0.0187962963 | P15: 12 | Q15: 3 | R15: 3 | S15: =IF(ISERROR(VLOOKUP(H15&"x"&F15&"xANO",'Závody a tratě'!L:L,1,0))=TRUE,0,_xlfn.IFNA(VLOOKUP(R15,'Body ZBP'!$A$1:$B$40,2,0),0)) -> 21 | T15: =H15&"x"&A15 -> 1x48 | U15: =IF(T15<>"x",COUNTIF($T$2:$T$3000,T15),"") -> 1
A16: 30 | B16: Svoboda | C16: Ivo | D16: m | E16: 1978 | F16: M6 | H16: 1 | I16: =VLOOKUP(H16,'Závody a tratě'!$B:$C,2,0) -> „Sokolák“ Plaveč u Znojma | J16: =VLOOKUP(H16&"x"&F16,'Závody a tratě'!$A:$F,6,0) -> 6 | K16: =VLOOKUP(TEXT(H16,"000")&UPPER(D16)&TEXT(E16,"0000"),'Kategorie lokální'!$A$2:$F$300,6,TRUE) -> LMB | L16: =VLOOKUP(TEXT(H16,"000")&UPPER(D16)&TEXT(E16,"0000"),'Kategorie lokální'!$A$2:$G$300,7,TRUE) -> L: Muži 40 - 49 | M16: =VLOOKUP(UPPER(D16)&TEXT(E16,"0000"),'Kategorie ZBP'!$A$2:$E$30,5,TRUE) -> MB | N16: =VLOOKUP(M16,'Kategorie ZBP'!$E:$F,2,0) -> Muži 40 - 49 | O16: =VLOOKUP(H16&"x"&A16,Stopky!I:J,2,0) -> 0.01885416667 | P16: 13 | Q16: 4 | R16: 4 | S16: =IF(ISERROR(VLOOKUP(H16&"x"&F16&"xANO",'Závody a tratě'!L:L,1,0))=TRUE,0,_xlfn.IFNA(VLOOKUP(R16,'Body ZBP'!$A$1:$B$40,2,0),0)) -> 18 | T16: =H16&"x"&A16 -> 1x30 | U16: =IF(T16<>"x",COUNTIF($T$2:$T$3000,T16),"") -> 1
A17: 32 | B17: Bulín | C17: Jakub | D17: m | E17: 1992 | F17: M6 | G17: Rabbits Znojmo | H17: 1 | I17: =VLOOKUP(H17,'Závody a tratě'!$B:$C,2,0) -> „Sokolák“ Plaveč u Znojma | J17: =VLOOKUP(H17&"x"&F17,'Závody a tratě'!$A:$F,6,0) -> 6 | K17: =VLOOKUP(TEXT(H17,"000")&UPPER(D17)&TEXT(E17,"0000"),'Kategorie lokální'!$A$2:$F$300,6,TRUE) -> LMA | L17: =VLOOKUP(TEXT(H17,"000")&UPPER(D17)&TEXT(E17,"0000"),'Kategorie lokální'!$A$2:$G$300,7,TRUE) -> L: Muži do 39 | M17: =VLOOKUP(UPPER(D17)&TEXT(E17,"0000"),'Kategorie ZBP'!$A$2:$E$30,5,TRUE) -> MA | N17: =VLOOKUP(M17,'Kategorie ZBP'!$E:$F,2,0) -> Muži do 39 | O17: =VLOOKUP(H17&"x"&A17,Stopky!I:J,2,0) -> 0.01890046296 | P17: 14 | Q17: 8 | R17: 8 | S17: =IF(ISERROR(VLOOKUP(H17&"x"&F17&"xANO",'Závody a tratě'!L:L,1,0))=TRUE,0,_xlfn.IFNA(VLOOKUP(R17,'Body ZBP'!$A$1:$B$40,2,0),0)) -> 13 | T17: =H17&"x"&A17 -> 1x32 | U17: =IF(T17<>"x",COUNTIF($T$2:$T$3000,T17),"") -> 1
A18: 38 | B18: Dvořák | C18: Leoš | D18: m | E18: 1971 | F18: M6 | G18: Znojmo | H18: 1 | I18: =VLOOKUP(H18,'Závody a tratě'!$B:$C,2,0) -> „Sokolák“ Plaveč u Znojma | J18: =VLOOKUP(H18&"x"&F18,'Závody a tratě'!$A:$F,6,0) -> 6 | K18: =VLOOKUP(TEXT(H18,"000")&UPPER(D18)&TEXT(E18,"0000"),'Kategorie lokální'!$A$2:$F$300,6,TRUE) -> LMB | L18: =VLOOKUP(TEXT(H18,"000")&UPPER(D18)&TEXT(E18,"0000"),'Kategorie lokální'!$A$2:$G$300,7,TRUE) -> L: Muži 40 - 49 | M18: =VLOOKUP(UPPER(D18)&TEXT(E18,"0000"),'Kategorie ZBP'!$A$2:$E$30,5,TRUE) -> MB | N18: =VLOOKUP(M18,'Kategorie ZBP'!$E:$F,2,0) -> Muži 40 - 49 | O18: =VLOOKUP(H18&"x"&A18,Stopky!I:J,2,0) -> 0.01896990741 | P18: 15 | Q18: 5 | R18: 5 | S18: =IF(ISERROR(VLOOKUP(H18&"x"&F18&"xANO",'Závody a tratě'!L:L,1,0))=TRUE,0,_xlfn.IFNA(VLOOKUP(R18,'Body ZBP'!$A$1:$B$40,2,0),0)) -> 16 | T18: =H18&"x"&A18 -> 1x38 | U18: =IF(T18<>"x",COUNTIF($T$2:$T$3000,T18),"") -> 1
A19: 42 | B19: Němec | C19: Bedřich | D19: m | E19: 1964 | F19: M6 | G19: TJ M. Budějovice | H19: 1 | I19: =VLOOKUP(H19,'Závody a tratě'!$B:$C,2,0) -> „Sokolák“ Plaveč u Znojma | J19: =VLOOKUP(H19&"x"&F19,'Závody a tratě'!$A:$F,6,0) -> 6 | K19: =VLOOKUP(TEXT(H19,"000")&UPPER(D19)&TEXT(E19,"0000"),'Kategorie lokální'!$A$2:$F$300,6,TRUE) -> LMC | L19: =VLOOKUP(TEXT(H19,"000")&UPPER(D19)&TEXT(E19,"0000"),'Kategorie lokální'!$A$2:$G$300,7,TRUE) -> L: Muži 50 - 59 | M19: =VLOOKUP(UPPER(D19)&TEXT(E19,"0000"),'Kategorie ZBP'!$A$2:$E$30,5,TRUE) -> MC | N19: =VLOOKUP(M19,'Kategorie ZBP'!$E:$F,2,0) -> Muži 50 - 59 | O19: =VLOOKUP(H19&"x"&A19,Stopky!I:J,2,0) -> 0.01920138889 | P19: 16 | Q19: 2 | R19: 2 | S19: =IF(ISERROR(VLOOKUP(H19&"x"&F19&"xANO",'Závody a tratě'!L:L,1,0))=TRUE,0,_xlfn.IFNA(VLOOKUP(R19,'Body ZBP'!$A$1:$B$40,2,0),0)) -> 25 | T19: =H19&"x"&A19 -> 1x42 | U19: =IF(T19<>"x",COUNTIF($T$2:$T$3000,T19),"") -> 1
A20: 34 | B20: Gross | C20: Luděk | D20: m | E20: 1953 | F20: M6 | G20: GPOA Znojmo | H20: 1 | I20: =VLOOKUP(H20,'Závody a tratě'!$B:$C,2,0) -> „Sokolák“ Plaveč u Znojma | J20: =VLOOKUP(H20&"x"&F20,'Závody a tratě'!$A:$F,6,0) -> 6 | K20: =VLOOKUP(TEXT(H20,"000")&UPPER(D20)&TEXT(E20,"0000"),'Kategorie lokální'!$A$2:$F$300,6,TRUE) -> LMD | L20: =VLOOKUP(TEXT(H20,"000")&UPPER(D20)&TEXT(E20,"0000"),'Kategorie lokální'!$A$2:$G$300,7,TRUE) -> L: Muži od 60 | M20: =VLOOKUP(UPPER(D20)&TEXT(E20,"0000"),'Kategorie ZBP'!$A$2:$E$30,5,TRUE) -> MD | N20: =VLOOKUP(M20,'Kategorie ZBP'!$E:$F,2,0) -> Muži nad 60 | O20: =VLOOKUP(H20&"x"&A20,Stopky!I:J,2,0) -> 0.01975694444 | P20: 17 | Q20: 2 | R20: 2 | S20: =IF(ISERROR(VLOOKUP(H20&"x"&F20&"xANO",'Závody a tratě'!L:L,1,0))=TRUE,0,_xlfn.IFNA(VLOOKUP(R20,'Body ZBP'!$A$1:$B$40,2,0),0)) -> 25 | T20: =H20&"x"&A20 -> 1x34 | U20: =IF(T20<>"x",COUNTIF($T$2:$T$3000,T20),"") -> 1
A21: 37 | B21: Klusáček | C21: Pavel | D21: m | E21: 1956 | F21: M6 | G21: Rokytnice n. Rokytnou | H21: 1 | I21: =VLOOKUP(H21,'Závody a tratě'!$B:$C,2,0) -> „Sokolák“ Plaveč u Znojma | J21: =VLOOKUP(H21&"x"&F21,'Závody a tratě'!$A:$F,6,0) -> 6 | K21: =VLOOKUP(TEXT(H21,"000")&UPPER(D21)&TEXT(E21,"0000"),'Kategorie lokální'!$A$2:$F$300,6,TRUE) -> LMD | L21: =VLOOKUP(TEXT(H21,"000")&UPPER(D21)&TEXT(E21,"0000"),'Kategorie lokální'!$A$2:$G$300,7,TRUE) -> L: Muži od 60 | M21: =VLOOKUP(UPPER(D21)&TEXT(E21,"0000"),'Kategorie ZBP'!$A$2:$E$30,5,TRUE) -> MD | N21: =VLOOKUP(M21,'Kategorie ZBP'!$E:$F,2,0) -> Muži nad 60 | O21: =VLOOKUP(H21&"x"&A21,Stopky!I:J,2,0) -> 0.01994212963 | P21: 18 | Q21: 3 | R21: 3 | S21: =IF(ISERROR(VLOOKUP(H21&"x"&F21&"xANO",'Závody a tratě'!L:L,1,0))=TRUE,0,_xlfn.IFNA(VLOOKUP(R21,'Body ZBP'!$A$1:$B$40,2,0),0)) -> 21 | T21: =H21&"x"&A21 -> 1x37 | U21: =IF(T21<>"x",COUNTIF($T$2:$T$3000,T21),"") -> 1
A22: 49 | B22: Dřevojan | C22: Petr | D22: m | E22: 1980 | F22: M6 | G22: Znojmo | H22: 1 | I22: =VLOOKUP(H22,'Závody a tratě'!$B:$C,2,0) -> „Sokolák“ Plaveč u Znojma | J22: =VLOOKUP(H22&"x"&F22,'Závody a tratě'!$A:$F,6,0) -> 6 | K22: =VLOOKUP(TEXT(H22,"000")&UPPER(D22)&TEXT(E22,"0000"),'Kategorie lokální'!$A$2:$F$300,6,TRUE) -> LMA | L22: =VLOOKUP(TEXT(H22,"000")&UPPER(D22)&TEXT(E22,"0000"),'Kategorie lokální'!$A$2:$G$300,7,TRUE) -> L: Muži do 39 | M22: =VLOOKUP(UPPER(D22)&TEXT(E22,"0000"),'Kategorie ZBP'!$A$2:$E$30,5,TRUE) -> MA | N22: =VLOOKUP(M22,'Kategorie ZBP'!$E:$F,2,0) -> Muži do 39 | O22: =VLOOKUP(H22&"x"&A22,Stopky!I:J,2,0) -> 0.02046296296 | P22: 19 | Q22: 9 | R22: 9 | S22: =IF(ISERROR(VLOOKUP(H22&"x"&F22&"xANO",'Závody a tratě'!L:L,1,0))=TRUE,0,_xlfn.IFNA(VLOOKUP(R22,'Body ZBP'!$A$1:$B$40,2,0),0)) -> 12 | T22: =H22&"x"&A22 -> 1x49 | U22: =IF(T22<>"x",COUNTIF($T$2:$T$3000,T22),"") -> 1
A23: 35 | B23: Nejedlý | C23: Jiří | D23: m | E23: 1971 | F23: M6 | G23: Němčičky | H23: 1 | I23: =VLOOKUP(H23,'Závody a tratě'!$B:$C,2,0) -> „Sokolák“ Plaveč u Znojma | J23: =VLOOKUP(H23&"x"&F23,'Závody a tratě'!$A:$F,6,0) -> 6 | K23: =VLOOKUP(TEXT(H23,"000")&UPPER(D23)&TEXT(E23,"0000"),'Kategorie lokální'!$A$2:$F$300,6,TRUE) -> LMB | L23: =VLOOKUP(TEXT(H23,"000")&UPPER(D23)&TEXT(E23,"0000"),'Kategorie lokální'!$A$2:$G$300,7,TRUE) -> L: Muži 40 - 49 | M23: =VLOOKUP(UPPER(D23)&TEXT(E23,"0000"),'Kategorie ZBP'!$A$2:$E$30,5,TRUE) -> MB | N23: =VLOOKUP(M23,'Kategorie ZBP'!$E:$F,2,0) -> Muži 40 - 49 | O23: =VLOOKUP(H23&"x"&A23,Stopky!I:J,2,0) -> 0.02071759259 | P23: 20 | Q23: 6 | R23: 6 | S23: =IF(ISERROR(VLOOKUP(H23&"x"&F23&"xANO",'Závody a tratě'!L:L,1,0))=TRUE,0,_xlfn.IFNA(VLOOKUP(R23,'Body ZBP'!$A$1:$B$40,2,0),0)) -> 15 | T23: =H23&"x"&A23 -> 1x35 | U23: =IF(T23<>"x",COUNTIF($T$2:$T$3000,T23),"") -> 1
A24: 4 | B24: Koc | C24: Dušan | D24: m | E24: 1990 | F24: M6 | G24: TJ Sokol Plaveč | H24: 1 | I24: =VLOOKUP(H24,'Závody a tratě'!$B:$C,2,0) -> „Sokolák“ Plaveč u Znojma | J24: =VLOOKUP(H24&"x"&F24,'Závody a tratě'!$A:$F,6,0) -> 6 | K24: =VLOOKUP(TEXT(H24,"000")&UPPER(D24)&TEXT(E24,"0000"),'Kategorie lokální'!$A$2:$F$300,6,TRUE) -> LMA | L24: =VLOOKUP(TEXT(H24,"000")&UPPER(D24)&TEXT(E24,"0000"),'Kategorie lokální'!$A$2:$G$300,7,TRUE) -> L: Muži do 39 | M24: =VLOOKUP(UPPER(D24)&TEXT(E24,"0000"),'Kategorie ZBP'!$A$2:$E$30,5,TRUE) -> MA | N24: =VLOOKUP(M24,'Kategorie ZBP'!$E:$F,2,0) -> Muži do 39 | O24: =VLOOKUP(H24&"x"&A24,Stopky!I:J,2,0) -> 0.02297453704 | P24: 21 | Q24: 10 | R24: 10 | S24: =IF(ISERROR(VLOOKUP(H24&"x"&F24&"xANO",'Závody a tratě'!L:L,1,0))=TRUE,0,_xlfn.IFNA(VLOOKUP(R24,'Body ZBP'!$A$1:$B$40,2,0),0)) -> 11 | T24: =H24&"x"&A24 -> 1x4 | U24: =IF(T24<>"x",COUNTIF($T$2:$T$3000,T24),"") -> 1
A25: 8 | B25: Fila | C25: Radek | D25: m | E25: 1979 | F25: M6 | G25: PSK Znojmo | H25: 1 | I25: =VLOOKUP(H25,'Závody a tratě'!$B:$C,2,0) -> „Sokolák“ Plaveč u Znojma | J25: =VLOOKUP(H25&"x"&F25,'Závody a tratě'!$A:$F,6,0) -> 6 | K25: =VLOOKUP(TEXT(H25,"000")&UPPER(D25)&TEXT(E25,"0000"),'Kategorie lokální'!$A$2:$F$300,6,TRUE) -> LMA | L25: =VLOOKUP(TEXT(H25,"000")&UPPER(D25)&TEXT(E25,"0000"),'Kategorie lokální'!$A$2:$G$300,7,TRUE) -> L: Muži do 39 | M25: =VLOOKUP(UPPER(D25)&TEXT(E25,"0000"),'Kategorie ZBP'!$A$2:$E$30,5,TRUE) -> MA | N25: =VLOOKUP(M25,'Kategorie ZBP'!$E:$F,2,0) -> Muži do 39 | O25: =VLOOKUP(H25&"x"&A25,Stopky!I:J,2,0) -> 0.02431712963 | P25: 22 | Q25: 11 | R25: 11 | S25: =IF(ISERROR(VLOOKUP(H25&"x"&F25&"xANO",'Závody a tratě'!L:L,1,0))=TRUE,0,_xlfn.IFNA(VLOOKUP(R25,'Body ZBP'!$A$1:$B$40,2,0),0)) -> 10 | T25: =H25&"x"&A25 -> 1x8 | U25: =IF(T25<>"x",COUNTIF($T$2:$T$3000,T25),"") -> 1
A26: 43 | B26: Černý | C26: Jaroslav | D26: m | E26: 1946 | F26: M6 | G26: M. Budějovice | H26: 1 | I26: =VLOOKUP(H26,'Závody a tratě'!$B:$C,2,0) -> „Sokolák“ Plaveč u Znojma | J26: =VLOOKUP(H26&"x"&F26,'Závody a tratě'!$A:$F,6,0) -> 6 | K26: =VLOOKUP(TEXT(H26,"000")&UPPER(D26)&TEXT(E26,"0000"),'Kategorie lokální'!$A$2:$F$300,6,TRUE) -> LMD | L26: =VLOOKUP(TEXT(H26,"000")&UPPER(D26)&TEXT(E26,"0000"),'Kategorie lokální'!$A$2:$G$300,7,TRUE) -> L: Muži od 60 | M26: =VLOOKUP(UPPER(D26)&TEXT(E26,"0000"),'Kategorie ZBP'!$A$2:$E$30,5,TRUE) -> MD | N26: =VLOOKUP(M26,'Kategorie ZBP'!$E:$F,2,0) -> Muži nad 60 | O26: =VLOOKUP(H26&"x"&A26,Stopky!I:J,2,0) -> 0.02564814815 | P26: 23 | Q26: 4 | R26: 4 | S26: =IF(ISERROR(VLOOKUP(H26&"x"&F26&"xANO",'Závody a tratě'!L:L,1,0))=TRUE,0,_xlfn.IFNA(VLOOKUP(R26,'Body ZBP'!$A$1:$B$40,2,0),0)) -> 18 | T26: =H26&"x"&A26 -> 1x43 | U26: =IF(T26<>"x",COUNTIF($T$2:$T$3000,T26),"") -> 1
A27: 15 | B27: Komenda | C27: Dušan | D27: m | E27: 1991 | F27: M6 | G27: TJ těšetice | H27: 1 | I27: =VLOOKUP(H27,'Závody a tratě'!$B:$C,2,0) -> „Sokolák“ Plaveč u Znojma | J27: =VLOOKUP(H27&"x"&F27,'Závody a tratě'!$A:$F,6,0) -> 6 | K27: =VLOOKUP(TEXT(H27,"000")&UPPER(D27)&TEXT(E27,"0000"),'Kategorie lokální'!$A$2:$F$300,6,TRUE) -> LMA | L27: =VLOOKUP(TEXT(H27,"000")&UPPER(D27)&TEXT(E27,"0000"),'Kategorie lokální'!$A$2:$G$300,7,TRUE) -> L: Muži do 39 | M27: =VLOOKUP(UPPER(D27)&TEXT(E27,"0000"),'Kategorie ZBP'!$A$2:$E$30,5,TRUE) -> MA | N27: =VLOOKUP(M27,'Kategorie ZBP'!$E:$F,2,0) -> Muži do 39 | O27: =VLOOKUP(H27&"x"&A27,Stopky!I:J,2,0) ->  | P27: DNF | Q27: DNF | R27: DNF | S27: =IF(ISERROR(VLOOKUP(H27&"x"&F27&"xANO",'Závody a tratě'!L:L,1,0))=TRUE,0,_xlfn.IFNA(VLOOKUP(R27,'Body ZBP'!$A$1:$B$40,2,0),0)) -> 0 | T27: =H27&"x"&A27 -> 1x15 | U27: =IF(T27<>"x",COUNTIF($T$2:$T$3000,T27),"") -> 1
A28: 41 | B28: Přistálová | C28: Veronika | D28: z | E28: 1984 | F28: Z3 | G28: Znojmo | H28: 1 | I28: =VLOOKUP(H28,'Závody a tratě'!$B:$C,2,0) -> „Sokolák“ Plaveč u Znojma | J28: =VLOOKUP(H28&"x"&F28,'Závody a tratě'!$A:$F,6,0) -> 3 | K28: =VLOOKUP(TEXT(H28,"000")&UPPER(D28)&TEXT(E28,"0000"),'Kategorie lokální'!$A$2:$F$300,6,TRUE) -> LZA | L28: =VLOOKUP(TEXT(H28,"000")&UPPER(D28)&TEXT(E28,"0000"),'Kategorie lokální'!$A$2:$G$300,7,TRUE) -> L: Ženy do 34 | M28: =VLOOKUP(UPPER(D28)&TEXT(E28,"0000"),'Kategorie ZBP'!$A$2:$E$30,5,TRUE) -> ZA | N28: =VLOOKUP(M28,'Kategorie ZBP'!$E:$F,2,0) -> Ženy do 34 | O28: =VLOOKUP(H28&"x"&A28,Stopky!I:J,2,0) -> 0.008877314815 | P28: 1 | Q28: 1 | R28: 1 | S28: =IF(ISERROR(VLOOKUP(H28&"x"&F28&"xANO",'Závody a tratě'!L:L,1,0))=TRUE,0,_xlfn.IFNA(VLOOKUP(R28,'Body ZBP'!$A$1:$B$40,2,0),0)) -> 30 | T28: =H28&"x"&A28 -> 1x41 | U28: =IF(T28<>"x",COUNTIF($T$2:$T$3000,T28),"") -> 1
A29: 26 | B29: Švestková | C29: Soňa | D29: z | E29: 1988 | F29: Z3 | H29: 1 | I29: =VLOOKUP(H29,'Závody a tratě'!$B:$C,2,0) -> „Sokolák“ Plaveč u Znojma | J29: =VLOOKUP(H29&"x"&F29,'Závody a tratě'!$A:$F,6,0) -> 3 | K29: =VLOOKUP(TEXT(H29,"000")&UPPER(D29)&TEXT(E29,"0000"),'Kategorie lokální'!$A$2:$F$300,6,TRUE) -> LZA | L29: =VLOOKUP(TEXT(H29,"000")&UPPER(D29)&TEXT(E29,"0000"),'Kategorie lokální'!$A$2:$G$300,7,TRUE) -> L: Ženy do 34 | M29: =VLOOKUP(UPPER(D29)&TEXT(E29,"0000"),'Kategorie ZBP'!$A$2:$E$30,5,TRUE) -> ZA | N29: =VLOOKUP(M29,'Kategorie ZBP'!$E:$F,2,0) -> Ženy do 34 | O29: =VLOOKUP(H29&"x"&A29,Stopky!I:J,2,0) -> 0.009282407407 | P29: 2 | Q29: 2 | R29: 2 | S29: =IF(ISERROR(VLOOKUP(H29&"x"&F29&"xANO",'Závody a tratě'!L:L,1,0))=TRUE,0,_xlfn.IFNA(VLOOKUP(R29,'Body ZBP'!$A$1:$B$40,2,0),0)) -> 25 | T29: =H29&"x"&A29 -> 1x26 | U29: =IF(T29<>"x",COUNTIF($T$2:$T$3000,T29),"") -> 1
A30: 24 | B30: Kuchařová | C30: Simona | D30: z | E30: 1996 | F30: Z3 | G30: TJ Znojmo | H30: 1 | I30: =VLOOKUP(H30,'Závody a tratě'!$B:$C,2,0) -> „Sokolák“ Plaveč u Znojma | J30: =VLOOKUP(H30&"x"&F30,'Závody a tratě'!$A:$F,6,0) -> 3 | K30: =VLOOKUP(TEXT(H30,"000")&UPPER(D30)&TEXT(E30,"0000"),'Kategorie lokální'!$A$2:$F$300,6,TRUE) -> LZA | L30: =VLOOKUP(TEXT(H30,"000")&UPPER(D30)&TEXT(E30,"0000"),'Kategorie lokální'!$A$2:$G$300,7,TRUE) -> L: Ženy do 34 | M30: =VLOOKUP(UPPER(D30)&TEXT(E30,"0000"),'Kategorie ZBP'!$A$2:$E$30,5,TRUE) -> ZA | N30: =VLOOKUP(M30,'Kategorie ZBP'!$E:$F,2,0) -> Ženy do 34 | O30: =VLOOKUP(H30&"x"&A30,Stopky!I:J,2,0) -> 0.009340277778 | P30: 3 | Q30: 3 | R30: 3 | S30: =IF(ISERROR(VLOOKUP(H30&"x"&F30&"xANO",'Závody a tratě'!L:L,1,0))=TRUE,0,_xlfn.IFNA(VLOOKUP(R30,'Body ZBP'!$A$1:$B$40,2,0),0)) -> 21 | T30: =H30&"x"&A30 -> 1x24 | U30: =IF(T30<>"x",COUNTIF($T$2:$T$3000,T30),"") -> 1
A31: 47 | B31: Bartůňková | C31: Světlana | D31: z | E31: 1976 | F31: Z3 | G31: Rabbits Znojmo | H31: 1 | I31: =VLOOKUP(H31,'Závody a tratě'!$B:$C,2,0) -> „Sokolák“ Plaveč u Znojma | J31: =VLOOKUP(H31&"x"&F31,'Závody a tratě'!$A:$F,6,0) -> 3 | K31: =VLOOKUP(TEXT(H31,"000")&UPPER(D31)&TEXT(E31,"0000"),'Kategorie lokální'!$A$2:$F$300,6,TRUE) -> LZB | L31: =VLOOKUP(TEXT(H31,"000")&UPPER(D31)&TEXT(E31,"0000"),'Kategorie lokální'!$A$2:$G$300,7,TRUE) -> L: Ženy od 35 | M31: =VLOOKUP(UPPER(D31)&TEXT(E31,"0000"),'Kategorie ZBP'!$A$2:$E$30,5,TRUE) -> ZB | N31: =VLOOKUP(M31,'Kategorie ZBP'!$E:$F,2,0) -> Ženy 35 - 44 | O31: =VLOOKUP(H31&"x"&A31,Stopky!I:J,2,0) -> 0.01049768519 | P31: 4 | Q31: 1 | R31: 1 | S31: =IF(ISERROR(VLOOKUP(H31&"x"&F31&"xANO",'Závody a tratě'!L:L,1,0))=TRUE,0,_xlfn.IFNA(VLOOKUP(R31,'Body ZBP'!$A$1:$B$40,2,0),0)) -> 30 | T31: =H31&"x"&A31 -> 1x47 | U31: =IF(T31<>"x",COUNTIF($T$2:$T$3000,T31),"") -> 1
A32: 29 | B32: Valášková | C32: Jana | D32: z | E32: 1965 | F32: Z3 | G32: BBK Fitnes | H32: 1 | I32: =VLOOKUP(H32,'Závody a tratě'!$B:$C,2,0) -> „Sokolák“ Plaveč u Znojma | J32: =VLOOKUP(H32&"x"&F32,'Závody a tratě'!$A:$F,6,0) -> 3 | K32: =VLOOKUP(TEXT(H32,"000")&UPPER(D32)&TEXT(E32,"0000"),'Kategorie lokální'!$A$2:$F$300,6,TRUE) -> LZB | L32: =VLOOKUP(TEXT(H32,"000")&UPPER(D32)&TEXT(E32,"0000"),'Kategorie lokální'!$A$2:$G$300,7,TRUE) -> L: Ženy od 35 | M32: =VLOOKUP(UPPER(D32)&TEXT(E32,"0000"),'Kategorie ZBP'!$A$2:$E$30,5,TRUE) -> ZC | N32: =VLOOKUP(M32,'Kategorie ZBP'!$E:$F,2,0) -> Ženy nad 45 | O32: =VLOOKUP(H32&"x"&A32,Stopky!I:J,2,0) -> 0.010625 | P32: 5 | Q32: 2 | R32: 1 | S32: =IF(ISERROR(VLOOKUP(H32&"x"&F32&"xANO",'Závody a tratě'!L:L,1,0))=TRUE,0,_xlfn.IFNA(VLOOKUP(R32,'Body ZBP'!$A$1:$B$40,2,0),0)) -> 30 | T32: =H32&"x"&A32 -> 1x29 | U32: =IF(T32<>"x",COUNTIF($T$2:$T$3000,T32),"") -> 1
A33: 1 | B33: Bulínová | C33: Jitka | D33: z | E33: 1993 | F33: Z3 | G33: TJ Sokol Plaveč | H33: 1 | I33: =VLOOKUP(H33,'Závody a tratě'!$B:$C,2,0) -> „Sokolák“ Plaveč u Znojma | J33: =VLOOKUP(H33&"x"&F33,'Závody a tratě'!$A:$F,6,0) -> 3 | K33: =VLOOKUP(TEXT(H33,"000")&UPPER(D33)&TEXT(E33,"0000"),'Kategorie lokální'!$A$2:$F$300,6,TRUE) -> LZA | L33: =VLOOKUP(TEXT(H33,"000")&UPPER(D33)&TEXT(E33,"0000"),'Kategorie lokální'!$A$2:$G$300,7,TRUE) -> L: Ženy do 34 | M33: =VLOOKUP(UPPER(D33)&TEXT(E33,"0000"),'Kategorie ZBP'!$A$2:$E$30,5,TRUE) -> ZA | N33: =VLOOKUP(M33,'Kategorie ZBP'!$E:$F,2,0) -> Ženy do 34 | O33: =VLOOKUP(H33&"x"&A33,Stopky!I:J,2,0) -> 0.01084490741 | P33: 6 | Q33: 4 | R33: 4 | S33: =IF(ISERROR(VLOOKUP(H33&"x"&F33&"xANO",'Závody a tratě'!L:L,1,0))=TRUE,0,_xlfn.IFNA(VLOOKUP(R33,'Body ZBP'!$A$1:$B$40,2,0),0)) -> 18 | T33: =H33&"x"&A33 -> 1x1 | U33: =IF(T33<>"x",COUNTIF($T$2:$T$3000,T33),"") -> 1
A34: 20 | B34: Szabó | C34: Lada | D34: z | E34: 1978 | F34: Z3 | H34: 1 | I34: =VLOOKUP(H34,'Závody a tratě'!$B:$C,2,0) -> „Sokolák“ Plaveč u Znojma | J34: =VLOOKUP(H34&"x"&F34,'Závody a tratě'!$A:$F,6,0) -> 3 | K34: =VLOOKUP(TEXT(H34,"000")&UPPER(D34)&TEXT(E34,"0000"),'Kategorie lokální'!$A$2:$F$300,6,TRUE) -> LZB | L34: =VLOOKUP(TEXT(H34,"000")&UPPER(D34)&TEXT(E34,"0000"),'Kategorie lokální'!$A$2:$G$300,7,TRUE) -> L: Ženy od 35 | M34: =VLOOKUP(UPPER(D34)&TEXT(E34,"0000"),'Kategorie ZBP'!$A$2:$E$30,5,TRUE) -> ZB | N34: =VLOOKUP(M34,'Kategorie ZBP'!$E:$F,2,0) -> Ženy 35 - 44 | O34: =VLOOKUP(H34&"x"&A34,Stopky!I:J,2,0) -> 0.01096064815 | P34: 7 | Q34: 3 | R34: 2 | S34: =IF(ISERROR(VLOOKUP(H34&"x"&F34&"xANO",'Závody a tratě'!L:L,1,0))=TRUE,0,_xlfn.IFNA(VLOOKUP(R34,'Body ZBP'!$A$1:$B$40,2,0),0)) -> 25 | T34: =H34&"x"&A34 -> 1x20 | U34: =IF(T34<>"x",COUNTIF($T$2:$T$3000,T34),"") -> 1
A35: 7 | B35: Janderková | C35: Šárka, Jana | D35: z | E35: 1987 | F35: Z3 | G35: Znojmo | H35: 1 | I35: =VLOOKUP(H35,'Závody a tratě'!$B:$C,2,0) -> „Sokolák“ Plaveč u Znojma | J35: =VLOOKUP(H35&"x"&F35,'Závody a tratě'!$A:$F,6,0) -> 3 | K35: =VLOOKUP(TEXT(H35,"000")&UPPER(D35)&TEXT(E35,"0000"),'Kategorie lokální'!$A$2:$F$300,6,TRUE) -> LZA | L35: =VLOOKUP(TEXT(H35,"000")&UPPER(D35)&TEXT(E35,"0000"),'Kategorie lokální'!$A$2:$G$300,7,TRUE) -> L: Ženy do 34 | M35: =VLOOKUP(UPPER(D35)&TEXT(E35,"0000"),'Kategorie ZBP'!$A$2:$E$30,5,TRUE) -> ZA | N35: =VLOOKUP(M35,'Kategorie ZBP'!$E:$F,2,0) -> Ženy do 34 | O35: =VLOOKUP(H35&"x"&A35,Stopky!I:J,2,0) -> 0.01246527778 | P35: 8 | Q35: 5 | R35: 5 | S35: =IF(ISERROR(VLOOKUP(H35&"x"&F35&"xANO",'Závody a tratě'!L:L,1,0))=TRUE,0,_xlfn.IFNA(VLOOKUP(R35,'Body ZBP'!$A$1:$B$40,2,0),0)) -> 16 | T35: =H35&"x"&A35 -> 1x7 | U35: =IF(T35<>"x",COUNTIF($T$2:$T$3000,T35),"") -> 1
A36: 25 | B36: Budinská | C36: Monika | D36: z | E36: 1988 | F36: Z3 | H36: 1 | I36: =VLOOKUP(H36,'Závody a tratě'!$B:$C,2,0) -> „Sokolák“ Plaveč u Znojma | J36: =VLOOKUP(H36&"x"&F36,'Závody a tratě'!$A:$F,6,0) -> 3 | K36: =VLOOKUP(TEXT(H36,"000")&UPPER(D36)&TEXT(E36,"0000"),'Kategorie lokální'!$A$2:$F$300,6,TRUE) -> LZA | L36: =VLOOKUP(TEXT(H36,"000")&UPPER(D36)&TEXT(E36,"0000"),'Kategorie lokální'!$A$2:$G$300,7,TRUE) -> L: Ženy do 34 | M36: =VLOOKUP(UPPER(D36)&TEXT(E36,"0000"),'Kategorie ZBP'!$A$2:$E$30,5,TRUE) -> ZA | N36: =VLOOKUP(M36,'Kategorie ZBP'!$E:$F,2,0) -> Ženy do 34 | O36: =VLOOKUP(H36&"x"&A36,Stopky!I:J,2,0) -> 0.01319444444 | P36: 9 | Q36: 6 | R36: 6 | S36: =IF(ISERROR(VLOOKUP(H36&"x"&F36&"xANO",'Závody a tratě'!L:L,1,0))=TRUE,0,_xlfn.IFNA(VLOOKUP(R36,'Body ZBP'!$A$1:$B$40,2,0),0)) -> 15 | T36: =H36&"x"&A36 -> 1x25 | U36: =IF(T36<>"x",COUNTIF($T$2:$T$3000,T36),"") -> 1
A37: 33 | B37: Holíková | C37: Ida | D37: z | E37: 1964 | F37: Z3 | G37: Znojemskéběhání | H37: 1 | I37: =VLOOKUP(H37,'Závody a tratě'!$B:$C,2,0) -> „Sokolák“ Plaveč u Znojma | J37: =VLOOKUP(H37&"x"&F37,'Závody a tratě'!$A:$F,6,0) -> 3 | K37: =VLOOKUP(TEXT(H37,"000")&UPPER(D37)&TEXT(E37,"0000"),'Kategorie lokální'!$A$2:$F$300,6,TRUE) -> LZB | L37: =VLOOKUP(TEXT(H37,"000")&UPPER(D37)&TEXT(E37,"0000"),'Kategorie lokální'!$A$2:$G$300,7,TRUE) -> L: Ženy od 35 | M37: =VLOOKUP(UPPER(D37)&TEXT(E37,"0000"),'Kategorie ZBP'!$A$2:$E$30,5,TRUE) -> ZC | N37: =VLOOKUP(M37,'Kategorie ZBP'!$E:$F,2,0) -> Ženy nad 45 | O37: =VLOOKUP(H37&"x"&A37,Stopky!I:J,2,0) -> 0.014375 | P37: 10 | Q37: 4 | R37: 2 | S37: =IF(ISERROR(VLOOKUP(H37&"x"&F37&"xANO",'Závody a tratě'!L:L,1,0))=TRUE,0,_xlfn.IFNA(VLOOKUP(R37,'Body ZBP'!$A$1:$B$40,2,0),0)) -> 25 | T37: =H37&"x"&A37 -> 1x33 | U37: =IF(T37<>"x",COUNTIF($T$2:$T$3000,T37),"") -> 1
A38: 50 | B38: Čapek | C38: Jan | D38: m | E38: 1986 | F38: M10 | G38: Valeč | H38: 2 | I38: =VLOOKUP(H38,'Závody a tratě'!$B:$C,2,0) -> Borovinská desítka | J38: =VLOOKUP(H38&"x"&F38,'Závody a tratě'!$A:$F,6,0) -> 10 | K38: =VLOOKUP(TEXT(H38,"000")&UPPER(D38)&TEXT(E38,"0000"),'Kategorie lokální'!$A$2:$F$300,6,TRUE) -> LMA | L38: =VLOOKUP(TEXT(H38,"000")&UPPER(D38)&TEXT(E38,"0000"),'Kategorie lokální'!$A$2:$G$300,7,TRUE) -> L: Muži do 39 | M38: =VLOOKUP(UPPER(D38)&TEXT(E38,"0000"),'Kategorie ZBP'!$A$2:$E$30,5,TRUE) -> MA | N38: =VLOOKUP(M38,'Kategorie ZBP'!$E:$F,2,0) -> Muži do 39 | O38: =VLOOKUP(H38&"x"&A38,Stopky!I:J,2,0) -> 0.02664351852 | P38: 1 | Q38: 1 | R38: 1 | S38: =IF(ISERROR(VLOOKUP(H38&"x"&F38&"xANO",'Závody a tratě'!L:L,1,0))=TRUE,0,_xlfn.IFNA(VLOOKUP(R38,'Body ZBP'!$A$1:$B$40,2,0),0)) -> 30 | T38: =H38&"x"&A38 -> 2x50 | U38: =IF(T38<>"x",COUNTIF($T$2:$T$3000,T38),"") -> 1
A39: 10 | B39: Kratochvíl | C39: Pavel | D39: m | E39: 1960 | F39: M10 | G39: Atletic Třebíč | H39: 2 | I39: =VLOOKUP(H39,'Závody a tratě'!$B:$C,2,0) -> Borovinská desítka | J39: =VLOOKUP(H39&"x"&F39,'Závody a tratě'!$A:$F,6,0) -> 10 | K39: =VLOOKUP(TEXT(H39,"000")&UPPER(D39)&TEXT(E39,"0000"),'Kategorie lokální'!$A$2:$F$300,6,TRUE) -> LMC | L39: =VLOOKUP(TEXT(H39,"000")&UPPER(D39)&TEXT(E39,"0000"),'Kategorie lokální'!$A$2:$G$300,7,TRUE) -> L: Muži 50 - 59 | M39: =VLOOKUP(UPPER(D39)&TEXT(E39,"0000"),'Kategorie ZBP'!$A$2:$E$30,5,TRUE) -> MC | N39: =VLOOKUP(M39,'Kategorie ZBP'!$E:$F,2,0) -> Muži 50 - 59 | O39: =VLOOKUP(H39&"x"&A39,Stopky!I:J,2,0) -> 0.02693287037 | P39: 2 | Q39: 1 | R39: 1 | S39: =IF(ISERROR(VLOOKUP(H39&"x"&F39&"xANO",'Závody a tratě'!L:L,1,0))=TRUE,0,_xlfn.IFNA(VLOOKUP(R39,'Body ZBP'!$A$1:$B$40,2,0),0)) -> 30 | T39: =H39&"x"&A39 -> 2x10 | U39: =IF(T39<>"x",COUNTIF($T$2:$T$3000,T39),"") -> 1
A40: 46 | B40: Kazda | C40: Petr | D40: m | E40: 1970 | F40: M10 | G40: Stropešín | H40: 2 | I40: =VLOOKUP(H40,'Závody a tratě'!$B:$C,2,0) -> Borovinská desítka | J40: =VLOOKUP(H40&"x"&F40,'Závody a tratě'!$A:$F,6,0) -> 10 | K40: =VLOOKUP(TEXT(H40,"000")&UPPER(D40)&TEXT(E40,"0000"),'Kategorie lokální'!$A$2:$F$300,6,TRUE) -> LMB | L40: =VLOOKUP(TEXT(H40,"000")&UPPER(D40)&TEXT(E40,"0000"),'Kategorie lokální'!$A$2:$G$300,7,TRUE) -> L: Muži 40 - 49 | M40: =VLOOKUP(UPPER(D40)&TEXT(E40,"0000"),'Kategorie ZBP'!$A$2:$E$30,5,TRUE) -> MB | N40: =VLOOKUP(M40,'Kategorie ZBP'!$E:$F,2,0) -> Muži 40 - 49 | O40: =VLOOKUP(H40&"x"&A40,Stopky!I:J,2,0) -> 0.02708333333 | P40: 3 | Q40: 1 | R40: 1 | S40: =IF(ISERROR(VLOOKUP(H40&"x"&F40&"xANO",'Závody a tratě'!L:L,1,0))=TRUE,0,_xlfn.IFNA(VLOOKUP(R40,'Body ZBP'!$A$1:$B$40,2,0),0)) -> 30 | T40: =H40&"x"&A40 -> 2x46 | U40: =IF(T40<>"x",COUNTIF($T$2:$T$3000,T40),"") -> 1
A41: 26 | B41: Ryšavý | C41: Zdeněk | D41: m | E41: 1991 | F41: M10 | G41: Run for Fun | H41: 2 | I41: =VLOOKUP(H41,'Závody a tratě'!$B:$C,2,0) -> Borovinská desítka | J41: =VLOOKUP(H41&"x"&F41,'Závody a tratě'!$A:$F,6,0) -> 10 | K41: =VLOOKUP(TEXT(H41,"000")&UPPER(D41)&TEXT(E41,"0000"),'Kategorie lokální'!$A$2:$F$300,6,TRUE) -> LMA | L41: =VLOOKUP(TEXT(H41,"000")&UPPER(D41)&TEXT(E41,"0000"),'Kategorie lokální'!$A$2:$G$300,7,TRUE) -> L: Muži do 39 | M41: =VLOOKUP(UPPER(D41)&TEXT(E41,"0000"),'Kategorie ZBP'!$A$2:$E$30,5,TRUE) -> MA | N41: =VLOOKUP(M41,'Kategorie ZBP'!$E:$F,2,0) -> Muži do 39 | O41: =VLOOKUP(H41&"x"&A41,Stopky!I:J,2,0) -> 0.02796296296 | P41: 4 | Q41: 2 | R41: 2 | S41: =IF(ISERROR(VLOOKUP(H41&"x"&F41&"xANO",'Závody a tratě'!L:L,1,0))=TRUE,0,_xlfn.IFNA(VLOOKUP(R41,'Body ZBP'!$A$1:$B$40,2,0),0)) -> 25 | T41: =H41&"x"&A41 -> 2x26 | U41: =IF(T41<>"x",COUNTIF($T$2:$T$3000,T41),"") -> 1
A42: 20 | B42: Čermák | C42: Bedřich | D42: m | E42: 1974 | F42: M10 | G42: Atletic Třebíč | H42: 2 | I42: =VLOOKUP(H42,'Závody a tratě'!$B:$C,2,0) -> Borovinská desítka | J42: =VLOOKUP(H42&"x"&F42,'Závody a tratě'!$A:$F,6,0) -> 10 | K42: =VLOOKUP(TEXT(H42,"000")&UPPER(D42)&TEXT(E42,"0000"),'Kategorie lokální'!$A$2:$F$300,6,TRUE) -> LMB | L42: =VLOOKUP(TEXT(H42,"000")&UPPER(D42)&TEXT(E42,"0000"),'Kategorie lokální'!$A$2:$G$300,7,TRUE) -> L: Muži 40 - 49 | M42: =VLOOKUP(UPPER(D42)&TEXT(E42,"0000"),'Kategorie ZBP'!$A$2:$E$30,5,TRUE) -> MB | N42: =VLOOKUP(M42,'Kategorie ZBP'!$E:$F,2,0) -> Muži 40 - 49 | O42: =VLOOKUP(H42&"x"&A42,Stopky!I:J,2,0) -> 0.02837962963 | P42: 5 | Q42: 2 | R42: 2 | S42: =IF(ISERROR(VLOOKUP(H42&"x"&F42&"xANO",'Závody a tratě'!L:L,1,0))=TRUE,0,_xlfn.IFNA(VLOOKUP(R42,'Body ZBP'!$A$1:$B$40,2,0),0)) -> 25 | T42: =H42&"x"&A42 -> 2x20 | U42: =IF(T42<>"x",COUNTIF($T$2:$T$3000,T42),"") -> 1
A43: 25 | B43: Bohuslav | C43: Jaroslav | D43: m | E43: 1959 | F43: M10 | G43: Třebíč | H43: 2 | I43: =VLOOKUP(H43,'Závody a tratě'!$B:$C,2,0) -> Borovinská desítka | J43: =VLOOKUP(H43&"x"&F43,'Závody a tratě'!$A:$F,6,0) -> 10 | K43: =VLOOKUP(TEXT(H43,"000")&UPPER(D43)&TEXT(E43,"0000"),'Kategorie lokální'!$A$2:$F$300,6,TRUE) -> LMC | L43: =VLOOKUP(TEXT(H43,"000")&UPPER(D43)&TEXT(E43,"0000"),'Kategorie lokální'!$A$2:$G$300,7,TRUE) -> L: Muži 50 - 59 | M43: =VLOOKUP(UPPER(D43)&TEXT(E43,"0000"),'Kategorie ZBP'!$A$2:$E$30,5,TRUE) -> MC | N43: =VLOOKUP(M43,'Kategorie ZBP'!$E:$F,2,0) -> Muži 50 - 59 | O43: =VLOOKUP(H43&"x"&A43,Stopky!I:J,2,0) -> 0.02849537037 | P43: 6 | Q43: 2 | R43: 2 | S43: =IF(ISERROR(VLOOKUP(H43&"x"&F43&"xANO",'Závody a tratě'!L:L,1,0))=TRUE,0,_xlfn.IFNA(VLOOKUP(R43,'Body ZBP'!$A$1:$B$40,2,0),0)) -> 25 | T43: =H43&"x"&A43 -> 2x25 | U43: =IF(T43<>"x",COUNTIF($T$2:$T$3000,T43),"") -> 1
A44: 16 | B44: Fučík | C44: Karel | D44: m | E44: 1972 | F44: M10 | G44: Černín | H44: 2 | I44: =VLOOKUP(H44,'Závody a tratě'!$B:$C,2,0) -> Borovinská desítka | J44: =VLOOKUP(H44&"x"&F44,'Závody a tratě'!$A:$F,6,0) -> 10 | K44: =VLOOKUP(TEXT(H44,"000")&UPPER(D44)&TEXT(E44,"0000"),'Kategorie lokální'!$A$2:$F$300,6,TRUE) -> LMB | L44: =VLOOKUP(TEXT(H44,"000")&UPPER(D44)&TEXT(E44,"0000"),'Kategorie lokální'!$A$2:$G$300,7,TRUE) -> L: Muži 40 - 49 | M44: =VLOOKUP(UPPER(D44)&TEXT(E44,"0000"),'Kategorie ZBP'!$A$2:$E$30,5,TRUE) -> MB | N44: =VLOOKUP(M44,'Kategorie ZBP'!$E:$F,2,0) -> Muži 40 - 49 | O44: =VLOOKUP(H44&"x"&A44,Stopky!I:J,2,0) -> 0.02881944444 | P44: 7 | Q44: 3 | R44: 3 | S44: =IF(ISERROR(VLOOKUP(H44&"x"&F44&"xANO",'Závody a tratě'!L:L,1,0))=TRUE,0,_xlfn.IFNA(VLOOKUP(R44,'Body ZBP'!$A$1:$B$40,2,0),0)) -> 21 | T44: =H44&"x"&A44 -> 2x16 | U44: =IF(T44<>"x",COUNTIF($T$2:$T$3000,T44),"") -> 1
A45: 2 | B45: Konečný | C45: Karel | D45: m | E45: 1970 | F45: M10 | G45: Atletic Třebíč | H45: 2 | I45: =VLOOKUP(H45,'Závody a tratě'!$B:$C,2,0) -> Borovinská desítka | J45: =VLOOKUP(H45&"x"&F45,'Závody a tratě'!$A:$F,6,0) -> 10 | K45: =VLOOKUP(TEXT(H45,"000")&UPPER(D45)&TEXT(E45,"0000"),'Kategorie lokální'!$A$2:$F$300,6,TRUE) -> LMB | L45: =VLOOKUP(TEXT(H45,"000")&UPPER(D45)&TEXT(E45,"0000"),'Kategorie lokální'!$A$2:$G$300,7,TRUE) -> L: Muži 40 - 49 | M45: =VLOOKUP(UPPER(D45)&TEXT(E45,"0000"),'Kategorie ZBP'!$A$2:$E$30,5,TRUE) -> MB | N45: =VLOOKUP(M45,'Kategorie ZBP'!$E:$F,2,0) -> Muži 40 - 49 | O45: =VLOOKUP(H45&"x"&A45,Stopky!I:J,2,0) -> 0.02909722222 | P45: 8 | Q45: 4 | R45: 4 | S45: =IF(ISERROR(VLOOKUP(H45&"x"&F45&"xANO",'Závody a tratě'!L:L,1,0))=TRUE,0,_xlfn.IFNA(VLOOKUP(R45,'Body ZBP'!$A$1:$B$40,2,0),0)) -> 18 | T45: =H45&"x"&A45 -> 2x2 | U45: =IF(T45<>"x",COUNTIF($T$2:$T$3000,T45),"") -> 1
A46: 40 | B46: Holub | C46: Pavel | D46: m | E46: 1980 | F46: M10 | G46: RABBITS Znojmo | H46: 2 | I46: =VLOOKUP(H46,'Závody a tratě'!$B:$C,2,0) -> Borovinská desítka | J46: =VLOOKUP(H46&"x"&F46,'Závody a tratě'!$A:$F,6,0) -> 10 | K46: =VLOOKUP(TEXT(H46,"000")&UPPER(D46)&TEXT(E46,"0000"),'Kategorie lokální'!$A$2:$F$300,6,TRUE) -> LMA | L46: =VLOOKUP(TEXT(H46,"000")&UPPER(D46)&TEXT(E46,"0000"),'Kategorie lokální'!$A$2:$G$300,7,TRUE) -> L: Muži do 39 | M46: =VLOOKUP(UPPER(D46)&TEXT(E46,"0000"),'Kategorie ZBP'!$A$2:$E$30,5,TRUE) -> MA | N46: =VLOOKUP(M46,'Kategorie ZBP'!$E:$F,2,0) -> Muži do 39 | O46: =VLOOKUP(H46&"x"&A46,Stopky!I:J,2,0) -> 0.02967592593 | P46: 9 | Q46: 3 | R46: 3 | S46: =IF(ISERROR(VLOOKUP(H46&"x"&F46&"xANO",'Závody a tratě'!L:L,1,0))=TRUE,0,_xlfn.IFNA(VLOOKUP(R46,'Body ZBP'!$A$1:$B$40,2,0),0)) -> 21 | T46: =H46&"x"&A46 -> 2x40 | U46: =IF(T46<>"x",COUNTIF($T$2:$T$3000,T46),"") -> 1
A47: 35 | B47: Gottlieb | C47: Miroslav | D47: m | E47: 1975 | F47: M10 | G47: TJ Spartak Třebíč | H47: 2 | I47: =VLOOKUP(H47,'Závody a tratě'!$B:$C,2,0) -> Borovinská desítka | J47: =VLOOKUP(H47&"x"&F47,'Závody a tratě'!$A:$F,6,0) -> 10 | K47: =VLOOKUP(TEXT(H47,"000")&UPPER(D47)&TEXT(E47,"0000"),'Kategorie lokální'!$A$2:$F$300,6,TRUE) -> LMB | L47: =VLOOKUP(TEXT(H47,"000")&UPPER(D47)&TEXT(E47,"0000"),'Kategorie lokální'!$A$2:$G$300,7,TRUE) -> L: Muži 40 - 49 | M47: =VLOOKUP(UPPER(D47)&TEXT(E47,"0000"),'Kategorie ZBP'!$A$2:$E$30,5,TRUE) -> MB | N47: =VLOOKUP(M47,'Kategorie ZBP'!$E:$F,2,0) -> Muži 40 - 49 | O47: =VLOOKUP(H47&"x"&A47,Stopky!I:J,2,0) -> 0.02984953704 | P47: 10 | Q47: 5 | R47: 5 | S47: =IF(ISERROR(VLOOKUP(H47&"x"&F47&"xANO",'Závody a tratě'!L:L,1,0))=TRUE,0,_xlfn.IFNA(VLOOKUP(R47,'Body ZBP'!$A$1:$B$40,2,0),0)) -> 16 | T47: =H47&"x"&A47 -> 2x35 | U47: =IF(T47<>"x",COUNTIF($T$2:$T$3000,T47),"") -> 1
A48: 9 | B48: Caha | C48: Zbyněk | D48: m | E48: 1984 | F48: M10 | G48: Atletic Třebíč | H48: 2 | I48: =VLOOKUP(H48,'Závody a tratě'!$B:$C,2,0) -> Borovinská desítka | J48: =VLOOKUP(H48&"x"&F48,'Závody a tratě'!$A:$F,6,0) -> 10 | K48: =VLOOKUP(TEXT(H48,"000")&UPPER(D48)&TEXT(E48,"0000"),'Kategorie lokální'!$A$2:$F$300,6,TRUE) -> LMA | L48: =VLOOKUP(TEXT(H48,"000")&UPPER(D48)&TEXT(E48,"0000"),'Kategorie lokální'!$A$2:$G$300,7,TRUE) -> L: Muži do 39 | M48: =VLOOKUP(UPPER(D48)&TEXT(E48,"0000"),'Kategorie ZBP'!$A$2:$E$30,5,TRUE) -> MA | N48: =VLOOKUP(M48,'Kategorie ZBP'!$E:$F,2,0) -> Muži do 39 | O48: =VLOOKUP(H48&"x"&A48,Stopky!I:J,2,0) -> 0.03002314815 | P48: 11 | Q48: 4 | R48: 4 | S48: =IF(ISERROR(VLOOKUP(H48&"x"&F48&"xANO",'Závody a tratě'!L:L,1,0))=TRUE,0,_xlfn.IFNA(VLOOKUP(R48,'Body ZBP'!$A$1:$B$40,2,0),0)) -> 18 | T48: =H48&"x"&A48 -> 2x9 | U48: =IF(T48<>"x",COUNTIF($T$2:$T$3000,T48),"") -> 1
A49: 33 | B49: Jičínský | C49: Petr | D49: m | E49: 1972 | F49: M10 | G49: Orel Mor. Budějovice | H49: 2 | I49: =VLOOKUP(H49,'Závody a tratě'!$B:$C,2,0) -> Borovinská desítka | J49: =VLOOKUP(H49&"x"&F49,'Závody a tratě'!$A:$F,6,0) -> 10 | K49: =VLOOKUP(TEXT(H49,"000")&UPPER(D49)&TEXT(E49,"0000"),'Kategorie lokální'!$A$2:$F$300,6,TRUE) -> LMB | L49: =VLOOKUP(TEXT(H49,"000")&UPPER(D49)&TEXT(E49,"0000"),'Kategorie lokální'!$A$2:$G$300,7,TRUE) -> L: Muži 40 - 49 | M49: =VLOOKUP(UPPER(D49)&TEXT(E49,"0000"),'Kategorie ZBP'!$A$2:$E$30,5,TRUE) -> MB | N49: =VLOOKUP(M49,'Kategorie ZBP'!$E:$F,2,0) -> Muži 40 - 49 | O49: =VLOOKUP(H49&"x"&A49,Stopky!I:J,2,0) -> 0.03009259259 | P49: 12 | Q49: 6 | R49: 6 | S49: =IF(ISERROR(VLOOKUP(H49&"x"&F49&"xANO",'Závody a tratě'!L:L,1,0))=TRUE,0,_xlfn.IFNA(VLOOKUP(R49,'Body ZBP'!$A$1:$B$40,2,0),0)) -> 15 | T49: =H49&"x"&A49 -> 2x33 | U49: =IF(T49<>"x",COUNTIF($T$2:$T$3000,T49),"") -> 1
A50: 7 | B50: Blaha | C50: Daniel | D50: m | E50: 2002 | F50: M10 | G50: Znojmo | H50: 2 | I50: =VLOOKUP(H50,'Závody a tratě'!$B:$C,2,0) -> Borovinská desítka | J50: =VLOOKUP(H50&"x"&F50,'Závody a tratě'!$A:$F,6,0) -> 10 | K50: =VLOOKUP(TEXT(H50,"000")&UPPER(D50)&TEXT(E50,"0000"),'Kategorie lokální'!$A$2:$F$300,6,TRUE) -> LMA | L50: =VLOOKUP(TEXT(H50,"000")&UPPER(D50)&TEXT(E50,"0000"),'Kategorie lokální'!$A$2:$G$300,7,TRUE) -> L: Muži do 39 | M50: =VLOOKUP(UPPER(D50)&TEXT(E50,"0000"),'Kategorie ZBP'!$A$2:$E$30,5,TRUE) -> MA | N50: =VLOOKUP(M50,'Kategorie ZBP'!$E:$F,2,0) -> Muži do 39 | O50: =VLOOKUP(H50&"x"&A50,Stopky!I:J,2,0) -> 0.03041666667 | P50: 13 | Q50: 5 | R50: 5 | S50: =IF(ISERROR(VLOOKUP(H50&"x"&F50&"xANO",'Závody a tratě'!L:L,1,0))=TRUE,0,_xlfn.IFNA(VLOOKUP(R50,'Body ZBP'!$A$1:$B$40,2,0),0)) -> 16 | T50: =H50&"x"&A50 -> 2x7 | U50: =IF(T50<>"x",COUNTIF($T$2:$T$3000,T50),"") -> 1
A51: 13 | B51: Nováček | C51: Josef | D51: m | E51: 1958 | F51: M10 | G51: SDH Čučice | H51: 2 | I51: =VLOOKUP(H51,'Závody a tratě'!$B:$C,2,0) -> Borovinská desítka | J51: =VLOOKUP(H51&"x"&F51,'Závody a tratě'!$A:$F,6,0) -> 10 | K51: =VLOOKUP(TEXT(H51,"000")&UPPER(D51)&TEXT(E51,"0000"),'Kategorie lokální'!$A$2:$F$300,6,TRUE) -> LMD | L51: =VLOOKUP(TEXT(H51,"000")&UPPER(D51)&TEXT(E51,"0000"),'Kategorie lokální'!$A$2:$G$300,7,TRUE) -> L: Muži 60 - 69 | M51: =VLOOKUP(UPPER(D51)&TEXT(E51,"0000"),'Kategorie ZBP'!$A$2:$E$30,5,TRUE) -> MD | N51: =VLOOKUP(M51,'Kategorie ZBP'!$E:$F,2,0) -> Muži nad 60 | O51: =VLOOKUP(H51&"x"&A51,Stopky!I:J,2,0) -> 0.03108796296 | P51: 14 | Q51: 1 | R51: 1 | S51: =IF(ISERROR(VLOOKUP(H51&"x"&F51&"xANO",'Závody a tratě'!L:L,1,0))=TRUE,0,_xlfn.IFNA(VLOOKUP(R51,'Body ZBP'!$A$1:$B$40,2,0),0)) -> 30 | T51: =H51&"x"&A51 -> 2x13 | U51: =IF(T51<>"x",COUNTIF($T$2:$T$3000,T51),"") -> 1
A52: 43 | B52: Souček | C52: Tomáš | D52: m | E52: 1989 | F52: M10 | G52: RABBITS Znojmo | H52: 2 | I52: =VLOOKUP(H52,'Závody a tratě'!$B:$C,2,0) -> Borovinská desítka | J52: =VLOOKUP(H52&"x"&F52,'Závody a tratě'!$A:$F,6,0) -> 10 | K52: =VLOOKUP(TEXT(H52,"000")&UPPER(D52)&TEXT(E52,"0000"),'Kategorie lokální'!$A$2:$F$300,6,TRUE) -> LMA | L52: =VLOOKUP(TEXT(H52,"000")&UPPER(D52)&TEXT(E52,"0000"),'Kategorie lokální'!$A$2:$G$300,7,TRUE) -> L: Muži do 39 | M52: =VLOOKUP(UPPER(D52)&TEXT(E52,"0000"),'Kategorie ZBP'!$A$2:$E$30,5,TRUE) -> MA | N52: =VLOOKUP(M52,'Kategorie ZBP'!$E:$F,2,0) -> Muži do 39 | O52: =VLOOKUP(H52&"x"&A52,Stopky!I:J,2,0) -> 0.03171296296 | P52: 15 | Q52: 6 | R52: 6 | S52: =IF(ISERROR(VLOOKUP(H52&"x"&F52&"xANO",'Závody a tratě'!L:L,1,0))=TRUE,0,_xlfn.IFNA(VLOOKUP(R52,'Body ZBP'!$A$1:$B$40,2,0),0)) -> 15 | T52: =H52&"x"&A52 -> 2x43 | U52: =IF(T52<>"x",COUNTIF($T$2:$T$3000,T52),"") -> 1
A53: 32 | B53: Němec | C53: Bedřich | D53: m | E53: 1964 | F53: M10 | G53: Hornice | H53: 2 | I53: =VLOOKUP(H53,'Závody a tratě'!$B:$C,2,0) -> Borovinská desítka | J53: =VLOOKUP(H53&"x"&F53,'Závody a tratě'!$A:$F,6,0) -> 10 | K53: =VLOOKUP(TEXT(H53,"000")&UPPER(D53)&TEXT(E53,"0000"),'Kategorie lokální'!$A$2:$F$300,6,TRUE) -> LMC | L53: =VLOOKUP(TEXT(H53,"000")&UPPER(D53)&TEXT(E53,"0000"),'Kategorie lokální'!$A$2:$G$300,7,TRUE) -> L: Muži 50 - 59 | M53: =VLOOKUP(UPPER(D53)&TEXT(E53,"0000"),'Kategorie ZBP'!$A$2:$E$30,5,TRUE) -> MC | N53: =VLOOKUP(M53,'Kategorie ZBP'!$E:$F,2,0) -> Muži 50 - 59 | O53: =VLOOKUP(H53&"x"&A53,Stopky!I:J,2,0) -> 0.03189814815 | P53: 16 | Q53: 3 | R53: 3 | S53: =IF(ISERROR(VLOOKUP(H53&"x"&F53&"xANO",'Závody a tratě'!L:L,1,0))=TRUE,0,_xlfn.IFNA(VLOOKUP(R53,'Body ZBP'!$A$1:$B$40,2,0),0)) -> 21 | T53: =H53&"x"&A53 -> 2x32 | U53: =IF(T53<>"x",COUNTIF($T$2:$T$3000,T53),"") -> 1
A54: 28 | B54: Dvořák | C54: Jiří | D54: m | E54: 1969 | F54: M10 | G54: Atletic Třebíč | H54: 2 | I54: =VLOOKUP(H54,'Závody a tratě'!$B:$C,2,0) -> Borovinská desítka | J54: =VLOOKUP(H54&"x"&F54,'Závody a tratě'!$A:$F,6,0) -> 10 | K54: =VLOOKUP(TEXT(H54,"000")&UPPER(D54)&TEXT(E54,"0000"),'Kategorie lokální'!$A$2:$F$300,6,TRUE) -> LMB | L54: =VLOOKUP(TEXT(H54,"000")&UPPER(D54)&TEXT(E54,"0000"),'Kategorie lokální'!$A$2:$G$300,7,TRUE) -> L: Muži 40 - 49 | M54: =VLOOKUP(UPPER(D54)&TEXT(E54,"0000"),'Kategorie ZBP'!$A$2:$E$30,5,TRUE) -> MB | N54: =VLOOKUP(M54,'Kategorie ZBP'!$E:$F,2,0) -> Muži 40 - 49 | O54: =VLOOKUP(H54&"x"&A54,Stopky!I:J,2,0) -> 0.03206018519 | P54: 17 | Q54: 7 | R54: 7 | S54: =IF(ISERROR(VLOOKUP(H54&"x"&F54&"xANO",'Závody a tratě'!L:L,1,0))=TRUE,0,_xlfn.IFNA(VLOOKUP(R54,'Body ZBP'!$A$1:$B$40,2,0),0)) -> 14 | T54: =H54&"x"&A54 -> 2x28 | U54: =IF(T54<>"x",COUNTIF($T$2:$T$3000,T54),"") -> 1
A55: 4 | B55: Koukal | C55: Jan | D55: m | E55: 1979 | F55: M10 | G55: SDH Přibyslavice | H55: 2 | I55: =VLOOKUP(H55,'Závody a tratě'!$B:$C,2,0) -> Borovinská desítka | J55: =VLOOKUP(H55&"x"&F55,'Závody a tratě'!$A:$F,6,0) -> 10 | K55: =VLOOKUP(TEXT(H55,"000")&UPPER(D55)&TEXT(E55,"0000"),'Kategorie lokální'!$A$2:$F$300,6,TRUE) -> LMA | L55: =VLOOKUP(TEXT(H55,"000")&UPPER(D55)&TEXT(E55,"0000"),'Kategorie lokální'!$A$2:$G$300,7,TRUE) -> L: Muži do 39 | M55: =VLOOKUP(UPPER(D55)&TEXT(E55,"0000"),'Kategorie ZBP'!$A$2:$E$30,5,TRUE) -> MA | N55: =VLOOKUP(M55,'Kategorie ZBP'!$E:$F,2,0) -> Muži do 39 | O55: =VLOOKUP(H55&"x"&A55,Stopky!I:J,2,0) -> 0.03284722222 | P55: 18 | Q55: 7 | R55: 7 | S55: =IF(ISERROR(VLOOKUP(H55&"x"&F55&"xANO",'Závody a tratě'!L:L,1,0))=TRUE,0,_xlfn.IFNA(VLOOKUP(R55,'Body ZBP'!$A$1:$B$40,2,0),0)) -> 14 | T55: =H55&"x"&A55 -> 2x4 | U55: =IF(T55<>"x",COUNTIF($T$2:$T$3000,T55),"") -> 1
A56: 41 | B56: Klusáček | C56: Pavel | D56: m | E56: 1956 | F56: M10 | G56: Rokytnice n/R | H56: 2 | I56: =VLOOKUP(H56,'Závody a tratě'!$B:$C,2,0) -> Borovinská desítka | J56: =VLOOKUP(H56&"x"&F56,'Závody a tratě'!$A:$F,6,0) -> 10 | K56: =VLOOKUP(TEXT(H56,"000")&UPPER(D56)&TEXT(E56,"0000"),'Kategorie lokální'!$A$2:$F$300,6,TRUE) -> LMD | L56: =VLOOKUP(TEXT(H56,"000")&UPPER(D56)&TEXT(E56,"0000"),'Kategorie lokální'!$A$2:$G$300,7,TRUE) -> L: Muži 60 - 69 | M56: =VLOOKUP(UPPER(D56)&TEXT(E56,"0000"),'Kategorie ZBP'!$A$2:$E$30,5,TRUE) -> MD | N56: =VLOOKUP(M56,'Kategorie ZBP'!$E:$F,2,0) -> Muži nad 60 | O56: =VLOOKUP(H56&"x"&A56,Stopky!I:J,2,0) -> 0.03284722222 | P56: 18 | Q56: 2 | R56: 2 | S56: =IF(ISERROR(VLOOKUP(H56&"x"&F56&"xANO",'Závody a tratě'!L:L,1,0))=TRUE,0,_xlfn.IFNA(VLOOKUP(R56,'Body ZBP'!$A$1:$B$40,2,0),0)) -> 25 | T56: =H56&"x"&A56 -> 2x41 | U56: =IF(T56<>"x",COUNTIF($T$2:$T$3000,T56),"") -> 1
A57: 31 | B57: Vacek | C57: Michal | D57: m | E57: 1974 | F57: M10 | G57: Jablonec n/N | H57: 2 | I57: =VLOOKUP(H57,'Závody a tratě'!$B:$C,2,0) -> Borovinská desítka | J57: =VLOOKUP(H57&"x"&F57,'Závody a tratě'!$A:$F,6,0) -> 10 | K57: =VLOOKUP(TEXT(H57,"000")&UPPER(D57)&TEXT(E57,"0000"),'Kategorie lokální'!$A$2:$F$300,6,TRUE) -> LMB | L57: =VLOOKUP(TEXT(H57,"000")&UPPER(D57)&TEXT(E57,"0000"),'Kategorie lokální'!$A$2:$G$300,7,TRUE) -> L: Muži 40 - 49 | M57: =VLOOKUP(UPPER(D57)&TEXT(E57,"0000"),'Kategorie ZBP'!$A$2:$E$30,5,TRUE) -> MB | N57: =VLOOKUP(M57,'Kategorie ZBP'!$E:$F,2,0) -> Muži 40 - 49 | O57: =VLOOKUP(H57&"x"&A57,Stopky!I:J,2,0) -> 0.03320601852 | P57: 20 | Q57: 8 | R57: 8 | S57: =IF(ISERROR(VLOOKUP(H57&"x"&F57&"xANO",'Závody a tratě'!L:L,1,0))=TRUE,0,_xlfn.IFNA(VLOOKUP(R57,'Body ZBP'!$A$1:$B$40,2,0),0)) -> 13 | T57: =H57&"x"&A57 -> 2x31 | U57: =IF(T57<>"x",COUNTIF($T$2:$T$3000,T57),"") -> 1
A58: 47 | B58: Danielovič | C58: Leo | D58: m | E58: 1958 | F58: M10 | G58: Hradiště Znojmo | H58: 2 | I58: =VLOOKUP(H58,'Závody a tratě'!$B:$C,2,0) -> Borovinská desítka | J58: =VLOOKUP(H58&"x"&F58,'Závody a tratě'!$A:$F,6,0) -> 10 | K58: =VLOOKUP(TEXT(H58,"000")&UPPER(D58)&TEXT(E58,"0000"),'Kategorie lokální'!$A$2:$F$300,6,TRUE) -> LMD | L58: =VLOOKUP(TEXT(H58,"000")&UPPER(D58)&TEXT(E58,"0000"),'Kategorie lokální'!$A$2:$G$300,7,TRUE) -> L: Muži 60 - 69 | M58: =VLOOKUP(UPPER(D58)&TEXT(E58,"0000"),'Kategorie ZBP'!$A$2:$E$30,5,TRUE) -> MD | N58: =VLOOKUP(M58,'Kategorie ZBP'!$E:$F,2,0) -> Muži nad 60 | O58: =VLOOKUP(H58&"x"&A58,Stopky!I:J,2,0) -> 0.03351851852 | P58: 22 | Q58: 3 | R58: 3 | S58: =IF(ISERROR(VLOOKUP(H58&"x"&F58&"xANO",'Závody a tratě'!L:L,1,0))=TRUE,0,_xlfn.IFNA(VLOOKUP(R58,'Body ZBP'!$A$1:$B$40,2,0),0)) -> 21 | T58: =H58&"x"&A58 -> 2x47 | U58: =IF(T58<>"x",COUNTIF($T$2:$T$3000,T58),"") -> 1
A59: 36 | B59: Musil | C59: Josef | D59: m | E59: 1964 | F59: M10 | G59: Náměšť n/O | H59: 2 | I59: =VLOOKUP(H59,'Závody a tratě'!$B:$C,2,0) -> Borovinská desítka | J59: =VLOOKUP(H59&"x"&F59,'Závody a tratě'!$A:$F,6,0) -> 10 | K59: =VLOOKUP(TEXT(H59,"000")&UPPER(D59)&TEXT(E59,"0000"),'Kategorie lokální'!$A$2:$F$300,6,TRUE) -> LMC | L59: =VLOOKUP(TEXT(H59,"000")&UPPER(D59)&TEXT(E59,"0000"),'Kategorie lokální'!$A$2:$G$300,7,TRUE) -> L: Muži 50 - 59 | M59: =VLOOKUP(UPPER(D59)&TEXT(E59,"0000"),'Kategorie ZBP'!$A$2:$E$30,5,TRUE) -> MC | N59: =VLOOKUP(M59,'Kategorie ZBP'!$E:$F,2,0) -> Muži 50 - 59 | O59: =VLOOKUP(H59&"x"&A59,Stopky!I:J,2,0) -> 0.03366898148 | P59: 24 | Q59: 4 | R59: 4 | S59: =IF(ISERROR(VLOOKUP(H59&"x"&F59&"xANO",'Závody a tratě'!L:L,1,0))=TRUE,0,_xlfn.IFNA(VLOOKUP(R59,'Body ZBP'!$A$1:$B$40,2,0),0)) -> 18 | T59: =H59&"x"&A59 -> 2x36 | U59: =IF(T59<>"x",COUNTIF($T$2:$T$3000,T59),"") -> 1
A60: 37 | B60: Belán | C60: Luděk | D60: m | E60: 1966 | F60: M10 | G60: Třebíč | H60: 2 | I60: =VLOOKUP(H60,'Závody a tratě'!$B:$C,2,0) -> Borovinská desítka | J60: =VLOOKUP(H60&"x"&F60,'Závody a tratě'!$A:$F,6,0) -> 10 | K60: =VLOOKUP(TEXT(H60,"000")&UPPER(D60)&TEXT(E60,"0000"),'Kategorie lokální'!$A$2:$F$300,6,TRUE) -> LMC | L60: =VLOOKUP(TEXT(H60,"000")&UPPER(D60)&TEXT(E60,"0000"),'Kategorie lokální'!$A$2:$G$300,7,TRUE) -> L: Muži 50 - 59 | M60: =VLOOKUP(UPPER(D60)&TEXT(E60,"0000"),'Kategorie ZBP'!$A$2:$E$30,5,TRUE) -> MC | N60: =VLOOKUP(M60,'Kategorie ZBP'!$E:$F,2,0) -> Muži 50 - 59 | O60: =VLOOKUP(H60&"x"&A60,Stopky!I:J,2,0) -> 0.03396990741 | P60: 26 | Q60: 5 | R60: 5 | S60: =IF(ISERROR(VLOOKUP(H60&"x"&F60&"xANO",'Závody a tratě'!L:L,1,0))=TRUE,0,_xlfn.IFNA(VLOOKUP(R60,'Body ZBP'!$A$1:$B$40,2,0),0)) -> 16 | T60: =H60&"x"&A60 -> 2x37 | U60: =IF(T60<>"x",COUNTIF($T$2:$T$3000,T60),"") -> 1
A61: 38 | B61: Votava | C61: Vladimír | D61: m | E61: 1988 | F61: M10 | G61: Atletic Třebíč | H61: 2 | I61: =VLOOKUP(H61,'Závody a tratě'!$B:$C,2,0) -> Borovinská desítka | J61: =VLOOKUP(H61&"x"&F61,'Závody a tratě'!$A:$F,6,0) -> 10 | K61: =VLOOKUP(TEXT(H61,"000")&UPPER(D61)&TEXT(E61,"0000"),'Kategorie lokální'!$A$2:$F$300,6,TRUE) -> LMA | L61: =VLOOKUP(TEXT(H61,"000")&UPPER(D61)&TEXT(E61,"0000"),'Kategorie lokální'!$A$2:$G$300,7,TRUE) -> L: Muži do 39 | M61: =VLOOKUP(UPPER(D61)&TEXT(E61,"0000"),'Kategorie ZBP'!$A$2:$E$30,5,TRUE) -> MA | N61: =VLOOKUP(M61,'Kategorie ZBP'!$E:$F,2,0) -> Muži do 39 | O61: =VLOOKUP(H61&"x"&A61,Stopky!I:J,2,0) -> 0.03461805556 | P61: 28 | Q61: 8 | R61: 8 | S61: =IF(ISERROR(VLOOKUP(H61&"x"&F61&"xANO",'Závody a tratě'!L:L,1,0))=TRUE,0,_xlfn.IFNA(VLOOKUP(R61,'Body ZBP'!$A$1:$B$40,2,0),0)) -> 13 | T61: =H61&"x"&A61 -> 2x38 | U61: =IF(T61<>"x",COUNTIF($T$2:$T$3000,T61),"") -> 1
A62: 8 | B62: Suchý | C62: Karel | D62: m | E62: 1956 | F62: M10 | G62: Atletic Třebíč | H62: 2 | I62: =VLOOKUP(H62,'Závody a tratě'!$B:$C,2,0) -> Borovinská desítka | J62: =VLOOKUP(H62&"x"&F62,'Závody a tratě'!$A:$F,6,0) -> 10 | K62: =VLOOKUP(TEXT(H62,"000")&UPPER(D62)&TEXT(E62,"0000"),'Kategorie lokální'!$A$2:$F$300,6,TRUE) -> LMD | L62: =VLOOKUP(TEXT(H62,"000")&UPPER(D62)&TEXT(E62,"0000"),'Kategorie lokální'!$A$2:$G$300,7,TRUE) -> L: Muži 60 - 69 | M62: =VLOOKUP(UPPER(D62)&TEXT(E62,"0000"),'Kategorie ZBP'!$A$2:$E$30,5,TRUE) -> MD | N62: =VLOOKUP(M62,'Kategorie ZBP'!$E:$F,2,0) -> Muži nad 60 | O62: =VLOOKUP(H62&"x"&A62,Stopky!I:J,2,0) -> 0.03466435185 | P62: 30 | Q62: 4 | R62: 4 | S62: =IF(ISERROR(VLOOKUP(H62&"x"&F62&"xANO",'Závody a tratě'!L:L,1,0))=TRUE,0,_xlfn.IFNA(VLOOKUP(R62,'Body ZBP'!$A$1:$B$40,2,0),0)) -> 18 | T62: =H62&"x"&A62 -> 2x8 | U62: =IF(T62<>"x",COUNTIF($T$2:$T$3000,T62),"") -> 1
A63: 29 | B63: Vacek | C63: Vladimír | D63: m | E63: 1951 | F63: M10 | G63: Poušov | H63: 2 | I63: =VLOOKUP(H63,'Závody a tratě'!$B:$C,2,0) -> Borovinská desítka | J63: =VLOOKUP(H63&"x"&F63,'Závody a tratě'!$A:$F,6,0) -> 10 | K63: =VLOOKUP(TEXT(H63,"000")&UPPER(D63)&TEXT(E63,"0000"),'Kategorie lokální'!$A$2:$F$300,6,TRUE) -> LMD | L63: =VLOOKUP(TEXT(H63,"000")&UPPER(D63)&TEXT(E63,"0000"),'Kategorie lokální'!$A$2:$G$300,7,TRUE) -> L: Muži 60 - 69 | M63: =VLOOKUP(UPPER(D63)&TEXT(E63,"0000"),'Kategorie ZBP'!$A$2:$E$30,5,TRUE) -> MD | N63: =VLOOKUP(M63,'Kategorie ZBP'!$E:$F,2,0) -> Muži nad 60 | O63: =VLOOKUP(H63&"x"&A63,Stopky!I:J,2,0) -> 0.03611111111 | P63: 32 | Q63: 5 | R63: 5 | S63: =IF(ISERROR(VLOOKUP(H63&"x"&F63&"xANO",'Závody a tratě'!L:L,1,0))=TRUE,0,_xlfn.IFNA(VLOOKUP(R63,'Body ZBP'!$A$1:$B$40,2,0),0)) -> 16 | T63: =H63&"x"&A63 -> 2x29 | U63: =IF(T63<>"x",COUNTIF($T$2:$T$3000,T63),"") -> 1
A64: 5 | B64: Halberštat | C64: Petr | D64: m | E64: 1967 | F64: M10 | G64: Znojmo | H64: 2 | I64: =VLOOKUP(H64,'Závody a tratě'!$B:$C,2,0) -> Borovinská desítka | J64: =VLOOKUP(H64&"x"&F64,'Závody a tratě'!$A:$F,6,0) -> 10 | K64: =VLOOKUP(TEXT(H64,"000")&UPPER(D64)&TEXT(E64,"0000"),'Kategorie lokální'!$A$2:$F$300,6,TRUE) -> LMC | L64: =VLOOKUP(TEXT(H64,"000")&UPPER(D64)&TEXT(E64,"0000"),'Kategorie lokální'!$A$2:$G$300,7,TRUE) -> L: Muži 50 - 59 | M64: =VLOOKUP(UPPER(D64)&TEXT(E64,"0000"),'Kategorie ZBP'!$A$2:$E$30,5,TRUE) -> MC | N64: =VLOOKUP(M64,'Kategorie ZBP'!$E:$F,2,0) -> Muži 50 - 59 | O64: =VLOOKUP(H64&"x"&A64,Stopky!I:J,2,0) -> 0.0453587963 | P64: 34 | Q64: 6 | R64: 6 | S64: =IF(ISERROR(VLOOKUP(H64&"x"&F64&"xANO",'Závody a tratě'!L:L,1,0))=TRUE,0,_xlfn.IFNA(VLOOKUP(R64,'Body ZBP'!$A$1:$B$40,2,0),0)) -> 15 | T64: =H64&"x"&A64 -> 2x5 | U64: =IF(T64<>"x",COUNTIF($T$2:$T$3000,T64),"") -> 1
A65: 17 | B65: Přistálová | C65: Veronika | D65: z | E65: 1984 | F65: Z6 | G65: Znojmo | H65: 2 | I65: =VLOOKUP(H65,'Závody a tratě'!$B:$C,2,0) -> Borovinská desítka | J65: =VLOOKUP(H65&"x"&F65,'Závody a tratě'!$A:$F,6,0) -> 6.7 | K65: =VLOOKUP(TEXT(H65,"000")&UPPER(D65)&TEXT(E65,"0000"),'Kategorie lokální'!$A$2:$F$300,6,TRUE) -> LZA | L65: =VLOOKUP(TEXT(H65,"000")&UPPER(D65)&TEXT(E65,"0000"),'Kategorie lokální'!$A$2:$G$300,7,TRUE) -> L: Ženy do 34 | M65: =VLOOKUP(UPPER(D65)&TEXT(E65,"0000"),'Kategorie ZBP'!$A$2:$E$30,5,TRUE) -> ZA | N65: =VLOOKUP(M65,'Kategorie ZBP'!$E:$F,2,0) -> Ženy do 34 | O65: =VLOOKUP(H65&"x"&A65,Stopky!I:J,2,0) -> 0.01997685185 | P65: 1 | Q65: 1 | R65: 1 | S65: =IF(ISERROR(VLOOKUP(H65&"x"&F65&"xANO",'Závody a tratě'!L:L,1,0))=TRUE,0,_xlfn.IFNA(VLOOKUP(R65,'Body ZBP'!$A$1:$B$40,2,0),0)) -> 30 | T65: =H65&"x"&A65 -> 2x17 | U65: =IF(T65<>"x",COUNTIF($T$2:$T$3000,T65),"") -> 1
A66: 18 | B66: Švestková | C66: Soňa | D66: z | E66: 1988 | F66: Z6 | G66: Znojmo | H66: 2 | I66: =VLOOKUP(H66,'Závody a tratě'!$B:$C,2,0) -> Borovinská desítka | J66: =VLOOKUP(H66&"x"&F66,'Závody a tratě'!$A:$F,6,0) -> 6.7 | K66: =VLOOKUP(TEXT(H66,"000")&UPPER(D66)&TEXT(E66,"0000"),'Kategorie lokální'!$A$2:$F$300,6,TRUE) -> LZA | L66: =VLOOKUP(TEXT(H66,"000")&UPPER(D66)&TEXT(E66,"0000"),'Kategorie lokální'!$A$2:$G$300,7,TRUE) -> L: Ženy do 34 | M66: =VLOOKUP(UPPER(D66)&TEXT(E66,"0000"),'Kategorie ZBP'!$A$2:$E$30,5,TRUE) -> ZA | N66: =VLOOKUP(M66,'Kategorie ZBP'!$E:$F,2,0) -> Ženy do 34 | O66: =VLOOKUP(H66&"x"&A66,Stopky!I:J,2,0) -> 0.02075231481 | P66: 2 | Q66: 2 | R66: 2 | S66: =IF(ISERROR(VLOOKUP(H66&"x"&F66&"xANO",'Závody a tratě'!L:L,1,0))=TRUE,0,_xlfn.IFNA(VLOOKUP(R66,'Body ZBP'!$A$1:$B$40,2,0),0)) -> 25 | T66: =H66&"x"&A66 -> 2x18 | U66: =IF(T66<>"x",COUNTIF($T$2:$T$3000,T66),"") -> 1
A67: 44 | B67: Kuchařová | C67: Simona | D67: z | E67: 1996 | F67: Z6 | G67: TJ Znojmo | H67: 2 | I67: =VLOOKUP(H67,'Závody a tratě'!$B:$C,2,0) -> Borovinská desítka | J67: =VLOOKUP(H67&"x"&F67,'Závody a tratě'!$A:$F,6,0) -> 6.7 | K67: =VLOOKUP(TEXT(H67,"000")&UPPER(D67)&TEXT(E67,"0000"),'Kategorie lokální'!$A$2:$F$300,6,TRUE) -> LZA | L67: =VLOOKUP(TEXT(H67,"000")&UPPER(D67)&TEXT(E67,"0000"),'Kategorie lokální'!$A$2:$G$300,7,TRUE) -> L: Ženy do 34 | M67: =VLOOKUP(UPPER(D67)&TEXT(E67,"0000"),'Kategorie ZBP'!$A$2:$E$30,5,TRUE) -> ZA | N67: =VLOOKUP(M67,'Kategorie ZBP'!$E:$F,2,0) -> Ženy do 34 | O67: =VLOOKUP(H67&"x"&A67,Stopky!I:J,2,0) -> 0.02090277778 | P67: 3 | Q67: 3 | R67: 3 | S67: =IF(ISERROR(VLOOKUP(H67&"x"&F67&"xANO",'Závody a tratě'!L:L,1,0))=TRUE,0,_xlfn.IFNA(VLOOKUP(R67,'Body ZBP'!$A$1:$B$40,2,0),0)) -> 21 | T67: =H67&"x"&A67 -> 2x44 | U67: =IF(T67<>"x",COUNTIF($T$2:$T$3000,T67),"") -> 1
A68: 15 | B68: Fučíková | C68: Hana | D68: z | E68: 1977 | F68: Z6 | G68: Černín | H68: 2 | I68: =VLOOKUP(H68,'Závody a tratě'!$B:$C,2,0) -> Borovinská desítka | J68: =VLOOKUP(H68&"x"&F68,'Závody a tratě'!$A:$F,6,0) -> 6.7 | K68: =VLOOKUP(TEXT(H68,"000")&UPPER(D68)&TEXT(E68,"0000"),'Kategorie lokální'!$A$2:$F$300,6,TRUE) -> LZB | L68: =VLOOKUP(TEXT(H68,"000")&UPPER(D68)&TEXT(E68,"0000"),'Kategorie lokální'!$A$2:$G$300,7,TRUE) -> L: Ženy 35 - 44 | M68: =VLOOKUP(UPPER(D68)&TEXT(E68,"0000"),'Kategorie ZBP'!$A$2:$E$30,5,TRUE) -> ZB | N68: =VLOOKUP(M68,'Kategorie ZBP'!$E:$F,2,0) -> Ženy 35 - 44 | O68: =VLOOKUP(H68&"x"&A68,Stopky!I:J,2,0) -> 0.02144675926 | P68: 4 | Q68: 1 | R68: 1 | S68: =IF(ISERROR(VLOOKUP(H68&"x"&F68&"xANO",'Závody a tratě'!L:L,1,0))=TRUE,0,_xlfn.IFNA(VLOOKUP(R68,'Body ZBP'!$A$1:$B$40,2,0),0)) -> 30 | T68: =H68&"x"&A68 -> 2x15 | U68: =IF(T68<>"x",COUNTIF($T$2:$T$3000,T68),"") -> 1
A69: 12 | B69: Havlíková | C69: Ifka | D69: z | E69: 1988 | F69: Z6 | G69: Atletic Třebíč | H69: 2 | I69: =VLOOKUP(H69,'Závody a tratě'!$B:$C,2,0) -> Borovinská desítka | J69: =VLOOKUP(H69&"x"&F69,'Závody a tratě'!$A:$F,6,0) -> 6.7 | K69: =VLOOKUP(TEXT(H69,"000")&UPPER(D69)&TEXT(E69,"0000"),'Kategorie lokální'!$A$2:$F$300,6,TRUE) -> LZA | L69: =VLOOKUP(TEXT(H69,"000")&UPPER(D69)&TEXT(E69,"0000"),'Kategorie lokální'!$A$2:$G$300,7,TRUE) -> L: Ženy do 34 | M69: =VLOOKUP(UPPER(D69)&TEXT(E69,"0000"),'Kategorie ZBP'!$A$2:$E$30,5,TRUE) -> ZA | N69: =VLOOKUP(M69,'Kategorie ZBP'!$E:$F,2,0) -> Ženy do 34 | O69: =VLOOKUP(H69&"x"&A69,Stopky!I:J,2,0) -> 0.02168981481 | P69: 5 | Q69: 4 | R69: 4 | S69: =IF(ISERROR(VLOOKUP(H69&"x"&F69&"xANO",'Závody a tratě'!L:L,1,0))=TRUE,0,_xlfn.IFNA(VLOOKUP(R69,'Body ZBP'!$A$1:$B$40,2,0),0)) -> 18 | T69: =H69&"x"&A69 -> 2x12 | U69: =IF(T69<>"x",COUNTIF($T$2:$T$3000,T69),"") -> 1
A70: 42 | B70: Lesslová | C70: Denisa | D70: z | E70: 1987 | F70: Z6 | G70: Atletic Třebíč | H70: 2 | I70: =VLOOKUP(H70,'Závody a tratě'!$B:$C,2,0) -> Borovinská desítka | J70: =VLOOKUP(H70&"x"&F70,'Závody a tratě'!$A:$F,6,0) -> 6.7 | K70: =VLOOKUP(TEXT(H70,"000")&UPPER(D70)&TEXT(E70,"0000"),'Kategorie lokální'!$A$2:$F$300,6,TRUE) -> LZA | L70: =VLOOKUP(TEXT(H70,"000")&UPPER(D70)&TEXT(E70,"0000"),'Kategorie lokální'!$A$2:$G$300,7,TRUE) -> L: Ženy do 34 | M70: =VLOOKUP(UPPER(D70)&TEXT(E70,"0000"),'Kategorie ZBP'!$A$2:$E$30,5,TRUE) -> ZA | N70: =VLOOKUP(M70,'Kategorie ZBP'!$E:$F,2,0) -> Ženy do 34 | O70: =VLOOKUP(H70&"x"&A70,Stopky!I:J,2,0) -> 0.02194444444 | P70: 6 | Q70: 5 | R70: 5 | S70: =IF(ISERROR(VLOOKUP(H70&"x"&F70&"xANO",'Závody a tratě'!L:L,1,0))=TRUE,0,_xlfn.IFNA(VLOOKUP(R70,'Body ZBP'!$A$1:$B$40,2,0),0)) -> 16 | T70: =H70&"x"&A70 -> 2x42 | U70: =IF(T70<>"x",COUNTIF($T$2:$T$3000,T70),"") -> 1
A71: 14 | B71: Novotná | C71: Lucie | D71: z | E71: 1975 | F71: Z6 | G71: RSFK | H71: 2 | I71: =VLOOKUP(H71,'Závody a tratě'!$B:$C,2,0) -> Borovinská desítka | J71: =VLOOKUP(H71&"x"&F71,'Závody a tratě'!$A:$F,6,0) -> 6.7 | K71: =VLOOKUP(TEXT(H71,"000")&UPPER(D71)&TEXT(E71,"0000"),'Kategorie lokální'!$A$2:$F$300,6,TRUE) -> LZB | L71: =VLOOKUP(TEXT(H71,"000")&UPPER(D71)&TEXT(E71,"0000"),'Kategorie lokální'!$A$2:$G$300,7,TRUE) -> L: Ženy 35 - 44 | M71: =VLOOKUP(UPPER(D71)&TEXT(E71,"0000"),'Kategorie ZBP'!$A$2:$E$30,5,TRUE) -> ZB | N71: =VLOOKUP(M71,'Kategorie ZBP'!$E:$F,2,0) -> Ženy 35 - 44 | O71: =VLOOKUP(H71&"x"&A71,Stopky!I:J,2,0) -> 0.02239583333 | P71: 7 | Q71: 2 | R71: 2 | S71: =IF(ISERROR(VLOOKUP(H71&"x"&F71&"xANO",'Závody a tratě'!L:L,1,0))=TRUE,0,_xlfn.IFNA(VLOOKUP(R71,'Body ZBP'!$A$1:$B$40,2,0),0)) -> 25 | T71: =H71&"x"&A71 -> 2x14 | U71: =IF(T71<>"x",COUNTIF($T$2:$T$3000,T71),"") -> 1
A72: 1 | B72: McBain | C72: Zuzana | D72: z | E72: 1980 | F72: Z6 | G72: Atletic Třebíč | H72: 2 | I72: =VLOOKUP(H72,'Závody a tratě'!$B:$C,2,0) -> Borovinská desítka | J72: =VLOOKUP(H72&"x"&F72,'Závody a tratě'!$A:$F,6,0) -> 6.7 | K72: =VLOOKUP(TEXT(H72,"000")&UPPER(D72)&TEXT(E72,"0000"),'Kategorie lokální'!$A$2:$F$300,6,TRUE) -> LZB | L72: =VLOOKUP(TEXT(H72,"000")&UPPER(D72)&TEXT(E72,"0000"),'Kategorie lokální'!$A$2:$G$300,7,TRUE) -> L: Ženy 35 - 44 | M72: =VLOOKUP(UPPER(D72)&TEXT(E72,"0000"),'Kategorie ZBP'!$A$2:$E$30,5,TRUE) -> ZB | N72: =VLOOKUP(M72,'Kategorie ZBP'!$E:$F,2,0) -> Ženy 35 - 44 | O72: =VLOOKUP(H72&"x"&A72,Stopky!I:J,2,0) -> 0.02291666667 | P72: 8 | Q72: 3 | R72: 3 | S72: =IF(ISERROR(VLOOKUP(H72&"x"&F72&"xANO",'Závody a tratě'!L:L,1,0))=TRUE,0,_xlfn.IFNA(VLOOKUP(R72,'Body ZBP'!$A$1:$B$40,2,0),0)) -> 21 | T72: =H72&"x"&A72 -> 2x1 | U72: =IF(T72<>"x",COUNTIF($T$2:$T$3000,T72),"") -> 1
A73: 23 | B73: Vomelová | C73: Eva | D73: z | E73: 1977 | F73: Z6 | G73: ZŠ Kopce | H73: 2 | I73: =VLOOKUP(H73,'Závody a tratě'!$B:$C,2,0) -> Borovinská desítka | J73: =VLOOKUP(H73&"x"&F73,'Závody a tratě'!$A:$F,6,0) -> 6.7 | K73: =VLOOKUP(TEXT(H73,"000")&UPPER(D73)&TEXT(E73,"0000"),'Kategorie lokální'!$A$2:$F$300,6,TRUE) -> LZB | L73: =VLOOKUP(TEXT(H73,"000")&UPPER(D73)&TEXT(E73,"0000"),'Kategorie lokální'!$A$2:$G$300,7,TRUE) -> L: Ženy 35 - 44 | M73: =VLOOKUP(UPPER(D73)&TEXT(E73,"0000"),'Kategorie ZBP'!$A$2:$E$30,5,TRUE) -> ZB | N73: =VLOOKUP(M73,'Kategorie ZBP'!$E:$F,2,0) -> Ženy 35 - 44 | O73: =VLOOKUP(H73&"x"&A73,Stopky!I:J,2,0) -> 0.02325231481 | P73: 9 | Q73: 4 | R73: 4 | S73: =IF(ISERROR(VLOOKUP(H73&"x"&F73&"xANO",'Závody a tratě'!L:L,1,0))=TRUE,0,_xlfn.IFNA(VLOOKUP(R73,'Body ZBP'!$A$1:$B$40,2,0),0)) -> 18 | T73: =H73&"x"&A73 -> 2x23 | U73: =IF(T73<>"x",COUNTIF($T$2:$T$3000,T73),"") -> 1
A74: 48 | B74: Valášková | C74: Jana | D74: z | E74: 1965 | F74: Z6 | G74: BBK Fitness | H74: 2 | I74: =VLOOKUP(H74,'Závody a tratě'!$B:$C,2,0) -> Borovinská desítka | J74: =VLOOKUP(H74&"x"&F74,'Závody a tratě'!$A:$F,6,0) -> 6.7 | K74: =VLOOKUP(TEXT(H74,"000")&UPPER(D74)&TEXT(E74,"0000"),'Kategorie lokální'!$A$2:$F$300,6,TRUE) -> LZC | L74: =VLOOKUP(TEXT(H74,"000")&UPPER(D74)&TEXT(E74,"0000"),'Kategorie lokální'!$A$2:$G$300,7,TRUE) -> L: Ženy od 45 | M74: =VLOOKUP(UPPER(D74)&TEXT(E74,"0000"),'Kategorie ZBP'!$A$2:$E$30,5,TRUE) -> ZC | N74: =VLOOKUP(M74,'Kategorie ZBP'!$E:$F,2,0) -> Ženy nad 45 | O74: =VLOOKUP(H74&"x"&A74,Stopky!I:J,2,0) -> 0.02346064815 | P74: 10 | Q74: 1 | R74: 1 | S74: =IF(ISERROR(VLOOKUP(H74&"x"&F74&"xANO",'Závody a tratě'!L:L,1,0))=TRUE,0,_xlfn.IFNA(VLOOKUP(R74,'Body ZBP'!$A$1:$B$40,2,0),0)) -> 30 | T74: =H74&"x"&A74 -> 2x48 | U74: =IF(T74<>"x",COUNTIF($T$2:$T$3000,T74),"") -> 1
A75: 34 | B75: Jičínská | C75: Lenka | D75: z | E75: 1974 | F75: Z6 | G75: Orel Mor. Budějovice | H75: 2 | I75: =VLOOKUP(H75,'Závody a tratě'!$B:$C,2,0) -> Borovinská desítka | J75: =VLOOKUP(H75&"x"&F75,'Závody a tratě'!$A:$F,6,0) -> 6.7 | K75: =VLOOKUP(TEXT(H75,"000")&UPPER(D75)&TEXT(E75,"0000"),'Kategorie lokální'!$A$2:$F$300,6,TRUE) -> LZB | L75: =VLOOKUP(TEXT(H75,"000")&UPPER(D75)&TEXT(E75,"0000"),'Kategorie lokální'!$A$2:$G$300,7,TRUE) -> L: Ženy 35 - 44 | M75: =VLOOKUP(UPPER(D75)&TEXT(E75,"0000"),'Kategorie ZBP'!$A$2:$E$30,5,TRUE) -> ZB | N75: =VLOOKUP(M75,'Kategorie ZBP'!$E:$F,2,0) -> Ženy 35 - 44 | O75: =VLOOKUP(H75&"x"&A75,Stopky!I:J,2,0) -> 0.02355324074 | P75: 11 | Q75: 5 | R75: 5 | S75: =IF(ISERROR(VLOOKUP(H75&"x"&F75&"xANO",'Závody a tratě'!L:L,1,0))=TRUE,0,_xlfn.IFNA(VLOOKUP(R75,'Body ZBP'!$A$1:$B$40,2,0),0)) -> 16 | T75: =H75&"x"&A75 -> 2x34 | U75: =IF(T75<>"x",COUNTIF($T$2:$T$3000,T75),"") -> 1
A76: 6 | B76: Bulínová | C76: Jitka | D76: z | E76: 1993 | F76: Z6 | G76: Sokol Plaveč | H76: 2 | I76: =VLOOKUP(H76,'Závody a tratě'!$B:$C,2,0) -> Borovinská desítka | J76: =VLOOKUP(H76&"x"&F76,'Závody a tratě'!$A:$F,6,0) -> 6.7 | K76: =VLOOKUP(TEXT(H76,"000")&UPPER(D76)&TEXT(E76,"0000"),'Kategorie lokální'!$A$2:$F$300,6,TRUE) -> LZA | L76: =VLOOKUP(TEXT(H76,"000")&UPPER(D76)&TEXT(E76,"0000"),'Kategorie lokální'!$A$2:$G$300,7,TRUE) -> L: Ženy do 34 | M76: =VLOOKUP(UPPER(D76)&TEXT(E76,"0000"),'Kategorie ZBP'!$A$2:$E$30,5,TRUE) -> ZA | N76: =VLOOKUP(M76,'Kategorie ZBP'!$E:$F,2,0) -> Ženy do 34 | O76: =VLOOKUP(H76&"x"&A76,Stopky!I:J,2,0) -> 0.02424768519 | P76: 12 | Q76: 6 | R76: 6 | S76: =IF(ISERROR(VLOOKUP(H76&"x"&F76&"xANO",'Závody a tratě'!L:L,1,0))=TRUE,0,_xlfn.IFNA(VLOOKUP(R76,'Body ZBP'!$A$1:$B$40,2,0),0)) -> 15 | T76: =H76&"x"&A76 -> 2x6 | U76: =IF(T76<>"x",COUNTIF($T$2:$T$3000,T76),"") -> 1
A77: 24 | B77: Vaňková | C77: Eva | D77: z | E77: 1979 | F77: Z6 | G77: ZŠ Kopce | H77: 2 | I77: =VLOOKUP(H77,'Závody a tratě'!$B:$C,2,0) -> Borovinská desítka | J77: =VLOOKUP(H77&"x"&F77,'Závody a tratě'!$A:$F,6,0) -> 6.7 | K77: =VLOOKUP(TEXT(H77,"000")&UPPER(D77)&TEXT(E77,"0000"),'Kategorie lokální'!$A$2:$F$300,6,TRUE) -> LZB | L77: =VLOOKUP(TEXT(H77,"000")&UPPER(D77)&TEXT(E77,"0000"),'Kategorie lokální'!$A$2:$G$300,7,TRUE) -> L: Ženy 35 - 44 | M77: =VLOOKUP(UPPER(D77)&TEXT(E77,"0000"),'Kategorie ZBP'!$A$2:$E$30,5,TRUE) -> ZB | N77: =VLOOKUP(M77,'Kategorie ZBP'!$E:$F,2,0) -> Ženy 35 - 44 | O77: =VLOOKUP(H77&"x"&A77,Stopky!I:J,2,0) -> 0.02445601852 | P77: 13 | Q77: 6 | R77: 6 | S77: =IF(ISERROR(VLOOKUP(H77&"x"&F77&"xANO",'Závody a tratě'!L:L,1,0))=TRUE,0,_xlfn.IFNA(VLOOKUP(R77,'Body ZBP'!$A$1:$B$40,2,0),0)) -> 15 | T77: =H77&"x"&A77 -> 2x24 | U77: =IF(T77<>"x",COUNTIF($T$2:$T$3000,T77),"") -> 1
A78: 19 | B78: Čermáková | C78: Věra | D78: z | E78: 1978 | F78: Z6 | G78: Karkulka Znojmo | H78: 2 | I78: =VLOOKUP(H78,'Závody a tratě'!$B:$C,2,0) -> Borovinská desítka | J78: =VLOOKUP(H78&"x"&F78,'Závody a tratě'!$A:$F,6,0) -> 6.7 | K78: =VLOOKUP(TEXT(H78,"000")&UPPER(D78)&TEXT(E78,"0000"),'Kategorie lokální'!$A$2:$F$300,6,TRUE) -> LZB | L78: =VLOOKUP(TEXT(H78,"000")&UPPER(D78)&TEXT(E78,"0000"),'Kategorie lokální'!$A$2:$G$300,7,TRUE) -> L: Ženy 35 - 44 | M78: =VLOOKUP(UPPER(D78)&TEXT(E78,"0000"),'Kategorie ZBP'!$A$2:$E$30,5,TRUE) -> ZB | N78: =VLOOKUP(M78,'Kategorie ZBP'!$E:$F,2,0) -> Ženy 35 - 44 | O78: =VLOOKUP(H78&"x"&A78,Stopky!I:J,2,0) -> 0.02466435185 | P78: 14 | Q78: 7 | R78: 7 | S78: =IF(ISERROR(VLOOKUP(H78&"x"&F78&"xANO",'Závody a tratě'!L:L,1,0))=TRUE,0,_xlfn.IFNA(VLOOKUP(R78,'Body ZBP'!$A$1:$B$40,2,0),0)) -> 14 | T78: =H78&"x"&A78 -> 2x19 | U78: =IF(T78<>"x",COUNTIF($T$2:$T$3000,T78),"") -> 1
A79: 30 | B79: Ježková | C79: Tereza | D79: z | E79: 1980 | F79: Z6 | G79: Poušov | H79: 2 | I79: =VLOOKUP(H79,'Závody a tratě'!$B:$C,2,0) -> Borovinská desítka | J79: =VLOOKUP(H79&"x"&F79,'Závody a tratě'!$A:$F,6,0) -> 6.7 | K79: =VLOOKUP(TEXT(H79,"000")&UPPER(D79)&TEXT(E79,"0000"),'Kategorie lokální'!$A$2:$F$300,6,TRUE) -> LZB | L79: =VLOOKUP(TEXT(H79,"000")&UPPER(D79)&TEXT(E79,"0000"),'Kategorie lokální'!$A$2:$G$300,7,TRUE) -> L: Ženy 35 - 44 | M79: =VLOOKUP(UPPER(D79)&TEXT(E79,"0000"),'Kategorie ZBP'!$A$2:$E$30,5,TRUE) -> ZB | N79: =VLOOKUP(M79,'Kategorie ZBP'!$E:$F,2,0) -> Ženy 35 - 44 | O79: =VLOOKUP(H79&"x"&A79,Stopky!I:J,2,0) -> 0.02472222222 | P79: 15 | Q79: 8 | R79: 8 | S79: =IF(ISERROR(VLOOKUP(H79&"x"&F79&"xANO",'Závody a tratě'!L:L,1,0))=TRUE,0,_xlfn.IFNA(VLOOKUP(R79,'Body ZBP'!$A$1:$B$40,2,0),0)) -> 13 | T79: =H79&"x"&A79 -> 2x30 | U79: =IF(T79<>"x",COUNTIF($T$2:$T$3000,T79),"") -> 1
A80: 3 | B80: Mahelová | C80: Jitka | D80: z | E80: 1962 | F80: Z6 | G80: Atletic Třebíč | H80: 2 | I80: =VLOOKUP(H80,'Závody a tratě'!$B:$C,2,0) -> Borovinská desítka | J80: =VLOOKUP(H80&"x"&F80,'Závody a tratě'!$A:$F,6,0) -> 6.7 | K80: =VLOOKUP(TEXT(H80,"000")&UPPER(D80)&TEXT(E80,"0000"),'Kategorie lokální'!$A$2:$F$300,6,TRUE) -> LZC | L80: =VLOOKUP(TEXT(H80,"000")&UPPER(D80)&TEXT(E80,"0000"),'Kategorie lokální'!$A$2:$G$300,7,TRUE) -> L: Ženy od 45 | M80: =VLOOKUP(UPPER(D80)&TEXT(E80,"0000"),'Kategorie ZBP'!$A$2:$E$30,5,TRUE) -> ZC | N80: =VLOOKUP(M80,'Kategorie ZBP'!$E:$F,2,0) -> Ženy nad 45 | O80: =VLOOKUP(H80&"x"&A80,Stopky!I:J,2,0) -> 0.02501157407 | P80: 16 | Q80: 2 | R80: 2 | S80: =IF(ISERROR(VLOOKUP(H80&"x"&F80&"xANO",'Závody a tratě'!L:L,1,0))=TRUE,0,_xlfn.IFNA(VLOOKUP(R80,'Body ZBP'!$A$1:$B$40,2,0),0)) -> 25 | T80: =H80&"x"&A80 -> 2x3 | U80: =IF(T80<>"x",COUNTIF($T$2:$T$3000,T80),"") -> 1
A81: 11 | B81: Kučerová | C81: Jana | D81: z | E81: 1971 | F81: Z6 | G81: Rohatec | H81: 2 | I81: =VLOOKUP(H81,'Závody a tratě'!$B:$C,2,0) -> Borovinská desítka | J81: =VLOOKUP(H81&"x"&F81,'Závody a tratě'!$A:$F,6,0) -> 6.7 | K81: =VLOOKUP(TEXT(H81,"000")&UPPER(D81)&TEXT(E81,"0000"),'Kategorie lokální'!$A$2:$F$300,6,TRUE) -> LZC | L81: =VLOOKUP(TEXT(H81,"000")&UPPER(D81)&TEXT(E81,"0000"),'Kategorie lokální'!$A$2:$G$300,7,TRUE) -> L: Ženy od 45 | M81: =VLOOKUP(UPPER(D81)&TEXT(E81,"0000"),'Kategorie ZBP'!$A$2:$E$30,5,TRUE) -> ZC | N81: =VLOOKUP(M81,'Kategorie ZBP'!$E:$F,2,0) -> Ženy nad 45 | O81: =VLOOKUP(H81&"x"&A81,Stopky!I:J,2,0) -> 0.02538194444 | P81: 17 | Q81: 3 | R81: 3 | S81: =IF(ISERROR(VLOOKUP(H81&"x"&F81&"xANO",'Závody a tratě'!L:L,1,0))=TRUE,0,_xlfn.IFNA(VLOOKUP(R81,'Body ZBP'!$A$1:$B$40,2,0),0)) -> 21 | T81: =H81&"x"&A81 -> 2x11 | U81: =IF(T81<>"x",COUNTIF($T$2:$T$3000,T81),"") -> 1
A82: 51 | B82: Čapková | C82: Barbora | D82: z | E82: 1985 | F82: Z6 | G82: Valeč | H82: 2 | I82: =VLOOKUP(H82,'Závody a tratě'!$B:$C,2,0) -> Borovinská desítka | J82: =VLOOKUP(H82&"x"&F82,'Závody a tratě'!$A:$F,6,0) -> 6.7 | K82: =VLOOKUP(TEXT(H82,"000")&UPPER(D82)&TEXT(E82,"0000"),'Kategorie lokální'!$A$2:$F$300,6,TRUE) -> LZA | L82: =VLOOKUP(TEXT(H82,"000")&UPPER(D82)&TEXT(E82,"0000"),'Kategorie lokální'!$A$2:$G$300,7,TRUE) -> L: Ženy do 34 | M82: =VLOOKUP(UPPER(D82)&TEXT(E82,"0000"),'Kategorie ZBP'!$A$2:$E$30,5,TRUE) -> ZA | N82: =VLOOKUP(M82,'Kategorie ZBP'!$E:$F,2,0) -> Ženy do 34 | O82: =VLOOKUP(H82&"x"&A82,Stopky!I:J,2,0) -> 0.02541666667 | P82: 18 | Q82: 7 | R82: 7 | S82: =IF(ISERROR(VLOOKUP(H82&"x"&F82&"xANO",'Závody a tratě'!L:L,1,0))=TRUE,0,_xlfn.IFNA(VLOOKUP(R82,'Body ZBP'!$A$1:$B$40,2,0),0)) -> 14 | T82: =H82&"x"&A82 -> 2x51 | U82: =IF(T82<>"x",COUNTIF($T$2:$T$3000,T82),"") -> 1
A83: 22 | B83: Zelená | C83: Irena | D83: z | E83: 1976 | F83: Z6 | G83: Třebíč | H83: 2 | I83: =VLOOKUP(H83,'Závody a tratě'!$B:$C,2,0) -> Borovinská desítka | J83: =VLOOKUP(H83&"x"&F83,'Závody a tratě'!$A:$F,6,0) -> 6.7 | K83: =VLOOKUP(TEXT(H83,"000")&UPPER(D83)&TEXT(E83,"0000"),'Kategorie lokální'!$A$2:$F$300,6,TRUE) -> LZB | L83: =VLOOKUP(TEXT(H83,"000")&UPPER(D83)&TEXT(E83,"0000"),'Kategorie lokální'!$A$2:$G$300,7,TRUE) -> L: Ženy 35 - 44 | M83: =VLOOKUP(UPPER(D83)&TEXT(E83,"0000"),'Kategorie ZBP'!$A$2:$E$30,5,TRUE) -> ZB | N83: =VLOOKUP(M83,'Kategorie ZBP'!$E:$F,2,0) -> Ženy 35 - 44 | O83: =VLOOKUP(H83&"x"&A83,Stopky!I:J,2,0) -> 0.02648148148 | P83: 19 | Q83: 9 | R83: 9 | S83: =IF(ISERROR(VLOOKUP(H83&"x"&F83&"xANO",'Závody a tratě'!L:L,1,0))=TRUE,0,_xlfn.IFNA(VLOOKUP(R83,'Body ZBP'!$A$1:$B$40,2,0),0)) -> 12 | T83: =H83&"x"&A83 -> 2x22 | U83: =IF(T83<>"x",COUNTIF($T$2:$T$3000,T83),"") -> 1
A84: 39 | B84: Holubová | C84: Jana | D84: z | E84: 1982 | F84: Z6 | G84: Blížkovice | H84: 2 | I84: =VLOOKUP(H84,'Závody a tratě'!$B:$C,2,0) -> Borovinská desítka | J84: =VLOOKUP(H84&"x"&F84,'Závody a tratě'!$A:$F,6,0) -> 6.7 | K84: =VLOOKUP(TEXT(H84,"000")&UPPER(D84)&TEXT(E84,"0000"),'Kategorie lokální'!$A$2:$F$300,6,TRUE) -> LZB | L84: =VLOOKUP(TEXT(H84,"000")&UPPER(D84)&TEXT(E84,"0000"),'Kategorie lokální'!$A$2:$G$300,7,TRUE) -> L: Ženy 35 - 44 | M84: =VLOOKUP(UPPER(D84)&TEXT(E84,"0000"),'Kategorie ZBP'!$A$2:$E$30,5,TRUE) -> ZB | N84: =VLOOKUP(M84,'Kategorie ZBP'!$E:$F,2,0) -> Ženy 35 - 44 | O84: =VLOOKUP(H84&"x"&A84,Stopky!I:J,2,0) -> 0.02667824074 | P84: 20 | Q84: 10 | R84: 10 | S84: =IF(ISERROR(VLOOKUP(H84&"x"&F84&"xANO",'Závody a tratě'!L:L,1,0))=TRUE,0,_xlfn.IFNA(VLOOKUP(R84,'Body ZBP'!$A$1:$B$40,2,0),0)) -> 11 | T84: =H84&"x"&A84 -> 2x39 | U84: =IF(T84<>"x",COUNTIF($T$2:$T$3000,T84),"") -> 1
A85: 45 | B85: Schonbergerová | C85: Dita | D85: z | E85: 1996 | F85: Z6 | G85: Třebíč | H85: 2 | I85: =VLOOKUP(H85,'Závody a tratě'!$B:$C,2,0) -> Borovinská desítka | J85: =VLOOKUP(H85&"x"&F85,'Závody a tratě'!$A:$F,6,0) -> 6.7 | K85: =VLOOKUP(TEXT(H85,"000")&UPPER(D85)&TEXT(E85,"0000"),'Kategorie lokální'!$A$2:$F$300,6,TRUE) -> LZA | L85: =VLOOKUP(TEXT(H85,"000")&UPPER(D85)&TEXT(E85,"0000"),'Kategorie lokální'!$A$2:$G$300,7,TRUE) -> L: Ženy do 34 | M85: =VLOOKUP(UPPER(D85)&TEXT(E85,"0000"),'Kategorie ZBP'!$A$2:$E$30,5,TRUE) -> ZA | N85: =VLOOKUP(M85,'Kategorie ZBP'!$E:$F,2,0) -> Ženy do 34 | O85: =VLOOKUP(H85&"x"&A85,Stopky!I:J,2,0) ->  | P85: DNF | Q85: DNF | R85: DNF | S85: =IF(ISERROR(VLOOKUP(H85&"x"&F85&"xANO",'Závody a tratě'!L:L,1,0))=TRUE,0,_xlfn.IFNA(VLOOKUP(R85,'Body ZBP'!$A$1:$B$40,2,0),0)) -> 0 | T85: =H85&"x"&A85 -> 2x45 | U85: =IF(T85<>"x",COUNTIF($T$2:$T$3000,T85),"") -> 1
A86: 168 | B86: Soural | C86: Lukáš | D86: m | E86: 1982 | F86: M11 | G86: Orel-Židenice/VSK UNI BRNO | H86: 3 | I86: =VLOOKUP(H86,'Závody a tratě'!$B:$C,2,0) -> Krumlovský běh | J86: =VLOOKUP(H86&"x"&F86,'Závody a tratě'!$A:$F,6,0) -> 10.9 | K86: =VLOOKUP(TEXT(H86,"000")&UPPER(D86)&TEXT(E86,"0000"),'Kategorie lokální'!$A$2:$F$300,6,TRUE) -> LMA | L86: =VLOOKUP(TEXT(H86,"000")&UPPER(D86)&TEXT(E86,"0000"),'Kategorie lokální'!$A$2:$G$300,7,TRUE) -> L: Muži do 39 | M86: =VLOOKUP(UPPER(D86)&TEXT(E86,"0000"),'Kategorie ZBP'!$A$2:$E$30,5,TRUE) -> MA | N86: =VLOOKUP(M86,'Kategorie ZBP'!$E:$F,2,0) -> Muži do 39 | O86: =VLOOKUP(H86&"x"&A86,Stopky!I:J,2,0) -> 0.02547453704 | P86: 1 | Q86: 1 | R86: 1 | S86: =IF(ISERROR(VLOOKUP(H86&"x"&F86&"xANO",'Závody a tratě'!L:L,1,0))=TRUE,0,_xlfn.IFNA(VLOOKUP(R86,'Body ZBP'!$A$1:$B$40,2,0),0)) -> 30 | T86: =H86&"x"&A86 -> 3x168 | U86: =IF(T86<>"x",COUNTIF($T$2:$T$3000,T86),"") -> 1
A87: 300 | B87: Dvořák | C87: Pavel | D87: m | E87: 1982 | F87: M11 | G87: AC Prostějov | H87: 3 | I87: =VLOOKUP(H87,'Závody a tratě'!$B:$C,2,0) -> Krumlovský běh | J87: =VLOOKUP(H87&"x"&F87,'Závody a tratě'!$A:$F,6,0) -> 10.9 | K87: =VLOOKUP(TEXT(H87,"000")&UPPER(D87)&TEXT(E87,"0000"),'Kategorie lokální'!$A$2:$F$300,6,TRUE) -> LMA | L87: =VLOOKUP(TEXT(H87,"000")&UPPER(D87)&TEXT(E87,"0000"),'Kategorie lokální'!$A$2:$G$300,7,TRUE) -> L: Muži do 39 | M87: =VLOOKUP(UPPER(D87)&TEXT(E87,"0000"),'Kategorie ZBP'!$A$2:$E$30,5,TRUE) -> MA | N87: =VLOOKUP(M87,'Kategorie ZBP'!$E:$F,2,0) -> Muži do 39 | O87: =VLOOKUP(H87&"x"&A87,Stopky!I:J,2,0) -> 0.02563657407 | P87: 2 | Q87: 2 | R87: 2 | S87: =IF(ISERROR(VLOOKUP(H87&"x"&F87&"xANO",'Závody a tratě'!L:L,1,0))=TRUE,0,_xlfn.IFNA(VLOOKUP(R87,'Body ZBP'!$A$1:$B$40,2,0),0)) -> 25 | T87: =H87&"x"&A87 -> 3x300 | U87: =IF(T87<>"x",COUNTIF($T$2:$T$3000,T87),"") -> 1
A88: 92 | B88: Kocur | C88: Lukáš | D88: m | E88: 1977 | F88: M11 | G88: Orel Šitbořice | H88: 3 | I88: =VLOOKUP(H88,'Závody a tratě'!$B:$C,2,0) -> Krumlovský běh | J88: =VLOOKUP(H88&"x"&F88,'Závody a tratě'!$A:$F,6,0) -> 10.9 | K88: =VLOOKUP(TEXT(H88,"000")&UPPER(D88)&TEXT(E88,"0000"),'Kategorie lokální'!$A$2:$F$300,6,TRUE) -> LMB | L88: =VLOOKUP(TEXT(H88,"000")&UPPER(D88)&TEXT(E88,"0000"),'Kategorie lokální'!$A$2:$G$300,7,TRUE) -> L: Muži 40 - 49 | M88: =VLOOKUP(UPPER(D88)&TEXT(E88,"0000"),'Kategorie ZBP'!$A$2:$E$30,5,TRUE) -> MB | N88: =VLOOKUP(M88,'Kategorie ZBP'!$E:$F,2,0) -> Muži 40 - 49 | O88: =VLOOKUP(H88&"x"&A88,Stopky!I:J,2,0) -> 0.02663194444 | P88: 3 | Q88: 1 | R88: 1 | S88: =IF(ISERROR(VLOOKUP(H88&"x"&F88&"xANO",'Závody a tratě'!L:L,1,0))=TRUE,0,_xlfn.IFNA(VLOOKUP(R88,'Body ZBP'!$A$1:$B$40,2,0),0)) -> 30 | T88: =H88&"x"&A88 -> 3x92 | U88: =IF(T88<>"x",COUNTIF($T$2:$T$3000,T88),"") -> 1
A89: 397 | B89: Čabala | C89: Vojtěch | D89: m | E89: 1993 | F89: M11 | G89: Rabbits Znojmo | H89: 3 | I89: =VLOOKUP(H89,'Závody a tratě'!$B:$C,2,0) -> Krumlovský běh | J89: =VLOOKUP(H89&"x"&F89,'Závody a tratě'!$A:$F,6,0) -> 10.9 | K89: =VLOOKUP(TEXT(H89,"000")&UPPER(D89)&TEXT(E89,"0000"),'Kategorie lokální'!$A$2:$F$300,6,TRUE) -> LMA | L89: =VLOOKUP(TEXT(H89,"000")&UPPER(D89)&TEXT(E89,"0000"),'Kategorie lokální'!$A$2:$G$300,7,TRUE) -> L: Muži do 39 | M89: =VLOOKUP(UPPER(D89)&TEXT(E89,"0000"),'Kategorie ZBP'!$A$2:$E$30,5,TRUE) -> MA | N89: =VLOOKUP(M89,'Kategorie ZBP'!$E:$F,2,0) -> Muži do 39 | O89: =VLOOKUP(H89&"x"&A89,Stopky!I:J,2,0) -> 0.02675925926 | P89: 4 | Q89: 3 | R89: 3 | S89: =IF(ISERROR(VLOOKUP(H89&"x"&F89&"xANO",'Závody a tratě'!L:L,1,0))=TRUE,0,_xlfn.IFNA(VLOOKUP(R89,'Body ZBP'!$A$1:$B$40,2,0),0)) -> 21 | T89: =H89&"x"&A89 -> 3x397 | U89: =IF(T89<>"x",COUNTIF($T$2:$T$3000,T89),"") -> 1
A90: 394 | B90: Hochman | C90: Zdeněk | D90: m | E90: 1985 | F90: M11 | G90: Orel Blučina | H90: 3 | I90: =VLOOKUP(H90,'Závody a tratě'!$B:$C,2,0) -> Krumlovský běh | J90: =VLOOKUP(H90&"x"&F90,'Závody a tratě'!$A:$F,6,0) -> 10.9 | K90: =VLOOKUP(TEXT(H90,"000")&UPPER(D90)&TEXT(E90,"0000"),'Kategorie lokální'!$A$2:$F$300,6,TRUE) -> LMA | L90: =VLOOKUP(TEXT(H90,"000")&UPPER(D90)&TEXT(E90,"0000"),'Kategorie lokální'!$A$2:$G$300,7,TRUE) -> L: Muži do 39 | M90: =VLOOKUP(UPPER(D90)&TEXT(E90,"0000"),'Kategorie ZBP'!$A$2:$E$30,5,TRUE) -> MA | N90: =VLOOKUP(M90,'Kategorie ZBP'!$E:$F,2,0) -> Muži do 39 | O90: =VLOOKUP(H90&"x"&A90,Stopky!I:J,2,0) -> 0.02759259259 | P90: 5 | Q90: 4 | R90: 4 | S90: =IF(ISERROR(VLOOKUP(H90&"x"&F90&"xANO",'Závody a tratě'!L:L,1,0))=TRUE,0,_xlfn.IFNA(VLOOKUP(R90,'Body ZBP'!$A$1:$B$40,2,0),0)) -> 18 | T90: =H90&"x"&A90 -> 3x394 | U90: =IF(T90<>"x",COUNTIF($T$2:$T$3000,T90),"") -> 1
A91: 391 | B91: Nezveda | C91: David | D91: m | E91: 1998 | F91: M11 | G91: Spartak Třebíč | H91: 3 | I91: =VLOOKUP(H91,'Závody a tratě'!$B:$C,2,0) -> Krumlovský běh | J91: =VLOOKUP(H91&"x"&F91,'Závody a tratě'!$A:$F,6,0) -> 10.9 | K91: =VLOOKUP(TEXT(H91,"000")&UPPER(D91)&TEXT(E91,"0000"),'Kategorie lokální'!$A$2:$F$300,6,TRUE) -> LMA | L91: =VLOOKUP(TEXT(H91,"000")&UPPER(D91)&TEXT(E91,"0000"),'Kategorie lokální'!$A$2:$G$300,7,TRUE) -> L: Muži do 39 | M91: =VLOOKUP(UPPER(D91)&TEXT(E91,"0000"),'Kategorie ZBP'!$A$2:$E$30,5,TRUE) -> MA | N91: =VLOOKUP(M91,'Kategorie ZBP'!$E:$F,2,0) -> Muži do 39 | O91: =VLOOKUP(H91&"x"&A91,Stopky!I:J,2,0) -> 0.02824074074 | P91: 6 | Q91: 5 | R91: 5 | S91: =IF(ISERROR(VLOOKUP(H91&"x"&F91&"xANO",'Závody a tratě'!L:L,1,0))=TRUE,0,_xlfn.IFNA(VLOOKUP(R91,'Body ZBP'!$A$1:$B$40,2,0),0)) -> 16 | T91: =H91&"x"&A91 -> 3x391 | U91: =IF(T91<>"x",COUNTIF($T$2:$T$3000,T91),"") -> 1
A92: 395 | B92: Kratochvíl | C92: Pavel | D92: m | E92: 1960 | F92: M11 | G92: Atletic Třebíč | H92: 3 | I92: =VLOOKUP(H92,'Závody a tratě'!$B:$C,2,0) -> Krumlovský běh | J92: =VLOOKUP(H92&"x"&F92,'Závody a tratě'!$A:$F,6,0) -> 10.9 | K92: =VLOOKUP(TEXT(H92,"000")&UPPER(D92)&TEXT(E92,"0000"),'Kategorie lokální'!$A$2:$F$300,6,TRUE) -> LMC | L92: =VLOOKUP(TEXT(H92,"000")&UPPER(D92)&TEXT(E92,"0000"),'Kategorie lokální'!$A$2:$G$300,7,TRUE) -> L: Muži 50 - 59 | M92: =VLOOKUP(UPPER(D92)&TEXT(E92,"0000"),'Kategorie ZBP'!$A$2:$E$30,5,TRUE) -> MC | N92: =VLOOKUP(M92,'Kategorie ZBP'!$E:$F,2,0) -> Muži 50 - 59 | O92: =VLOOKUP(H92&"x"&A92,Stopky!I:J,2,0) -> 0.02827546296 | P92: 7 | Q92: 1 | R92: 1 | S92: =IF(ISERROR(VLOOKUP(H92&"x"&F92&"xANO",'Závody a tratě'!L:L,1,0))=TRUE,0,_xlfn.IFNA(VLOOKUP(R92,'Body ZBP'!$A$1:$B$40,2,0),0)) -> 30 | T92: =H92&"x"&A92 -> 3x395 | U92: =IF(T92<>"x",COUNTIF($T$2:$T$3000,T92),"") -> 1
A93: 95 | B93: Koudelka | C93: Lukáš | D93: m | E93: 1983 | F93: M11 | G93: AK Drnovice | H93: 3 | I93: =VLOOKUP(H93,'Závody a tratě'!$B:$C,2,0) -> Krumlovský běh | J93: =VLOOKUP(H93&"x"&F93,'Závody a tratě'!$A:$F,6,0) -> 10.9 | K93: =VLOOKUP(TEXT(H93,"000")&UPPER(D93)&TEXT(E93,"0000"),'Kategorie lokální'!$A$2:$F$300,6,TRUE) -> LMA | L93: =VLOOKUP(TEXT(H93,"000")&UPPER(D93)&TEXT(E93,"0000"),'Kategorie lokální'!$A$2:$G$300,7,TRUE) -> L: Muži do 39 | M93: =VLOOKUP(UPPER(D93)&TEXT(E93,"0000"),'Kategorie ZBP'!$A$2:$E$30,5,TRUE) -> MA | N93: =VLOOKUP(M93,'Kategorie ZBP'!$E:$F,2,0) -> Muži do 39 | O93: =VLOOKUP(H93&"x"&A93,Stopky!I:J,2,0) -> 0.02842592593 | P93: 8 | Q93: 6 | R93: 6 | S93: =IF(ISERROR(VLOOKUP(H93&"x"&F93&"xANO",'Závody a tratě'!L:L,1,0))=TRUE,0,_xlfn.IFNA(VLOOKUP(R93,'Body ZBP'!$A$1:$B$40,2,0),0)) -> 15 | T93: =H93&"x"&A93 -> 3x95 | U93: =IF(T93<>"x",COUNTIF($T$2:$T$3000,T93),"") -> 1
A94: 392 | B94: Hrdina | C94: Tomáš | D94: m | E94: 1979 | F94: M11 | G94: AC Moravská Slavie | H94: 3 | I94: =VLOOKUP(H94,'Závody a tratě'!$B:$C,2,0) -> Krumlovský běh | J94: =VLOOKUP(H94&"x"&F94,'Závody a tratě'!$A:$F,6,0) -> 10.9 | K94: =VLOOKUP(TEXT(H94,"000")&UPPER(D94)&TEXT(E94,"0000"),'Kategorie lokální'!$A$2:$F$300,6,TRUE) -> LMA | L94: =VLOOKUP(TEXT(H94,"000")&UPPER(D94)&TEXT(E94,"0000"),'Kategorie lokální'!$A$2:$G$300,7,TRUE) -> L: Muži do 39 | M94: =VLOOKUP(UPPER(D94)&TEXT(E94,"0000"),'Kategorie ZBP'!$A$2:$E$30,5,TRUE) -> MA | N94: =VLOOKUP(M94,'Kategorie ZBP'!$E:$F,2,0) -> Muži do 39 | O94: =VLOOKUP(H94&"x"&A94,Stopky!I:J,2,0) -> 0.02887731481 | P94: 9 | Q94: 7 | R94: 7 | S94: =IF(ISERROR(VLOOKUP(H94&"x"&F94&"xANO",'Závody a tratě'!L:L,1,0))=TRUE,0,_xlfn.IFNA(VLOOKUP(R94,'Body ZBP'!$A$1:$B$40,2,0),0)) -> 14 | T94: =H94&"x"&A94 -> 3x392 | U94: =IF(T94<>"x",COUNTIF($T$2:$T$3000,T94),"") -> 1
A95: 84 | B95: Kazda | C95: Petr | D95: m | E95: 1970 | F95: M11 | H95: 3 | I95: =VLOOKUP(H95,'Závody a tratě'!$B:$C,2,0) -> Krumlovský běh | J95: =VLOOKUP(H95&"x"&F95,'Závody a tratě'!$A:$F,6,0) -> 10.9 | K95: =VLOOKUP(TEXT(H95,"000")&UPPER(D95)&TEXT(E95,"0000"),'Kategorie lokální'!$A$2:$F$300,6,TRUE) -> LMB | L95: =VLOOKUP(TEXT(H95,"000")&UPPER(D95)&TEXT(E95,"0000"),'Kategorie lokální'!$A$2:$G$300,7,TRUE) -> L: Muži 40 - 49 | M95: =VLOOKUP(UPPER(D95)&TEXT(E95,"0000"),'Kategorie ZBP'!$A$2:$E$30,5,TRUE) -> MB | N95: =VLOOKUP(M95,'Kategorie ZBP'!$E:$F,2,0) -> Muži 40 - 49 | O95: =VLOOKUP(H95&"x"&A95,Stopky!I:J,2,0) -> 0.02898148148 | P95: 10 | Q95: 2 | R95: 2 | S95: =IF(ISERROR(VLOOKUP(H95&"x"&F95&"xANO",'Závody a tratě'!L:L,1,0))=TRUE,0,_xlfn.IFNA(VLOOKUP(R95,'Body ZBP'!$A$1:$B$40,2,0),0)) -> 25 | T95: =H95&"x"&A95 -> 3x84 | U95: =IF(T95<>"x",COUNTIF($T$2:$T$3000,T95),"") -> 1
A96: 145 | B96: Pokorný | C96: Ondřej | D96: m | E96: 2001 | F96: M11 | H96: 3 | I96: =VLOOKUP(H96,'Závody a tratě'!$B:$C,2,0) -> Krumlovský běh | J96: =VLOOKUP(H96&"x"&F96,'Závody a tratě'!$A:$F,6,0) -> 10.9 | K96: =VLOOKUP(TEXT(H96,"000")&UPPER(D96)&TEXT(E96,"0000"),'Kategorie lokální'!$A$2:$F$300,6,TRUE) -> LMA | L96: =VLOOKUP(TEXT(H96,"000")&UPPER(D96)&TEXT(E96,"0000"),'Kategorie lokální'!$A$2:$G$300,7,TRUE) -> L: Muži do 39 | M96: =VLOOKUP(UPPER(D96)&TEXT(E96,"0000"),'Kategorie ZBP'!$A$2:$E$30,5,TRUE) -> MA | N96: =VLOOKUP(M96,'Kategorie ZBP'!$E:$F,2,0) -> Muži do 39 | O96: =VLOOKUP(H96&"x"&A96,Stopky!I:J,2,0) -> 0.02934027778 | P96: 11 | Q96: 8 | R96: 8 | S96: =IF(ISERROR(VLOOKUP(H96&"x"&F96&"xANO",'Závody a tratě'!L:L,1,0))=TRUE,0,_xlfn.IFNA(VLOOKUP(R96,'Body ZBP'!$A$1:$B$40,2,0),0)) -> 13 | T96: =H96&"x"&A96 -> 3x145 | U96: =IF(T96<>"x",COUNTIF($T$2:$T$3000,T96),"") -> 1
A97: 11 | B97: Čermák | C97: Bedřich | D97: m | E97: 1974 | F97: M11 | G97: Atletic Třebíč | H97: 3 | I97: =VLOOKUP(H97,'Závody a tratě'!$B:$C,2,0) -> Krumlovský běh | J97: =VLOOKUP(H97&"x"&F97,'Závody a tratě'!$A:$F,6,0) -> 10.9 | K97: =VLOOKUP(TEXT(H97,"000")&UPPER(D97)&TEXT(E97,"0000"),'Kategorie lokální'!$A$2:$F$300,6,TRUE) -> LMB | L97: =VLOOKUP(TEXT(H97,"000")&UPPER(D97)&TEXT(E97,"0000"),'Kategorie lokální'!$A$2:$G$300,7,TRUE) -> L: Muži 40 - 49 | M97: =VLOOKUP(UPPER(D97)&TEXT(E97,"0000"),'Kategorie ZBP'!$A$2:$E$30,5,TRUE) -> MB | N97: =VLOOKUP(M97,'Kategorie ZBP'!$E:$F,2,0) -> Muži 40 - 49 | O97: =VLOOKUP(H97&"x"&A97,Stopky!I:J,2,0) -> 0.02962962963 | P97: 12 | Q97: 3 | R97: 3 | S97: =IF(ISERROR(VLOOKUP(H97&"x"&F97&"xANO",'Závody a tratě'!L:L,1,0))=TRUE,0,_xlfn.IFNA(VLOOKUP(R97,'Body ZBP'!$A$1:$B$40,2,0),0)) -> 21 | T97: =H97&"x"&A97 -> 3x11 | U97: =IF(T97<>"x",COUNTIF($T$2:$T$3000,T97),"") -> 1
A98: 371 | B98: Jiřikovský | C98: Pavel | D98: m | E98: 1973 | F98: M11 | H98: 3 | I98: =VLOOKUP(H98,'Závody a tratě'!$B:$C,2,0) -> Krumlovský běh | J98: =VLOOKUP(H98&"x"&F98,'Závody a tratě'!$A:$F,6,0) -> 10.9 | K98: =VLOOKUP(TEXT(H98,"000")&UPPER(D98)&TEXT(E98,"0000"),'Kategorie lokální'!$A$2:$F$300,6,TRUE) -> LMB | L98: =VLOOKUP(TEXT(H98,"000")&UPPER(D98)&TEXT(E98,"0000"),'Kategorie lokální'!$A$2:$G$300,7,TRUE) -> L: Muži 40 - 49 | M98: =VLOOKUP(UPPER(D98)&TEXT(E98,"0000"),'Kategorie ZBP'!$A$2:$E$30,5,TRUE) -> MB | N98: =VLOOKUP(M98,'Kategorie ZBP'!$E:$F,2,0) -> Muži 40 - 49 | O98: =VLOOKUP(H98&"x"&A98,Stopky!I:J,2,0) -> 0.0296875 | P98: 13 | Q98: 4 | R98: 4 | S98: =IF(ISERROR(VLOOKUP(H98&"x"&F98&"xANO",'Závody a tratě'!L:L,1,0))=TRUE,0,_xlfn.IFNA(VLOOKUP(R98,'Body ZBP'!$A$1:$B$40,2,0),0)) -> 18 | T98: =H98&"x"&A98 -> 3x371 | U98: =IF(T98<>"x",COUNTIF($T$2:$T$3000,T98),"") -> 1
A99: 189 | B99: Zálešák | C99: Josef | D99: m | E99: 1967 | F99: M11 | G99: Orel Vyškov | H99: 3 | I99: =VLOOKUP(H99,'Závody a tratě'!$B:$C,2,0) -> Krumlovský běh | J99: =VLOOKUP(H99&"x"&F99,'Závody a tratě'!$A:$F,6,0) -> 10.9 | K99: =VLOOKUP(TEXT(H99,"000")&UPPER(D99)&TEXT(E99,"0000"),'Kategorie lokální'!$A$2:$F$300,6,TRUE) -> LMC | L99: =VLOOKUP(TEXT(H99,"000")&UPPER(D99)&TEXT(E99,"0000"),'Kategorie lokální'!$A$2:$G$300,7,TRUE) -> L: Muži 50 - 59 | M99: =VLOOKUP(UPPER(D99)&TEXT(E99,"0000"),'Kategorie ZBP'!$A$2:$E$30,5,TRUE) -> MC | N99: =VLOOKUP(M99,'Kategorie ZBP'!$E:$F,2,0) -> Muži 50 - 59 | O99: =VLOOKUP(H99&"x"&A99,Stopky!I:J,2,0) -> 0.03064814815 | P99: 14 | Q99: 2 | R99: 2 | S99: =IF(ISERROR(VLOOKUP(H99&"x"&F99&"xANO",'Závody a tratě'!L:L,1,0))=TRUE,0,_xlfn.IFNA(VLOOKUP(R99,'Body ZBP'!$A$1:$B$40,2,0),0)) -> 25 | T99: =H99&"x"&A99 -> 3x189 | U99: =IF(T99<>"x",COUNTIF($T$2:$T$3000,T99),"") -> 1
A100: 344 | B100: Horák | C100: Petr | D100: m | E100: 1976 | F100: M11 | G100: Orel Silůvky | H100: 3 | I100: =VLOOKUP(H100,'Závody a tratě'!$B:$C,2,0) -> Krumlovský běh | J100: =VLOOKUP(H100&"x"&F100,'Závody a tratě'!$A:$F,6,0) -> 10.9 | K100: =VLOOKUP(TEXT(H100,"000")&UPPER(D100)&TEXT(E100,"0000"),'Kategorie lokální'!$A$2:$F$300,6,TRUE) -> LMB | L100: =VLOOKUP(TEXT(H100,"000")&UPPER(D100)&TEXT(E100,"0000"),'Kategorie lokální'!$A$2:$G$300,7,TRUE) -> L: Muži 40 - 49 | M100: =VLOOKUP(UPPER(D100)&TEXT(E100,"0000"),'Kategorie ZBP'!$A$2:$E$30,5,TRUE) -> MB | N100: =VLOOKUP(M100,'Kategorie ZBP'!$E:$F,2,0) -> Muži 40 - 49 | O100: =VLOOKUP(H100&"x"&A100,Stopky!I:J,2,0) -> 0.03114583333 | P100: 15 | Q100: 5 | R100: 5 | S100: =IF(ISERROR(VLOOKUP(H100&"x"&F100&"xANO",'Závody a tratě'!L:L,1,0))=TRUE,0,_xlfn.IFNA(VLOOKUP(R100,'Body ZBP'!$A$1:$B$40,2,0),0)) -> 16 | T100: =H100&"x"&A100 -> 3x344 | U100: =IF(T100<>"x",COUNTIF($T$2:$T$3000,T100),"") -> 1
A101: 64 | B101: Jančařík | C101: Petr | D101: m | E101: 1968 | F101: M11 | G101: AAC Brno - Orel Židenice | H101: 3 | I101: =VLOOKUP(H101,'Závody a tratě'!$B:$C,2,0) -> Krumlovský běh | J101: =VLOOKUP(H101&"x"&F101,'Závody a tratě'!$A:$F,6,0) -> 10.9 | K101: =VLOOKUP(TEXT(H101,"000")&UPPER(D101)&TEXT(E101,"0000"),'Kategorie lokální'!$A$2:$F$300,6,TRUE) -> LMC | L101: =VLOOKUP(TEXT(H101,"000")&UPPER(D101)&TEXT(E101,"0000"),'Kategorie lokální'!$A$2:$G$300,7,TRUE) -> L: Muži 50 - 59 | M101: =VLOOKUP(UPPER(D101)&TEXT(E101,"0000"),'Kategorie ZBP'!$A$2:$E$30,5,TRUE) -> MC | N101: =VLOOKUP(M101,'Kategorie ZBP'!$E:$F,2,0) -> Muži 50 - 59 | O101: =VLOOKUP(H101&"x"&A101,Stopky!I:J,2,0) -> 0.03141203704 | P101: 16 | Q101: 3 | R101: 3 | S101: =IF(ISERROR(VLOOKUP(H101&"x"&F101&"xANO",'Závody a tratě'!L:L,1,0))=TRUE,0,_xlfn.IFNA(VLOOKUP(R101,'Body ZBP'!$A$1:$B$40,2,0),0)) -> 21 | T101: =H101&"x"&A101 -> 3x64 | U101: =IF(T101<>"x",COUNTIF($T$2:$T$3000,T101),"") -> 1
A102: 109 | B102: Holub | C102: Pavel | D102: m | E102: 1980 | F102: M11 | G102: Rabbits Znojmo | H102: 3 | I102: =VLOOKUP(H102,'Závody a tratě'!$B:$C,2,0) -> Krumlovský běh | J102: =VLOOKUP(H102&"x"&F102,'Závody a tratě'!$A:$F,6,0) -> 10.9 | K102: =VLOOKUP(TEXT(H102,"000")&UPPER(D102)&TEXT(E102,"0000"),'Kategorie lokální'!$A$2:$F$300,6,TRUE) -> LMA | L102: =VLOOKUP(TEXT(H102,"000")&UPPER(D102)&TEXT(E102,"0000"),'Kategorie lokální'!$A$2:$G$300,7,TRUE) -> L: Muži do 39 | M102: =VLOOKUP(UPPER(D102)&TEXT(E102,"0000"),'Kategorie ZBP'!$A$2:$E$30,5,TRUE) -> MA | N102: =VLOOKUP(M102,'Kategorie ZBP'!$E:$F,2,0) -> Muži do 39 | O102: =VLOOKUP(H102&"x"&A102,Stopky!I:J,2,0) -> 0.03162037037 | P102: 17 | Q102: 9 | R102: 9 | S102: =IF(ISERROR(VLOOKUP(H102&"x"&F102&"xANO",'Závody a tratě'!L:L,1,0))=TRUE,0,_xlfn.IFNA(VLOOKUP(R102,'Body ZBP'!$A$1:$B$40,2,0),0)) -> 12 | T102: =H102&"x"&A102 -> 3x109 | U102: =IF(T102<>"x",COUNTIF($T$2:$T$3000,T102),"") -> 1
A103: 68 | B103: Januška | C103: Ivan | D103: m | E103: 1958 | F103: M11 | G103: Šanov | H103: 3 | I103: =VLOOKUP(H103,'Závody a tratě'!$B:$C,2,0) -> Krumlovský běh | J103: =VLOOKUP(H103&"x"&F103,'Závody a tratě'!$A:$F,6,0) -> 10.9 | K103: =VLOOKUP(TEXT(H103,"000")&UPPER(D103)&TEXT(E103,"0000"),'Kategorie lokální'!$A$2:$F$300,6,TRUE) -> LMD | L103: =VLOOKUP(TEXT(H103,"000")&UPPER(D103)&TEXT(E103,"0000"),'Kategorie lokální'!$A$2:$G$300,7,TRUE) -> L: Muži nad 60 | M103: =VLOOKUP(UPPER(D103)&TEXT(E103,"0000"),'Kategorie ZBP'!$A$2:$E$30,5,TRUE) -> MD | N103: =VLOOKUP(M103,'Kategorie ZBP'!$E:$F,2,0) -> Muži nad 60 | O103: =VLOOKUP(H103&"x"&A103,Stopky!I:J,2,0) -> 0.03195601852 | P103: 18 | Q103: 1 | R103: 1 | S103: =IF(ISERROR(VLOOKUP(H103&"x"&F103&"xANO",'Závody a tratě'!L:L,1,0))=TRUE,0,_xlfn.IFNA(VLOOKUP(R103,'Body ZBP'!$A$1:$B$40,2,0),0)) -> 30 | T103: =H103&"x"&A103 -> 3x68 | U103: =IF(T103<>"x",COUNTIF($T$2:$T$3000,T103),"") -> 1
A104: 355 | B104: Štěpánek | C104: Radek | D104: m | E104: 1998 | F104: M11 | G104: Orel Obřany | H104: 3 | I104: =VLOOKUP(H104,'Závody a tratě'!$B:$C,2,0) -> Krumlovský běh | J104: =VLOOKUP(H104&"x"&F104,'Závody a tratě'!$A:$F,6,0) -> 10.9 | K104: =VLOOKUP(TEXT(H104,"000")&UPPER(D104)&TEXT(E104,"0000"),'Kategorie lokální'!$A$2:$F$300,6,TRUE) -> LMA | L104: =VLOOKUP(TEXT(H104,"000")&UPPER(D104)&TEXT(E104,"0000"),'Kategorie lokální'!$A$2:$G$300,7,TRUE) -> L: Muži do 39 | M104: =VLOOKUP(UPPER(D104)&TEXT(E104,"0000"),'Kategorie ZBP'!$A$2:$E$30,5,TRUE) -> MA | N104: =VLOOKUP(M104,'Kategorie ZBP'!$E:$F,2,0) -> Muži do 39 | O104: =VLOOKUP(H104&"x"&A104,Stopky!I:J,2,0) -> 0.03209490741 | P104: 19 | Q104: 10 | R104: 10 | S104: =IF(ISERROR(VLOOKUP(H104&"x"&F104&"xANO",'Závody a tratě'!L:L,1,0))=TRUE,0,_xlfn.IFNA(VLOOKUP(R104,'Body ZBP'!$A$1:$B$40,2,0),0)) -> 11 | T104: =H104&"x"&A104 -> 3x355 | U104: =IF(T104<>"x",COUNTIF($T$2:$T$3000,T104),"") -> 1
A105: 377 | B105: Bláha | C105: Daniel | D105: m | E105: 2002 | F105: M11 | H105: 3 | I105: =VLOOKUP(H105,'Závody a tratě'!$B:$C,2,0) -> Krumlovský běh | J105: =VLOOKUP(H105&"x"&F105,'Závody a tratě'!$A:$F,6,0) -> 10.9 | K105: =VLOOKUP(TEXT(H105,"000")&UPPER(D105)&TEXT(E105,"0000"),'Kategorie lokální'!$A$2:$F$300,6,TRUE) -> LMA | L105: =VLOOKUP(TEXT(H105,"000")&UPPER(D105)&TEXT(E105,"0000"),'Kategorie lokální'!$A$2:$G$300,7,TRUE) -> L: Muži do 39 | M105: =VLOOKUP(UPPER(D105)&TEXT(E105,"0000"),'Kategorie ZBP'!$A$2:$E$30,5,TRUE) -> MA | N105: =VLOOKUP(M105,'Kategorie ZBP'!$E:$F,2,0) -> Muži do 39 | O105: =VLOOKUP(H105&"x"&A105,Stopky!I:J,2,0) -> 0.03215277778 | P105: 20 | Q105: 11 | R105: 11 | S105: =IF(ISERROR(VLOOKUP(H105&"x"&F105&"xANO",'Závody a tratě'!L:L,1,0))=TRUE,0,_xlfn.IFNA(VLOOKUP(R105,'Body ZBP'!$A$1:$B$40,2,0),0)) -> 10 | T105: =H105&"x"&A105 -> 3x377 | U105: =IF(T105<>"x",COUNTIF($T$2:$T$3000,T105),"") -> 1
A106: 91 | B106: Souček | C106: Tomáš | D106: m | E106: 1989 | F106: M11 | G106: Rabbits Znojmo | H106: 3 | I106: =VLOOKUP(H106,'Závody a tratě'!$B:$C,2,0) -> Krumlovský běh | J106: =VLOOKUP(H106&"x"&F106,'Závody a tratě'!$A:$F,6,0) -> 10.9 | K106: =VLOOKUP(TEXT(H106,"000")&UPPER(D106)&TEXT(E106,"0000"),'Kategorie lokální'!$A$2:$F$300,6,TRUE) -> LMA | L106: =VLOOKUP(TEXT(H106,"000")&UPPER(D106)&TEXT(E106,"0000"),'Kategorie lokální'!$A$2:$G$300,7,TRUE) -> L: Muži do 39 | M106: =VLOOKUP(UPPER(D106)&TEXT(E106,"0000"),'Kategorie ZBP'!$A$2:$E$30,5,TRUE) -> MA | N106: =VLOOKUP(M106,'Kategorie ZBP'!$E:$F,2,0) -> Muži do 39 | O106: =VLOOKUP(H106&"x"&A106,Stopky!I:J,2,0) -> 0.03219907407 | P106: 21 | Q106: 12 | R106: 12 | S106: =IF(ISERROR(VLOOKUP(H106&"x"&F106&"xANO",'Závody a tratě'!L:L,1,0))=TRUE,0,_xlfn.IFNA(VLOOKUP(R106,'Body ZBP'!$A$1:$B$40,2,0),0)) -> 9 | T106: =H106&"x"&A106 -> 3x91 | U106: =IF(T106<>"x",COUNTIF($T$2:$T$3000,T106),"") -> 1
A107: 75 | B107: Nováček | C107: Josef | D107: m | E107: 1958 | F107: M11 | G107: SDH Čučice | H107: 3 | I107: =VLOOKUP(H107,'Závody a tratě'!$B:$C,2,0) -> Krumlovský běh | J107: =VLOOKUP(H107&"x"&F107,'Závody a tratě'!$A:$F,6,0) -> 10.9 | K107: =VLOOKUP(TEXT(H107,"000")&UPPER(D107)&TEXT(E107,"0000"),'Kategorie lokální'!$A$2:$F$300,6,TRUE) -> LMD | L107: =VLOOKUP(TEXT(H107,"000")&UPPER(D107)&TEXT(E107,"0000"),'Kategorie lokální'!$A$2:$G$300,7,TRUE) -> L: Muži nad 60 | M107: =VLOOKUP(UPPER(D107)&TEXT(E107,"0000"),'Kategorie ZBP'!$A$2:$E$30,5,TRUE) -> MD | N107: =VLOOKUP(M107,'Kategorie ZBP'!$E:$F,2,0) -> Muži nad 60 | O107: =VLOOKUP(H107&"x"&A107,Stopky!I:J,2,0) -> 0.0325 | P107: 22 | Q107: 2 | R107: 2 | S107: =IF(ISERROR(VLOOKUP(H107&"x"&F107&"xANO",'Závody a tratě'!L:L,1,0))=TRUE,0,_xlfn.IFNA(VLOOKUP(R107,'Body ZBP'!$A$1:$B$40,2,0),0)) -> 25 | T107: =H107&"x"&A107 -> 3x75 | U107: =IF(T107<>"x",COUNTIF($T$2:$T$3000,T107),"") -> 1
A108: 390 | B108: Křepela | C108: Luděk | D108: m | E108: 1964 | F108: M11 | H108: 3 | I108: =VLOOKUP(H108,'Závody a tratě'!$B:$C,2,0) -> Krumlovský běh | J108: =VLOOKUP(H108&"x"&F108,'Závody a tratě'!$A:$F,6,0) -> 10.9 | K108: =VLOOKUP(TEXT(H108,"000")&UPPER(D108)&TEXT(E108,"0000"),'Kategorie lokální'!$A$2:$F$300,6,TRUE) -> LMC | L108: =VLOOKUP(TEXT(H108,"000")&UPPER(D108)&TEXT(E108,"0000"),'Kategorie lokální'!$A$2:$G$300,7,TRUE) -> L: Muži 50 - 59 | M108: =VLOOKUP(UPPER(D108)&TEXT(E108,"0000"),'Kategorie ZBP'!$A$2:$E$30,5,TRUE) -> MC | N108: =VLOOKUP(M108,'Kategorie ZBP'!$E:$F,2,0) -> Muži 50 - 59 | O108: =VLOOKUP(H108&"x"&A108,Stopky!I:J,2,0) -> 0.03292824074 | P108: 23 | Q108: 4 | R108: 4 | S108: =IF(ISERROR(VLOOKUP(H108&"x"&F108&"xANO",'Závody a tratě'!L:L,1,0))=TRUE,0,_xlfn.IFNA(VLOOKUP(R108,'Body ZBP'!$A$1:$B$40,2,0),0)) -> 18 | T108: =H108&"x"&A108 -> 3x390 | U108: =IF(T108<>"x",COUNTIF($T$2:$T$3000,T108),"") -> 1
A109: 384 | B109: Němec | C109: Bedřich | D109: m | E109: 1964 | F109: M11 | G109: Hornice | H109: 3 | I109: =VLOOKUP(H109,'Závody a tratě'!$B:$C,2,0) -> Krumlovský běh | J109: =VLOOKUP(H109&"x"&F109,'Závody a tratě'!$A:$F,6,0) -> 10.9 | K109: =VLOOKUP(TEXT(H109,"000")&UPPER(D109)&TEXT(E109,"0000"),'Kategorie lokální'!$A$2:$F$300,6,TRUE) -> LMC | L109: =VLOOKUP(TEXT(H109,"000")&UPPER(D109)&TEXT(E109,"0000"),'Kategorie lokální'!$A$2:$G$300,7,TRUE) -> L: Muži 50 - 59 | M109: =VLOOKUP(UPPER(D109)&TEXT(E109,"0000"),'Kategorie ZBP'!$A$2:$E$30,5,TRUE) -> MC | N109: =VLOOKUP(M109,'Kategorie ZBP'!$E:$F,2,0) -> Muži 50 - 59 | O109: =VLOOKUP(H109&"x"&A109,Stopky!I:J,2,0) -> 0.03353009259 | P109: 24 | Q109: 5 | R109: 5 | S109: =IF(ISERROR(VLOOKUP(H109&"x"&F109&"xANO",'Závody a tratě'!L:L,1,0))=TRUE,0,_xlfn.IFNA(VLOOKUP(R109,'Body ZBP'!$A$1:$B$40,2,0),0)) -> 16 | T109: =H109&"x"&A109 -> 3x384 | U109: =IF(T109<>"x",COUNTIF($T$2:$T$3000,T109),"") -> 1
A110: 155 | B110: Tvarůžka | C110: Tomáš | D110: m | E110: 1972 | F110: M11 | G110: Oněmec.cz | H110: 3 | I110: =VLOOKUP(H110,'Závody a tratě'!$B:$C,2,0) -> Krumlovský běh | J110: =VLOOKUP(H110&"x"&F110,'Závody a tratě'!$A:$F,6,0) -> 10.9 | K110: =VLOOKUP(TEXT(H110,"000")&UPPER(D110)&TEXT(E110,"0000"),'Kategorie lokální'!$A$2:$F$300,6,TRUE) -> LMB | L110: =VLOOKUP(TEXT(H110,"000")&UPPER(D110)&TEXT(E110,"0000"),'Kategorie lokální'!$A$2:$G$300,7,TRUE) -> L: Muži 40 - 49 | M110: =VLOOKUP(UPPER(D110)&TEXT(E110,"0000"),'Kategorie ZBP'!$A$2:$E$30,5,TRUE) -> MB | N110: =VLOOKUP(M110,'Kategorie ZBP'!$E:$F,2,0) -> Muži 40 - 49 | O110: =VLOOKUP(H110&"x"&A110,Stopky!I:J,2,0) -> 0.03358796296 | P110: 25 | Q110: 6 | R110: 6 | S110: =IF(ISERROR(VLOOKUP(H110&"x"&F110&"xANO",'Závody a tratě'!L:L,1,0))=TRUE,0,_xlfn.IFNA(VLOOKUP(R110,'Body ZBP'!$A$1:$B$40,2,0),0)) -> 15 | T110: =H110&"x"&A110 -> 3x155 | U110: =IF(T110<>"x",COUNTIF($T$2:$T$3000,T110),"") -> 1
A111: 370 | B111: Mezera | C111: Pavel | D111: m | E111: 1968 | F111: M11 | G111: Bílovice nad Svitavou | H111: 3 | I111: =VLOOKUP(H111,'Závody a tratě'!$B:$C,2,0) -> Krumlovský běh | J111: =VLOOKUP(H111&"x"&F111,'Závody a tratě'!$A:$F,6,0) -> 10.9 | K111: =VLOOKUP(TEXT(H111,"000")&UPPER(D111)&TEXT(E111,"0000"),'Kategorie lokální'!$A$2:$F$300,6,TRUE) -> LMC | L111: =VLOOKUP(TEXT(H111,"000")&UPPER(D111)&TEXT(E111,"0000"),'Kategorie lokální'!$A$2:$G$300,7,TRUE) -> L: Muži 50 - 59 | M111: =VLOOKUP(UPPER(D111)&TEXT(E111,"0000"),'Kategorie ZBP'!$A$2:$E$30,5,TRUE) -> MC | N111: =VLOOKUP(M111,'Kategorie ZBP'!$E:$F,2,0) -> Muži 50 - 59 | O111: =VLOOKUP(H111&"x"&A111,Stopky!I:J,2,0) -> 0.03392361111 | P111: 26 | Q111: 6 | R111: 6 | S111: =IF(ISERROR(VLOOKUP(H111&"x"&F111&"xANO",'Závody a tratě'!L:L,1,0))=TRUE,0,_xlfn.IFNA(VLOOKUP(R111,'Body ZBP'!$A$1:$B$40,2,0),0)) -> 15 | T111: =H111&"x"&A111 -> 3x370 | U111: =IF(T111<>"x",COUNTIF($T$2:$T$3000,T111),"") -> 1
A112: 376 | B112: Bobek | C112: Josef | D112: m | E112: 1949 | F112: M11 | G112: TJ Znojmo | H112: 3 | I112: =VLOOKUP(H112,'Závody a tratě'!$B:$C,2,0) -> Krumlovský běh | J112: =VLOOKUP(H112&"x"&F112,'Závody a tratě'!$A:$F,6,0) -> 10.9 | K112: =VLOOKUP(TEXT(H112,"000")&UPPER(D112)&TEXT(E112,"0000"),'Kategorie lokální'!$A$2:$F$300,6,TRUE) -> LMD | L112: =VLOOKUP(TEXT(H112,"000")&UPPER(D112)&TEXT(E112,"0000"),'Kategorie lokální'!$A$2:$G$300,7,TRUE) -> L: Muži nad 60 | M112: =VLOOKUP(UPPER(D112)&TEXT(E112,"0000"),'Kategorie ZBP'!$A$2:$E$30,5,TRUE) -> MD | N112: =VLOOKUP(M112,'Kategorie ZBP'!$E:$F,2,0) -> Muži nad 60 | O112: =VLOOKUP(H112&"x"&A112,Stopky!I:J,2,0) -> 0.03412037037 | P112: 27 | Q112: 3 | R112: 3 | S112: =IF(ISERROR(VLOOKUP(H112&"x"&F112&"xANO",'Závody a tratě'!L:L,1,0))=TRUE,0,_xlfn.IFNA(VLOOKUP(R112,'Body ZBP'!$A$1:$B$40,2,0),0)) -> 21 | T112: =H112&"x"&A112 -> 3x376 | U112: =IF(T112<>"x",COUNTIF($T$2:$T$3000,T112),"") -> 1
A113: 367 | B113: Míka | C113: Ivo | D113: m | E113: 1966 | F113: M11 | G113: Orel Obřany | H113: 3 | I113: =VLOOKUP(H113,'Závody a tratě'!$B:$C,2,0) -> Krumlovský běh | J113: =VLOOKUP(H113&"x"&F113,'Závody a tratě'!$A:$F,6,0) -> 10.9 | K113: =VLOOKUP(TEXT(H113,"000")&UPPER(D113)&TEXT(E113,"0000"),'Kategorie lokální'!$A$2:$F$300,6,TRUE) -> LMC | L113: =VLOOKUP(TEXT(H113,"000")&UPPER(D113)&TEXT(E113,"0000"),'Kategorie lokální'!$A$2:$G$300,7,TRUE) -> L: Muži 50 - 59 | M113: =VLOOKUP(UPPER(D113)&TEXT(E113,"0000"),'Kategorie ZBP'!$A$2:$E$30,5,TRUE) -> MC | N113: =VLOOKUP(M113,'Kategorie ZBP'!$E:$F,2,0) -> Muži 50 - 59 | O113: =VLOOKUP(H113&"x"&A113,Stopky!I:J,2,0) -> 0.03430555556 | P113: 28 | Q113: 7 | R113: 7 | S113: =IF(ISERROR(VLOOKUP(H113&"x"&F113&"xANO",'Závody a tratě'!L:L,1,0))=TRUE,0,_xlfn.IFNA(VLOOKUP(R113,'Body ZBP'!$A$1:$B$40,2,0),0)) -> 14 | T113: =H113&"x"&A113 -> 3x367 | U113: =IF(T113<>"x",COUNTIF($T$2:$T$3000,T113),"") -> 1
A114: 399 | B114: Danielovič | C114: Leo | D114: m | E114: 1958 | F114: M11 | G114: Hradiště Znojmo | H114: 3 | I114: =VLOOKUP(H114,'Závody a tratě'!$B:$C,2,0) -> Krumlovský běh | J114: =VLOOKUP(H114&"x"&F114,'Závody a tratě'!$A:$F,6,0) -> 10.9 | K114: =VLOOKUP(TEXT(H114,"000")&UPPER(D114)&TEXT(E114,"0000"),'Kategorie lokální'!$A$2:$F$300,6,TRUE) -> LMD | L114: =VLOOKUP(TEXT(H114,"000")&UPPER(D114)&TEXT(E114,"0000"),'Kategorie lokální'!$A$2:$G$300,7,TRUE) -> L: Muži nad 60 | M114: =VLOOKUP(UPPER(D114)&TEXT(E114,"0000"),'Kategorie ZBP'!$A$2:$E$30,5,TRUE) -> MD | N114: =VLOOKUP(M114,'Kategorie ZBP'!$E:$F,2,0) -> Muži nad 60 | O114: =VLOOKUP(H114&"x"&A114,Stopky!I:J,2,0) -> 0.03462962963 | P114: 29 | Q114: 4 | R114: 4 | S114: =IF(ISERROR(VLOOKUP(H114&"x"&F114&"xANO",'Závody a tratě'!L:L,1,0))=TRUE,0,_xlfn.IFNA(VLOOKUP(R114,'Body ZBP'!$A$1:$B$40,2,0),0)) -> 18 | T114: =H114&"x"&A114 -> 3x399 | U114: =IF(T114<>"x",COUNTIF($T$2:$T$3000,T114),"") -> 1
A115: 379 | B115: Foltýn | C115: Jiří | D115: m | E115: 1981 | F115: M11 | G115: Kuřim | H115: 3 | I115: =VLOOKUP(H115,'Závody a tratě'!$B:$C,2,0) -> Krumlovský běh | J115: =VLOOKUP(H115&"x"&F115,'Závody a tratě'!$A:$F,6,0) -> 10.9 | K115: =VLOOKUP(TEXT(H115,"000")&UPPER(D115)&TEXT(E115,"0000"),'Kategorie lokální'!$A$2:$F$300,6,TRUE) -> LMA | L115: =VLOOKUP(TEXT(H115,"000")&UPPER(D115)&TEXT(E115,"0000"),'Kategorie lokální'!$A$2:$G$300,7,TRUE) -> L: Muži do 39 | M115: =VLOOKUP(UPPER(D115)&TEXT(E115,"0000"),'Kategorie ZBP'!$A$2:$E$30,5,TRUE) -> MA | N115: =VLOOKUP(M115,'Kategorie ZBP'!$E:$F,2,0) -> Muži do 39 | O115: =VLOOKUP(H115&"x"&A115,Stopky!I:J,2,0) -> 0.03481481481 | P115: 30 | Q115: 13 | R115: 13 | S115: =IF(ISERROR(VLOOKUP(H115&"x"&F115&"xANO",'Závody a tratě'!L:L,1,0))=TRUE,0,_xlfn.IFNA(VLOOKUP(R115,'Body ZBP'!$A$1:$B$40,2,0),0)) -> 8 | T115: =H115&"x"&A115 -> 3x379 | U115: =IF(T115<>"x",COUNTIF($T$2:$T$3000,T115),"") -> 1
A116: 38 | B116: Frýbort | C116: David | D116: m | E116: 1974 | F116: M11 | G116: AK Rosice | H116: 3 | I116: =VLOOKUP(H116,'Závody a tratě'!$B:$C,2,0) -> Krumlovský běh | J116: =VLOOKUP(H116&"x"&F116,'Závody a tratě'!$A:$F,6,0) -> 10.9 | K116: =VLOOKUP(TEXT(H116,"000")&UPPER(D116)&TEXT(E116,"0000"),'Kategorie lokální'!$A$2:$F$300,6,TRUE) -> LMB | L116: =VLOOKUP(TEXT(H116,"000")&UPPER(D116)&TEXT(E116,"0000"),'Kategorie lokální'!$A$2:$G$300,7,TRUE) -> L: Muži 40 - 49 | M116: =VLOOKUP(UPPER(D116)&TEXT(E116,"0000"),'Kategorie ZBP'!$A$2:$E$30,5,TRUE) -> MB | N116: =VLOOKUP(M116,'Kategorie ZBP'!$E:$F,2,0) -> Muži 40 - 49 | O116: =VLOOKUP(H116&"x"&A116,Stopky!I:J,2,0) -> 0.03554398148 | P116: 31 | Q116: 7 | R116: 7 | S116: =IF(ISERROR(VLOOKUP(H116&"x"&F116&"xANO",'Závody a tratě'!L:L,1,0))=TRUE,0,_xlfn.IFNA(VLOOKUP(R116,'Body ZBP'!$A$1:$B$40,2,0),0)) -> 14 | T116: =H116&"x"&A116 -> 3x38 | U116: =IF(T116<>"x",COUNTIF($T$2:$T$3000,T116),"") -> 1
A117: 146 | B117: Provazník | C117: Zdeněk | D117: m | E117: 1974 | F117: M11 | G117: Orel Vyškov | H117: 3 | I117: =VLOOKUP(H117,'Závody a tratě'!$B:$C,2,0) -> Krumlovský běh | J117: =VLOOKUP(H117&"x"&F117,'Závody a tratě'!$A:$F,6,0) -> 10.9 | K117: =VLOOKUP(TEXT(H117,"000")&UPPER(D117)&TEXT(E117,"0000"),'Kategorie lokální'!$A$2:$F$300,6,TRUE) -> LMB | L117: =VLOOKUP(TEXT(H117,"000")&UPPER(D117)&TEXT(E117,"0000"),'Kategorie lokální'!$A$2:$G$300,7,TRUE) -> L: Muži 40 - 49 | M117: =VLOOKUP(UPPER(D117)&TEXT(E117,"0000"),'Kategorie ZBP'!$A$2:$E$30,5,TRUE) -> MB | N117: =VLOOKUP(M117,'Kategorie ZBP'!$E:$F,2,0) -> Muži 40 - 49 | O117: =VLOOKUP(H117&"x"&A117,Stopky!I:J,2,0) -> 0.03609953704 | P117: 32 | Q117: 8 | R117: 8 | S117: =IF(ISERROR(VLOOKUP(H117&"x"&F117&"xANO",'Závody a tratě'!L:L,1,0))=TRUE,0,_xlfn.IFNA(VLOOKUP(R117,'Body ZBP'!$A$1:$B$40,2,0),0)) -> 13 | T117: =H117&"x"&A117 -> 3x146 | U117: =IF(T117<>"x",COUNTIF($T$2:$T$3000,T117),"") -> 1
A118: 372 | B118: Dvořák | C118: Jiří | D118: m | E118: 1969 | F118: M11 | G118: Atletic Třebíč | H118: 3 | I118: =VLOOKUP(H118,'Závody a tratě'!$B:$C,2,0) -> Krumlovský běh | J118: =VLOOKUP(H118&"x"&F118,'Závody a tratě'!$A:$F,6,0) -> 10.9 | K118: =VLOOKUP(TEXT(H118,"000")&UPPER(D118)&TEXT(E118,"0000"),'Kategorie lokální'!$A$2:$F$300,6,TRUE) -> LMB | L118: =VLOOKUP(TEXT(H118,"000")&UPPER(D118)&TEXT(E118,"0000"),'Kategorie lokální'!$A$2:$G$300,7,TRUE) -> L: Muži 40 - 49 | M118: =VLOOKUP(UPPER(D118)&TEXT(E118,"0000"),'Kategorie ZBP'!$A$2:$E$30,5,TRUE) -> MB | N118: =VLOOKUP(M118,'Kategorie ZBP'!$E:$F,2,0) -> Muži 40 - 49 | O118: =VLOOKUP(H118&"x"&A118,Stopky!I:J,2,0) -> 0.0366087963 | P118: 33 | Q118: 9 | R118: 9 | S118: =IF(ISERROR(VLOOKUP(H118&"x"&F118&"xANO",'Závody a tratě'!L:L,1,0))=TRUE,0,_xlfn.IFNA(VLOOKUP(R118,'Body ZBP'!$A$1:$B$40,2,0),0)) -> 12 | T118: =H118&"x"&A118 -> 3x372 | U118: =IF(T118<>"x",COUNTIF($T$2:$T$3000,T118),"") -> 1
A119: 113 | B119: Kupčík | C119: Roman | D119: m | E119: 1985 | F119: M11 | H119: 3 | I119: =VLOOKUP(H119,'Závody a tratě'!$B:$C,2,0) -> Krumlovský běh | J119: =VLOOKUP(H119&"x"&F119,'Závody a tratě'!$A:$F,6,0) -> 10.9 | K119: =VLOOKUP(TEXT(H119,"000")&UPPER(D119)&TEXT(E119,"0000"),'Kategorie lokální'!$A$2:$F$300,6,TRUE) -> LMA | L119: =VLOOKUP(TEXT(H119,"000")&UPPER(D119)&TEXT(E119,"0000"),'Kategorie lokální'!$A$2:$G$300,7,TRUE) -> L: Muži do 39 | M119: =VLOOKUP(UPPER(D119)&TEXT(E119,"0000"),'Kategorie ZBP'!$A$2:$E$30,5,TRUE) -> MA | N119: =VLOOKUP(M119,'Kategorie ZBP'!$E:$F,2,0) -> Muži do 39 | O119: =VLOOKUP(H119&"x"&A119,Stopky!I:J,2,0) -> 0.03671296296 | P119: 34 | Q119: 14 | R119: 14 | S119: =IF(ISERROR(VLOOKUP(H119&"x"&F119&"xANO",'Závody a tratě'!L:L,1,0))=TRUE,0,_xlfn.IFNA(VLOOKUP(R119,'Body ZBP'!$A$1:$B$40,2,0),0)) -> 7 | T119: =H119&"x"&A119 -> 3x113 | U119: =IF(T119<>"x",COUNTIF($T$2:$T$3000,T119),"") -> 1
A120: 10 | B120: Čáp | C120: Bohuslav | D120: m | E120: 1951 | F120: M11 | G120: Orel Hradec Králové | H120: 3 | I120: =VLOOKUP(H120,'Závody a tratě'!$B:$C,2,0) -> Krumlovský běh | J120: =VLOOKUP(H120&"x"&F120,'Závody a tratě'!$A:$F,6,0) -> 10.9 | K120: =VLOOKUP(TEXT(H120,"000")&UPPER(D120)&TEXT(E120,"0000"),'Kategorie lokální'!$A$2:$F$300,6,TRUE) -> LMD | L120: =VLOOKUP(TEXT(H120,"000")&UPPER(D120)&TEXT(E120,"0000"),'Kategorie lokální'!$A$2:$G$300,7,TRUE) -> L: Muži nad 60 | M120: =VLOOKUP(UPPER(D120)&TEXT(E120,"0000"),'Kategorie ZBP'!$A$2:$E$30,5,TRUE) -> MD | N120: =VLOOKUP(M120,'Kategorie ZBP'!$E:$F,2,0) -> Muži nad 60 | O120: =VLOOKUP(H120&"x"&A120,Stopky!I:J,2,0) -> 0.03774305556 | P120: 35 | Q120: 5 | R120: 5 | S120: =IF(ISERROR(VLOOKUP(H120&"x"&F120&"xANO",'Závody a tratě'!L:L,1,0))=TRUE,0,_xlfn.IFNA(VLOOKUP(R120,'Body ZBP'!$A$1:$B$40,2,0),0)) -> 16 | T120: =H120&"x"&A120 -> 3x10 | U120: =IF(T120<>"x",COUNTIF($T$2:$T$3000,T120),"") -> 1
A121: 138 | B121: Gross | C121: Luděk | D121: m | E121: 1953 | F121: M11 | G121: GPOA Znojmo | H121: 3 | I121: =VLOOKUP(H121,'Závody a tratě'!$B:$C,2,0) -> Krumlovský běh | J121: =VLOOKUP(H121&"x"&F121,'Závody a tratě'!$A:$F,6,0) -> 10.9 | K121: =VLOOKUP(TEXT(H121,"000")&UPPER(D121)&TEXT(E121,"0000"),'Kategorie lokální'!$A$2:$F$300,6,TRUE) -> LMD | L121: =VLOOKUP(TEXT(H121,"000")&UPPER(D121)&TEXT(E121,"0000"),'Kategorie lokální'!$A$2:$G$300,7,TRUE) -> L: Muži nad 60 | M121: =VLOOKUP(UPPER(D121)&TEXT(E121,"0000"),'Kategorie ZBP'!$A$2:$E$30,5,TRUE) -> MD | N121: =VLOOKUP(M121,'Kategorie ZBP'!$E:$F,2,0) -> Muži nad 60 | O121: =VLOOKUP(H121&"x"&A121,Stopky!I:J,2,0) -> 0.03842592593 | P121: 36 | Q121: 6 | R121: 6 | S121: =IF(ISERROR(VLOOKUP(H121&"x"&F121&"xANO",'Závody a tratě'!L:L,1,0))=TRUE,0,_xlfn.IFNA(VLOOKUP(R121,'Body ZBP'!$A$1:$B$40,2,0),0)) -> 15 | T121: =H121&"x"&A121 -> 3x138 | U121: =IF(T121<>"x",COUNTIF($T$2:$T$3000,T121),"") -> 1
A122: 251 | B122: Vacek | C122: Vladimír | D122: m | E122: 1951 | F122: M11 | G122: Poušov | H122: 3 | I122: =VLOOKUP(H122,'Závody a tratě'!$B:$C,2,0) -> Krumlovský běh | J122: =VLOOKUP(H122&"x"&F122,'Závody a tratě'!$A:$F,6,0) -> 10.9 | K122: =VLOOKUP(TEXT(H122,"000")&UPPER(D122)&TEXT(E122,"0000"),'Kategorie lokální'!$A$2:$F$300,6,TRUE) -> LMD | L122: =VLOOKUP(TEXT(H122,"000")&UPPER(D122)&TEXT(E122,"0000"),'Kategorie lokální'!$A$2:$G$300,7,TRUE) -> L: Muži nad 60 | M122: =VLOOKUP(UPPER(D122)&TEXT(E122,"0000"),'Kategorie ZBP'!$A$2:$E$30,5,TRUE) -> MD | N122: =VLOOKUP(M122,'Kategorie ZBP'!$E:$F,2,0) -> Muži nad 60 | O122: =VLOOKUP(H122&"x"&A122,Stopky!I:J,2,0) -> 0.03917824074 | P122: 37 | Q122: 7 | R122: 7 | S122: =IF(ISERROR(VLOOKUP(H122&"x"&F122&"xANO",'Závody a tratě'!L:L,1,0))=TRUE,0,_xlfn.IFNA(VLOOKUP(R122,'Body ZBP'!$A$1:$B$40,2,0),0)) -> 14 | T122: =H122&"x"&A122 -> 3x251 | U122: =IF(T122<>"x",COUNTIF($T$2:$T$3000,T122),"") -> 1
A123: 8 | B123: Cenek | C123: Ivo | D123: m | E123: 1987 | F123: M11 | H123: 3 | I123: =VLOOKUP(H123,'Závody a tratě'!$B:$C,2,0) -> Krumlovský běh | J123: =VLOOKUP(H123&"x"&F123,'Závody a tratě'!$A:$F,6,0) -> 10.9 | K123: =VLOOKUP(TEXT(H123,"000")&UPPER(D123)&TEXT(E123,"0000"),'Kategorie lokální'!$A$2:$F$300,6,TRUE) -> LMA | L123: =VLOOKUP(TEXT(H123,"000")&UPPER(D123)&TEXT(E123,"0000"),'Kategorie lokální'!$A$2:$G$300,7,TRUE) -> L: Muži do 39 | M123: =VLOOKUP(UPPER(D123)&TEXT(E123,"0000"),'Kategorie ZBP'!$A$2:$E$30,5,TRUE) -> MA | N123: =VLOOKUP(M123,'Kategorie ZBP'!$E:$F,2,0) -> Muži do 39 | O123: =VLOOKUP(H123&"x"&A123,Stopky!I:J,2,0) -> 0.04018518519 | P123: 38 | Q123: 15 | R123: 15 | S123: =IF(ISERROR(VLOOKUP(H123&"x"&F123&"xANO",'Závody a tratě'!L:L,1,0))=TRUE,0,_xlfn.IFNA(VLOOKUP(R123,'Body ZBP'!$A$1:$B$40,2,0),0)) -> 6 | T123: =H123&"x"&A123 -> 3x8 | U123: =IF(T123<>"x",COUNTIF($T$2:$T$3000,T123),"") -> 1
A124: 386 | B124: Bubeník | C124: Jiří | D124: m | E124: 1944 | F124: M11 | G124: Orel Vyškov | H124: 3 | I124: =VLOOKUP(H124,'Závody a tratě'!$B:$C,2,0) -> Krumlovský běh | J124: =VLOOKUP(H124&"x"&F124,'Závody a tratě'!$A:$F,6,0) -> 10.9 | K124: =VLOOKUP(TEXT(H124,"000")&UPPER(D124)&TEXT(E124,"0000"),'Kategorie lokální'!$A$2:$F$300,6,TRUE) -> LMD | L124: =VLOOKUP(TEXT(H124,"000")&UPPER(D124)&TEXT(E124,"0000"),'Kategorie lokální'!$A$2:$G$300,7,TRUE) -> L: Muži nad 60 | M124: =VLOOKUP(UPPER(D124)&TEXT(E124,"0000"),'Kategorie ZBP'!$A$2:$E$30,5,TRUE) -> MD | N124: =VLOOKUP(M124,'Kategorie ZBP'!$E:$F,2,0) -> Muži nad 60 | O124: =VLOOKUP(H124&"x"&A124,Stopky!I:J,2,0) -> 0.04309027778 | P124: 39 | Q124: 8 | R124: 8 | S124: =IF(ISERROR(VLOOKUP(H124&"x"&F124&"xANO",'Závody a tratě'!L:L,1,0))=TRUE,0,_xlfn.IFNA(VLOOKUP(R124,'Body ZBP'!$A$1:$B$40,2,0),0)) -> 13 | T124: =H124&"x"&A124 -> 3x386 | U124: =IF(T124<>"x",COUNTIF($T$2:$T$3000,T124),"") -> 1
A125: 5 | B125: Bulín | C125: Jindřich | D125: m | E125: 1967 | F125: M11 | G125: TJ Sokol Plaveč | H125: 3 | I125: =VLOOKUP(H125,'Závody a tratě'!$B:$C,2,0) -> Krumlovský běh | J125: =VLOOKUP(H125&"x"&F125,'Závody a tratě'!$A:$F,6,0) -> 10.9 | K125: =VLOOKUP(TEXT(H125,"000")&UPPER(D125)&TEXT(E125,"0000"),'Kategorie lokální'!$A$2:$F$300,6,TRUE) -> LMC | L125: =VLOOKUP(TEXT(H125,"000")&UPPER(D125)&TEXT(E125,"0000"),'Kategorie lokální'!$A$2:$G$300,7,TRUE) -> L: Muži 50 - 59 | M125: =VLOOKUP(UPPER(D125)&TEXT(E125,"0000"),'Kategorie ZBP'!$A$2:$E$30,5,TRUE) -> MC | N125: =VLOOKUP(M125,'Kategorie ZBP'!$E:$F,2,0) -> Muži 50 - 59 | O125: =VLOOKUP(H125&"x"&A125,Stopky!I:J,2,0) -> 0.04377314815 | P125: 40 | Q125: 8 | R125: 8 | S125: =IF(ISERROR(VLOOKUP(H125&"x"&F125&"xANO",'Závody a tratě'!L:L,1,0))=TRUE,0,_xlfn.IFNA(VLOOKUP(R125,'Body ZBP'!$A$1:$B$40,2,0),0)) -> 13 | T125: =H125&"x"&A125 -> 3x5 | U125: =IF(T125<>"x",COUNTIF($T$2:$T$3000,T125),"") -> 1
A126: 169 | B126: Spargel | C126: Ladislav | D126: m | E126: 1973 | F126: M11 | H126: 3 | I126: =VLOOKUP(H126,'Závody a tratě'!$B:$C,2,0) -> Krumlovský běh | J126: =VLOOKUP(H126&"x"&F126,'Závody a tratě'!$A:$F,6,0) -> 10.9 | K126: =VLOOKUP(TEXT(H126,"000")&UPPER(D126)&TEXT(E126,"0000"),'Kategorie lokální'!$A$2:$F$300,6,TRUE) -> LMB | L126: =VLOOKUP(TEXT(H126,"000")&UPPER(D126)&TEXT(E126,"0000"),'Kategorie lokální'!$A$2:$G$300,7,TRUE) -> L: Muži 40 - 49 | M126: =VLOOKUP(UPPER(D126)&TEXT(E126,"0000"),'Kategorie ZBP'!$A$2:$E$30,5,TRUE) -> MB | N126: =VLOOKUP(M126,'Kategorie ZBP'!$E:$F,2,0) -> Muži 40 - 49 | O126: =VLOOKUP(H126&"x"&A126,Stopky!I:J,2,0) -> 0.04398148148 | P126: 41 | Q126: 10 | R126: 10 | S126: =IF(ISERROR(VLOOKUP(H126&"x"&F126&"xANO",'Závody a tratě'!L:L,1,0))=TRUE,0,_xlfn.IFNA(VLOOKUP(R126,'Body ZBP'!$A$1:$B$40,2,0),0)) -> 11 | T126: =H126&"x"&A126 -> 3x169 | U126: =IF(T126<>"x",COUNTIF($T$2:$T$3000,T126),"") -> 1
A127: 322 | B127: Pecháček | C127: Miroslav | D127: m | E127: 1948 | F127: M11 | G127: Orel Dolní Čermná | H127: 3 | I127: =VLOOKUP(H127,'Závody a tratě'!$B:$C,2,0) -> Krumlovský běh | J127: =VLOOKUP(H127&"x"&F127,'Závody a tratě'!$A:$F,6,0) -> 10.9 | K127: =VLOOKUP(TEXT(H127,"000")&UPPER(D127)&TEXT(E127,"0000"),'Kategorie lokální'!$A$2:$F$300,6,TRUE) -> LMD | L127: =VLOOKUP(TEXT(H127,"000")&UPPER(D127)&TEXT(E127,"0000"),'Kategorie lokální'!$A$2:$G$300,7,TRUE) -> L: Muži nad 60 | M127: =VLOOKUP(UPPER(D127)&TEXT(E127,"0000"),'Kategorie ZBP'!$A$2:$E$30,5,TRUE) -> MD | N127: =VLOOKUP(M127,'Kategorie ZBP'!$E:$F,2,0) -> Muži nad 60 | O127: =VLOOKUP(H127&"x"&A127,Stopky!I:J,2,0) -> 0.04428240741 | P127: 42 | Q127: 9 | R127: 9 | S127: =IF(ISERROR(VLOOKUP(H127&"x"&F127&"xANO",'Závody a tratě'!L:L,1,0))=TRUE,0,_xlfn.IFNA(VLOOKUP(R127,'Body ZBP'!$A$1:$B$40,2,0),0)) -> 12 | T127: =H127&"x"&A127 -> 3x322 | U127: =IF(T127<>"x",COUNTIF($T$2:$T$3000,T127),"") -> 1
A128: 34 | B128: Halbrštat | C128: Petr | D128: m | E128: 1967 | F128: M11 | G128: Znojmo | H128: 3 | I128: =VLOOKUP(H128,'Závody a tratě'!$B:$C,2,0) -> Krumlovský běh | J128: =VLOOKUP(H128&"x"&F128,'Závody a tratě'!$A:$F,6,0) -> 10.9 | K128: =VLOOKUP(TEXT(H128,"000")&UPPER(D128)&TEXT(E128,"0000"),'Kategorie lokální'!$A$2:$F$300,6,TRUE) -> LMC | L128: =VLOOKUP(TEXT(H128,"000")&UPPER(D128)&TEXT(E128,"0000"),'Kategorie lokální'!$A$2:$G$300,7,TRUE) -> L: Muži 50 - 59 | M128: =VLOOKUP(UPPER(D128)&TEXT(E128,"0000"),'Kategorie ZBP'!$A$2:$E$30,5,TRUE) -> MC | N128: =VLOOKUP(M128,'Kategorie ZBP'!$E:$F,2,0) -> Muži 50 - 59 | O128: =VLOOKUP(H128&"x"&A128,Stopky!I:J,2,0) -> 0.04556712963 | P128: 43 | Q128: 9 | R128: 9 | S128: =IF(ISERROR(VLOOKUP(H128&"x"&F128&"xANO",'Závody a tratě'!L:L,1,0))=TRUE,0,_xlfn.IFNA(VLOOKUP(R128,'Body ZBP'!$A$1:$B$40,2,0),0)) -> 12 | T128: =H128&"x"&A128 -> 3x34 | U128: =IF(T128<>"x",COUNTIF($T$2:$T$3000,T128),"") -> 1
A129: 388 | B129: Tomíšek | C129: Jindřich | D129: m | E129: 1939 | F129: M11 | G129: Orel Horní Moštěnice | H129: 3 | I129: =VLOOKUP(H129,'Závody a tratě'!$B:$C,2,0) -> Krumlovský běh | J129: =VLOOKUP(H129&"x"&F129,'Závody a tratě'!$A:$F,6,0) -> 10.9 | K129: =VLOOKUP(TEXT(H129,"000")&UPPER(D129)&TEXT(E129,"0000"),'Kategorie lokální'!$A$2:$F$300,6,TRUE) -> LMD | L129: =VLOOKUP(TEXT(H129,"000")&UPPER(D129)&TEXT(E129,"0000"),'Kategorie lokální'!$A$2:$G$300,7,TRUE) -> L: Muži nad 60 | M129: =VLOOKUP(UPPER(D129)&TEXT(E129,"0000"),'Kategorie ZBP'!$A$2:$E$30,5,TRUE) -> MD | N129: =VLOOKUP(M129,'Kategorie ZBP'!$E:$F,2,0) -> Muži nad 60 | O129: =VLOOKUP(H129&"x"&A129,Stopky!I:J,2,0) -> 0.04861111111 | P129: 44 | Q129: 10 | R129: 10 | S129: =IF(ISERROR(VLOOKUP(H129&"x"&F129&"xANO",'Závody a tratě'!L:L,1,0))=TRUE,0,_xlfn.IFNA(VLOOKUP(R129,'Body ZBP'!$A$1:$B$40,2,0),0)) -> 11 | T129: =H129&"x"&A129 -> 3x388 | U129: =IF(T129<>"x",COUNTIF($T$2:$T$3000,T129),"") -> 1
A130: 25 | B130: Goldschmidt | C130: Roman | D130: m | E130: 1973 | F130: M11 | G130: SKK Mor.Krumlov | H130: 3 | I130: =VLOOKUP(H130,'Závody a tratě'!$B:$C,2,0) -> Krumlovský běh | J130: =VLOOKUP(H130&"x"&F130,'Závody a tratě'!$A:$F,6,0) -> 10.9 | K130: =VLOOKUP(TEXT(H130,"000")&UPPER(D130)&TEXT(E130,"0000"),'Kategorie lokální'!$A$2:$F$300,6,TRUE) -> LMB | L130: =VLOOKUP(TEXT(H130,"000")&UPPER(D130)&TEXT(E130,"0000"),'Kategorie lokální'!$A$2:$G$300,7,TRUE) -> L: Muži 40 - 49 | M130: =VLOOKUP(UPPER(D130)&TEXT(E130,"0000"),'Kategorie ZBP'!$A$2:$E$30,5,TRUE) -> MB | N130: =VLOOKUP(M130,'Kategorie ZBP'!$E:$F,2,0) -> Muži 40 - 49 | O130: =VLOOKUP(H130&"x"&A130,Stopky!I:J,2,0) ->  | P130: DNF | Q130: DNF | R130: DNF | S130: =IF(ISERROR(VLOOKUP(H130&"x"&F130&"xANO",'Závody a tratě'!L:L,1,0))=TRUE,0,_xlfn.IFNA(VLOOKUP(R130,'Body ZBP'!$A$1:$B$40,2,0),0)) -> 0 | T130: =H130&"x"&A130 -> 3x25 | U130: =IF(T130<>"x",COUNTIF($T$2:$T$3000,T130),"") -> 1
A131: 393 | B131: Říha | C131: Jaroslav | D131: m | E131: 1999 | F131: M4 | G131: Orel Kuřim | H131: 3 | I131: =VLOOKUP(H131,'Závody a tratě'!$B:$C,2,0) -> Krumlovský běh | J131: =VLOOKUP(H131&"x"&F131,'Závody a tratě'!$A:$F,6,0) -> 4.5 | K131: =VLOOKUP(TEXT(H131,"000")&UPPER(D131)&TEXT(E131,"0000"),'Kategorie lokální'!$A$2:$F$300,6,TRUE) -> LMA | L131: =VLOOKUP(TEXT(H131,"000")&UPPER(D131)&TEXT(E131,"0000"),'Kategorie lokální'!$A$2:$G$300,7,TRUE) -> L: Muži do 39 | M131: =VLOOKUP(UPPER(D131)&TEXT(E131,"0000"),'Kategorie ZBP'!$A$2:$E$30,5,TRUE) -> MA | N131: =VLOOKUP(M131,'Kategorie ZBP'!$E:$F,2,0) -> Muži do 39 | O131: =VLOOKUP(H131&"x"&A131,Stopky!I:J,2,0) -> 0.01085648148 | P131: 1 | Q131: 1 | R131: 1 | S131: =IF(ISERROR(VLOOKUP(H131&"x"&F131&"xANO",'Závody a tratě'!L:L,1,0))=TRUE,0,_xlfn.IFNA(VLOOKUP(R131,'Body ZBP'!$A$1:$B$40,2,0),0)) -> 0 | T131: =H131&"x"&A131 -> 3x393 | U131: =IF(T131<>"x",COUNTIF($T$2:$T$3000,T131),"") -> 1
A132: 76 | B132: Tomek | C132: Jiří | D132: m | E132: 1997 | F132: M4 | H132: 3 | I132: =VLOOKUP(H132,'Závody a tratě'!$B:$C,2,0) -> Krumlovský běh | J132: =VLOOKUP(H132&"x"&F132,'Závody a tratě'!$A:$F,6,0) -> 4.5 | K132: =VLOOKUP(TEXT(H132,"000")&UPPER(D132)&TEXT(E132,"0000"),'Kategorie lokální'!$A$2:$F$300,6,TRUE) -> LMA | L132: =VLOOKUP(TEXT(H132,"000")&UPPER(D132)&TEXT(E132,"0000"),'Kategorie lokální'!$A$2:$G$300,7,TRUE) -> L: Muži do 39 | M132: =VLOOKUP(UPPER(D132)&TEXT(E132,"0000"),'Kategorie ZBP'!$A$2:$E$30,5,TRUE) -> MA | N132: =VLOOKUP(M132,'Kategorie ZBP'!$E:$F,2,0) -> Muži do 39 | O132: =VLOOKUP(H132&"x"&A132,Stopky!I:J,2,0) -> 0.01097222222 | P132: 2 | Q132: 2 | R132: 2 | S132: =IF(ISERROR(VLOOKUP(H132&"x"&F132&"xANO",'Závody a tratě'!L:L,1,0))=TRUE,0,_xlfn.IFNA(VLOOKUP(R132,'Body ZBP'!$A$1:$B$40,2,0),0)) -> 0 | T132: =H132&"x"&A132 -> 3x76 | U132: =IF(T132<>"x",COUNTIF($T$2:$T$3000,T132),"") -> 1
A133: 237 | B133: Dvořáček | C133: Jan | D133: m | E133: 2000 | F133: M4 | G133: Orel Žatčany | H133: 3 | I133: =VLOOKUP(H133,'Závody a tratě'!$B:$C,2,0) -> Krumlovský běh | J133: =VLOOKUP(H133&"x"&F133,'Závody a tratě'!$A:$F,6,0) -> 4.5 | K133: =VLOOKUP(TEXT(H133,"000")&UPPER(D133)&TEXT(E133,"0000"),'Kategorie lokální'!$A$2:$F$300,6,TRUE) -> LMA | L133: =VLOOKUP(TEXT(H133,"000")&UPPER(D133)&TEXT(E133,"0000"),'Kategorie lokální'!$A$2:$G$300,7,TRUE) -> L: Muži do 39 | M133: =VLOOKUP(UPPER(D133)&TEXT(E133,"0000"),'Kategorie ZBP'!$A$2:$E$30,5,TRUE) -> MA | N133: =VLOOKUP(M133,'Kategorie ZBP'!$E:$F,2,0) -> Muži do 39 | O133: =VLOOKUP(H133&"x"&A133,Stopky!I:J,2,0) -> 0.01231481481 | P133: 3 | Q133: 3 | R133: 3 | S133: =IF(ISERROR(VLOOKUP(H133&"x"&F133&"xANO",'Závody a tratě'!L:L,1,0))=TRUE,0,_xlfn.IFNA(VLOOKUP(R133,'Body ZBP'!$A$1:$B$40,2,0),0)) -> 0 | T133: =H133&"x"&A133 -> 3x237 | U133: =IF(T133<>"x",COUNTIF($T$2:$T$3000,T133),"") -> 1
A134: 375 | B134: Zejda | C134: Jiří | D134: m | E134: 1985 | F134: M4 | G134: Orel Obřany | H134: 3 | I134: =VLOOKUP(H134,'Závody a tratě'!$B:$C,2,0) -> Krumlovský běh | J134: =VLOOKUP(H134&"x"&F134,'Závody a tratě'!$A:$F,6,0) -> 4.5 | K134: =VLOOKUP(TEXT(H134,"000")&UPPER(D134)&TEXT(E134,"0000"),'Kategorie lokální'!$A$2:$F$300,6,TRUE) -> LMA | L134: =VLOOKUP(TEXT(H134,"000")&UPPER(D134)&TEXT(E134,"0000"),'Kategorie lokální'!$A$2:$G$300,7,TRUE) -> L: Muži do 39 | M134: =VLOOKUP(UPPER(D134)&TEXT(E134,"0000"),'Kategorie ZBP'!$A$2:$E$30,5,TRUE) -> MA | N134: =VLOOKUP(M134,'Kategorie ZBP'!$E:$F,2,0) -> Muži do 39 | O134: =VLOOKUP(H134&"x"&A134,Stopky!I:J,2,0) -> 0.01289351852 | P134: 4 | Q134: 4 | R134: 4 | S134: =IF(ISERROR(VLOOKUP(H134&"x"&F134&"xANO",'Závody a tratě'!L:L,1,0))=TRUE,0,_xlfn.IFNA(VLOOKUP(R134,'Body ZBP'!$A$1:$B$40,2,0),0)) -> 0 | T134: =H134&"x"&A134 -> 3x375 | U134: =IF(T134<>"x",COUNTIF($T$2:$T$3000,T134),"") -> 1
A135: 301 | B135: Navrátil | C135: Milan | D135: m | E135: 1971 | F135: M4 | G135: Orel Vyškov | H135: 3 | I135: =VLOOKUP(H135,'Závody a tratě'!$B:$C,2,0) -> Krumlovský běh | J135: =VLOOKUP(H135&"x"&F135,'Závody a tratě'!$A:$F,6,0) -> 4.5 | K135: =VLOOKUP(TEXT(H135,"000")&UPPER(D135)&TEXT(E135,"0000"),'Kategorie lokální'!$A$2:$F$300,6,TRUE) -> LMB | L135: =VLOOKUP(TEXT(H135,"000")&UPPER(D135)&TEXT(E135,"0000"),'Kategorie lokální'!$A$2:$G$300,7,TRUE) -> L: Muži 40 - 49 | M135: =VLOOKUP(UPPER(D135)&TEXT(E135,"0000"),'Kategorie ZBP'!$A$2:$E$30,5,TRUE) -> MB | N135: =VLOOKUP(M135,'Kategorie ZBP'!$E:$F,2,0) -> Muži 40 - 49 | O135: =VLOOKUP(H135&"x"&A135,Stopky!I:J,2,0) -> 0.01290509259 | P135: 5 | Q135: 1 | R135: 1 | S135: =IF(ISERROR(VLOOKUP(H135&"x"&F135&"xANO",'Závody a tratě'!L:L,1,0))=TRUE,0,_xlfn.IFNA(VLOOKUP(R135,'Body ZBP'!$A$1:$B$40,2,0),0)) -> 0 | T135: =H135&"x"&A135 -> 3x301 | U135: =IF(T135<>"x",COUNTIF($T$2:$T$3000,T135),"") -> 1
A136: 29 | B136: Halas | C136: Pavel | D136: m | E136: 1999 | F136: M4 | G136: Orel Šitbořice | H136: 3 | I136: =VLOOKUP(H136,'Závody a tratě'!$B:$C,2,0) -> Krumlovský běh | J136: =VLOOKUP(H136&"x"&F136,'Závody a tratě'!$A:$F,6,0) -> 4.5 | K136: =VLOOKUP(TEXT(H136,"000")&UPPER(D136)&TEXT(E136,"0000"),'Kategorie lokální'!$A$2:$F$300,6,TRUE) -> LMA | L136: =VLOOKUP(TEXT(H136,"000")&UPPER(D136)&TEXT(E136,"0000"),'Kategorie lokální'!$A$2:$G$300,7,TRUE) -> L: Muži do 39 | M136: =VLOOKUP(UPPER(D136)&TEXT(E136,"0000"),'Kategorie ZBP'!$A$2:$E$30,5,TRUE) -> MA | N136: =VLOOKUP(M136,'Kategorie ZBP'!$E:$F,2,0) -> Muži do 39 | O136: =VLOOKUP(H136&"x"&A136,Stopky!I:J,2,0) -> 0.01302083333 | P136: 6 | Q136: 5 | R136: 5 | S136: =IF(ISERROR(VLOOKUP(H136&"x"&F136&"xANO",'Závody a tratě'!L:L,1,0))=TRUE,0,_xlfn.IFNA(VLOOKUP(R136,'Body ZBP'!$A$1:$B$40,2,0),0)) -> 0 | T136: =H136&"x"&A136 -> 3x29 | U136: =IF(T136<>"x",COUNTIF($T$2:$T$3000,T136),"") -> 1
A137: 78 | B137: Kamenický | C137: Petr | D137: m | E137: 1969 | F137: M4 | H137: 3 | I137: =VLOOKUP(H137,'Závody a tratě'!$B:$C,2,0) -> Krumlovský běh | J137: =VLOOKUP(H137&"x"&F137,'Závody a tratě'!$A:$F,6,0) -> 4.5 | K137: =VLOOKUP(TEXT(H137,"000")&UPPER(D137)&TEXT(E137,"0000"),'Kategorie lokální'!$A$2:$F$300,6,TRUE) -> LMB | L137: =VLOOKUP(TEXT(H137,"000")&UPPER(D137)&TEXT(E137,"0000"),'Kategorie lokální'!$A$2:$G$300,7,TRUE) -> L: Muži 40 - 49 | M137: =VLOOKUP(UPPER(D137)&TEXT(E137,"0000"),'Kategorie ZBP'!$A$2:$E$30,5,TRUE) -> MB | N137: =VLOOKUP(M137,'Kategorie ZBP'!$E:$F,2,0) -> Muži 40 - 49 | O137: =VLOOKUP(H137&"x"&A137,Stopky!I:J,2,0) -> 0.01327546296 | P137: 7 | Q137: 2 | R137: 2 | S137: =IF(ISERROR(VLOOKUP(H137&"x"&F137&"xANO",'Závody a tratě'!L:L,1,0))=TRUE,0,_xlfn.IFNA(VLOOKUP(R137,'Body ZBP'!$A$1:$B$40,2,0),0)) -> 0 | T137: =H137&"x"&A137 -> 3x78 | U137: =IF(T137<>"x",COUNTIF($T$2:$T$3000,T137),"") -> 1
A138: 54 | B138: Stix | C138: Antonín | D138: m | E138: 2005 | F138: M4 | G138: Ac Moravský Krumlov | H138: 3 | I138: =VLOOKUP(H138,'Závody a tratě'!$B:$C,2,0) -> Krumlovský běh | J138: =VLOOKUP(H138&"x"&F138,'Závody a tratě'!$A:$F,6,0) -> 4.5 | K138: =VLOOKUP(TEXT(H138,"000")&UPPER(D138)&TEXT(E138,"0000"),'Kategorie lokální'!$A$2:$F$300,6,TRUE) -> LMA | L138: =VLOOKUP(TEXT(H138,"000")&UPPER(D138)&TEXT(E138,"0000"),'Kategorie lokální'!$A$2:$G$300,7,TRUE) -> L: Muži do 39 | M138: =VLOOKUP(UPPER(D138)&TEXT(E138,"0000"),'Kategorie ZBP'!$A$2:$E$30,5,TRUE) -> MA | N138: =VLOOKUP(M138,'Kategorie ZBP'!$E:$F,2,0) -> Muži do 39 | O138: =VLOOKUP(H138&"x"&A138,Stopky!I:J,2,0) -> 0.01421296296 | P138: 8 | Q138: 6 | R138: 6 | S138: =IF(ISERROR(VLOOKUP(H138&"x"&F138&"xANO",'Závody a tratě'!L:L,1,0))=TRUE,0,_xlfn.IFNA(VLOOKUP(R138,'Body ZBP'!$A$1:$B$40,2,0),0)) -> 0 | T138: =H138&"x"&A138 -> 3x54 | U138: =IF(T138<>"x",COUNTIF($T$2:$T$3000,T138),"") -> 1
A139: 199 | B139: Kobliha | C139: Milan | D139: m | E139: 1957 | F139: M4 | G139: LRS Vyškov | H139: 3 | I139: =VLOOKUP(H139,'Závody a tratě'!$B:$C,2,0) -> Krumlovský běh | J139: =VLOOKUP(H139&"x"&F139,'Závody a tratě'!$A:$F,6,0) -> 4.5 | K139: =VLOOKUP(TEXT(H139,"000")&UPPER(D139)&TEXT(E139,"0000"),'Kategorie lokální'!$A$2:$F$300,6,TRUE) -> LMD | L139: =VLOOKUP(TEXT(H139,"000")&UPPER(D139)&TEXT(E139,"0000"),'Kategorie lokální'!$A$2:$G$300,7,TRUE) -> L: Muži nad 60 | M139: =VLOOKUP(UPPER(D139)&TEXT(E139,"0000"),'Kategorie ZBP'!$A$2:$E$30,5,TRUE) -> MD | N139: =VLOOKUP(M139,'Kategorie ZBP'!$E:$F,2,0) -> Muži nad 60 | O139: =VLOOKUP(H139&"x"&A139,Stopky!I:J,2,0) -> 0.01422453704 | P139: 9 | Q139: 1 | R139: 1 | S139: =IF(ISERROR(VLOOKUP(H139&"x"&F139&"xANO",'Závody a tratě'!L:L,1,0))=TRUE,0,_xlfn.IFNA(VLOOKUP(R139,'Body ZBP'!$A$1:$B$40,2,0),0)) -> 0 | T139: =H139&"x"&A139 -> 3x199 | U139: =IF(T139<>"x",COUNTIF($T$2:$T$3000,T139),"") -> 1
A140: 148 | B140: Provazník | C140: Rafael | D140: m | E140: 2010 | F140: M4 | G140: Orel Vyškov | H140: 3 | I140: =VLOOKUP(H140,'Závody a tratě'!$B:$C,2,0) -> Krumlovský běh | J140: =VLOOKUP(H140&"x"&F140,'Závody a tratě'!$A:$F,6,0) -> 4.5 | K140: =VLOOKUP(TEXT(H140,"000")&UPPER(D140)&TEXT(E140,"0000"),'Kategorie lokální'!$A$2:$F$300,6,TRUE) -> LMA | L140: =VLOOKUP(TEXT(H140,"000")&UPPER(D140)&TEXT(E140,"0000"),'Kategorie lokální'!$A$2:$G$300,7,TRUE) -> L: Muži do 39 | M140: =VLOOKUP(UPPER(D140)&TEXT(E140,"0000"),'Kategorie ZBP'!$A$2:$E$30,5,TRUE) -> MA | N140: =VLOOKUP(M140,'Kategorie ZBP'!$E:$F,2,0) -> Muži do 39 | O140: =VLOOKUP(H140&"x"&A140,Stopky!I:J,2,0) -> 0.01445601852 | P140: 10 | Q140: 7 | R140: 7 | S140: =IF(ISERROR(VLOOKUP(H140&"x"&F140&"xANO",'Závody a tratě'!L:L,1,0))=TRUE,0,_xlfn.IFNA(VLOOKUP(R140,'Body ZBP'!$A$1:$B$40,2,0),0)) -> 0 | T140: =H140&"x"&A140 -> 3x148 | U140: =IF(T140<>"x",COUNTIF($T$2:$T$3000,T140),"") -> 1
A141: 366 | B141: Křístel | C141: Martin | D141: m | E141: 1990 | F141: M4 | G141: Brno | H141: 3 | I141: =VLOOKUP(H141,'Závody a tratě'!$B:$C,2,0) -> Krumlovský běh | J141: =VLOOKUP(H141&"x"&F141,'Závody a tratě'!$A:$F,6,0) -> 4.5 | K141: =VLOOKUP(TEXT(H141,"000")&UPPER(D141)&TEXT(E141,"0000"),'Kategorie lokální'!$A$2:$F$300,6,TRUE) -> LMA | L141: =VLOOKUP(TEXT(H141,"000")&UPPER(D141)&TEXT(E141,"0000"),'Kategorie lokální'!$A$2:$G$300,7,TRUE) -> L: Muži do 39 | M141: =VLOOKUP(UPPER(D141)&TEXT(E141,"0000"),'Kategorie ZBP'!$A$2:$E$30,5,TRUE) -> MA | N141: =VLOOKUP(M141,'Kategorie ZBP'!$E:$F,2,0) -> Muži do 39 | O141: =VLOOKUP(H141&"x"&A141,Stopky!I:J,2,0) -> 0.01466435185 | P141: 11 | Q141: 8 | R141: 8 | S141: =IF(ISERROR(VLOOKUP(H141&"x"&F141&"xANO",'Závody a tratě'!L:L,1,0))=TRUE,0,_xlfn.IFNA(VLOOKUP(R141,'Body ZBP'!$A$1:$B$40,2,0),0)) -> 0 | T141: =H141&"x"&A141 -> 3x366 | U141: =IF(T141<>"x",COUNTIF($T$2:$T$3000,T141),"") -> 1
A142: 14 | B142: Dřevojan | C142: Kamil | D142: m | E142: 1977 | F142: M4 | H142: 3 | I142: =VLOOKUP(H142,'Závody a tratě'!$B:$C,2,0) -> Krumlovský běh | J142: =VLOOKUP(H142&"x"&F142,'Závody a tratě'!$A:$F,6,0) -> 4.5 | K142: =VLOOKUP(TEXT(H142,"000")&UPPER(D142)&TEXT(E142,"0000"),'Kategorie lokální'!$A$2:$F$300,6,TRUE) -> LMB | L142: =VLOOKUP(TEXT(H142,"000")&UPPER(D142)&TEXT(E142,"0000"),'Kategorie lokální'!$A$2:$G$300,7,TRUE) -> L: Muži 40 - 49 | M142: =VLOOKUP(UPPER(D142)&TEXT(E142,"0000"),'Kategorie ZBP'!$A$2:$E$30,5,TRUE) -> MB | N142: =VLOOKUP(M142,'Kategorie ZBP'!$E:$F,2,0) -> Muži 40 - 49 | O142: =VLOOKUP(H142&"x"&A142,Stopky!I:J,2,0) -> 0.01484953704 | P142: 12 | Q142: 3 | R142: 3 | S142: =IF(ISERROR(VLOOKUP(H142&"x"&F142&"xANO",'Závody a tratě'!L:L,1,0))=TRUE,0,_xlfn.IFNA(VLOOKUP(R142,'Body ZBP'!$A$1:$B$40,2,0),0)) -> 0 | T142: =H142&"x"&A142 -> 3x14 | U142: =IF(T142<>"x",COUNTIF($T$2:$T$3000,T142),"") -> 1
A143: 16 | B143: Stix | C143: Josef | D143: m | E143: 2008 | F143: M4 | G143: Ac Moravský Krumlov | H143: 3 | I143: =VLOOKUP(H143,'Závody a tratě'!$B:$C,2,0) -> Krumlovský běh | J143: =VLOOKUP(H143&"x"&F143,'Závody a tratě'!$A:$F,6,0) -> 4.5 | K143: =VLOOKUP(TEXT(H143,"000")&UPPER(D143)&TEXT(E143,"0000"),'Kategorie lokální'!$A$2:$F$300,6,TRUE) -> LMA | L143: =VLOOKUP(TEXT(H143,"000")&UPPER(D143)&TEXT(E143,"0000"),'Kategorie lokální'!$A$2:$G$300,7,TRUE) -> L: Muži do 39 | M143: =VLOOKUP(UPPER(D143)&TEXT(E143,"0000"),'Kategorie ZBP'!$A$2:$E$30,5,TRUE) -> MA | N143: =VLOOKUP(M143,'Kategorie ZBP'!$E:$F,2,0) -> Muži do 39 | O143: =VLOOKUP(H143&"x"&A143,Stopky!I:J,2,0) -> 0.01584490741 | P143: 13 | Q143: 9 | R143: 9 | S143: =IF(ISERROR(VLOOKUP(H143&"x"&F143&"xANO",'Závody a tratě'!L:L,1,0))=TRUE,0,_xlfn.IFNA(VLOOKUP(R143,'Body ZBP'!$A$1:$B$40,2,0),0)) -> 0 | T143: =H143&"x"&A143 -> 3x16 | U143: =IF(T143<>"x",COUNTIF($T$2:$T$3000,T143),"") -> 1
A144: 70 | B144: Jedlička | C144: Jan | D144: m | E144: 1973 | F144: M4 | G144: - | H144: 3 | I144: =VLOOKUP(H144,'Závody a tratě'!$B:$C,2,0) -> Krumlovský běh | J144: =VLOOKUP(H144&"x"&F144,'Závody a tratě'!$A:$F,6,0) -> 4.5 | K144: =VLOOKUP(TEXT(H144,"000")&UPPER(D144)&TEXT(E144,"0000"),'Kategorie lokální'!$A$2:$F$300,6,TRUE) -> LMB | L144: =VLOOKUP(TEXT(H144,"000")&UPPER(D144)&TEXT(E144,"0000"),'Kategorie lokální'!$A$2:$G$300,7,TRUE) -> L: Muži 40 - 49 | M144: =VLOOKUP(UPPER(D144)&TEXT(E144,"0000"),'Kategorie ZBP'!$A$2:$E$30,5,TRUE) -> MB | N144: =VLOOKUP(M144,'Kategorie ZBP'!$E:$F,2,0) -> Muži 40 - 49 | O144: =VLOOKUP(H144&"x"&A144,Stopky!I:J,2,0) -> 0.01709490741 | P144: 14 | Q144: 4 | R144: 4 | S144: =IF(ISERROR(VLOOKUP(H144&"x"&F144&"xANO",'Závody a tratě'!L:L,1,0))=TRUE,0,_xlfn.IFNA(VLOOKUP(R144,'Body ZBP'!$A$1:$B$40,2,0),0)) -> 0 | T144: =H144&"x"&A144 -> 3x70 | U144: =IF(T144<>"x",COUNTIF($T$2:$T$3000,T144),"") -> 1
A145: 378 | B145: Limburský | C145: Jan | D145: m | E145: 2001 | F145: M4 | G145: Orel Obřany | H145: 3 | I145: =VLOOKUP(H145,'Závody a tratě'!$B:$C,2,0) -> Krumlovský běh | J145: =VLOOKUP(H145&"x"&F145,'Závody a tratě'!$A:$F,6,0) -> 4.5 | K145: =VLOOKUP(TEXT(H145,"000")&UPPER(D145)&TEXT(E145,"0000"),'Kategorie lokální'!$A$2:$F$300,6,TRUE) -> LMA | L145: =VLOOKUP(TEXT(H145,"000")&UPPER(D145)&TEXT(E145,"0000"),'Kategorie lokální'!$A$2:$G$300,7,TRUE) -> L: Muži do 39 | M145: =VLOOKUP(UPPER(D145)&TEXT(E145,"0000"),'Kategorie ZBP'!$A$2:$E$30,5,TRUE) -> MA | N145: =VLOOKUP(M145,'Kategorie ZBP'!$E:$F,2,0) -> Muži do 39 | O145: =VLOOKUP(H145&"x"&A145,Stopky!I:J,2,0) -> 0.01961805556 | P145: 15 | Q145: 10 | R145: 10 | S145: =IF(ISERROR(VLOOKUP(H145&"x"&F145&"xANO",'Závody a tratě'!L:L,1,0))=TRUE,0,_xlfn.IFNA(VLOOKUP(R145,'Body ZBP'!$A$1:$B$40,2,0),0)) -> 0 | T145: =H145&"x"&A145 -> 3x378 | U145: =IF(T145<>"x",COUNTIF($T$2:$T$3000,T145),"") -> 1
A146: 164 | B146: Divišová-Václavková | C146: Silvie | D146: z | E146: 1975 | F146: Z11 | G146: AK Drnovice | H146: 3 | I146: =VLOOKUP(H146,'Závody a tratě'!$B:$C,2,0) -> Krumlovský běh | J146: =VLOOKUP(H146&"x"&F146,'Závody a tratě'!$A:$F,6,0) -> 10.9 | K146: =VLOOKUP(TEXT(H146,"000")&UPPER(D146)&TEXT(E146,"0000"),'Kategorie lokální'!$A$2:$F$300,6,TRUE) -> LZB | L146: =VLOOKUP(TEXT(H146,"000")&UPPER(D146)&TEXT(E146,"0000"),'Kategorie lokální'!$A$2:$G$300,7,TRUE) -> L: Ženy 35 - 44 | M146: =VLOOKUP(UPPER(D146)&TEXT(E146,"0000"),'Kategorie ZBP'!$A$2:$E$30,5,TRUE) -> ZB | N146: =VLOOKUP(M146,'Kategorie ZBP'!$E:$F,2,0) -> Ženy 35 - 44 | O146: =VLOOKUP(H146&"x"&A146,Stopky!I:J,2,0) -> 0.03283564815 | P146: 1 | Q146: 1 | R146: 1 | S146: =IF(ISERROR(VLOOKUP(H146&"x"&F146&"xANO",'Závody a tratě'!L:L,1,0))=TRUE,0,_xlfn.IFNA(VLOOKUP(R146,'Body ZBP'!$A$1:$B$40,2,0),0)) -> 0 | T146: =H146&"x"&A146 -> 3x164 | U146: =IF(T146<>"x",COUNTIF($T$2:$T$3000,T146),"") -> 1
A147: 341 | B147: Sobotková | C147: Irena | D147: z | E147: 1980 | F147: Z11 | G147: Macháček a spol | H147: 3 | I147: =VLOOKUP(H147,'Závody a tratě'!$B:$C,2,0) -> Krumlovský běh | J147: =VLOOKUP(H147&"x"&F147,'Závody a tratě'!$A:$F,6,0) -> 10.9 | K147: =VLOOKUP(TEXT(H147,"000")&UPPER(D147)&TEXT(E147,"0000"),'Kategorie lokální'!$A$2:$F$300,6,TRUE) -> LZB | L147: =VLOOKUP(TEXT(H147,"000")&UPPER(D147)&TEXT(E147,"0000"),'Kategorie lokální'!$A$2:$G$300,7,TRUE) -> L: Ženy 35 - 44 | M147: =VLOOKUP(UPPER(D147)&TEXT(E147,"0000"),'Kategorie ZBP'!$A$2:$E$30,5,TRUE) -> ZB | N147: =VLOOKUP(M147,'Kategorie ZBP'!$E:$F,2,0) -> Ženy 35 - 44 | O147: =VLOOKUP(H147&"x"&A147,Stopky!I:J,2,0) -> 0.04452546296 | P147: 2 | Q147: 2 | R147: 2 | S147: =IF(ISERROR(VLOOKUP(H147&"x"&F147&"xANO",'Závody a tratě'!L:L,1,0))=TRUE,0,_xlfn.IFNA(VLOOKUP(R147,'Body ZBP'!$A$1:$B$40,2,0),0)) -> 0 | T147: =H147&"x"&A147 -> 3x341 | U147: =IF(T147<>"x",COUNTIF($T$2:$T$3000,T147),"") -> 1
A148: 66 | B148: Jančaříková | C148: Lenka | D148: z | E148: 1970 | F148: Z4 | G148: AAC Brno - Orel Židenice | H148: 3 | I148: =VLOOKUP(H148,'Závody a tratě'!$B:$C,2,0) -> Krumlovský běh | J148: =VLOOKUP(H148&"x"&F148,'Závody a tratě'!$A:$F,6,0) -> 4.5 | K148: =VLOOKUP(TEXT(H148,"000")&UPPER(D148)&TEXT(E148,"0000"),'Kategorie lokální'!$A$2:$F$300,6,TRUE) -> LZC | L148: =VLOOKUP(TEXT(H148,"000")&UPPER(D148)&TEXT(E148,"0000"),'Kategorie lokální'!$A$2:$G$300,7,TRUE) -> L: Ženy nad 45 | M148: =VLOOKUP(UPPER(D148)&TEXT(E148,"0000"),'Kategorie ZBP'!$A$2:$E$30,5,TRUE) -> ZC | N148: =VLOOKUP(M148,'Kategorie ZBP'!$E:$F,2,0) -> Ženy nad 45 | O148: =VLOOKUP(H148&"x"&A148,Stopky!I:J,2,0) -> 0.01196759259 | P148: 1 | Q148: 1 | R148: 1 | S148: =IF(ISERROR(VLOOKUP(H148&"x"&F148&"xANO",'Závody a tratě'!L:L,1,0))=TRUE,0,_xlfn.IFNA(VLOOKUP(R148,'Body ZBP'!$A$1:$B$40,2,0),0)) -> 30 | T148: =H148&"x"&A148 -> 3x66 | U148: =IF(T148<>"x",COUNTIF($T$2:$T$3000,T148),"") -> 1
A149: 150 | B149: Přistálová | C149: Veronika | D149: z | E149: 1984 | F149: Z4 | G149: Znojmo | H149: 3 | I149: =VLOOKUP(H149,'Závody a tratě'!$B:$C,2,0) -> Krumlovský běh | J149: =VLOOKUP(H149&"x"&F149,'Závody a tratě'!$A:$F,6,0) -> 4.5 | K149: =VLOOKUP(TEXT(H149,"000")&UPPER(D149)&TEXT(E149,"0000"),'Kategorie lokální'!$A$2:$F$300,6,TRUE) -> LZA | L149: =VLOOKUP(TEXT(H149,"000")&UPPER(D149)&TEXT(E149,"0000"),'Kategorie lokální'!$A$2:$G$300,7,TRUE) -> L: Ženy do 34 | M149: =VLOOKUP(UPPER(D149)&TEXT(E149,"0000"),'Kategorie ZBP'!$A$2:$E$30,5,TRUE) -> ZA | N149: =VLOOKUP(M149,'Kategorie ZBP'!$E:$F,2,0) -> Ženy do 34 | O149: =VLOOKUP(H149&"x"&A149,Stopky!I:J,2,0) -> 0.01267361111 | P149: 2 | Q149: 1 | R149: 1 | S149: =IF(ISERROR(VLOOKUP(H149&"x"&F149&"xANO",'Závody a tratě'!L:L,1,0))=TRUE,0,_xlfn.IFNA(VLOOKUP(R149,'Body ZBP'!$A$1:$B$40,2,0),0)) -> 30 | T149: =H149&"x"&A149 -> 3x150 | U149: =IF(T149<>"x",COUNTIF($T$2:$T$3000,T149),"") -> 1
A150: 73 | B150: Švestková | C150: Soňa | D150: z | E150: 1988 | F150: Z4 | G150: Znojmo | H150: 3 | I150: =VLOOKUP(H150,'Závody a tratě'!$B:$C,2,0) -> Krumlovský běh | J150: =VLOOKUP(H150&"x"&F150,'Závody a tratě'!$A:$F,6,0) -> 4.5 | K150: =VLOOKUP(TEXT(H150,"000")&UPPER(D150)&TEXT(E150,"0000"),'Kategorie lokální'!$A$2:$F$300,6,TRUE) -> LZA | L150: =VLOOKUP(TEXT(H150,"000")&UPPER(D150)&TEXT(E150,"0000"),'Kategorie lokální'!$A$2:$G$300,7,TRUE) -> L: Ženy do 34 | M150: =VLOOKUP(UPPER(D150)&TEXT(E150,"0000"),'Kategorie ZBP'!$A$2:$E$30,5,TRUE) -> ZA | N150: =VLOOKUP(M150,'Kategorie ZBP'!$E:$F,2,0) -> Ženy do 34 | O150: =VLOOKUP(H150&"x"&A150,Stopky!I:J,2,0) -> 0.01291666667 | P150: 3 | Q150: 2 | R150: 2 | S150: =IF(ISERROR(VLOOKUP(H150&"x"&F150&"xANO",'Závody a tratě'!L:L,1,0))=TRUE,0,_xlfn.IFNA(VLOOKUP(R150,'Body ZBP'!$A$1:$B$40,2,0),0)) -> 25 | T150: =H150&"x"&A150 -> 3x73 | U150: =IF(T150<>"x",COUNTIF($T$2:$T$3000,T150),"") -> 1
A151: 329 | B151: Chloupková | C151: Ilona | D151: z | E151: 1984 | F151: Z4 | H151: 3 | I151: =VLOOKUP(H151,'Závody a tratě'!$B:$C,2,0) -> Krumlovský běh | J151: =VLOOKUP(H151&"x"&F151,'Závody a tratě'!$A:$F,6,0) -> 4.5 | K151: =VLOOKUP(TEXT(H151,"000")&UPPER(D151)&TEXT(E151,"0000"),'Kategorie lokální'!$A$2:$F$300,6,TRUE) -> LZA | L151: =VLOOKUP(TEXT(H151,"000")&UPPER(D151)&TEXT(E151,"0000"),'Kategorie lokální'!$A$2:$G$300,7,TRUE) -> L: Ženy do 34 | M151: =VLOOKUP(UPPER(D151)&TEXT(E151,"0000"),'Kategorie ZBP'!$A$2:$E$30,5,TRUE) -> ZA | N151: =VLOOKUP(M151,'Kategorie ZBP'!$E:$F,2,0) -> Ženy do 34 | O151: =VLOOKUP(H151&"x"&A151,Stopky!I:J,2,0) -> 0.01292824074 | P151: 4 | Q151: 3 | R151: 3 | S151: =IF(ISERROR(VLOOKUP(H151&"x"&F151&"xANO",'Závody a tratě'!L:L,1,0))=TRUE,0,_xlfn.IFNA(VLOOKUP(R151,'Body ZBP'!$A$1:$B$40,2,0),0)) -> 21 | T151: =H151&"x"&A151 -> 3x329 | U151: =IF(T151<>"x",COUNTIF($T$2:$T$3000,T151),"") -> 1
A152: 141 | B152: Saulenas | C152: Alexandra | D152: z | E152: 1994 | F152: Z4 | G152: Masatchusetts | H152: 3 | I152: =VLOOKUP(H152,'Závody a tratě'!$B:$C,2,0) -> Krumlovský běh | J152: =VLOOKUP(H152&"x"&F152,'Závody a tratě'!$A:$F,6,0) -> 4.5 | K152: =VLOOKUP(TEXT(H152,"000")&UPPER(D152)&TEXT(E152,"0000"),'Kategorie lokální'!$A$2:$F$300,6,TRUE) -> LZA | L152: =VLOOKUP(TEXT(H152,"000")&UPPER(D152)&TEXT(E152,"0000"),'Kategorie lokální'!$A$2:$G$300,7,TRUE) -> L: Ženy do 34 | M152: =VLOOKUP(UPPER(D152)&TEXT(E152,"0000"),'Kategorie ZBP'!$A$2:$E$30,5,TRUE) -> ZA | N152: =VLOOKUP(M152,'Kategorie ZBP'!$E:$F,2,0) -> Ženy do 34 | O152: =VLOOKUP(H152&"x"&A152,Stopky!I:J,2,0) -> 0.01320601852 | P152: 5 | Q152: 4 | R152: 4 | S152: =IF(ISERROR(VLOOKUP(H152&"x"&F152&"xANO",'Závody a tratě'!L:L,1,0))=TRUE,0,_xlfn.IFNA(VLOOKUP(R152,'Body ZBP'!$A$1:$B$40,2,0),0)) -> 18 | T152: =H152&"x"&A152 -> 3x141 | U152: =IF(T152<>"x",COUNTIF($T$2:$T$3000,T152),"") -> 1
A153: 50 | B153: Horáková | C153: Šárka | D153: z | E153: 1977 | F153: Z4 | G153: Orel Silůvky | H153: 3 | I153: =VLOOKUP(H153,'Závody a tratě'!$B:$C,2,0) -> Krumlovský běh | J153: =VLOOKUP(H153&"x"&F153,'Závody a tratě'!$A:$F,6,0) -> 4.5 | K153: =VLOOKUP(TEXT(H153,"000")&UPPER(D153)&TEXT(E153,"0000"),'Kategorie lokální'!$A$2:$F$300,6,TRUE) -> LZB | L153: =VLOOKUP(TEXT(H153,"000")&UPPER(D153)&TEXT(E153,"0000"),'Kategorie lokální'!$A$2:$G$300,7,TRUE) -> L: Ženy 35 - 44 | M153: =VLOOKUP(UPPER(D153)&TEXT(E153,"0000"),'Kategorie ZBP'!$A$2:$E$30,5,TRUE) -> ZB | N153: =VLOOKUP(M153,'Kategorie ZBP'!$E:$F,2,0) -> Ženy 35 - 44 | O153: =VLOOKUP(H153&"x"&A153,Stopky!I:J,2,0) -> 0.01320601852 | P153: 5 | Q153: 1 | R153: 1 | S153: =IF(ISERROR(VLOOKUP(H153&"x"&F153&"xANO",'Závody a tratě'!L:L,1,0))=TRUE,0,_xlfn.IFNA(VLOOKUP(R153,'Body ZBP'!$A$1:$B$40,2,0),0)) -> 30 | T153: =H153&"x"&A153 -> 3x50 | U153: =IF(T153<>"x",COUNTIF($T$2:$T$3000,T153),"") -> 1
A154: 172 | B154: Strnadová | C154: Klára | D154: z | E154: 2001 | F154: Z4 | G154: AK Drnovice | H154: 3 | I154: =VLOOKUP(H154,'Závody a tratě'!$B:$C,2,0) -> Krumlovský běh | J154: =VLOOKUP(H154&"x"&F154,'Závody a tratě'!$A:$F,6,0) -> 4.5 | K154: =VLOOKUP(TEXT(H154,"000")&UPPER(D154)&TEXT(E154,"0000"),'Kategorie lokální'!$A$2:$F$300,6,TRUE) -> LZA | L154: =VLOOKUP(TEXT(H154,"000")&UPPER(D154)&TEXT(E154,"0000"),'Kategorie lokální'!$A$2:$G$300,7,TRUE) -> L: Ženy do 34 | M154: =VLOOKUP(UPPER(D154)&TEXT(E154,"0000"),'Kategorie ZBP'!$A$2:$E$30,5,TRUE) -> ZA | N154: =VLOOKUP(M154,'Kategorie ZBP'!$E:$F,2,0) -> Ženy do 34 | O154: =VLOOKUP(H154&"x"&A154,Stopky!I:J,2,0) -> 0.0137962963 | P154: 7 | Q154: 5 | R154: 5 | S154: =IF(ISERROR(VLOOKUP(H154&"x"&F154&"xANO",'Závody a tratě'!L:L,1,0))=TRUE,0,_xlfn.IFNA(VLOOKUP(R154,'Body ZBP'!$A$1:$B$40,2,0),0)) -> 16 | T154: =H154&"x"&A154 -> 3x172 | U154: =IF(T154<>"x",COUNTIF($T$2:$T$3000,T154),"") -> 1
A155: 60 | B155: Hynštová | C155: Marie | D155: z | E155: 1957 | F155: Z4 | G155: AK Drnovice | H155: 3 | I155: =VLOOKUP(H155,'Závody a tratě'!$B:$C,2,0) -> Krumlovský běh | J155: =VLOOKUP(H155&"x"&F155,'Závody a tratě'!$A:$F,6,0) -> 4.5 | K155: =VLOOKUP(TEXT(H155,"000")&UPPER(D155)&TEXT(E155,"0000"),'Kategorie lokální'!$A$2:$F$300,6,TRUE) -> LZC | L155: =VLOOKUP(TEXT(H155,"000")&UPPER(D155)&TEXT(E155,"0000"),'Kategorie lokální'!$A$2:$G$300,7,TRUE) -> L: Ženy nad 45 | M155: =VLOOKUP(UPPER(D155)&TEXT(E155,"0000"),'Kategorie ZBP'!$A$2:$E$30,5,TRUE) -> ZC | N155: =VLOOKUP(M155,'Kategorie ZBP'!$E:$F,2,0) -> Ženy nad 45 | O155: =VLOOKUP(H155&"x"&A155,Stopky!I:J,2,0) -> 0.01388888889 | P155: 9 | Q155: 2 | R155: 2 | S155: =IF(ISERROR(VLOOKUP(H155&"x"&F155&"xANO",'Závody a tratě'!L:L,1,0))=TRUE,0,_xlfn.IFNA(VLOOKUP(R155,'Body ZBP'!$A$1:$B$40,2,0),0)) -> 25 | T155: =H155&"x"&A155 -> 3x60 | U155: =IF(T155<>"x",COUNTIF($T$2:$T$3000,T155),"") -> 1
A156: 163 | B156: Slabáková | C156: Lenka | D156: z | E156: 1966 | F156: Z4 | G156: Orel - Židenice | H156: 3 | I156: =VLOOKUP(H156,'Závody a tratě'!$B:$C,2,0) -> Krumlovský běh | J156: =VLOOKUP(H156&"x"&F156,'Závody a tratě'!$A:$F,6,0) -> 4.5 | K156: =VLOOKUP(TEXT(H156,"000")&UPPER(D156)&TEXT(E156,"0000"),'Kategorie lokální'!$A$2:$F$300,6,TRUE) -> LZC | L156: =VLOOKUP(TEXT(H156,"000")&UPPER(D156)&TEXT(E156,"0000"),'Kategorie lokální'!$A$2:$G$300,7,TRUE) -> L: Ženy nad 45 | M156: =VLOOKUP(UPPER(D156)&TEXT(E156,"0000"),'Kategorie ZBP'!$A$2:$E$30,5,TRUE) -> ZC | N156: =VLOOKUP(M156,'Kategorie ZBP'!$E:$F,2,0) -> Ženy nad 45 | O156: =VLOOKUP(H156&"x"&A156,Stopky!I:J,2,0) -> 0.01408564815 | P156: 11 | Q156: 3 | R156: 3 | S156: =IF(ISERROR(VLOOKUP(H156&"x"&F156&"xANO",'Závody a tratě'!L:L,1,0))=TRUE,0,_xlfn.IFNA(VLOOKUP(R156,'Body ZBP'!$A$1:$B$40,2,0),0)) -> 21 | T156: =H156&"x"&A156 -> 3x163 | U156: =IF(T156<>"x",COUNTIF($T$2:$T$3000,T156),"") -> 1
A157: 400 | B157: Dvořáková | C157: Eva | D157: z | E157: 1955 | F157: Z4 | G157: Prostějov | H157: 3 | I157: =VLOOKUP(H157,'Závody a tratě'!$B:$C,2,0) -> Krumlovský běh | J157: =VLOOKUP(H157&"x"&F157,'Závody a tratě'!$A:$F,6,0) -> 4.5 | K157: =VLOOKUP(TEXT(H157,"000")&UPPER(D157)&TEXT(E157,"0000"),'Kategorie lokální'!$A$2:$F$300,6,TRUE) -> LZC | L157: =VLOOKUP(TEXT(H157,"000")&UPPER(D157)&TEXT(E157,"0000"),'Kategorie lokální'!$A$2:$G$300,7,TRUE) -> L: Ženy nad 45 | M157: =VLOOKUP(UPPER(D157)&TEXT(E157,"0000"),'Kategorie ZBP'!$A$2:$E$30,5,TRUE) -> ZC | N157: =VLOOKUP(M157,'Kategorie ZBP'!$E:$F,2,0) -> Ženy nad 45 | O157: =VLOOKUP(H157&"x"&A157,Stopky!I:J,2,0) -> 0.01417824074 | P157: 13 | Q157: 4 | R157: 4 | S157: =IF(ISERROR(VLOOKUP(H157&"x"&F157&"xANO",'Závody a tratě'!L:L,1,0))=TRUE,0,_xlfn.IFNA(VLOOKUP(R157,'Body ZBP'!$A$1:$B$40,2,0),0)) -> 18 | T157: =H157&"x"&A157 -> 3x400 | U157: =IF(T157<>"x",COUNTIF($T$2:$T$3000,T157),"") -> 1
A158: 364 | B158: Svobodová | C158: Martina | D158: z | E158: 1975 | F158: Z4 | G158: Orel Obřany | H158: 3 | I158: =VLOOKUP(H158,'Závody a tratě'!$B:$C,2,0) -> Krumlovský běh | J158: =VLOOKUP(H158&"x"&F158,'Závody a tratě'!$A:$F,6,0) -> 4.5 | K158: =VLOOKUP(TEXT(H158,"000")&UPPER(D158)&TEXT(E158,"0000"),'Kategorie lokální'!$A$2:$F$300,6,TRUE) -> LZB | L158: =VLOOKUP(TEXT(H158,"000")&UPPER(D158)&TEXT(E158,"0000"),'Kategorie lokální'!$A$2:$G$300,7,TRUE) -> L: Ženy 35 - 44 | M158: =VLOOKUP(UPPER(D158)&TEXT(E158,"0000"),'Kategorie ZBP'!$A$2:$E$30,5,TRUE) -> ZB | N158: =VLOOKUP(M158,'Kategorie ZBP'!$E:$F,2,0) -> Ženy 35 - 44 | O158: =VLOOKUP(H158&"x"&A158,Stopky!I:J,2,0) -> 0.01418981481 | P158: 15 | Q158: 2 | R158: 2 | S158: =IF(ISERROR(VLOOKUP(H158&"x"&F158&"xANO",'Závody a tratě'!L:L,1,0))=TRUE,0,_xlfn.IFNA(VLOOKUP(R158,'Body ZBP'!$A$1:$B$40,2,0),0)) -> 25 | T158: =H158&"x"&A158 -> 3x364 | U158: =IF(T158<>"x",COUNTIF($T$2:$T$3000,T158),"") -> 1
A159: 119 | B159: Machalová | C159: Denisa | D159: z | E159: 2000 | F159: Z4 | G159: AK Drnovice | H159: 3 | I159: =VLOOKUP(H159,'Závody a tratě'!$B:$C,2,0) -> Krumlovský běh | J159: =VLOOKUP(H159&"x"&F159,'Závody a tratě'!$A:$F,6,0) -> 4.5 | K159: =VLOOKUP(TEXT(H159,"000")&UPPER(D159)&TEXT(E159,"0000"),'Kategorie lokální'!$A$2:$F$300,6,TRUE) -> LZA | L159: =VLOOKUP(TEXT(H159,"000")&UPPER(D159)&TEXT(E159,"0000"),'Kategorie lokální'!$A$2:$G$300,7,TRUE) -> L: Ženy do 34 | M159: =VLOOKUP(UPPER(D159)&TEXT(E159,"0000"),'Kategorie ZBP'!$A$2:$E$30,5,TRUE) -> ZA | N159: =VLOOKUP(M159,'Kategorie ZBP'!$E:$F,2,0) -> Ženy do 34 | O159: =VLOOKUP(H159&"x"&A159,Stopky!I:J,2,0) -> 0.01449074074 | P159: 17 | Q159: 6 | R159: 6 | S159: =IF(ISERROR(VLOOKUP(H159&"x"&F159&"xANO",'Závody a tratě'!L:L,1,0))=TRUE,0,_xlfn.IFNA(VLOOKUP(R159,'Body ZBP'!$A$1:$B$40,2,0),0)) -> 15 | T159: =H159&"x"&A159 -> 3x119 | U159: =IF(T159<>"x",COUNTIF($T$2:$T$3000,T159),"") -> 1
A160: 122 | B160: Maráková | C160: Blanka | D160: z | E160: 2000 | F160: Z4 | G160: Orel-Židenice | H160: 3 | I160: =VLOOKUP(H160,'Závody a tratě'!$B:$C,2,0) -> Krumlovský běh | J160: =VLOOKUP(H160&"x"&F160,'Závody a tratě'!$A:$F,6,0) -> 4.5 | K160: =VLOOKUP(TEXT(H160,"000")&UPPER(D160)&TEXT(E160,"0000"),'Kategorie lokální'!$A$2:$F$300,6,TRUE) -> LZA | L160: =VLOOKUP(TEXT(H160,"000")&UPPER(D160)&TEXT(E160,"0000"),'Kategorie lokální'!$A$2:$G$300,7,TRUE) -> L: Ženy do 34 | M160: =VLOOKUP(UPPER(D160)&TEXT(E160,"0000"),'Kategorie ZBP'!$A$2:$E$30,5,TRUE) -> ZA | N160: =VLOOKUP(M160,'Kategorie ZBP'!$E:$F,2,0) -> Ženy do 34 | O160: =VLOOKUP(H160&"x"&A160,Stopky!I:J,2,0) -> 0.01466435185 | P160: 19 | Q160: 7 | R160: 7 | S160: =IF(ISERROR(VLOOKUP(H160&"x"&F160&"xANO",'Závody a tratě'!L:L,1,0))=TRUE,0,_xlfn.IFNA(VLOOKUP(R160,'Body ZBP'!$A$1:$B$40,2,0),0)) -> 14 | T160: =H160&"x"&A160 -> 3x122 | U160: =IF(T160<>"x",COUNTIF($T$2:$T$3000,T160),"") -> 1
A161: 190 | B161: Zdařilová | C161: Zuzana | D161: z | E161: 1983 | F161: Z4 | G161: Orel Židenice | H161: 3 | I161: =VLOOKUP(H161,'Závody a tratě'!$B:$C,2,0) -> Krumlovský běh | J161: =VLOOKUP(H161&"x"&F161,'Závody a tratě'!$A:$F,6,0) -> 4.5 | K161: =VLOOKUP(TEXT(H161,"000")&UPPER(D161)&TEXT(E161,"0000"),'Kategorie lokální'!$A$2:$F$300,6,TRUE) -> LZB | L161: =VLOOKUP(TEXT(H161,"000")&UPPER(D161)&TEXT(E161,"0000"),'Kategorie lokální'!$A$2:$G$300,7,TRUE) -> L: Ženy 35 - 44 | M161: =VLOOKUP(UPPER(D161)&TEXT(E161,"0000"),'Kategorie ZBP'!$A$2:$E$30,5,TRUE) -> ZB | N161: =VLOOKUP(M161,'Kategorie ZBP'!$E:$F,2,0) -> Ženy 35 - 44 | O161: =VLOOKUP(H161&"x"&A161,Stopky!I:J,2,0) -> 0.01502314815 | P161: 21 | Q161: 3 | R161: 3 | S161: =IF(ISERROR(VLOOKUP(H161&"x"&F161&"xANO",'Závody a tratě'!L:L,1,0))=TRUE,0,_xlfn.IFNA(VLOOKUP(R161,'Body ZBP'!$A$1:$B$40,2,0),0)) -> 21 | T161: =H161&"x"&A161 -> 3x190 | U161: =IF(T161<>"x",COUNTIF($T$2:$T$3000,T161),"") -> 1
A162: 382 | B162: Valášková | C162: Jana | D162: z | E162: 1965 | F162: Z4 | G162: BBK Fitness | H162: 3 | I162: =VLOOKUP(H162,'Závody a tratě'!$B:$C,2,0) -> Krumlovský běh | J162: =VLOOKUP(H162&"x"&F162,'Závody a tratě'!$A:$F,6,0) -> 4.5 | K162: =VLOOKUP(TEXT(H162,"000")&UPPER(D162)&TEXT(E162,"0000"),'Kategorie lokální'!$A$2:$F$300,6,TRUE) -> LZC | L162: =VLOOKUP(TEXT(H162,"000")&UPPER(D162)&TEXT(E162,"0000"),'Kategorie lokální'!$A$2:$G$300,7,TRUE) -> L: Ženy nad 45 | M162: =VLOOKUP(UPPER(D162)&TEXT(E162,"0000"),'Kategorie ZBP'!$A$2:$E$30,5,TRUE) -> ZC | N162: =VLOOKUP(M162,'Kategorie ZBP'!$E:$F,2,0) -> Ženy nad 45 | O162: =VLOOKUP(H162&"x"&A162,Stopky!I:J,2,0) -> 0.01503472222 | P162: 23 | Q162: 5 | R162: 5 | S162: =IF(ISERROR(VLOOKUP(H162&"x"&F162&"xANO",'Závody a tratě'!L:L,1,0))=TRUE,0,_xlfn.IFNA(VLOOKUP(R162,'Body ZBP'!$A$1:$B$40,2,0),0)) -> 16 | T162: =H162&"x"&A162 -> 3x382 | U162: =IF(T162<>"x",COUNTIF($T$2:$T$3000,T162),"") -> 1
A163: 363 | B163: Maryšlerová | C163: Monika | D163: z | E163: 1974 | F163: Z4 | G163: Orel Obřany | H163: 3 | I163: =VLOOKUP(H163,'Závody a tratě'!$B:$C,2,0) -> Krumlovský běh | J163: =VLOOKUP(H163&"x"&F163,'Závody a tratě'!$A:$F,6,0) -> 4.5 | K163: =VLOOKUP(TEXT(H163,"000")&UPPER(D163)&TEXT(E163,"0000"),'Kategorie lokální'!$A$2:$F$300,6,TRUE) -> LZB | L163: =VLOOKUP(TEXT(H163,"000")&UPPER(D163)&TEXT(E163,"0000"),'Kategorie lokální'!$A$2:$G$300,7,TRUE) -> L: Ženy 35 - 44 | M163: =VLOOKUP(UPPER(D163)&TEXT(E163,"0000"),'Kategorie ZBP'!$A$2:$E$30,5,TRUE) -> ZB | N163: =VLOOKUP(M163,'Kategorie ZBP'!$E:$F,2,0) -> Ženy 35 - 44 | O163: =VLOOKUP(H163&"x"&A163,Stopky!I:J,2,0) -> 0.01528935185 | P163: 25 | Q163: 4 | R163: 4 | S163: =IF(ISERROR(VLOOKUP(H163&"x"&F163&"xANO",'Závody a tratě'!L:L,1,0))=TRUE,0,_xlfn.IFNA(VLOOKUP(R163,'Body ZBP'!$A$1:$B$40,2,0),0)) -> 18 | T163: =H163&"x"&A163 -> 3x363 | U163: =IF(T163<>"x",COUNTIF($T$2:$T$3000,T163),"") -> 1
A164: 396 | B164: Kučerová | C164: Jana | D164: z | E164: 1971 | F164: Z4 | G164: Rohatec | H164: 3 | I164: =VLOOKUP(H164,'Závody a tratě'!$B:$C,2,0) -> Krumlovský běh | J164: =VLOOKUP(H164&"x"&F164,'Závody a tratě'!$A:$F,6,0) -> 4.5 | K164: =VLOOKUP(TEXT(H164,"000")&UPPER(D164)&TEXT(E164,"0000"),'Kategorie lokální'!$A$2:$F$300,6,TRUE) -> LZC | L164: =VLOOKUP(TEXT(H164,"000")&UPPER(D164)&TEXT(E164,"0000"),'Kategorie lokální'!$A$2:$G$300,7,TRUE) -> L: Ženy nad 45 | M164: =VLOOKUP(UPPER(D164)&TEXT(E164,"0000"),'Kategorie ZBP'!$A$2:$E$30,5,TRUE) -> ZC | N164: =VLOOKUP(M164,'Kategorie ZBP'!$E:$F,2,0) -> Ženy nad 45 | O164: =VLOOKUP(H164&"x"&A164,Stopky!I:J,2,0) -> 0.01541666667 | P164: 27 | Q164: 6 | R164: 6 | S164: =IF(ISERROR(VLOOKUP(H164&"x"&F164&"xANO",'Závody a tratě'!L:L,1,0))=TRUE,0,_xlfn.IFNA(VLOOKUP(R164,'Body ZBP'!$A$1:$B$40,2,0),0)) -> 15 | T164: =H164&"x"&A164 -> 3x396 | U164: =IF(T164<>"x",COUNTIF($T$2:$T$3000,T164),"") -> 1
A165: 162 | B165: Skřivánková | C165: Dana | D165: z | E165: 1967 | F165: Z4 | G165: Orel Vyškov | H165: 3 | I165: =VLOOKUP(H165,'Závody a tratě'!$B:$C,2,0) -> Krumlovský běh | J165: =VLOOKUP(H165&"x"&F165,'Závody a tratě'!$A:$F,6,0) -> 4.5 | K165: =VLOOKUP(TEXT(H165,"000")&UPPER(D165)&TEXT(E165,"0000"),'Kategorie lokální'!$A$2:$F$300,6,TRUE) -> LZC | L165: =VLOOKUP(TEXT(H165,"000")&UPPER(D165)&TEXT(E165,"0000"),'Kategorie lokální'!$A$2:$G$300,7,TRUE) -> L: Ženy nad 45 | M165: =VLOOKUP(UPPER(D165)&TEXT(E165,"0000"),'Kategorie ZBP'!$A$2:$E$30,5,TRUE) -> ZC | N165: =VLOOKUP(M165,'Kategorie ZBP'!$E:$F,2,0) -> Ženy nad 45 | O165: =VLOOKUP(H165&"x"&A165,Stopky!I:J,2,0) -> 0.01545138889 | P165: 29 | Q165: 7 | R165: 7 | S165: =IF(ISERROR(VLOOKUP(H165&"x"&F165&"xANO",'Závody a tratě'!L:L,1,0))=TRUE,0,_xlfn.IFNA(VLOOKUP(R165,'Body ZBP'!$A$1:$B$40,2,0),0)) -> 14 | T165: =H165&"x"&A165 -> 3x162 | U165: =IF(T165<>"x",COUNTIF($T$2:$T$3000,T165),"") -> 1
A166: 12 | B166: Čermáková | C166: Věra | D166: z | E166: 1978 | F166: Z4 | G166: Karkulka Znojmo | H166: 3 | I166: =VLOOKUP(H166,'Závody a tratě'!$B:$C,2,0) -> Krumlovský běh | J166: =VLOOKUP(H166&"x"&F166,'Závody a tratě'!$A:$F,6,0) -> 4.5 | K166: =VLOOKUP(TEXT(H166,"000")&UPPER(D166)&TEXT(E166,"0000"),'Kategorie lokální'!$A$2:$F$300,6,TRUE) -> LZB | L166: =VLOOKUP(TEXT(H166,"000")&UPPER(D166)&TEXT(E166,"0000"),'Kategorie lokální'!$A$2:$G$300,7,TRUE) -> L: Ženy 35 - 44 | M166: =VLOOKUP(UPPER(D166)&TEXT(E166,"0000"),'Kategorie ZBP'!$A$2:$E$30,5,TRUE) -> ZB | N166: =VLOOKUP(M166,'Kategorie ZBP'!$E:$F,2,0) -> Ženy 35 - 44 | O166: =VLOOKUP(H166&"x"&A166,Stopky!I:J,2,0) -> 0.01550925926 | P166: 31 | Q166: 5 | R166: 5 | S166: =IF(ISERROR(VLOOKUP(H166&"x"&F166&"xANO",'Závody a tratě'!L:L,1,0))=TRUE,0,_xlfn.IFNA(VLOOKUP(R166,'Body ZBP'!$A$1:$B$40,2,0),0)) -> 16 | T166: =H166&"x"&A166 -> 3x12 | U166: =IF(T166<>"x",COUNTIF($T$2:$T$3000,T166),"") -> 1
A167: 116 | B167: Vybíralová | C167: Pavla | D167: z | E167: 1971 | F167: Z4 | G167: AK Rosice | H167: 3 | I167: =VLOOKUP(H167,'Závody a tratě'!$B:$C,2,0) -> Krumlovský běh | J167: =VLOOKUP(H167&"x"&F167,'Závody a tratě'!$A:$F,6,0) -> 4.5 | K167: =VLOOKUP(TEXT(H167,"000")&UPPER(D167)&TEXT(E167,"0000"),'Kategorie lokální'!$A$2:$F$300,6,TRUE) -> LZC | L167: =VLOOKUP(TEXT(H167,"000")&UPPER(D167)&TEXT(E167,"0000"),'Kategorie lokální'!$A$2:$G$300,7,TRUE) -> L: Ženy nad 45 | M167: =VLOOKUP(UPPER(D167)&TEXT(E167,"0000"),'Kategorie ZBP'!$A$2:$E$30,5,TRUE) -> ZC | N167: =VLOOKUP(M167,'Kategorie ZBP'!$E:$F,2,0) -> Ženy nad 45 | O167: =VLOOKUP(H167&"x"&A167,Stopky!I:J,2,0) -> 0.01555555556 | P167: 33 | Q167: 8 | R167: 8 | S167: =IF(ISERROR(VLOOKUP(H167&"x"&F167&"xANO",'Závody a tratě'!L:L,1,0))=TRUE,0,_xlfn.IFNA(VLOOKUP(R167,'Body ZBP'!$A$1:$B$40,2,0),0)) -> 13 | T167: =H167&"x"&A167 -> 3x116 | U167: =IF(T167<>"x",COUNTIF($T$2:$T$3000,T167),"") -> 1
A168: 63 | B168: Holubová | C168: Jana | D168: z | E168: 1982 | F168: Z4 | G168: Blížkovice | H168: 3 | I168: =VLOOKUP(H168,'Závody a tratě'!$B:$C,2,0) -> Krumlovský běh | J168: =VLOOKUP(H168&"x"&F168,'Závody a tratě'!$A:$F,6,0) -> 4.5 | K168: =VLOOKUP(TEXT(H168,"000")&UPPER(D168)&TEXT(E168,"0000"),'Kategorie lokální'!$A$2:$F$300,6,TRUE) -> LZB | L168: =VLOOKUP(TEXT(H168,"000")&UPPER(D168)&TEXT(E168,"0000"),'Kategorie lokální'!$A$2:$G$300,7,TRUE) -> L: Ženy 35 - 44 | M168: =VLOOKUP(UPPER(D168)&TEXT(E168,"0000"),'Kategorie ZBP'!$A$2:$E$30,5,TRUE) -> ZB | N168: =VLOOKUP(M168,'Kategorie ZBP'!$E:$F,2,0) -> Ženy 35 - 44 | O168: =VLOOKUP(H168&"x"&A168,Stopky!I:J,2,0) -> 0.01621527778 | P168: 35 | Q168: 6 | R168: 6 | S168: =IF(ISERROR(VLOOKUP(H168&"x"&F168&"xANO",'Závody a tratě'!L:L,1,0))=TRUE,0,_xlfn.IFNA(VLOOKUP(R168,'Body ZBP'!$A$1:$B$40,2,0),0)) -> 15 | T168: =H168&"x"&A168 -> 3x63 | U168: =IF(T168<>"x",COUNTIF($T$2:$T$3000,T168),"") -> 1
A169: 373 | B169: Dvořáková | C169: Lenka | D169: z | E169: 1972 | F169: Z4 | G169: Atletic Třebíč | H169: 3 | I169: =VLOOKUP(H169,'Závody a tratě'!$B:$C,2,0) -> Krumlovský běh | J169: =VLOOKUP(H169&"x"&F169,'Závody a tratě'!$A:$F,6,0) -> 4.5 | K169: =VLOOKUP(TEXT(H169,"000")&UPPER(D169)&TEXT(E169,"0000"),'Kategorie lokální'!$A$2:$F$300,6,TRUE) -> LZC | L169: =VLOOKUP(TEXT(H169,"000")&UPPER(D169)&TEXT(E169,"0000"),'Kategorie lokální'!$A$2:$G$300,7,TRUE) -> L: Ženy nad 45 | M169: =VLOOKUP(UPPER(D169)&TEXT(E169,"0000"),'Kategorie ZBP'!$A$2:$E$30,5,TRUE) -> ZC | N169: =VLOOKUP(M169,'Kategorie ZBP'!$E:$F,2,0) -> Ženy nad 45 | O169: =VLOOKUP(H169&"x"&A169,Stopky!I:J,2,0) -> 0.01640046296 | P169: 37 | Q169: 9 | R169: 9 | S169: =IF(ISERROR(VLOOKUP(H169&"x"&F169&"xANO",'Závody a tratě'!L:L,1,0))=TRUE,0,_xlfn.IFNA(VLOOKUP(R169,'Body ZBP'!$A$1:$B$40,2,0),0)) -> 12 | T169: =H169&"x"&A169 -> 3x373 | U169: =IF(T169<>"x",COUNTIF($T$2:$T$3000,T169),"") -> 1
A170: 244 | B170: Petrášová | C170: Dagmar | D170: z | E170: 1987 | F170: Z4 | H170: 3 | I170: =VLOOKUP(H170,'Závody a tratě'!$B:$C,2,0) -> Krumlovský běh | J170: =VLOOKUP(H170&"x"&F170,'Závody a tratě'!$A:$F,6,0) -> 4.5 | K170: =VLOOKUP(TEXT(H170,"000")&UPPER(D170)&TEXT(E170,"0000"),'Kategorie lokální'!$A$2:$F$300,6,TRUE) -> LZA | L170: =VLOOKUP(TEXT(H170,"000")&UPPER(D170)&TEXT(E170,"0000"),'Kategorie lokální'!$A$2:$G$300,7,TRUE) -> L: Ženy do 34 | M170: =VLOOKUP(UPPER(D170)&TEXT(E170,"0000"),'Kategorie ZBP'!$A$2:$E$30,5,TRUE) -> ZA | N170: =VLOOKUP(M170,'Kategorie ZBP'!$E:$F,2,0) -> Ženy do 34 | O170: =VLOOKUP(H170&"x"&A170,Stopky!I:J,2,0) -> 0.01644675926 | P170: 39 | Q170: 8 | R170: 8 | S170: =IF(ISERROR(VLOOKUP(H170&"x"&F170&"xANO",'Závody a tratě'!L:L,1,0))=TRUE,0,_xlfn.IFNA(VLOOKUP(R170,'Body ZBP'!$A$1:$B$40,2,0),0)) -> 13 | T170: =H170&"x"&A170 -> 3x244 | U170: =IF(T170<>"x",COUNTIF($T$2:$T$3000,T170),"") -> 1
A171: 114 | B171: Kupčíková | C171: Dagmar | D171: z | E171: 1977 | F171: Z4 | H171: 3 | I171: =VLOOKUP(H171,'Závody a tratě'!$B:$C,2,0) -> Krumlovský běh | J171: =VLOOKUP(H171&"x"&F171,'Závody a tratě'!$A:$F,6,0) -> 4.5 | K171: =VLOOKUP(TEXT(H171,"000")&UPPER(D171)&TEXT(E171,"0000"),'Kategorie lokální'!$A$2:$F$300,6,TRUE) -> LZB | L171: =VLOOKUP(TEXT(H171,"000")&UPPER(D171)&TEXT(E171,"0000"),'Kategorie lokální'!$A$2:$G$300,7,TRUE) -> L: Ženy 35 - 44 | M171: =VLOOKUP(UPPER(D171)&TEXT(E171,"0000"),'Kategorie ZBP'!$A$2:$E$30,5,TRUE) -> ZB | N171: =VLOOKUP(M171,'Kategorie ZBP'!$E:$F,2,0) -> Ženy 35 - 44 | O171: =VLOOKUP(H171&"x"&A171,Stopky!I:J,2,0) -> 0.01679398148 | P171: 41 | Q171: 7 | R171: 7 | S171: =IF(ISERROR(VLOOKUP(H171&"x"&F171&"xANO",'Závody a tratě'!L:L,1,0))=TRUE,0,_xlfn.IFNA(VLOOKUP(R171,'Body ZBP'!$A$1:$B$40,2,0),0)) -> 14 | T171: =H171&"x"&A171 -> 3x114 | U171: =IF(T171<>"x",COUNTIF($T$2:$T$3000,T171),"") -> 1
A172: 398 | B172: Mlátilíková | C172: Tamara | D172: z | E172: 1982 | F172: Z4 | H172: 3 | I172: =VLOOKUP(H172,'Závody a tratě'!$B:$C,2,0) -> Krumlovský běh | J172: =VLOOKUP(H172&"x"&F172,'Závody a tratě'!$A:$F,6,0) -> 4.5 | K172: =VLOOKUP(TEXT(H172,"000")&UPPER(D172)&TEXT(E172,"0000"),'Kategorie lokální'!$A$2:$F$300,6,TRUE) -> LZB | L172: =VLOOKUP(TEXT(H172,"000")&UPPER(D172)&TEXT(E172,"0000"),'Kategorie lokální'!$A$2:$G$300,7,TRUE) -> L: Ženy 35 - 44 | M172: =VLOOKUP(UPPER(D172)&TEXT(E172,"0000"),'Kategorie ZBP'!$A$2:$E$30,5,TRUE) -> ZB | N172: =VLOOKUP(M172,'Kategorie ZBP'!$E:$F,2,0) -> Ženy 35 - 44 | O172: =VLOOKUP(H172&"x"&A172,Stopky!I:J,2,0) -> 0.01699074074 | P172: 43 | Q172: 8 | R172: 8 | S172: =IF(ISERROR(VLOOKUP(H172&"x"&F172&"xANO",'Závody a tratě'!L:L,1,0))=TRUE,0,_xlfn.IFNA(VLOOKUP(R172,'Body ZBP'!$A$1:$B$40,2,0),0)) -> 13 | T172: =H172&"x"&A172 -> 3x398 | U172: =IF(T172<>"x",COUNTIF($T$2:$T$3000,T172),"") -> 1
A173: 19 | B173: Dřevojanová | C173: Monika | D173: z | E173: 1984 | F173: Z4 | H173: 3 | I173: =VLOOKUP(H173,'Závody a tratě'!$B:$C,2,0) -> Krumlovský běh | J173: =VLOOKUP(H173&"x"&F173,'Závody a tratě'!$A:$F,6,0) -> 4.5 | K173: =VLOOKUP(TEXT(H173,"000")&UPPER(D173)&TEXT(E173,"0000"),'Kategorie lokální'!$A$2:$F$300,6,TRUE) -> LZA | L173: =VLOOKUP(TEXT(H173,"000")&UPPER(D173)&TEXT(E173,"0000"),'Kategorie lokální'!$A$2:$G$300,7,TRUE) -> L: Ženy do 34 | M173: =VLOOKUP(UPPER(D173)&TEXT(E173,"0000"),'Kategorie ZBP'!$A$2:$E$30,5,TRUE) -> ZA | N173: =VLOOKUP(M173,'Kategorie ZBP'!$E:$F,2,0) -> Ženy do 34 | O173: =VLOOKUP(H173&"x"&A173,Stopky!I:J,2,0) -> 0.01711805556 | P173: 45 | Q173: 9 | R173: 9 | S173: =IF(ISERROR(VLOOKUP(H173&"x"&F173&"xANO",'Závody a tratě'!L:L,1,0))=TRUE,0,_xlfn.IFNA(VLOOKUP(R173,'Body ZBP'!$A$1:$B$40,2,0),0)) -> 12 | T173: =H173&"x"&A173 -> 3x19 | U173: =IF(T173<>"x",COUNTIF($T$2:$T$3000,T173),"") -> 1
A174: 115 | B174: Bartová | C174: Miroslava | D174: z | E174: 1995 | F174: Z4 | H174: 3 | I174: =VLOOKUP(H174,'Závody a tratě'!$B:$C,2,0) -> Krumlovský běh | J174: =VLOOKUP(H174&"x"&F174,'Závody a tratě'!$A:$F,6,0) -> 4.5 | K174: =VLOOKUP(TEXT(H174,"000")&UPPER(D174)&TEXT(E174,"0000"),'Kategorie lokální'!$A$2:$F$300,6,TRUE) -> LZA | L174: =VLOOKUP(TEXT(H174,"000")&UPPER(D174)&TEXT(E174,"0000"),'Kategorie lokální'!$A$2:$G$300,7,TRUE) -> L: Ženy do 34 | M174: =VLOOKUP(UPPER(D174)&TEXT(E174,"0000"),'Kategorie ZBP'!$A$2:$E$30,5,TRUE) -> ZA | N174: =VLOOKUP(M174,'Kategorie ZBP'!$E:$F,2,0) -> Ženy do 34 | O174: =VLOOKUP(H174&"x"&A174,Stopky!I:J,2,0) -> 0.01721064815 | P174: 47 | Q174: 10 | R174: 10 | S174: =IF(ISERROR(VLOOKUP(H174&"x"&F174&"xANO",'Závody a tratě'!L:L,1,0))=TRUE,0,_xlfn.IFNA(VLOOKUP(R174,'Body ZBP'!$A$1:$B$40,2,0),0)) -> 11 | T174: =H174&"x"&A174 -> 3x115 | U174: =IF(T174<>"x",COUNTIF($T$2:$T$3000,T174),"") -> 1
A175: 186 | B175: Bartová | C175: Kristýna | D175: z | E175: 1993 | F175: Z4 | H175: 3 | I175: =VLOOKUP(H175,'Závody a tratě'!$B:$C,2,0) -> Krumlovský běh | J175: =VLOOKUP(H175&"x"&F175,'Závody a tratě'!$A:$F,6,0) -> 4.5 | K175: =VLOOKUP(TEXT(H175,"000")&UPPER(D175)&TEXT(E175,"0000"),'Kategorie lokální'!$A$2:$F$300,6,TRUE) -> LZA | L175: =VLOOKUP(TEXT(H175,"000")&UPPER(D175)&TEXT(E175,"0000"),'Kategorie lokální'!$A$2:$G$300,7,TRUE) -> L: Ženy do 34 | M175: =VLOOKUP(UPPER(D175)&TEXT(E175,"0000"),'Kategorie ZBP'!$A$2:$E$30,5,TRUE) -> ZA | N175: =VLOOKUP(M175,'Kategorie ZBP'!$E:$F,2,0) -> Ženy do 34 | O175: =VLOOKUP(H175&"x"&A175,Stopky!I:J,2,0) -> 0.01721064815 | P175: 47 | Q175: 10 | R175: 10 | S175: =IF(ISERROR(VLOOKUP(H175&"x"&F175&"xANO",'Závody a tratě'!L:L,1,0))=TRUE,0,_xlfn.IFNA(VLOOKUP(R175,'Body ZBP'!$A$1:$B$40,2,0),0)) -> 11 | T175: =H175&"x"&A175 -> 3x186 | U175: =IF(T175<>"x",COUNTIF($T$2:$T$3000,T175),"") -> 1
A176: 380 | B176: Koukalová | C176: Veronika | D176: z | E176: 1987 | F176: Z4 | H176: 3 | I176: =VLOOKUP(H176,'Závody a tratě'!$B:$C,2,0) -> Krumlovský běh | J176: =VLOOKUP(H176&"x"&F176,'Závody a tratě'!$A:$F,6,0) -> 4.5 | K176: =VLOOKUP(TEXT(H176,"000")&UPPER(D176)&TEXT(E176,"0000"),'Kategorie lokální'!$A$2:$F$300,6,TRUE) -> LZA | L176: =VLOOKUP(TEXT(H176,"000")&UPPER(D176)&TEXT(E176,"0000"),'Kategorie lokální'!$A$2:$G$300,7,TRUE) -> L: Ženy do 34 | M176: =VLOOKUP(UPPER(D176)&TEXT(E176,"0000"),'Kategorie ZBP'!$A$2:$E$30,5,TRUE) -> ZA | N176: =VLOOKUP(M176,'Kategorie ZBP'!$E:$F,2,0) -> Ženy do 34 | O176: =VLOOKUP(H176&"x"&A176,Stopky!I:J,2,0) -> 0.01728009259 | P176: 50 | Q176: 12 | R176: 12 | S176: =IF(ISERROR(VLOOKUP(H176&"x"&F176&"xANO",'Závody a tratě'!L:L,1,0))=TRUE,0,_xlfn.IFNA(VLOOKUP(R176,'Body ZBP'!$A$1:$B$40,2,0),0)) -> 9 | T176: =H176&"x"&A176 -> 3x380 | U176: =IF(T176<>"x",COUNTIF($T$2:$T$3000,T176),"") -> 1
A177: 7 | B177: Bulínová | C177: Jitka | D177: z | E177: 1993 | F177: Z4 | G177: TJ Sokol Plaveč | H177: 3 | I177: =VLOOKUP(H177,'Závody a tratě'!$B:$C,2,0) -> Krumlovský běh | J177: =VLOOKUP(H177&"x"&F177,'Závody a tratě'!$A:$F,6,0) -> 4.5 | K177: =VLOOKUP(TEXT(H177,"000")&UPPER(D177)&TEXT(E177,"0000"),'Kategorie lokální'!$A$2:$F$300,6,TRUE) -> LZA | L177: =VLOOKUP(TEXT(H177,"000")&UPPER(D177)&TEXT(E177,"0000"),'Kategorie lokální'!$A$2:$G$300,7,TRUE) -> L: Ženy do 34 | M177: =VLOOKUP(UPPER(D177)&TEXT(E177,"0000"),'Kategorie ZBP'!$A$2:$E$30,5,TRUE) -> ZA | N177: =VLOOKUP(M177,'Kategorie ZBP'!$E:$F,2,0) -> Ženy do 34 | O177: =VLOOKUP(H177&"x"&A177,Stopky!I:J,2,0) -> 0.01734953704 | P177: 53 | Q177: 14 | R177: 14 | S177: =IF(ISERROR(VLOOKUP(H177&"x"&F177&"xANO",'Závody a tratě'!L:L,1,0))=TRUE,0,_xlfn.IFNA(VLOOKUP(R177,'Body ZBP'!$A$1:$B$40,2,0),0)) -> 7 | T177: =H177&"x"&A177 -> 3x7 | U177: =IF(T177<>"x",COUNTIF($T$2:$T$3000,T177),"") -> 1
A178: 178 | B178: Monika | C178: Budinská | D178: z | E178: 1988 | F178: Z4 | H178: 3 | I178: =VLOOKUP(H178,'Závody a tratě'!$B:$C,2,0) -> Krumlovský běh | J178: =VLOOKUP(H178&"x"&F178,'Závody a tratě'!$A:$F,6,0) -> 4.5 | K178: =VLOOKUP(TEXT(H178,"000")&UPPER(D178)&TEXT(E178,"0000"),'Kategorie lokální'!$A$2:$F$300,6,TRUE) -> LZA | L178: =VLOOKUP(TEXT(H178,"000")&UPPER(D178)&TEXT(E178,"0000"),'Kategorie lokální'!$A$2:$G$300,7,TRUE) -> L: Ženy do 34 | M178: =VLOOKUP(UPPER(D178)&TEXT(E178,"0000"),'Kategorie ZBP'!$A$2:$E$30,5,TRUE) -> ZA | N178: =VLOOKUP(M178,'Kategorie ZBP'!$E:$F,2,0) -> Ženy do 34 | O178: =VLOOKUP(H178&"x"&A178,Stopky!I:J,2,0) -> 0.01945601852 | P178: 56 | Q178: 16 | R178: 16 | S178: =IF(ISERROR(VLOOKUP(H178&"x"&F178&"xANO",'Závody a tratě'!L:L,1,0))=TRUE,0,_xlfn.IFNA(VLOOKUP(R178,'Body ZBP'!$A$1:$B$40,2,0),0)) -> 5 | T178: =H178&"x"&A178 -> 3x178 | U178: =IF(T178<>"x",COUNTIF($T$2:$T$3000,T178),"") -> 1
A179: 381 | B179: Limburská | C179: Eliška | D179: z | E179: 1999 | F179: Z4 | G179: Orel Obřany | H179: 3 | I179: =VLOOKUP(H179,'Závody a tratě'!$B:$C,2,0) -> Krumlovský běh | J179: =VLOOKUP(H179&"x"&F179,'Závody a tratě'!$A:$F,6,0) -> 4.5 | K179: =VLOOKUP(TEXT(H179,"000")&UPPER(D179)&TEXT(E179,"0000"),'Kategorie lokální'!$A$2:$F$300,6,TRUE) -> LZA | L179: =VLOOKUP(TEXT(H179,"000")&UPPER(D179)&TEXT(E179,"0000"),'Kategorie lokální'!$A$2:$G$300,7,TRUE) -> L: Ženy do 34 | M179: =VLOOKUP(UPPER(D179)&TEXT(E179,"0000"),'Kategorie ZBP'!$A$2:$E$30,5,TRUE) -> ZA | N179: =VLOOKUP(M179,'Kategorie ZBP'!$E:$F,2,0) -> Ženy do 34 | O179: =VLOOKUP(H179&"x"&A179,Stopky!I:J,2,0) -> 0.01957175926 | P179: 59 | Q179: 18 | R179: 18 | S179: =IF(ISERROR(VLOOKUP(H179&"x"&F179&"xANO",'Závody a tratě'!L:L,1,0))=TRUE,0,_xlfn.IFNA(VLOOKUP(R179,'Body ZBP'!$A$1:$B$40,2,0),0)) -> 3 | T179: =H179&"x"&A179 -> 3x381 | U179: =IF(T179<>"x",COUNTIF($T$2:$T$3000,T179),"") -> 1
A180: 387 | B180: Hrůzová | C180: Milena | D180: z | E180: 1953 | F180: Z4 | G180: Orel Vyškov | H180: 3 | I180: =VLOOKUP(H180,'Závody a tratě'!$B:$C,2,0) -> Krumlovský běh | J180: =VLOOKUP(H180&"x"&F180,'Závody a tratě'!$A:$F,6,0) -> 4.5 | K180: =VLOOKUP(TEXT(H180,"000")&UPPER(D180)&TEXT(E180,"0000"),'Kategorie lokální'!$A$2:$F$300,6,TRUE) -> LZC | L180: =VLOOKUP(TEXT(H180,"000")&UPPER(D180)&TEXT(E180,"0000"),'Kategorie lokální'!$A$2:$G$300,7,TRUE) -> L: Ženy nad 45 | M180: =VLOOKUP(UPPER(D180)&TEXT(E180,"0000"),'Kategorie ZBP'!$A$2:$E$30,5,TRUE) -> ZC | N180: =VLOOKUP(M180,'Kategorie ZBP'!$E:$F,2,0) -> Ženy nad 45 | O180: =VLOOKUP(H180&"x"&A180,Stopky!I:J,2,0) -> 0.01986111111 | P180: 62 | Q180: 10 | R180: 10 | S180: =IF(ISERROR(VLOOKUP(H180&"x"&F180&"xANO",'Závody a tratě'!L:L,1,0))=TRUE,0,_xlfn.IFNA(VLOOKUP(R180,'Body ZBP'!$A$1:$B$40,2,0),0)) -> 11 | T180: =H180&"x"&A180 -> 3x387 | U180: =IF(T180<>"x",COUNTIF($T$2:$T$3000,T180),"") -> 1
A181: 389 | B181: Holíková | C181: Ida | D181: z | E181: 1964 | F181: Z4 | G181: Znojemské běhání | H181: 3 | I181: =VLOOKUP(H181,'Závody a tratě'!$B:$C,2,0) -> Krumlovský běh | J181: =VLOOKUP(H181&"x"&F181,'Závody a tratě'!$A:$F,6,0) -> 4.5 | K181: =VLOOKUP(TEXT(H181,"000")&UPPER(D181)&TEXT(E181,"0000"),'Kategorie lokální'!$A$2:$F$300,6,TRUE) -> LZC | L181: =VLOOKUP(TEXT(H181,"000")&UPPER(D181)&TEXT(E181,"0000"),'Kategorie lokální'!$A$2:$G$300,7,TRUE) -> L: Ženy nad 45 | M181: =VLOOKUP(UPPER(D181)&TEXT(E181,"0000"),'Kategorie ZBP'!$A$2:$E$30,5,TRUE) -> ZC | N181: =VLOOKUP(M181,'Kategorie ZBP'!$E:$F,2,0) -> Ženy nad 45 | O181: =VLOOKUP(H181&"x"&A181,Stopky!I:J,2,0) -> 0.0202662037 | P181: 65 | Q181: 11 | R181: 11 | S181: =IF(ISERROR(VLOOKUP(H181&"x"&F181&"xANO",'Závody a tratě'!L:L,1,0))=TRUE,0,_xlfn.IFNA(VLOOKUP(R181,'Body ZBP'!$A$1:$B$40,2,0),0)) -> 10 | T181: =H181&"x"&A181 -> 3x389 | U181: =IF(T181<>"x",COUNTIF($T$2:$T$3000,T181),"") -> 1
A182: 365 | B182: Fučíková | C182: Hana | D182: z | E182: 1967 | F182: Z4 | G182: Orel Obřany | H182: 3 | I182: =VLOOKUP(H182,'Závody a tratě'!$B:$C,2,0) -> Krumlovský běh | J182: =VLOOKUP(H182&"x"&F182,'Závody a tratě'!$A:$F,6,0) -> 4.5 | K182: =VLOOKUP(TEXT(H182,"000")&UPPER(D182)&TEXT(E182,"0000"),'Kategorie lokální'!$A$2:$F$300,6,TRUE) -> LZC | L182: =VLOOKUP(TEXT(H182,"000")&UPPER(D182)&TEXT(E182,"0000"),'Kategorie lokální'!$A$2:$G$300,7,TRUE) -> L: Ženy nad 45 | M182: =VLOOKUP(UPPER(D182)&TEXT(E182,"0000"),'Kategorie ZBP'!$A$2:$E$30,5,TRUE) -> ZC | N182: =VLOOKUP(M182,'Kategorie ZBP'!$E:$F,2,0) -> Ženy nad 45 | O182: =VLOOKUP(H182&"x"&A182,Stopky!I:J,2,0) -> 0.02103009259 | P182: 68 | Q182: 12 | R182: 12 | S182: =IF(ISERROR(VLOOKUP(H182&"x"&F182&"xANO",'Závody a tratě'!L:L,1,0))=TRUE,0,_xlfn.IFNA(VLOOKUP(R182,'Body ZBP'!$A$1:$B$40,2,0),0)) -> 9 | T182: =H182&"x"&A182 -> 3x365 | U182: =IF(T182<>"x",COUNTIF($T$2:$T$3000,T182),"") -> 1
A183: 236 | B183: Dokoupilová | C183: Emílie | D183: z | E183: 2001 | F183: Z4 | G183: Orel Žatčany | H183: 3 | I183: =VLOOKUP(H183,'Závody a tratě'!$B:$C,2,0) -> Krumlovský běh | J183: =VLOOKUP(H183&"x"&F183,'Závody a tratě'!$A:$F,6,0) -> 4.5 | K183: =VLOOKUP(TEXT(H183,"000")&UPPER(D183)&TEXT(E183,"0000"),'Kategorie lokální'!$A$2:$F$300,6,TRUE) -> LZA | L183: =VLOOKUP(TEXT(H183,"000")&UPPER(D183)&TEXT(E183,"0000"),'Kategorie lokální'!$A$2:$G$300,7,TRUE) -> L: Ženy do 34 | M183: =VLOOKUP(UPPER(D183)&TEXT(E183,"0000"),'Kategorie ZBP'!$A$2:$E$30,5,TRUE) -> ZA | N183: =VLOOKUP(M183,'Kategorie ZBP'!$E:$F,2,0) -> Ženy do 34 | O183: =VLOOKUP(H183&"x"&A183,Stopky!I:J,2,0) -> 0.02424768519 | P183: 71 | Q183: 20 | R183: 20 | S183: =IF(ISERROR(VLOOKUP(H183&"x"&F183&"xANO",'Závody a tratě'!L:L,1,0))=TRUE,0,_xlfn.IFNA(VLOOKUP(R183,'Body ZBP'!$A$1:$B$40,2,0),0)) -> 1 | T183: =H183&"x"&A183 -> 3x236 | U183: =IF(T183<>"x",COUNTIF($T$2:$T$3000,T183),"") -> 1
A184: 385 | B184: Miková | C184: Renata | D184: z | E184: 1972 | F184: Z4 | G184: Orel Obřany | H184: 3 | I184: =VLOOKUP(H184,'Závody a tratě'!$B:$C,2,0) -> Krumlovský běh | J184: =VLOOKUP(H184&"x"&F184,'Závody a tratě'!$A:$F,6,0) -> 4.5 | K184: =VLOOKUP(TEXT(H184,"000")&UPPER(D184)&TEXT(E184,"0000"),'Kategorie lokální'!$A$2:$F$300,6,TRUE) -> LZC | L184: =VLOOKUP(TEXT(H184,"000")&UPPER(D184)&TEXT(E184,"0000"),'Kategorie lokální'!$A$2:$G$300,7,TRUE) -> L: Ženy nad 45 | M184: =VLOOKUP(UPPER(D184)&TEXT(E184,"0000"),'Kategorie ZBP'!$A$2:$E$30,5,TRUE) -> ZC | N184: =VLOOKUP(M184,'Kategorie ZBP'!$E:$F,2,0) -> Ženy nad 45 | O184: =VLOOKUP(H184&"x"&A184,Stopky!I:J,2,0) -> 0.02538194444 | P184: 74 | Q184: 13 | R184: 13 | S184: =IF(ISERROR(VLOOKUP(H184&"x"&F184&"xANO",'Závody a tratě'!L:L,1,0))=TRUE,0,_xlfn.IFNA(VLOOKUP(R184,'Body ZBP'!$A$1:$B$40,2,0),0)) -> 8 | T184: =H184&"x"&A184 -> 3x385 | U184: =IF(T184<>"x",COUNTIF($T$2:$T$3000,T184),"") -> 1
A185: 500 | B185: Havlíčková | C185: Markéta | D185: z | E185: 1978 | F185: Z4 | G185: Orel Vyškov | H185: 3 | I185: =VLOOKUP(H185,'Závody a tratě'!$B:$C,2,0) -> Krumlovský běh | J185: =VLOOKUP(H185&"x"&F185,'Závody a tratě'!$A:$F,6,0) -> 4.5 | K185: =VLOOKUP(TEXT(H185,"000")&UPPER(D185)&TEXT(E185,"0000"),'Kategorie lokální'!$A$2:$F$300,6,TRUE) -> LZB | L185: =VLOOKUP(TEXT(H185,"000")&UPPER(D185)&TEXT(E185,"0000"),'Kategorie lokální'!$A$2:$G$300,7,TRUE) -> L: Ženy 35 - 44 | M185: =VLOOKUP(UPPER(D185)&TEXT(E185,"0000"),'Kategorie ZBP'!$A$2:$E$30,5,TRUE) -> ZB | N185: =VLOOKUP(M185,'Kategorie ZBP'!$E:$F,2,0) -> Ženy 35 - 44 | O185: =VLOOKUP(H185&"x"&A185,Stopky!I:J,2,0) ->  | P185: DNF | Q185: DNF | R185: DNF | S185: =IF(ISERROR(VLOOKUP(H185&"x"&F185&"xANO",'Závody a tratě'!L:L,1,0))=TRUE,0,_xlfn.IFNA(VLOOKUP(R185,'Body ZBP'!$A$1:$B$40,2,0),0)) -> 0 | T185: =H185&"x"&A185 -> 3x500 | U185: =IF(T185<>"x",COUNTIF($T$2:$T$3000,T185),"") -> 1
A186: 69 | B186: Maxera | C186: Jiří | D186: m | E186: 2008 | F186: H4 | G186: Lukov | H186: 4 | I186: =VLOOKUP(H186,'Závody a tratě'!$B:$C,2,0) -> Běh Avanti | J186: =VLOOKUP(H186&"x"&F186,'Závody a tratě'!$A:$F,6,0) -> 4.5 | K186: =VLOOKUP(TEXT(H186,"000")&UPPER(D186)&TEXT(E186,"0000"),'Kategorie lokální'!$A$2:$F$300,6,TRUE) -> LMA | L186: =VLOOKUP(TEXT(H186,"000")&UPPER(D186)&TEXT(E186,"0000"),'Kategorie lokální'!$A$2:$G$300,7,TRUE) -> L: Muži do 39 | M186: =VLOOKUP(UPPER(D186)&TEXT(E186,"0000"),'Kategorie ZBP'!$A$2:$E$30,5,TRUE) -> MA | N186: =VLOOKUP(M186,'Kategorie ZBP'!$E:$F,2,0) -> Muži do 39 | O186: =VLOOKUP(H186&"x"&A186,Stopky!I:J,2,0) -> 0.01484953704 | P186: 1 | Q186: 1 | R186: 1 | S186: =IF(ISERROR(VLOOKUP(H186&"x"&F186&"xANO",'Závody a tratě'!L:L,1,0))=TRUE,0,_xlfn.IFNA(VLOOKUP(R186,'Body ZBP'!$A$1:$B$40,2,0),0)) -> 0 | T186: =H186&"x"&A186 -> 4x69 | U186: =IF(T186<>"x",COUNTIF($T$2:$T$3000,T186),"") -> 1
A187: 38 | B187: Koc | C187: Dušan | D187: m | E187: 1990 | F187: H4 | G187: TJ Sokol Plaveč | H187: 4 | I187: =VLOOKUP(H187,'Závody a tratě'!$B:$C,2,0) -> Běh Avanti | J187: =VLOOKUP(H187&"x"&F187,'Závody a tratě'!$A:$F,6,0) -> 4.5 | K187: =VLOOKUP(TEXT(H187,"000")&UPPER(D187)&TEXT(E187,"0000"),'Kategorie lokální'!$A$2:$F$300,6,TRUE) -> LMA | L187: =VLOOKUP(TEXT(H187,"000")&UPPER(D187)&TEXT(E187,"0000"),'Kategorie lokální'!$A$2:$G$300,7,TRUE) -> L: Muži do 39 | M187: =VLOOKUP(UPPER(D187)&TEXT(E187,"0000"),'Kategorie ZBP'!$A$2:$E$30,5,TRUE) -> MA | N187: =VLOOKUP(M187,'Kategorie ZBP'!$E:$F,2,0) -> Muži do 39 | O187: =VLOOKUP(H187&"x"&A187,Stopky!I:J,2,0) -> 0.01703703704 | P187: 2 | Q187: 2 | R187: 2 | S187: =IF(ISERROR(VLOOKUP(H187&"x"&F187&"xANO",'Závody a tratě'!L:L,1,0))=TRUE,0,_xlfn.IFNA(VLOOKUP(R187,'Body ZBP'!$A$1:$B$40,2,0),0)) -> 0 | T187: =H187&"x"&A187 -> 4x38 | U187: =IF(T187<>"x",COUNTIF($T$2:$T$3000,T187),"") -> 1
A188: 61 | B188: Svoboda | C188: Jakub | D188: m | E188: 2014 | F188: H4 | G188: Rabbits Znojmo | H188: 4 | I188: =VLOOKUP(H188,'Závody a tratě'!$B:$C,2,0) -> Běh Avanti | J188: =VLOOKUP(H188&"x"&F188,'Závody a tratě'!$A:$F,6,0) -> 4.5 | K188: =VLOOKUP(TEXT(H188,"000")&UPPER(D188)&TEXT(E188,"0000"),'Kategorie lokální'!$A$2:$F$300,6,TRUE) -> LMA | L188: =VLOOKUP(TEXT(H188,"000")&UPPER(D188)&TEXT(E188,"0000"),'Kategorie lokální'!$A$2:$G$300,7,TRUE) -> L: Muži do 39 | M188: =VLOOKUP(UPPER(D188)&TEXT(E188,"0000"),'Kategorie ZBP'!$A$2:$E$30,5,TRUE) -> MA | N188: =VLOOKUP(M188,'Kategorie ZBP'!$E:$F,2,0) -> Muži do 39 | O188: =VLOOKUP(H188&"x"&A188,Stopky!I:J,2,0) -> 0.04664351852 | P188: 3 | Q188: 3 | R188: 3 | S188: =IF(ISERROR(VLOOKUP(H188&"x"&F188&"xANO",'Závody a tratě'!L:L,1,0))=TRUE,0,_xlfn.IFNA(VLOOKUP(R188,'Body ZBP'!$A$1:$B$40,2,0),0)) -> 0 | T188: =H188&"x"&A188 -> 4x61 | U188: =IF(T188<>"x",COUNTIF($T$2:$T$3000,T188),"") -> 1
A189: 60 | B189: Svoboda | C189: Jiří | D189: m | E189: 1980 | F189: H4 | G189: Rabbits Znojmo | H189: 4 | I189: =VLOOKUP(H189,'Závody a tratě'!$B:$C,2,0) -> Běh Avanti | J189: =VLOOKUP(H189&"x"&F189,'Závody a tratě'!$A:$F,6,0) -> 4.5 | K189: =VLOOKUP(TEXT(H189,"000")&UPPER(D189)&TEXT(E189,"0000"),'Kategorie lokální'!$A$2:$F$300,6,TRUE) -> LMA | L189: =VLOOKUP(TEXT(H189,"000")&UPPER(D189)&TEXT(E189,"0000"),'Kategorie lokální'!$A$2:$G$300,7,TRUE) -> L: Muži do 39 | M189: =VLOOKUP(UPPER(D189)&TEXT(E189,"0000"),'Kategorie ZBP'!$A$2:$E$30,5,TRUE) -> MA | N189: =VLOOKUP(M189,'Kategorie ZBP'!$E:$F,2,0) -> Muži do 39 | O189: =VLOOKUP(H189&"x"&A189,Stopky!I:J,2,0) -> 0.04665509259 | P189: 4 | Q189: 4 | R189: 4 | S189: =IF(ISERROR(VLOOKUP(H189&"x"&F189&"xANO",'Závody a tratě'!L:L,1,0))=TRUE,0,_xlfn.IFNA(VLOOKUP(R189,'Body ZBP'!$A$1:$B$40,2,0),0)) -> 0 | T189: =H189&"x"&A189 -> 4x60 | U189: =IF(T189<>"x",COUNTIF($T$2:$T$3000,T189),"") -> 1
A190: 11 | B190: Soural | C190: Lukáš | D190: m | E190: 1982 | F190: M9 | G190: VSK UNI Brno | H190: 4 | I190: =VLOOKUP(H190,'Závody a tratě'!$B:$C,2,0) -> Běh Avanti | J190: =VLOOKUP(H190&"x"&F190,'Závody a tratě'!$A:$F,6,0) -> 9 | K190: =VLOOKUP(TEXT(H190,"000")&UPPER(D190)&TEXT(E190,"0000"),'Kategorie lokální'!$A$2:$F$300,6,TRUE) -> LMA | L190: =VLOOKUP(TEXT(H190,"000")&UPPER(D190)&TEXT(E190,"0000"),'Kategorie lokální'!$A$2:$G$300,7,TRUE) -> L: Muži do 39 | M190: =VLOOKUP(UPPER(D190)&TEXT(E190,"0000"),'Kategorie ZBP'!$A$2:$E$30,5,TRUE) -> MA | N190: =VLOOKUP(M190,'Kategorie ZBP'!$E:$F,2,0) -> Muži do 39 | O190: =VLOOKUP(H190&"x"&A190,Stopky!I:J,2,0) -> 0.02108796296 | P190: 1 | Q190: 1 | R190: 1 | S190: =IF(ISERROR(VLOOKUP(H190&"x"&F190&"xANO",'Závody a tratě'!L:L,1,0))=TRUE,0,_xlfn.IFNA(VLOOKUP(R190,'Body ZBP'!$A$1:$B$40,2,0),0)) -> 30 | T190: =H190&"x"&A190 -> 4x11 | U190: =IF(T190<>"x",COUNTIF($T$2:$T$3000,T190),"") -> 1
A191: 5 | B191: Durďák | C191: Luděk | D191: m | E191: 1977 | F191: M9 | G191: SDH Rohatec | H191: 4 | I191: =VLOOKUP(H191,'Závody a tratě'!$B:$C,2,0) -> Běh Avanti | J191: =VLOOKUP(H191&"x"&F191,'Závody a tratě'!$A:$F,6,0) -> 9 | K191: =VLOOKUP(TEXT(H191,"000")&UPPER(D191)&TEXT(E191,"0000"),'Kategorie lokální'!$A$2:$F$300,6,TRUE) -> LMB | L191: =VLOOKUP(TEXT(H191,"000")&UPPER(D191)&TEXT(E191,"0000"),'Kategorie lokální'!$A$2:$G$300,7,TRUE) -> L: Muži 40 - 49 | M191: =VLOOKUP(UPPER(D191)&TEXT(E191,"0000"),'Kategorie ZBP'!$A$2:$E$30,5,TRUE) -> MB | N191: =VLOOKUP(M191,'Kategorie ZBP'!$E:$F,2,0) -> Muži 40 - 49 | O191: =VLOOKUP(H191&"x"&A191,Stopky!I:J,2,0) -> 0.02157407407 | P191: 2 | Q191: 1 | R191: 1 | S191: =IF(ISERROR(VLOOKUP(H191&"x"&F191&"xANO",'Závody a tratě'!L:L,1,0))=TRUE,0,_xlfn.IFNA(VLOOKUP(R191,'Body ZBP'!$A$1:$B$40,2,0),0)) -> 30 | T191: =H191&"x"&A191 -> 4x5 | U191: =IF(T191<>"x",COUNTIF($T$2:$T$3000,T191),"") -> 1
A192: 9 | B192: Čabala | C192: Vojtěch | D192: m | E192: 1993 | F192: M9 | G192: Rabbits Znojmo | H192: 4 | I192: =VLOOKUP(H192,'Závody a tratě'!$B:$C,2,0) -> Běh Avanti | J192: =VLOOKUP(H192&"x"&F192,'Závody a tratě'!$A:$F,6,0) -> 9 | K192: =VLOOKUP(TEXT(H192,"000")&UPPER(D192)&TEXT(E192,"0000"),'Kategorie lokální'!$A$2:$F$300,6,TRUE) -> LMA | L192: =VLOOKUP(TEXT(H192,"000")&UPPER(D192)&TEXT(E192,"0000"),'Kategorie lokální'!$A$2:$G$300,7,TRUE) -> L: Muži do 39 | M192: =VLOOKUP(UPPER(D192)&TEXT(E192,"0000"),'Kategorie ZBP'!$A$2:$E$30,5,TRUE) -> MA | N192: =VLOOKUP(M192,'Kategorie ZBP'!$E:$F,2,0) -> Muži do 39 | O192: =VLOOKUP(H192&"x"&A192,Stopky!I:J,2,0) -> 0.02175925926 | P192: 3 | Q192: 2 | R192: 2 | S192: =IF(ISERROR(VLOOKUP(H192&"x"&F192&"xANO",'Závody a tratě'!L:L,1,0))=TRUE,0,_xlfn.IFNA(VLOOKUP(R192,'Body ZBP'!$A$1:$B$40,2,0),0)) -> 25 | T192: =H192&"x"&A192 -> 4x9 | U192: =IF(T192<>"x",COUNTIF($T$2:$T$3000,T192),"") -> 1
A193: 31 | B193: Kocur | C193: Lukáš | D193: m | E193: 1977 | F193: M9 | G193: Orel Šitbořice | H193: 4 | I193: =VLOOKUP(H193,'Závody a tratě'!$B:$C,2,0) -> Běh Avanti | J193: =VLOOKUP(H193&"x"&F193,'Závody a tratě'!$A:$F,6,0) -> 9 | K193: =VLOOKUP(TEXT(H193,"000")&UPPER(D193)&TEXT(E193,"0000"),'Kategorie lokální'!$A$2:$F$300,6,TRUE) -> LMB | L193: =VLOOKUP(TEXT(H193,"000")&UPPER(D193)&TEXT(E193,"0000"),'Kategorie lokální'!$A$2:$G$300,7,TRUE) -> L: Muži 40 - 49 | M193: =VLOOKUP(UPPER(D193)&TEXT(E193,"0000"),'Kategorie ZBP'!$A$2:$E$30,5,TRUE) -> MB | N193: =VLOOKUP(M193,'Kategorie ZBP'!$E:$F,2,0) -> Muži 40 - 49 | O193: =VLOOKUP(H193&"x"&A193,Stopky!I:J,2,0) -> 0.02204861111 | P193: 4 | Q193: 2 | R193: 2 | S193: =IF(ISERROR(VLOOKUP(H193&"x"&F193&"xANO",'Závody a tratě'!L:L,1,0))=TRUE,0,_xlfn.IFNA(VLOOKUP(R193,'Body ZBP'!$A$1:$B$40,2,0),0)) -> 25 | T193: =H193&"x"&A193 -> 4x31 | U193: =IF(T193<>"x",COUNTIF($T$2:$T$3000,T193),"") -> 1
A194: 33 | B194: Vanko | C194: Miroslav | D194: m | E194: 1973 | F194: M9 | G194: Dom Srdca Martin | H194: 4 | I194: =VLOOKUP(H194,'Závody a tratě'!$B:$C,2,0) -> Běh Avanti | J194: =VLOOKUP(H194&"x"&F194,'Závody a tratě'!$A:$F,6,0) -> 9 | K194: =VLOOKUP(TEXT(H194,"000")&UPPER(D194)&TEXT(E194,"0000"),'Kategorie lokální'!$A$2:$F$300,6,TRUE) -> LMB | L194: =VLOOKUP(TEXT(H194,"000")&UPPER(D194)&TEXT(E194,"0000"),'Kategorie lokální'!$A$2:$G$300,7,TRUE) -> L: Muži 40 - 49 | M194: =VLOOKUP(UPPER(D194)&TEXT(E194,"0000"),'Kategorie ZBP'!$A$2:$E$30,5,TRUE) -> MB | N194: =VLOOKUP(M194,'Kategorie ZBP'!$E:$F,2,0) -> Muži 40 - 49 | O194: =VLOOKUP(H194&"x"&A194,Stopky!I:J,2,0) -> 0.02228009259 | P194: 5 | Q194: 3 | R194: 3 | S194: =IF(ISERROR(VLOOKUP(H194&"x"&F194&"xANO",'Závody a tratě'!L:L,1,0))=TRUE,0,_xlfn.IFNA(VLOOKUP(R194,'Body ZBP'!$A$1:$B$40,2,0),0)) -> 21 | T194: =H194&"x"&A194 -> 4x33 | U194: =IF(T194<>"x",COUNTIF($T$2:$T$3000,T194),"") -> 1
A195: 39 | B195: Nezveda | C195: David | D195: m | E195: 1998 | F195: M9 | G195: TJ Spartak Třebíč | H195: 4 | I195: =VLOOKUP(H195,'Závody a tratě'!$B:$C,2,0) -> Běh Avanti | J195: =VLOOKUP(H195&"x"&F195,'Závody a tratě'!$A:$F,6,0) -> 9 | K195: =VLOOKUP(TEXT(H195,"000")&UPPER(D195)&TEXT(E195,"0000"),'Kategorie lokální'!$A$2:$F$300,6,TRUE) -> LMA | L195: =VLOOKUP(TEXT(H195,"000")&UPPER(D195)&TEXT(E195,"0000"),'Kategorie lokální'!$A$2:$G$300,7,TRUE) -> L: Muži do 39 | M195: =VLOOKUP(UPPER(D195)&TEXT(E195,"0000"),'Kategorie ZBP'!$A$2:$E$30,5,TRUE) -> MA | N195: =VLOOKUP(M195,'Kategorie ZBP'!$E:$F,2,0) -> Muži do 39 | O195: =VLOOKUP(H195&"x"&A195,Stopky!I:J,2,0) -> 0.02244212963 | P195: 6 | Q195: 3 | R195: 3 | S195: =IF(ISERROR(VLOOKUP(H195&"x"&F195&"xANO",'Závody a tratě'!L:L,1,0))=TRUE,0,_xlfn.IFNA(VLOOKUP(R195,'Body ZBP'!$A$1:$B$40,2,0),0)) -> 21 | T195: =H195&"x"&A195 -> 4x39 | U195: =IF(T195<>"x",COUNTIF($T$2:$T$3000,T195),"") -> 1
A196: 67 | B196: Hrdina | C196: Tomáš | D196: m | E196: 1979 | F196: M9 | G196: AC Moravská Slavia Brno | H196: 4 | I196: =VLOOKUP(H196,'Závody a tratě'!$B:$C,2,0) -> Běh Avanti | J196: =VLOOKUP(H196&"x"&F196,'Závody a tratě'!$A:$F,6,0) -> 9 | K196: =VLOOKUP(TEXT(H196,"000")&UPPER(D196)&TEXT(E196,"0000"),'Kategorie lokální'!$A$2:$F$300,6,TRUE) -> LMA | L196: =VLOOKUP(TEXT(H196,"000")&UPPER(D196)&TEXT(E196,"0000"),'Kategorie lokální'!$A$2:$G$300,7,TRUE) -> L: Muži do 39 | M196: =VLOOKUP(UPPER(D196)&TEXT(E196,"0000"),'Kategorie ZBP'!$A$2:$E$30,5,TRUE) -> MA | N196: =VLOOKUP(M196,'Kategorie ZBP'!$E:$F,2,0) -> Muži do 39 | O196: =VLOOKUP(H196&"x"&A196,Stopky!I:J,2,0) -> 0.0225462963 | P196: 7 | Q196: 4 | R196: 4 | S196: =IF(ISERROR(VLOOKUP(H196&"x"&F196&"xANO",'Závody a tratě'!L:L,1,0))=TRUE,0,_xlfn.IFNA(VLOOKUP(R196,'Body ZBP'!$A$1:$B$40,2,0),0)) -> 18 | T196: =H196&"x"&A196 -> 4x67 | U196: =IF(T196<>"x",COUNTIF($T$2:$T$3000,T196),"") -> 1
A197: 28 | B197: Vintrlík | C197: Martin | D197: m | E197: 1977 | F197: M9 | G197: Křepice | H197: 4 | I197: =VLOOKUP(H197,'Závody a tratě'!$B:$C,2,0) -> Běh Avanti | J197: =VLOOKUP(H197&"x"&F197,'Závody a tratě'!$A:$F,6,0) -> 9 | K197: =VLOOKUP(TEXT(H197,"000")&UPPER(D197)&TEXT(E197,"0000"),'Kategorie lokální'!$A$2:$F$300,6,TRUE) -> LMB | L197: =VLOOKUP(TEXT(H197,"000")&UPPER(D197)&TEXT(E197,"0000"),'Kategorie lokální'!$A$2:$G$300,7,TRUE) -> L: Muži 40 - 49 | M197: =VLOOKUP(UPPER(D197)&TEXT(E197,"0000"),'Kategorie ZBP'!$A$2:$E$30,5,TRUE) -> MB | N197: =VLOOKUP(M197,'Kategorie ZBP'!$E:$F,2,0) -> Muži 40 - 49 | O197: =VLOOKUP(H197&"x"&A197,Stopky!I:J,2,0) -> 0.02260416667 | P197: 8 | Q197: 4 | R197: 4 | S197: =IF(ISERROR(VLOOKUP(H197&"x"&F197&"xANO",'Závody a tratě'!L:L,1,0))=TRUE,0,_xlfn.IFNA(VLOOKUP(R197,'Body ZBP'!$A$1:$B$40,2,0),0)) -> 18 | T197: =H197&"x"&A197 -> 4x28 | U197: =IF(T197<>"x",COUNTIF($T$2:$T$3000,T197),"") -> 1
A198: 35 | B198: Kratochvíl | C198: Pavel | D198: m | E198: 1960 | F198: M9 | G198: Atletic Třebíč | H198: 4 | I198: =VLOOKUP(H198,'Závody a tratě'!$B:$C,2,0) -> Běh Avanti | J198: =VLOOKUP(H198&"x"&F198,'Závody a tratě'!$A:$F,6,0) -> 9 | K198: =VLOOKUP(TEXT(H198,"000")&UPPER(D198)&TEXT(E198,"0000"),'Kategorie lokální'!$A$2:$F$300,6,TRUE) -> LMC | L198: =VLOOKUP(TEXT(H198,"000")&UPPER(D198)&TEXT(E198,"0000"),'Kategorie lokální'!$A$2:$G$300,7,TRUE) -> L: Muži 50 - 59 | M198: =VLOOKUP(UPPER(D198)&TEXT(E198,"0000"),'Kategorie ZBP'!$A$2:$E$30,5,TRUE) -> MC | N198: =VLOOKUP(M198,'Kategorie ZBP'!$E:$F,2,0) -> Muži 50 - 59 | O198: =VLOOKUP(H198&"x"&A198,Stopky!I:J,2,0) -> 0.02322916667 | P198: 9 | Q198: 1 | R198: 1 | S198: =IF(ISERROR(VLOOKUP(H198&"x"&F198&"xANO",'Závody a tratě'!L:L,1,0))=TRUE,0,_xlfn.IFNA(VLOOKUP(R198,'Body ZBP'!$A$1:$B$40,2,0),0)) -> 30 | T198: =H198&"x"&A198 -> 4x35 | U198: =IF(T198<>"x",COUNTIF($T$2:$T$3000,T198),"") -> 1
A199: 25 | B199: Pokorný | C199: Ondřej | D199: m | E199: 2001 | F199: M9 | H199: 4 | I199: =VLOOKUP(H199,'Závody a tratě'!$B:$C,2,0) -> Běh Avanti | J199: =VLOOKUP(H199&"x"&F199,'Závody a tratě'!$A:$F,6,0) -> 9 | K199: =VLOOKUP(TEXT(H199,"000")&UPPER(D199)&TEXT(E199,"0000"),'Kategorie lokální'!$A$2:$F$300,6,TRUE) -> LMA | L199: =VLOOKUP(TEXT(H199,"000")&UPPER(D199)&TEXT(E199,"0000"),'Kategorie lokální'!$A$2:$G$300,7,TRUE) -> L: Muži do 39 | M199: =VLOOKUP(UPPER(D199)&TEXT(E199,"0000"),'Kategorie ZBP'!$A$2:$E$30,5,TRUE) -> MA | N199: =VLOOKUP(M199,'Kategorie ZBP'!$E:$F,2,0) -> Muži do 39 | O199: =VLOOKUP(H199&"x"&A199,Stopky!I:J,2,0) -> 0.02431712963 | P199: 10 | Q199: 5 | R199: 5 | S199: =IF(ISERROR(VLOOKUP(H199&"x"&F199&"xANO",'Závody a tratě'!L:L,1,0))=TRUE,0,_xlfn.IFNA(VLOOKUP(R199,'Body ZBP'!$A$1:$B$40,2,0),0)) -> 16 | T199: =H199&"x"&A199 -> 4x25 | U199: =IF(T199<>"x",COUNTIF($T$2:$T$3000,T199),"") -> 1
A200: 14 | B200: Kučera | C200: Jan | D200: m | E200: 1981 | F200: M9 | G200: Alfa triteam | H200: 4 | I200: =VLOOKUP(H200,'Závody a tratě'!$B:$C,2,0) -> Běh Avanti | J200: =VLOOKUP(H200&"x"&F200,'Závody a tratě'!$A:$F,6,0) -> 9 | K200: =VLOOKUP(TEXT(H200,"000")&UPPER(D200)&TEXT(E200,"0000"),'Kategorie lokální'!$A$2:$F$300,6,TRUE) -> LMA | L200: =VLOOKUP(TEXT(H200,"000")&UPPER(D200)&TEXT(E200,"0000"),'Kategorie lokální'!$A$2:$G$300,7,TRUE) -> L: Muži do 39 | M200: =VLOOKUP(UPPER(D200)&TEXT(E200,"0000"),'Kategorie ZBP'!$A$2:$E$30,5,TRUE) -> MA | N200: =VLOOKUP(M200,'Kategorie ZBP'!$E:$F,2,0) -> Muži do 39 | O200: =VLOOKUP(H200&"x"&A200,Stopky!I:J,2,0) -> 0.02439814815 | P200: 11 | Q200: 6 | R200: 6 | S200: =IF(ISERROR(VLOOKUP(H200&"x"&F200&"xANO",'Závody a tratě'!L:L,1,0))=TRUE,0,_xlfn.IFNA(VLOOKUP(R200,'Body ZBP'!$A$1:$B$40,2,0),0)) -> 15 | T200: =H200&"x"&A200 -> 4x14 | U200: =IF(T200<>"x",COUNTIF($T$2:$T$3000,T200),"") -> 1
... 2800 more rows

Sheet Stopky
A1: Startovní číslo | B1: Hodiny | C1: Minuty | D1: Sekundy | E1: Setiny | F1: ID závodu | G1: Kontrola chyb | H1: Jsou časy vzestupně? | I1: ID String | J1: Výsledný čas | K1: Duplicity? | L1: čas kontrola | M1: St. Č. kontrola
A2: 41 | B2: 0 | C2: 12 | D2: 47 | F2: 1 | G2: =IF(AND(F2<>"",A2&B2&C2&D2&E2=""),"Nevyplněný řádek. Smaž ID závodu nebo doplň záznam.",IF(AND(F2<>"",K2>1),"Duplicitní záznam!",IF(AND(F2="",A2&B2&C2&D2&E2<>""),"Doplň ID závodu",IF(AND(A2="",B2&C2&D2&E2&F2<>""),"Doplň startovní číslo",IF(AND(A2<>"",B2&C2&D2&E2=""),"Doplň čas nebo dej DNF do sloupce Setiny.",IF(AND(A2<>"",F2<>"",ISNA(M2)),"Startovní číslo nenalezeno v REGISTRACI.","OK")))))) -> OK | H2: =IF(F2<>F1,IF(OR(L2<L3,L2=L3,F2=""),"OK","Potenciální chyba. Záznamy nejdou vzestupně."),IF(OR(L2>L1,L2=L1),"OK","Potenciální chyba. Záznamy nejdou vzestupně.")) -> OK | I2: =F2&"x"&A2 -> 1x41 | J2: =IF(B2+C2+D2+E2<>0,B2/24+C2/60/24+(D2+E2/100)/60/60/24,"-") -> 00:12:47 | K2: =IF(A2<>"",COUNTIF(I:I,I2),1) -> 1 | L2: =IF(F2<>F1,IFERROR(J2,0),IFERROR(J2,L1)) -> 0.008877314815 | M2: =VLOOKUP(I2,'Registrace ZBP'!T:T,1,0) -> 1x41
A3: 26 | B3: 0 | C3: 13 | D3: 22 | F3: 1 | G3: OK | H3: OK | I3: 1x26 | J3: 00:13:22 | K3: 1 | L3: 0.009282407407 | M3: =VLOOKUP(I3,'Registrace ZBP'!T:T,1,0) -> 1x26
A4: 24 | B4: 0 | C4: 13 | D4: 27 | F4: 1 | G4: OK | H4: OK | I4: 1x24 | J4: 00:13:27 | K4: 1 | L4: 0.009340277778 | M4: =VLOOKUP(I4,'Registrace ZBP'!T:T,1,0) -> 1x24
A5: 16 | B5: 0 | C5: 13 | D5: 57 | F5: 1 | G5: OK | H5: OK | I5: 1x16 | J5: 00:13:57 | K5: 1 | L5: 0.0096875 | M5: =VLOOKUP(I5,'Registrace ZBP'!T:T,1,0) -> 1x16
A6: 47 | B6: 0 | C6: 15 | D6: 7 | F6: 1 | G6: OK | H6: OK | I6: 1x47 | J6: 00:15:07 | K6: 1 | L6: 0.01049768519 | M6: =VLOOKUP(I6,'Registrace ZBP'!T:T,1,0) -> 1x47
A7: 29 | B7: 0 | C7: 15 | D7: 18 | F7: 1 | G7: OK | H7: OK | I7: 1x29 | J7: 00:15:18 | K7: 1 | L7: 0.010625 | M7: =VLOOKUP(I7,'Registrace ZBP'!T:T,1,0) -> 1x29
A8: 1 | B8: 0 | C8: 15 | D8: 37 | F8: 1 | G8: OK | H8: OK | I8: 1x1 | J8: 00:15:37 | K8: 1 | L8: 0.01084490741 | M8: =VLOOKUP(I8,'Registrace ZBP'!T:T,1,0) -> 1x1
A9: 20 | B9: 0 | C9: 15 | D9: 47 | F9: 1 | G9: OK | H9: OK | I9: 1x20 | J9: 00:15:47 | K9: 1 | L9: 0.01096064815 | M9: =VLOOKUP(I9,'Registrace ZBP'!T:T,1,0) -> 1x20
A10: 7 | B10: 0 | C10: 17 | D10: 57 | F10: 1 | G10: OK | H10: OK | I10: 1x7 | J10: 00:17:57 | K10: 1 | L10: 0.01246527778 | M10: =VLOOKUP(I10,'Registrace ZBP'!T:T,1,0) -> 1x7
A11: 50 | B11: 0 | C11: 18 | D11: 39 | F11: 1 | G11: OK | H11: OK | I11: 1x50 | J11: 00:18:39 | K11: 1 | L11: 0.01295138889 | M11: =VLOOKUP(I11,'Registrace ZBP'!T:T,1,0) -> 1x50
A12: 25 | B12: 0 | C12: 19 | D12: 0 | F12: 1 | G12: OK | H12: OK | I12: 1x25 | J12: 00:19:00 | K12: 1 | L12: 0.01319444444 | M12: =VLOOKUP(I12,'Registrace ZBP'!T:T,1,0) -> 1x25
A13: 33 | B13: 0 | C13: 20 | D13: 42 | F13: 1 | G13: OK | H13: OK | I13: 1x33 | J13: 00:20:42 | K13: 1 | L13: 0.014375 | M13: =VLOOKUP(I13,'Registrace ZBP'!T:T,1,0) -> 1x33
A14: 2 | B14: 0 | C14: 22 | D14: 16 | F14: 1 | G14: OK | H14: OK | I14: 1x2 | J14: 00:22:16 | K14: 1 | L14: 0.01546296296 | M14: =VLOOKUP(I14,'Registrace ZBP'!T:T,1,0) -> 1x2
A15: 40 | B15: 0 | C15: 22 | D15: 31 | F15: 1 | G15: OK | H15: OK | I15: 1x40 | J15: 00:22:31 | K15: 1 | L15: 0.01563657407 | M15: =VLOOKUP(I15,'Registrace ZBP'!T:T,1,0) -> 1x40
A16: 45 | B16: 0 | C16: 23 | D16: 0 | F16: 1 | G16: OK | H16: OK | I16: 1x45 | J16: 00:23:00 | K16: 1 | L16: 0.01597222222 | M16: =VLOOKUP(I16,'Registrace ZBP'!T:T,1,0) -> 1x45
A17: 28 | B17: 0 | C17: 24 | D17: 0 | F17: 1 | G17: OK | H17: OK | I17: 1x28 | J17: 00:24:00 | K17: 1 | L17: 0.01666666667 | M17: =VLOOKUP(I17,'Registrace ZBP'!T:T,1,0) -> 1x28
A18: 44 | B18: 0 | C18: 24 | D18: 8 | F18: 1 | G18: OK | H18: OK | I18: 1x44 | J18: 00:24:08 | K18: 1 | L18: 0.01675925926 | M18: =VLOOKUP(I18,'Registrace ZBP'!T:T,1,0) -> 1x44
A19: 12 | B19: 0 | C19: 24 | D19: 47 | F19: 1 | G19: OK | H19: OK | I19: 1x12 | J19: 00:24:47 | K19: 1 | L19: 0.01721064815 | M19: =VLOOKUP(I19,'Registrace ZBP'!T:T,1,0) -> 1x12
A20: 3 | B20: 0 | C20: 25 | D20: 6 | F20: 1 | G20: OK | H20: OK | I20: 1x3 | J20: 00:25:06 | K20: 1 | L20: 0.01743055556 | M20: =VLOOKUP(I20,'Registrace ZBP'!T:T,1,0) -> 1x3
A21: 39 | B21: 0 | C21: 25 | D21: 41 | F21: 1 | G21: OK | H21: OK | I21: 1x39 | J21: 00:25:41 | K21: 1 | L21: 0.01783564815 | M21: =VLOOKUP(I21,'Registrace ZBP'!T:T,1,0) -> 1x39
A22: 36 | B22: 0 | C22: 26 | D22: 22 | F22: 1 | G22: OK | H22: OK | I22: 1x36 | J22: 00:26:22 | K22: 1 | L22: 0.01831018519 | M22: =VLOOKUP(I22,'Registrace ZBP'!T:T,1,0) -> 1x36
A23: 13 | B23: 0 | C23: 26 | D23: 41 | F23: 1 | G23: OK | H23: OK | I23: 1x13 | J23: 00:26:41 | K23: 1 | L23: 0.01853009259 | M23: =VLOOKUP(I23,'Registrace ZBP'!T:T,1,0) -> 1x13
A24: 46 | B24: 0 | C24: 26 | D24: 43 | F24: 1 | G24: OK | H24: OK | I24: 1x46 | J24: 00:26:43 | K24: 1 | L24: 0.01855324074 | M24: =VLOOKUP(I24,'Registrace ZBP'!T:T,1,0) -> 1x46
A25: 48 | B25: 0 | C25: 27 | D25: 4 | F25: 1 | G25: OK | H25: OK | I25: 1x48 | J25: 00:27:04 | K25: 1 | L25: 0.0187962963 | M25: =VLOOKUP(I25,'Registrace ZBP'!T:T,1,0) -> 1x48
A26: 30 | B26: 0 | C26: 27 | D26: 9 | F26: 1 | G26: OK | H26: OK | I26: 1x30 | J26: 00:27:09 | K26: 1 | L26: 0.01885416667 | M26: =VLOOKUP(I26,'Registrace ZBP'!T:T,1,0) -> 1x30
A27: 32 | B27: 0 | C27: 27 | D27: 13 | F27: 1 | G27: OK | H27: OK | I27: 1x32 | J27: 00:27:13 | K27: 1 | L27: 0.01890046296 | M27: =VLOOKUP(I27,'Registrace ZBP'!T:T,1,0) -> 1x32
A28: 38 | B28: 0 | C28: 27 | D28: 19 | F28: 1 | G28: OK | H28: OK | I28: 1x38 | J28: 00:27:19 | K28: 1 | L28: 0.01896990741 | M28: =VLOOKUP(I28,'Registrace ZBP'!T:T,1,0) -> 1x38
A29: 42 | B29: 0 | C29: 27 | D29: 39 | F29: 1 | G29: OK | H29: OK | I29: 1x42 | J29: 00:27:39 | K29: 1 | L29: 0.01920138889 | M29: =VLOOKUP(I29,'Registrace ZBP'!T:T,1,0) -> 1x42
A30: 34 | B30: 0 | C30: 28 | D30: 27 | F30: 1 | G30: OK | H30: OK | I30: 1x34 | J30: 00:28:27 | K30: 1 | L30: 0.01975694444 | M30: =VLOOKUP(I30,'Registrace ZBP'!T:T,1,0) -> 1x34
A31: 37 | B31: 0 | C31: 28 | D31: 43 | F31: 1 | G31: OK | H31: OK | I31: 1x37 | J31: 00:28:43 | K31: 1 | L31: 0.01994212963 | M31: =VLOOKUP(I31,'Registrace ZBP'!T:T,1,0) -> 1x37
A32: 49 | B32: 0 | C32: 29 | D32: 28 | F32: 1 | G32: OK | H32: OK | I32: 1x49 | J32: 00:29:28 | K32: 1 | L32: 0.02046296296 | M32: =VLOOKUP(I32,'Registrace ZBP'!T:T,1,0) -> 1x49
A33: 35 | B33: 0 | C33: 29 | D33: 50 | F33: 1 | G33: OK | H33: OK | I33: 1x35 | J33: 00:29:50 | K33: 1 | L33: 0.02071759259 | M33: =VLOOKUP(I33,'Registrace ZBP'!T:T,1,0) -> 1x35
A34: 4 | B34: 0 | C34: 33 | D34: 5 | F34: 1 | G34: OK | H34: OK | I34: 1x4 | J34: 00:33:05 | K34: 1 | L34: 0.02297453704 | M34: =VLOOKUP(I34,'Registrace ZBP'!T:T,1,0) -> 1x4
A35: 8 | B35: 0 | C35: 35 | D35: 1 | F35: 1 | G35: OK | H35: OK | I35: 1x8 | J35: 00:35:01 | K35: 1 | L35: 0.02431712963 | M35: =VLOOKUP(I35,'Registrace ZBP'!T:T,1,0) -> 1x8
A36: 43 | B36: 0 | C36: 36 | D36: 56 | F36: 1 | G36: OK | H36: OK | I36: 1x43 | J36: 00:36:56 | K36: 1 | L36: 0.02564814815 | M36: =VLOOKUP(I36,'Registrace ZBP'!T:T,1,0) -> 1x43
A37: 15 | B37: 0 | C37: 0 | D37: 0 | E37: DNF | F37: 1 | G37: OK | H37: OK | I37: 1x15 | K37: 1 | L37: 0.02564814815 | M37: =VLOOKUP(I37,'Registrace ZBP'!T:T,1,0) -> 1x15
A38: 50 | B38: 0 | C38: 38 | D38: 22 | F38: 2 | G38: OK | H38: OK | I38: 2x50 | J38: 00:38:22 | K38: 1 | L38: 0.02664351852 | M38: =VLOOKUP(I38,'Registrace ZBP'!T:T,1,0) -> 2x50
A39: 10 | B39: 0 | C39: 38 | D39: 47 | F39: 2 | G39: OK | H39: OK | I39: 2x10 | J39: 00:38:47 | K39: 1 | L39: 0.02693287037 | M39: =VLOOKUP(I39,'Registrace ZBP'!T:T,1,0) -> 2x10
A40: 46 | B40: 0 | C40: 39 | D40: 0 | F40: 2 | G40: OK | H40: OK | I40: 2x46 | J40: 00:39:00 | K40: 1 | L40: 0.02708333333 | M40: =VLOOKUP(I40,'Registrace ZBP'!T:T,1,0) -> 2x46
A41: 26 | B41: 0 | C41: 40 | D41: 16 | F41: 2 | G41: OK | H41: OK | I41: 2x26 | J41: 00:40:16 | K41: 1 | L41: 0.02796296296 | M41: =VLOOKUP(I41,'Registrace ZBP'!T:T,1,0) -> 2x26
A42: 20 | B42: 0 | C42: 40 | D42: 52 | F42: 2 | G42: OK | H42: OK | I42: 2x20 | J42: 00:40:52 | K42: 1 | L42: 0.02837962963 | M42: =VLOOKUP(I42,'Registrace ZBP'!T:T,1,0) -> 2x20
A43: 25 | B43: 0 | C43: 41 | D43: 2 | F43: 2 | G43: OK | H43: OK | I43: 2x25 | J43: 00:41:02 | K43: 1 | L43: 0.02849537037 | M43: =VLOOKUP(I43,'Registrace ZBP'!T:T,1,0) -> 2x25
A44: 16 | B44: 0 | C44: 41 | D44: 30 | F44: 2 | G44: OK | H44: OK | I44: 2x16 | J44: 00:41:30 | K44: 1 | L44: 0.02881944444 | M44: =VLOOKUP(I44,'Registrace ZBP'!T:T,1,0) -> 2x16
A45: 2 | B45: 0 | C45: 41 | D45: 54 | F45: 2 | G45: OK | H45: OK | I45: 2x2 | J45: 00:41:54 | K45: 1 | L45: 0.02909722222 | M45: =VLOOKUP(I45,'Registrace ZBP'!T:T,1,0) -> 2x2
A46: 40 | B46: 0 | C46: 42 | D46: 44 | F46: 2 | G46: OK | H46: OK | I46: 2x40 | J46: 00:42:44 | K46: 1 | L46: 0.02967592593 | M46: =VLOOKUP(I46,'Registrace ZBP'!T:T,1,0) -> 2x40
A47: 35 | B47: 0 | C47: 42 | D47: 59 | F47: 2 | G47: OK | H47: OK | I47: 2x35 | J47: 00:42:59 | K47: 1 | L47: 0.02984953704 | M47: =VLOOKUP(I47,'Registrace ZBP'!T:T,1,0) -> 2x35
A48: 9 | B48: 0 | C48: 43 | D48: 14 | F48: 2 | G48: OK | H48: OK | I48: 2x9 | J48: 00:43:14 | K48: 1 | L48: 0.03002314815 | M48: =VLOOKUP(I48,'Registrace ZBP'!T:T,1,0) -> 2x9
A49: 33 | B49: 0 | C49: 43 | D49: 20 | F49: 2 | G49: OK | H49: OK | I49: 2x33 | J49: 00:43:20 | K49: 1 | L49: 0.03009259259 | M49: =VLOOKUP(I49,'Registrace ZBP'!T:T,1,0) -> 2x33
A50: 7 | B50: 0 | C50: 43 | D50: 48 | F50: 2 | G50: OK | H50: OK | I50: 2x7 | J50: 00:43:48 | K50: 1 | L50: 0.03041666667 | M50: =VLOOKUP(I50,'Registrace ZBP'!T:T,1,0) -> 2x7
A51: 13 | B51: 0 | C51: 44 | D51: 46 | F51: 2 | G51: OK | H51: OK | I51: 2x13 | J51: 00:44:46 | K51: 1 | L51: 0.03108796296 | M51: =VLOOKUP(I51,'Registrace ZBP'!T:T,1,0) -> 2x13
A52: 43 | B52: 0 | C52: 45 | D52: 40 | F52: 2 | G52: OK | H52: OK | I52: 2x43 | J52: 00:45:40 | K52: 1 | L52: 0.03171296296 | M52: =VLOOKUP(I52,'Registrace ZBP'!T:T,1,0) -> 2x43
A53: 32 | B53: 0 | C53: 45 | D53: 56 | F53: 2 | G53: OK | H53: OK | I53: 2x32 | J53: 00:45:56 | K53: 1 | L53: 0.03189814815 | M53: =VLOOKUP(I53,'Registrace ZBP'!T:T,1,0) -> 2x32
A54: 28 | B54: 0 | C54: 46 | D54: 10 | F54: 2 | G54: OK | H54: OK | I54: 2x28 | J54: 00:46:10 | K54: 1 | L54: 0.03206018519 | M54: =VLOOKUP(I54,'Registrace ZBP'!T:T,1,0) -> 2x28
A55: 4 | B55: 0 | C55: 47 | D55: 18 | F55: 2 | G55: OK | H55: OK | I55: 2x4 | J55: 00:47:18 | K55: 1 | L55: 0.03284722222 | M55: =VLOOKUP(I55,'Registrace ZBP'!T:T,1,0) -> 2x4
A56: 41 | B56: 0 | C56: 47 | D56: 18 | F56: 2 | G56: OK | H56: OK | I56: 2x41 | J56: 00:47:18 | K56: 1 | L56: 0.03284722222 | M56: =VLOOKUP(I56,'Registrace ZBP'!T:T,1,0) -> 2x41
A57: 31 | B57: 0 | C57: 47 | D57: 49 | F57: 2 | G57: OK | H57: OK | I57: 2x31 | J57: 00:47:49 | K57: 1 | L57: 0.03320601852 | M57: =VLOOKUP(I57,'Registrace ZBP'!T:T,1,0) -> 2x31
A58: 47 | B58: 0 | C58: 48 | D58: 16 | F58: 2 | G58: OK | H58: OK | I58: 2x47 | J58: 00:48:16 | K58: 1 | L58: 0.03351851852 | M58: =VLOOKUP(I58,'Registrace ZBP'!T:T,1,0) -> 2x47
A59: 36 | B59: 0 | C59: 48 | D59: 29 | F59: 2 | G59: OK | H59: OK | I59: 2x36 | J59: 00:48:29 | K59: 1 | L59: 0.03366898148 | M59: =VLOOKUP(I59,'Registrace ZBP'!T:T,1,0) -> 2x36
A60: 37 | B60: 0 | C60: 48 | D60: 55 | F60: 2 | G60: OK | H60: OK | I60: 2x37 | J60: 00:48:55 | K60: 1 | L60: 0.03396990741 | M60: =VLOOKUP(I60,'Registrace ZBP'!T:T,1,0) -> 2x37
A61: 38 | B61: 0 | C61: 49 | D61: 51 | F61: 2 | G61: OK | H61: OK | I61: 2x38 | J61: 00:49:51 | K61: 1 | L61: 0.03461805556 | M61: =VLOOKUP(I61,'Registrace ZBP'!T:T,1,0) -> 2x38
A62: 8 | B62: 0 | C62: 49 | D62: 55 | F62: 2 | G62: OK | H62: OK | I62: 2x8 | J62: 00:49:55 | K62: 1 | L62: 0.03466435185 | M62: =VLOOKUP(I62,'Registrace ZBP'!T:T,1,0) -> 2x8
A63: 29 | B63: 0 | C63: 52 | D63: 0 | F63: 2 | G63: OK | H63: OK | I63: 2x29 | J63: 00:52:00 | K63: 1 | L63: 0.03611111111 | M63: =VLOOKUP(I63,'Registrace ZBP'!T:T,1,0) -> 2x29
A64: 5 | B64: 1 | C64: 5 | D64: 19 | F64: 2 | G64: OK | H64: OK | I64: 2x5 | J64: 01:05:19 | K64: 1 | L64: 0.0453587963 | M64: =VLOOKUP(I64,'Registrace ZBP'!T:T,1,0) -> 2x5
A65: 17 | B65: 0 | C65: 28 | D65: 46 | F65: 2 | G65: OK | H65: Potenciální chyba. Záznamy nejdou vzestupně. | I65: 2x17 | J65: 00:28:46 | K65: 1 | L65: 0.01997685185 | M65: =VLOOKUP(I65,'Registrace ZBP'!T:T,1,0) -> 2x17
A66: 18 | B66: 0 | C66: 29 | D66: 53 | F66: 2 | G66: =IF(AND(F66<>"",A66&B66&C66&D66&E66=""),"Nevyplněný řádek. Smaž ID závodu nebo doplň záznam.",IF(AND(F66<>"",K66>1),"Duplicitní záznam!",IF(AND(F66="",A66&B66&C66&D66&E66<>""),"Doplň ID závodu",IF(AND(A66="",B66&C66&D66&E66&F66<>""),"Doplň startovní číslo",IF(AND(A66<>"",B66&C66&D66&E66=""),"Doplň čas nebo dej DNF do sloupce Setiny.",IF(AND(A66<>"",F66<>"",ISNA(M66)),"Startovní číslo nenalezeno v REGISTRACI.","OK")))))) -> OK | H66: =IF(F66<>F65,IF(OR(L66<L67,L66=L67,F66=""),"OK","Potenciální chyba. Záznamy nejdou vzestupně."),IF(OR(L66>L65,L66=L65),"OK","Potenciální chyba. Záznamy nejdou vzestupně.")) -> OK | I66: =F66&"x"&A66 -> 2x18 | J66: =IF(B66+C66+D66+E66<>0,B66/24+C66/60/24+(D66+E66/100)/60/60/24,"-") -> 00:29:53 | K66: =IF(A66<>"",COUNTIF(I:I,I66),1) -> 1 | L66: =IF(F66<>F65,IFERROR(J66,0),IFERROR(J66,L65)) -> 0.02075231481 | M66: =VLOOKUP(I66,'Registrace ZBP'!T:T,1,0) -> 2x18
A67: 44 | B67: 0 | C67: 30 | D67: 6 | F67: 2 | G67: OK | H67: OK | I67: 2x44 | J67: 00:30:06 | K67: 1 | L67: 0.02090277778 | M67: =VLOOKUP(I67,'Registrace ZBP'!T:T,1,0) -> 2x44
A68: 15 | B68: 0 | C68: 30 | D68: 53 | F68: 2 | G68: OK | H68: OK | I68: 2x15 | J68: 00:30:53 | K68: 1 | L68: 0.02144675926 | M68: =VLOOKUP(I68,'Registrace ZBP'!T:T,1,0) -> 2x15
A69: 12 | B69: 0 | C69: 31 | D69: 14 | F69: 2 | G69: OK | H69: OK | I69: 2x12 | J69: 00:31:14 | K69: 1 | L69: 0.02168981481 | M69: =VLOOKUP(I69,'Registrace ZBP'!T:T,1,0) -> 2x12
A70: 42 | B70: 0 | C70: 31 | D70: 36 | F70: 2 | G70: OK | H70: OK | I70: 2x42 | J70: 00:31:36 | K70: 1 | L70: 0.02194444444 | M70: =VLOOKUP(I70,'Registrace ZBP'!T:T,1,0) -> 2x42
A71: 14 | B71: 0 | C71: 32 | D71: 15 | F71: 2 | G71: OK | H71: OK | I71: 2x14 | J71: 00:32:15 | K71: 1 | L71: 0.02239583333 | M71: =VLOOKUP(I71,'Registrace ZBP'!T:T,1,0) -> 2x14
A72: 1 | B72: 0 | C72: 33 | D72: 0 | F72: 2 | G72: OK | H72: OK | I72: 2x1 | J72: 00:33:00 | K72: 1 | L72: 0.02291666667 | M72: =VLOOKUP(I72,'Registrace ZBP'!T:T,1,0) -> 2x1
A73: 23 | B73: 0 | C73: 33 | D73: 29 | F73: 2 | G73: OK | H73: OK | I73: 2x23 | J73: 00:33:29 | K73: 1 | L73: 0.02325231481 | M73: =VLOOKUP(I73,'Registrace ZBP'!T:T,1,0) -> 2x23
A74: 48 | B74: 0 | C74: 33 | D74: 47 | F74: 2 | G74: OK | H74: OK | I74: 2x48 | J74: 00:33:47 | K74: 1 | L74: 0.02346064815 | M74: =VLOOKUP(I74,'Registrace ZBP'!T:T,1,0) -> 2x48
A75: 34 | B75: 0 | C75: 33 | D75: 55 | F75: 2 | G75: OK | H75: OK | I75: 2x34 | J75: 00:33:55 | K75: 1 | L75: 0.02355324074 | M75: =VLOOKUP(I75,'Registrace ZBP'!T:T,1,0) -> 2x34
A76: 6 | B76: 0 | C76: 34 | D76: 55 | F76: 2 | G76: OK | H76: OK | I76: 2x6 | J76: 00:34:55 | K76: 1 | L76: 0.02424768519 | M76: =VLOOKUP(I76,'Registrace ZBP'!T:T,1,0) -> 2x6
A77: 24 | B77: 0 | C77: 35 | D77: 13 | F77: 2 | G77: OK | H77: OK | I77: 2x24 | J77: 00:35:13 | K77: 1 | L77: 0.02445601852 | M77: =VLOOKUP(I77,'Registrace ZBP'!T:T,1,0) -> 2x24
A78: 19 | B78: 0 | C78: 35 | D78: 31 | F78: 2 | G78: OK | H78: OK | I78: 2x19 | J78: 00:35:31 | K78: 1 | L78: 0.02466435185 | M78: =VLOOKUP(I78,'Registrace ZBP'!T:T,1,0) -> 2x19
A79: 30 | B79: 0 | C79: 35 | D79: 36 | F79: 2 | G79: OK | H79: OK | I79: 2x30 | J79: 00:35:36 | K79: 1 | L79: 0.02472222222 | M79: =VLOOKUP(I79,'Registrace ZBP'!T:T,1,0) -> 2x30
A80: 3 | B80: 0 | C80: 36 | D80: 1 | F80: 2 | G80: OK | H80: OK | I80: 2x3 | J80: 00:36:01 | K80: 1 | L80: 0.02501157407 | M80: =VLOOKUP(I80,'Registrace ZBP'!T:T,1,0) -> 2x3
A81: 11 | B81: 0 | C81: 36 | D81: 33 | F81: 2 | G81: OK | H81: OK | I81: 2x11 | J81: 00:36:33 | K81: 1 | L81: 0.02538194444 | M81: =VLOOKUP(I81,'Registrace ZBP'!T:T,1,0) -> 2x11
A82: 51 | B82: 0 | C82: 36 | D82: 36 | F82: 2 | G82: OK | H82: OK | I82: 2x51 | J82: 00:36:36 | K82: 1 | L82: 0.02541666667 | M82: =VLOOKUP(I82,'Registrace ZBP'!T:T,1,0) -> 2x51
A83: 22 | B83: 0 | C83: 38 | D83: 8 | F83: 2 | G83: OK | H83: OK | I83: 2x22 | J83: 00:38:08 | K83: 1 | L83: 0.02648148148 | M83: =VLOOKUP(I83,'Registrace ZBP'!T:T,1,0) -> 2x22
A84: 39 | B84: 0 | C84: 38 | D84: 25 | F84: 2 | G84: OK | H84: OK | I84: 2x39 | J84: 00:38:25 | K84: 1 | L84: 0.02667824074 | M84: =VLOOKUP(I84,'Registrace ZBP'!T:T,1,0) -> 2x39
A85: 45 | B85: 0 | C85: 0 | D85: 0 | E85: DNF | F85: 2 | G85: OK | H85: OK | I85: 2x45 | K85: 1 | L85: 0.02667824074 | M85: =VLOOKUP(I85,'Registrace ZBP'!T:T,1,0) -> 2x45
A86: 393 | B86: 0 | C86: 15 | D86: 38 | F86: 3 | G86: OK | H86: OK | I86: 3x393 | J86: 00:15:38 | K86: 1 | L86: 0.01085648148 | M86: =VLOOKUP(I86,'Registrace ZBP'!T:T,1,0) -> 3x393
A87: 76 | B87: 0 | C87: 15 | D87: 48 | F87: 3 | G87: OK | H87: OK | I87: 3x76 | J87: 00:15:48 | K87: 1 | L87: 0.01097222222 | M87: =VLOOKUP(I87,'Registrace ZBP'!T:T,1,0) -> 3x76
A88: 66 | B88: 0 | C88: 17 | D88: 14 | F88: 3 | G88: OK | H88: OK | I88: 3x66 | J88: 00:17:14 | K88: 1 | L88: 0.01196759259 | M88: =VLOOKUP(I88,'Registrace ZBP'!T:T,1,0) -> 3x66
A89: 237 | B89: 0 | C89: 17 | D89: 44 | F89: 3 | G89: OK | H89: OK | I89: 3x237 | J89: 00:17:44 | K89: 1 | L89: 0.01231481481 | M89: =VLOOKUP(I89,'Registrace ZBP'!T:T,1,0) -> 3x237
A90: 150 | B90: 0 | C90: 18 | D90: 15 | F90: 3 | G90: OK | H90: OK | I90: 3x150 | J90: 00:18:15 | K90: 1 | L90: 0.01267361111 | M90: =VLOOKUP(I90,'Registrace ZBP'!T:T,1,0) -> 3x150
A91: 375 | B91: 0 | C91: 18 | D91: 34 | F91: 3 | G91: OK | H91: OK | I91: 3x375 | J91: 00:18:34 | K91: 1 | L91: 0.01289351852 | M91: =VLOOKUP(I91,'Registrace ZBP'!T:T,1,0) -> 3x375
A92: 301 | B92: 0 | C92: 18 | D92: 35 | F92: 3 | G92: OK | H92: OK | I92: 3x301 | J92: 00:18:35 | K92: 1 | L92: 0.01290509259 | M92: =VLOOKUP(I92,'Registrace ZBP'!T:T,1,0) -> 3x301
A93: 73 | B93: 0 | C93: 18 | D93: 36 | F93: 3 | G93: OK | H93: OK | I93: 3x73 | J93: 00:18:36 | K93: 1 | L93: 0.01291666667 | M93: =VLOOKUP(I93,'Registrace ZBP'!T:T,1,0) -> 3x73
A94: 329 | B94: 0 | C94: 18 | D94: 37 | F94: 3 | G94: OK | H94: OK | I94: 3x329 | J94: 00:18:37 | K94: 1 | L94: 0.01292824074 | M94: =VLOOKUP(I94,'Registrace ZBP'!T:T,1,0) -> 3x329
A95: 29 | B95: 0 | C95: 18 | D95: 45 | F95: 3 | G95: OK | H95: OK | I95: 3x29 | J95: 00:18:45 | K95: 1 | L95: 0.01302083333 | M95: =VLOOKUP(I95,'Registrace ZBP'!T:T,1,0) -> 3x29
A96: 141 | B96: 0 | C96: 19 | D96: 1 | F96: 3 | G96: OK | H96: OK | I96: 3x141 | J96: 00:19:01 | K96: 1 | L96: 0.01320601852 | M96: =VLOOKUP(I96,'Registrace ZBP'!T:T,1,0) -> 3x141
A97: 50 | B97: 0 | C97: 19 | D97: 1 | F97: 3 | G97: OK | H97: OK | I97: 3x50 | J97: 00:19:01 | K97: 1 | L97: 0.01320601852 | M97: =VLOOKUP(I97,'Registrace ZBP'!T:T,1,0) -> 3x50
A98: 78 | B98: 0 | C98: 19 | D98: 7 | F98: 3 | G98: OK | H98: OK | I98: 3x78 | J98: 00:19:07 | K98: 1 | L98: 0.01327546296 | M98: =VLOOKUP(I98,'Registrace ZBP'!T:T,1,0) -> 3x78
A99: 172 | B99: 0 | C99: 19 | D99: 52 | F99: 3 | G99: OK | H99: OK | I99: 3x172 | J99: 00:19:52 | K99: 1 | L99: 0.0137962963 | M99: =VLOOKUP(I99,'Registrace ZBP'!T:T,1,0) -> 3x172
A100: 60 | B100: 0 | C100: 20 | D100: 0 | F100: 3 | G100: OK | H100: OK | I100: 3x60 | J100: 00:20:00 | K100: 1 | L100: 0.01388888889 | M100: =VLOOKUP(I100,'Registrace ZBP'!T:T,1,0) -> 3x60
A101: 163 | B101: 0 | C101: 20 | D101: 17 | F101: 3 | G101: OK | H101: OK | I101: 3x163 | J101: 00:20:17 | K101: 1 | L101: 0.01408564815 | M101: =VLOOKUP(I101,'Registrace ZBP'!T:T,1,0) -> 3x163
A102: 400 | B102: 0 | C102: 20 | D102: 25 | F102: 3 | G102: OK | H102: OK | I102: 3x400 | J102: 00:20:25 | K102: 1 | L102: 0.01417824074 | M102: =VLOOKUP(I102,'Registrace ZBP'!T:T,1,0) -> 3x400
A103: 364 | B103: 0 | C103: 20 | D103: 26 | F103: 3 | G103: OK | H103: OK | I103: 3x364 | J103: 00:20:26 | K103: 1 | L103: 0.01418981481 | M103: =VLOOKUP(I103,'Registrace ZBP'!T:T,1,0) -> 3x364
A104: 54 | B104: 0 | C104: 20 | D104: 28 | F104: 3 | G104: OK | H104: OK | I104: 3x54 | J104: 00:20:28 | K104: 1 | L104: 0.01421296296 | M104: =VLOOKUP(I104,'Registrace ZBP'!T:T,1,0) -> 3x54
A105: 199 | B105: 0 | C105: 20 | D105: 29 | F105: 3 | G105: OK | H105: OK | I105: 3x199 | J105: 00:20:29 | K105: 1 | L105: 0.01422453704 | M105: =VLOOKUP(I105,'Registrace ZBP'!T:T,1,0) -> 3x199
A106: 148 | B106: 0 | C106: 20 | D106: 49 | F106: 3 | G106: OK | H106: OK | I106: 3x148 | J106: 00:20:49 | K106: 1 | L106: 0.01445601852 | M106: =VLOOKUP(I106,'Registrace ZBP'!T:T,1,0) -> 3x148
A107: 119 | B107: 0 | C107: 20 | D107: 52 | F107: 3 | G107: OK | H107: OK | I107: 3x119 | J107: 00:20:52 | K107: 1 | L107: 0.01449074074 | M107: =VLOOKUP(I107,'Registrace ZBP'!T:T,1,0) -> 3x119
A108: 122 | B108: 0 | C108: 21 | D108: 7 | F108: 3 | G108: OK | H108: OK | I108: 3x122 | J108: 00:21:07 | K108: 1 | L108: 0.01466435185 | M108: =VLOOKUP(I108,'Registrace ZBP'!T:T,1,0) -> 3x122
A109: 366 | B109: 0 | C109: 21 | D109: 7 | F109: 3 | G109: OK | H109: OK | I109: 3x366 | J109: 00:21:07 | K109: 1 | L109: 0.01466435185 | M109: =VLOOKUP(I109,'Registrace ZBP'!T:T,1,0) -> 3x366
A110: 14 | B110: 0 | C110: 21 | D110: 23 | F110: 3 | G110: OK | H110: OK | I110: 3x14 | J110: 00:21:23 | K110: 1 | L110: 0.01484953704 | M110: =VLOOKUP(I110,'Registrace ZBP'!T:T,1,0) -> 3x14
A111: 190 | B111: 0 | C111: 21 | D111: 38 | F111: 3 | G111: OK | H111: OK | I111: 3x190 | J111: 00:21:38 | K111: 1 | L111: 0.01502314815 | M111: =VLOOKUP(I111,'Registrace ZBP'!T:T,1,0) -> 3x190
A112: 382 | B112: 0 | C112: 21 | D112: 39 | F112: 3 | G112: OK | H112: OK | I112: 3x382 | J112: 00:21:39 | K112: 1 | L112: 0.01503472222 | M112: =VLOOKUP(I112,'Registrace ZBP'!T:T,1,0) -> 3x382
A113: 363 | B113: 0 | C113: 22 | D113: 1 | F113: 3 | G113: OK | H113: OK | I113: 3x363 | J113: 00:22:01 | K113: 1 | L113: 0.01528935185 | M113: =VLOOKUP(I113,'Registrace ZBP'!T:T,1,0) -> 3x363
A114: 396 | B114: 0 | C114: 22 | D114: 12 | F114: 3 | G114: OK | H114: OK | I114: 3x396 | J114: 00:22:12 | K114: 1 | L114: 0.01541666667 | M114: =VLOOKUP(I114,'Registrace ZBP'!T:T,1,0) -> 3x396
A115: 162 | B115: 0 | C115: 22 | D115: 15 | F115: 3 | G115: OK | H115: OK | I115: 3x162 | J115: 00:22:15 | K115: 1 | L115: 0.01545138889 | M115: =VLOOKUP(I115,'Registrace ZBP'!T:T,1,0) -> 3x162
A116: 12 | B116: 0 | C116: 22 | D116: 20 | F116: 3 | G116: OK | H116: OK | I116: 3x12 | J116: 00:22:20 | K116: 1 | L116: 0.01550925926 | M116: =VLOOKUP(I116,'Registrace ZBP'!T:T,1,0) -> 3x12
A117: 116 | B117: 0 | C117: 22 | D117: 24 | F117: 3 | G117: OK | H117: OK | I117: 3x116 | J117: 00:22:24 | K117: 1 | L117: 0.01555555556 | M117: =VLOOKUP(I117,'Registrace ZBP'!T:T,1,0) -> 3x116
A118: 16 | B118: 0 | C118: 22 | D118: 49 | F118: 3 | G118: OK | H118: OK | I118: 3x16 | J118: 00:22:49 | K118: 1 | L118: 0.01584490741 | M118: =VLOOKUP(I118,'Registrace ZBP'!T:T,1,0) -> 3x16
A119: 63 | B119: 0 | C119: 23 | D119: 21 | F119: 3 | G119: OK | H119: OK | I119: 3x63 | J119: 00:23:21 | K119: 1 | L119: 0.01621527778 | M119: =VLOOKUP(I119,'Registrace ZBP'!T:T,1,0) -> 3x63
A120: 373 | B120: 0 | C120: 23 | D120: 37 | F120: 3 | G120: OK | H120: OK | I120: 3x373 | J120: 00:23:37 | K120: 1 | L120: 0.01640046296 | M120: =VLOOKUP(I120,'Registrace ZBP'!T:T,1,0) -> 3x373
A121: 244 | B121: 0 | C121: 23 | D121: 41 | F121: 3 | G121: OK | H121: OK | I121: 3x244 | J121: 00:23:41 | K121: 1 | L121: 0.01644675926 | M121: =VLOOKUP(I121,'Registrace ZBP'!T:T,1,0) -> 3x244
A122: 114 | B122: 0 | C122: 24 | D122: 11 | F122: 3 | G122: OK | H122: OK | I122: 3x114 | J122: 00:24:11 | K122: 1 | L122: 0.01679398148 | M122: =VLOOKUP(I122,'Registrace ZBP'!T:T,1,0) -> 3x114
A123: 398 | B123: 0 | C123: 24 | D123: 28 | F123: 3 | G123: OK | H123: OK | I123: 3x398 | J123: 00:24:28 | K123: 1 | L123: 0.01699074074 | M123: =VLOOKUP(I123,'Registrace ZBP'!T:T,1,0) -> 3x398
A124: 70 | B124: 0 | C124: 24 | D124: 37 | F124: 3 | G124: OK | H124: OK | I124: 3x70 | J124: 00:24:37 | K124: 1 | L124: 0.01709490741 | M124: =VLOOKUP(I124,'Registrace ZBP'!T:T,1,0) -> 3x70
A125: 19 | B125: 0 | C125: 24 | D125: 39 | F125: 3 | G125: OK | H125: OK | I125: 3x19 | J125: 00:24:39 | K125: 1 | L125: 0.01711805556 | M125: =VLOOKUP(I125,'Registrace ZBP'!T:T,1,0) -> 3x19
A126: 115 | B126: 0 | C126: 24 | D126: 47 | F126: 3 | G126: OK | H126: OK | I126: 3x115 | J126: 00:24:47 | K126: 1 | L126: 0.01721064815 | M126: =VLOOKUP(I126,'Registrace ZBP'!T:T,1,0) -> 3x115
A127: 186 | B127: 0 | C127: 24 | D127: 47 | F127: 3 | G127: OK | H127: OK | I127: 3x186 | J127: 00:24:47 | K127: 1 | L127: 0.01721064815 | M127: =VLOOKUP(I127,'Registrace ZBP'!T:T,1,0) -> 3x186
A128: 380 | B128: 0 | C128: 24 | D128: 53 | F128: 3 | G128: OK | H128: OK | I128: 3x380 | J128: 00:24:53 | K128: 1 | L128: 0.01728009259 | M128: =VLOOKUP(I128,'Registrace ZBP'!T:T,1,0) -> 3x380
A129: 7 | B129: 0 | C129: 24 | D129: 59 | F129: 3 | G129: OK | H129: OK | I129: 3x7 | J129: 00:24:59 | K129: 1 | L129: 0.01734953704 | M129: =VLOOKUP(I129,'Registrace ZBP'!T:T,1,0) -> 3x7
A130: 178 | B130: 0 | C130: 28 | D130: 1 | F130: 3 | G130: =IF(AND(F130<>"",A130&B130&C130&D130&E130=""),"Nevyplněný řádek. Smaž ID závodu nebo doplň záznam.",IF(AND(F130<>"",K130>1),"Duplicitní záznam!",IF(AND(F130="",A130&B130&C130&D130&E130<>""),"Doplň ID závodu",IF(AND(A130="",B130&C130&D130&E130&F130<>""),"Doplň startovní číslo",IF(AND(A130<>"",B130&C130&D130&E130=""),"Doplň čas nebo dej DNF do sloupce Setiny.",IF(AND(A130<>"",F130<>"",ISNA(M130)),"Startovní číslo nenalezeno v REGISTRACI.","OK")))))) -> OK | H130: =IF(F130<>F129,IF(OR(L130<L131,L130=L131,F130=""),"OK","Potenciální chyba. Záznamy nejdou vzestupně."),IF(OR(L130>L129,L130=L129),"OK","Potenciální chyba. Záznamy nejdou vzestupně.")) -> OK | I130: =F130&"x"&A130 -> 3x178 | J130: =IF(B130+C130+D130+E130<>0,B130/24+C130/60/24+(D130+E130/100)/60/60/24,"-") -> 00:28:01 | K130: =IF(A130<>"",COUNTIF(I:I,I130),1) -> 1 | L130: =IF(F130<>F129,IFERROR(J130,0),IFERROR(J130,L129)) -> 0.01945601852 | M130: =VLOOKUP(I130,'Registrace ZBP'!T:T,1,0) -> 3x178
A131: 381 | B131: 0 | C131: 28 | D131: 11 | F131: 3 | G131: OK | H131: OK | I131: 3x381 | J131: 00:28:11 | K131: 1 | L131: 0.01957175926 | M131: =VLOOKUP(I131,'Registrace ZBP'!T:T,1,0) -> 3x381
A132: 378 | B132: 0 | C132: 28 | D132: 15 | F132: 3 | G132: OK | H132: OK | I132: 3x378 | J132: 00:28:15 | K132: 1 | L132: 0.01961805556 | M132: =VLOOKUP(I132,'Registrace ZBP'!T:T,1,0) -> 3x378
A133: 387 | B133: 0 | C133: 28 | D133: 36 | F133: 3 | G133: OK | H133: OK | I133: 3x387 | J133: 00:28:36 | K133: 1 | L133: 0.01986111111 | M133: =VLOOKUP(I133,'Registrace ZBP'!T:T,1,0) -> 3x387
A134: 389 | B134: 0 | C134: 29 | D134: 11 | F134: 3 | G134: OK | H134: OK | I134: 3x389 | J134: 00:29:11 | K134: 1 | L134: 0.0202662037 | M134: =VLOOKUP(I134,'Registrace ZBP'!T:T,1,0) -> 3x389
A135: 365 | B135: 0 | C135: 30 | D135: 17 | F135: 3 | G135: OK | H135: OK | I135: 3x365 | J135: 00:30:17 | K135: 1 | L135: 0.02103009259 | M135: =VLOOKUP(I135,'Registrace ZBP'!T:T,1,0) -> 3x365
A136: 236 | B136: 0 | C136: 34 | D136: 55 | F136: 3 | G136: OK | H136: OK | I136: 3x236 | J136: 00:34:55 | K136: 1 | L136: 0.02424768519 | M136: =VLOOKUP(I136,'Registrace ZBP'!T:T,1,0) -> 3x236
A137: 385 | B137: 0 | C137: 36 | D137: 33 | F137: 3 | G137: OK | H137: OK | I137: 3x385 | J137: 00:36:33 | K137: 1 | L137: 0.02538194444 | M137: =VLOOKUP(I137,'Registrace ZBP'!T:T,1,0) -> 3x385
A138: 500 | B138: 0 | C138: 15 | D138: 9 | E138: DNF | F138: 3 | G138: OK | H138: OK | I138: 3x500 | K138: 1 | L138: 0.02538194444 | M138: =VLOOKUP(I138,'Registrace ZBP'!T:T,1,0) -> 3x500
A139: 168 | B139: 0 | C139: 36 | D139: 41 | F139: 3 | G139: OK | H139: OK | I139: 3x168 | J139: 00:36:41 | K139: 1 | L139: 0.02547453704 | M139: =VLOOKUP(I139,'Registrace ZBP'!T:T,1,0) -> 3x168
A140: 300 | B140: 0 | C140: 36 | D140: 55 | F140: 3 | G140: OK | H140: OK | I140: 3x300 | J140: 00:36:55 | K140: 1 | L140: 0.02563657407 | M140: =VLOOKUP(I140,'Registrace ZBP'!T:T,1,0) -> 3x300
A141: 92 | B141: 0 | C141: 38 | D141: 21 | F141: 3 | G141: OK | H141: OK | I141: 3x92 | J141: 00:38:21 | K141: 1 | L141: 0.02663194444 | M141: =VLOOKUP(I141,'Registrace ZBP'!T:T,1,0) -> 3x92
A142: 397 | B142: 0 | C142: 38 | D142: 32 | F142: 3 | G142: OK | H142: OK | I142: 3x397 | J142: 00:38:32 | K142: 1 | L142: 0.02675925926 | M142: =VLOOKUP(I142,'Registrace ZBP'!T:T,1,0) -> 3x397
A143: 394 | B143: 0 | C143: 39 | D143: 44 | F143: 3 | G143: OK | H143: OK | I143: 3x394 | J143: 00:39:44 | K143: 1 | L143: 0.02759259259 | M143: =VLOOKUP(I143,'Registrace ZBP'!T:T,1,0) -> 3x394
A144: 391 | B144: 0 | C144: 40 | D144: 40 | F144: 3 | G144: OK | H144: OK | I144: 3x391 | J144: 00:40:40 | K144: 1 | L144: 0.02824074074 | M144: =VLOOKUP(I144,'Registrace ZBP'!T:T,1,0) -> 3x391
A145: 395 | B145: 0 | C145: 40 | D145: 43 | F145: 3 | G145: OK | H145: OK | I145: 3x395 | J145: 00:40:43 | K145: 1 | L145: 0.02827546296 | M145: =VLOOKUP(I145,'Registrace ZBP'!T:T,1,0) -> 3x395
A146: 95 | B146: 0 | C146: 40 | D146: 56 | F146: 3 | G146: OK | H146: OK | I146: 3x95 | J146: 00:40:56 | K146: 1 | L146: 0.02842592593 | M146: =VLOOKUP(I146,'Registrace ZBP'!T:T,1,0) -> 3x95
A147: 392 | B147: 0 | C147: 41 | D147: 35 | F147: 3 | G147: OK | H147: OK | I147: 3x392 | J147: 00:41:35 | K147: 1 | L147: 0.02887731481 | M147: =VLOOKUP(I147,'Registrace ZBP'!T:T,1,0) -> 3x392
A148: 84 | B148: 0 | C148: 41 | D148: 44 | F148: 3 | G148: OK | H148: OK | I148: 3x84 | J148: 00:41:44 | K148: 1 | L148: 0.02898148148 | M148: =VLOOKUP(I148,'Registrace ZBP'!T:T,1,0) -> 3x84
A149: 145 | B149: 0 | C149: 42 | D149: 15 | F149: 3 | G149: OK | H149: OK | I149: 3x145 | J149: 00:42:15 | K149: 1 | L149: 0.02934027778 | M149: =VLOOKUP(I149,'Registrace ZBP'!T:T,1,0) -> 3x145
A150: 11 | B150: 0 | C150: 42 | D150: 40 | F150: 3 | G150: OK | H150: OK | I150: 3x11 | J150: 00:42:40 | K150: 1 | L150: 0.02962962963 | M150: =VLOOKUP(I150,'Registrace ZBP'!T:T,1,0) -> 3x11
A151: 371 | B151: 0 | C151: 42 | D151: 45 | F151: 3 | G151: OK | H151: OK | I151: 3x371 | J151: 00:42:45 | K151: 1 | L151: 0.0296875 | M151: =VLOOKUP(I151,'Registrace ZBP'!T:T,1,0) -> 3x371
A152: 189 | B152: 0 | C152: 44 | D152: 8 | F152: 3 | G152: OK | H152: OK | I152: 3x189 | J152: 00:44:08 | K152: 1 | L152: 0.03064814815 | M152: =VLOOKUP(I152,'Registrace ZBP'!T:T,1,0) -> 3x189
A153: 344 | B153: 0 | C153: 44 | D153: 51 | F153: 3 | G153: OK | H153: OK | I153: 3x344 | J153: 00:44:51 | K153: 1 | L153: 0.03114583333 | M153: =VLOOKUP(I153,'Registrace ZBP'!T:T,1,0) -> 3x344
A154: 64 | B154: 0 | C154: 45 | D154: 14 | F154: 3 | G154: OK | H154: OK | I154: 3x64 | J154: 00:45:14 | K154: 1 | L154: 0.03141203704 | M154: =VLOOKUP(I154,'Registrace ZBP'!T:T,1,0) -> 3x64
A155: 109 | B155: 0 | C155: 45 | D155: 32 | F155: 3 | G155: OK | H155: OK | I155: 3x109 | J155: 00:45:32 | K155: 1 | L155: 0.03162037037 | M155: =VLOOKUP(I155,'Registrace ZBP'!T:T,1,0) -> 3x109
A156: 68 | B156: 0 | C156: 46 | D156: 1 | F156: 3 | G156: OK | H156: OK | I156: 3x68 | J156: 00:46:01 | K156: 1 | L156: 0.03195601852 | M156: =VLOOKUP(I156,'Registrace ZBP'!T:T,1,0) -> 3x68
A157: 355 | B157: 0 | C157: 46 | D157: 13 | F157: 3 | G157: OK | H157: OK | I157: 3x355 | J157: 00:46:13 | K157: 1 | L157: 0.03209490741 | M157: =VLOOKUP(I157,'Registrace ZBP'!T:T,1,0) -> 3x355
A158: 377 | B158: 0 | C158: 46 | D158: 18 | F158: 3 | G158: OK | H158: OK | I158: 3x377 | J158: 00:46:18 | K158: 1 | L158: 0.03215277778 | M158: =VLOOKUP(I158,'Registrace ZBP'!T:T,1,0) -> 3x377
A159: 91 | B159: 0 | C159: 46 | D159: 22 | F159: 3 | G159: OK | H159: OK | I159: 3x91 | J159: 00:46:22 | K159: 1 | L159: 0.03219907407 | M159: =VLOOKUP(I159,'Registrace ZBP'!T:T,1,0) -> 3x91
A160: 75 | B160: 0 | C160: 46 | D160: 48 | F160: 3 | G160: OK | H160: OK | I160: 3x75 | J160: 00:46:48 | K160: 1 | L160: 0.0325 | M160: =VLOOKUP(I160,'Registrace ZBP'!T:T,1,0) -> 3x75
A161: 164 | B161: 0 | C161: 47 | D161: 17 | F161: 3 | G161: OK | H161: OK | I161: 3x164 | J161: 00:47:17 | K161: 1 | L161: 0.03283564815 | M161: =VLOOKUP(I161,'Registrace ZBP'!T:T,1,0) -> 3x164
A162: 390 | B162: 0 | C162: 47 | D162: 25 | F162: 3 | G162: OK | H162: OK | I162: 3x390 | J162: 00:47:25 | K162: 1 | L162: 0.03292824074 | M162: =VLOOKUP(I162,'Registrace ZBP'!T:T,1,0) -> 3x390
A163: 384 | B163: 0 | C163: 48 | D163: 17 | F163: 3 | G163: OK | H163: OK | I163: 3x384 | J163: 00:48:17 | K163: 1 | L163: 0.03353009259 | M163: =VLOOKUP(I163,'Registrace ZBP'!T:T,1,0) -> 3x384
A164: 155 | B164: 0 | C164: 48 | D164: 22 | F164: 3 | G164: OK | H164: OK | I164: 3x155 | J164: 00:48:22 | K164: 1 | L164: 0.03358796296 | M164: =VLOOKUP(I164,'Registrace ZBP'!T:T,1,0) -> 3x155
A165: 370 | B165: 0 | C165: 48 | D165: 51 | F165: 3 | G165: OK | H165: OK | I165: 3x370 | J165: 00:48:51 | K165: 1 | L165: 0.03392361111 | M165: =VLOOKUP(I165,'Registrace ZBP'!T:T,1,0) -> 3x370
A166: 376 | B166: 0 | C166: 49 | D166: 8 | F166: 3 | G166: OK | H166: OK | I166: 3x376 | J166: 00:49:08 | K166: 1 | L166: 0.03412037037 | M166: =VLOOKUP(I166,'Registrace ZBP'!T:T,1,0) -> 3x376
A167: 367 | B167: 0 | C167: 49 | D167: 24 | F167: 3 | G167: OK | H167: OK | I167: 3x367 | J167: 00:49:24 | K167: 1 | L167: 0.03430555556 | M167: =VLOOKUP(I167,'Registrace ZBP'!T:T,1,0) -> 3x367
A168: 399 | B168: 0 | C168: 49 | D168: 52 | F168: 3 | G168: OK | H168: OK | I168: 3x399 | J168: 00:49:52 | K168: 1 | L168: 0.03462962963 | M168: =VLOOKUP(I168,'Registrace ZBP'!T:T,1,0) -> 3x399
A169: 379 | B169: 0 | C169: 50 | D169: 8 | F169: 3 | G169: OK | H169: OK | I169: 3x379 | J169: 00:50:08 | K169: 1 | L169: 0.03481481481 | M169: =VLOOKUP(I169,'Registrace ZBP'!T:T,1,0) -> 3x379
A170: 38 | B170: 0 | C170: 51 | D170: 11 | F170: 3 | G170: OK | H170: OK | I170: 3x38 | J170: 00:51:11 | K170: 1 | L170: 0.03554398148 | M170: =VLOOKUP(I170,'Registrace ZBP'!T:T,1,0) -> 3x38
A171: 146 | B171: 0 | C171: 51 | D171: 59 | F171: 3 | G171: OK | H171: OK | I171: 3x146 | J171: 00:51:59 | K171: 1 | L171: 0.03609953704 | M171: =VLOOKUP(I171,'Registrace ZBP'!T:T,1,0) -> 3x146
A172: 372 | B172: 0 | C172: 52 | D172: 43 | F172: 3 | G172: OK | H172: OK | I172: 3x372 | J172: 00:52:43 | K172: 1 | L172: 0.0366087963 | M172: =VLOOKUP(I172,'Registrace ZBP'!T:T,1,0) -> 3x372
A173: 113 | B173: 0 | C173: 52 | D173: 52 | F173: 3 | G173: OK | H173: OK | I173: 3x113 | J173: 00:52:52 | K173: 1 | L173: 0.03671296296 | M173: =VLOOKUP(I173,'Registrace ZBP'!T:T,1,0) -> 3x113
A174: 10 | B174: 0 | C174: 54 | D174: 21 | F174: 3 | G174: OK | H174: OK | I174: 3x10 | J174: 00:54:21 | K174: 1 | L174: 0.03774305556 | M174: =VLOOKUP(I174,'Registrace ZBP'!T:T,1,0) -> 3x10
A175: 138 | B175: 0 | C175: 55 | D175: 20 | F175: 3 | G175: OK | H175: OK | I175: 3x138 | J175: 00:55:20 | K175: 1 | L175: 0.03842592593 | M175: =VLOOKUP(I175,'Registrace ZBP'!T:T,1,0) -> 3x138
A176: 251 | B176: 0 | C176: 56 | D176: 25 | F176: 3 | G176: OK | H176: OK | I176: 3x251 | J176: 00:56:25 | K176: 1 | L176: 0.03917824074 | M176: =VLOOKUP(I176,'Registrace ZBP'!T:T,1,0) -> 3x251
A177: 8 | B177: 0 | C177: 57 | D177: 52 | F177: 3 | G177: OK | H177: OK | I177: 3x8 | J177: 00:57:52 | K177: 1 | L177: 0.04018518519 | M177: =VLOOKUP(I177,'Registrace ZBP'!T:T,1,0) -> 3x8
A178: 386 | B178: 1 | C178: 2 | D178: 3 | F178: 3 | G178: OK | H178: OK | I178: 3x386 | J178: 01:02:03 | K178: 1 | L178: 0.04309027778 | M178: =VLOOKUP(I178,'Registrace ZBP'!T:T,1,0) -> 3x386
A179: 5 | B179: 1 | C179: 3 | D179: 2 | F179: 3 | G179: OK | H179: OK | I179: 3x5 | J179: 01:03:02 | K179: 1 | L179: 0.04377314815 | M179: =VLOOKUP(I179,'Registrace ZBP'!T:T,1,0) -> 3x5
A180: 169 | B180: 1 | C180: 3 | D180: 20 | F180: 3 | G180: OK | H180: OK | I180: 3x169 | J180: 01:03:20 | K180: 1 | L180: 0.04398148148 | M180: =VLOOKUP(I180,'Registrace ZBP'!T:T,1,0) -> 3x169
A181: 322 | B181: 1 | C181: 3 | D181: 46 | F181: 3 | G181: OK | H181: OK | I181: 3x322 | J181: 01:03:46 | K181: 1 | L181: 0.04428240741 | M181: =VLOOKUP(I181,'Registrace ZBP'!T:T,1,0) -> 3x322
A182: 341 | B182: 1 | C182: 4 | D182: 7 | F182: 3 | G182: OK | H182: OK | I182: 3x341 | J182: 01:04:07 | K182: 1 | L182: 0.04452546296 | M182: =VLOOKUP(I182,'Registrace ZBP'!T:T,1,0) -> 3x341
A183: 34 | B183: 1 | C183: 5 | D183: 37 | F183: 3 | G183: OK | H183: OK | I183: 3x34 | J183: 01:05:37 | K183: 1 | L183: 0.04556712963 | M183: =VLOOKUP(I183,'Registrace ZBP'!T:T,1,0) -> 3x34
A184: 388 | B184: 1 | C184: 10 | D184: 0 | F184: 3 | G184: OK | H184: OK | I184: 3x388 | J184: 01:10:00 | K184: 1 | L184: 0.04861111111 | M184: =VLOOKUP(I184,'Registrace ZBP'!T:T,1,0) -> 3x388
A185: 25 | B185: 0 | C185: 25 | D185: 59 | E185: DNF | F185: 3 | G185: OK | H185: OK | I185: 3x25 | K185: 1 | L185: 0.04861111111 | M185: =VLOOKUP(I185,'Registrace ZBP'!T:T,1,0) -> 3x25
A186: 48 | B186: 0 | C186: 18 | D186: 56 | E186: 0 | F186: 4 | G186: OK | H186: OK | I186: 4x48 | J186: 00:18:56 | K186: 1 | L186: 0.01314814815 | M186: =VLOOKUP(I186,'Registrace ZBP'!T:T,1,0) -> 4x48
A187: 68 | B187: 0 | C187: 20 | D187: 10 | E187: 0 | F187: 4 | G187: OK | H187: OK | I187: 4x68 | J187: 00:20:10 | K187: 1 | L187: 0.01400462963 | M187: =VLOOKUP(I187,'Registrace ZBP'!T:T,1,0) -> 4x68
A188: 69 | B188: 0 | C188: 21 | D188: 23 | E188: 0 | F188: 4 | G188: OK | H188: OK | I188: 4x69 | J188: 00:21:23 | K188: 1 | L188: 0.01484953704 | M188: =VLOOKUP(I188,'Registrace ZBP'!T:T,1,0) -> 4x69
A189: 34 | B189: 0 | C189: 22 | D189: 15 | E189: 0 | F189: 4 | G189: OK | H189: OK | I189: 4x34 | J189: 00:22:15 | K189: 1 | L189: 0.01545138889 | M189: =VLOOKUP(I189,'Registrace ZBP'!T:T,1,0) -> 4x34
A190: 47 | B190: 0 | C190: 22 | D190: 33 | E190: 0 | F190: 4 | G190: OK | H190: OK | I190: 4x47 | J190: 00:22:33 | K190: 1 | L190: 0.01565972222 | M190: =VLOOKUP(I190,'Registrace ZBP'!T:T,1,0) -> 4x47
A191: 42 | B191: 0 | C191: 22 | D191: 44 | E191: 0 | F191: 4 | G191: OK | H191: OK | I191: 4x42 | J191: 00:22:44 | K191: 1 | L191: 0.01578703704 | M191: =VLOOKUP(I191,'Registrace ZBP'!T:T,1,0) -> 4x42
A192: 15 | B192: 0 | C192: 22 | D192: 52 | E192: 0 | F192: 4 | G192: OK | H192: OK | I192: 4x15 | J192: 00:22:52 | K192: 1 | L192: 0.01587962963 | M192: =VLOOKUP(I192,'Registrace ZBP'!T:T,1,0) -> 4x15
A193: 20 | B193: 0 | C193: 23 | D193: 10 | E193: 0 | F193: 4 | G193: OK | H193: OK | I193: 4x20 | J193: 00:23:10 | K193: 1 | L193: 0.01608796296 | M193: =VLOOKUP(I193,'Registrace ZBP'!T:T,1,0) -> 4x20
A194: 10 | B194: 0 | C194: 23 | D194: 23 | E194: 0 | F194: 4 | G194: =IF(AND(F194<>"",A194&B194&C194&D194&E194=""),"Nevyplněný řádek. Smaž ID závodu nebo doplň záznam.",IF(AND(F194<>"",K194>1),"Duplicitní záznam!",IF(AND(F194="",A194&B194&C194&D194&E194<>""),"Doplň ID závodu",IF(AND(A194="",B194&C194&D194&E194&F194<>""),"Doplň startovní číslo",IF(AND(A194<>"",B194&C194&D194&E194=""),"Doplň čas nebo dej DNF do sloupce Setiny.",IF(AND(A194<>"",F194<>"",ISNA(M194)),"Startovní číslo nenalezeno v REGISTRACI.","OK")))))) -> OK | H194: =IF(F194<>F193,IF(OR(L194<L195,L194=L195,F194=""),"OK","Potenciální chyba. Záznamy nejdou vzestupně."),IF(OR(L194>L193,L194=L193),"OK","Potenciální chyba. Záznamy nejdou vzestupně.")) -> OK | I194: =F194&"x"&A194 -> 4x10 | J194: =IF(B194+C194+D194+E194<>0,B194/24+C194/60/24+(D194+E194/100)/60/60/24,"-") -> 00:23:23 | K194: =IF(A194<>"",COUNTIF(I:I,I194),1) -> 1 | L194: =IF(F194<>F193,IFERROR(J194,0),IFERROR(J194,L193)) -> 0.01623842593 | M194: =VLOOKUP(I194,'Registrace ZBP'!T:T,1,0) -> 4x10
A195: 43 | B195: 0 | C195: 23 | D195: 29 | E195: 0 | F195: 4 | G195: OK | H195: OK | I195: 4x43 | J195: 00:23:29 | K195: 1 | L195: 0.01630787037 | M195: =VLOOKUP(I195,'Registrace ZBP'!T:T,1,0) -> 4x43
A196: 17 | B196: 0 | C196: 23 | D196: 50 | E196: 0 | F196: 4 | G196: OK | H196: OK | I196: 4x17 | J196: 00:23:50 | K196: 1 | L196: 0.01655092593 | M196: =VLOOKUP(I196,'Registrace ZBP'!T:T,1,0) -> 4x17
A197: 54 | B197: 0 | C197: 23 | D197: 53 | E197: 0 | F197: 4 | G197: OK | H197: OK | I197: 4x54 | J197: 00:23:53 | K197: 1 | L197: 0.01658564815 | M197: =VLOOKUP(I197,'Registrace ZBP'!T:T,1,0) -> 4x54
A198: 62 | B198: 0 | C198: 23 | D198: 54 | E198: 0 | F198: 4 | G198: OK | H198: OK | I198: 4x62 | J198: 00:23:54 | K198: 1 | L198: 0.01659722222 | M198: =VLOOKUP(I198,'Registrace ZBP'!T:T,1,0) -> 4x62
A199: 21 | B199: 0 | C199: 24 | D199: 3 | E199: 0 | F199: 4 | G199: OK | H199: OK | I199: 4x21 | J199: 00:24:03 | K199: 1 | L199: 0.01670138889 | M199: =VLOOKUP(I199,'Registrace ZBP'!T:T,1,0) -> 4x21
A200: 30 | B200: 0 | C200: 24 | D200: 22 | E200: 0 | F200: 4 | G200: OK | H200: OK | I200: 4x30 | J200: 00:24:22 | K200: 1 | L200: 0.0169212963 | M200: =VLOOKUP(I200,'Registrace ZBP'!T:T,1,0) -> 4x30
... 2800 more rows

Sheet Výsledky
F1: 1
A3: =IF(OR(Config!D1=FALSE,Config!D2=FALSE,Config!D3=FALSE,Config!D4=FALSE),"!!! ZPRACUJ VÝSLEDKY. DOŠLO KE ZMĚNÁM !!!","") & " " & _xlfn.IFNA(IF(VLOOKUP(TRUE,Config!$D$5:$D$8,1,0)=TRUE, "VSTUPNÍ DATA OBSAHUJÍ CHYBY !!!",""),"") ->  | I3: Datum: | J3: =VLOOKUP($A$4,'Závody a tratě'!$B:$K,6,0) -> 2018-10-20
A4: =IFERROR(IF(Config!$E$12="X",INDEX(Config!$A$2:$A$100,$F$1),Config!$D$12),0) -> 3 | B4: =VLOOKUP(A4,'Závody a tratě'!$B$1:$C$100,2,0) -> Krumlovský běh | I4: =IF(VLOOKUP($A$4,'Závody a tratě'!$B:$K,8,0)="","-",VLOOKUP($A$4,'Závody a tratě'!$B:$K,8,0)) -> - | K4: =IF(VLOOKUP($A$4,'Závody a tratě'!$B:$K,9,0)="","-",VLOOKUP($A$4,'Závody a tratě'!$B:$K,9,0)) -> -
A5: Výsledky podle lokálních kategorií | D5: =IF(ISNA(VLOOKUP($A$4&"xM11xANO",'Závody a tratě'!$L:$L,1,0)),"NEBODOVANÝ ZÁVOD","") ->  | E5: Trať: | F5: ="M11 ("&(VLOOKUP($A$4&"xM11",'Závody a tratě'!$A:$F,5,0))&")" -> M11 (Muži 10,9 km) | I5: Délka: | J5: =VLOOKUP($A$4&"xM11",'Závody a tratě'!$A:$F,6,0) -> 10.9 | K5: km
A6: Poř. | B6: Příjmení | C6: Jméno | D6: Klub | E6: Rok narození | F6: Celkové pořadí | G6: Kat. | H6: Kat. ZBP | I6: Čas | J6: Body ZBP | K6: Čas na 1 km
A7: LMA | B7: L: Muži do 39
A8: 1 | B8: Soural | C8: Lukáš | D8: Orel-Židenice/VSK UNI BRNO | E8: 1982 | F8: 1 | G8: LMA | H8: MA | I8: 0.02547453704 | J8: 30 | K8: 00:03:21.927
A9: 2 | B9: Dvořák | C9: Pavel | D9: AC Prostějov | E9: 1982 | F9: 2 | G9: LMA | H9: MA | I9: 0.02563657407 | J9: 25 | K9: 00:03:23.211
A10: 3 | B10: Čabala | C10: Vojtěch | D10: Rabbits Znojmo | E10: 1993 | F10: 4 | G10: LMA | H10: MA | I10: 0.02675925926 | J10: 21 | K10: 00:03:32.110
A11: 4 | B11: Hochman | C11: Zdeněk | D11: Orel Blučina | E11: 1985 | F11: 5 | G11: LMA | H11: MA | I11: 0.02759259259 | J11: 18 | K11: 00:03:38.716
A12: 5 | B12: Nezveda | C12: David | D12: Spartak Třebíč | E12: 1998 | F12: 6 | G12: LMA | H12: MA | I12: 0.02824074074 | J12: 16 | K12: 00:03:43.853
A13: 6 | B13: Koudelka | C13: Lukáš | D13: AK Drnovice | E13: 1983 | F13: 8 | G13: LMA | H13: MA | I13: 0.02842592593 | J13: 15 | K13: 00:03:45.321
A14: 7 | B14: Hrdina | C14: Tomáš | D14: AC Moravská Slavie | E14: 1979 | F14: 9 | G14: LMA | H14: MA | I14: 0.02887731481 | J14: 14 | K14: 00:03:48.899
A15: 8 | B15: Pokorný | C15: Ondřej | E15: 2001 | F15: 11 | G15: LMA | H15: MA | I15: 0.02934027778 | J15: 13 | K15: 00:03:52.569
A16: 9 | B16: Holub | C16: Pavel | D16: Rabbits Znojmo | E16: 1980 | F16: 17 | G16: LMA | H16: MA | I16: 0.03162037037 | J16: 12 | K16: 00:04:10.642
A17: 10 | B17: Štěpánek | C17: Radek | D17: Orel Obřany | E17: 1998 | F17: 19 | G17: LMA | H17: MA | I17: 0.03209490741 | J17: 11 | K17: 00:04:14.404
A18: 11 | B18: Bláha | C18: Daniel | E18: 2002 | F18: 20 | G18: LMA | H18: MA | I18: 0.03215277778 | J18: 10 | K18: 00:04:14.862
A19: 12 | B19: Souček | C19: Tomáš | D19: Rabbits Znojmo | E19: 1989 | F19: 21 | G19: LMA | H19: MA | I19: 0.03219907407 | J19: 9 | K19: 00:04:15.229
A20: 13 | B20: Foltýn | C20: Jiří | D20: Kuřim | E20: 1981 | F20: 30 | G20: LMA | H20: MA | I20: 0.03481481481 | J20: 8 | K20: 00:04:35.963
A21: 14 | B21: Kupčík | C21: Roman | E21: 1985 | F21: 34 | G21: LMA | H21: MA | I21: 0.03671296296 | J21: 7 | K21: 00:04:51.009
A22: 15 | B22: Cenek | C22: Ivo | E22: 1987 | F22: 38 | G22: LMA | H22: MA | I22: 0.04018518519 | J22: 6 | K22: 00:05:18.532
A23: LMB | B23: L: Muži 40 - 49
A24: 1 | B24: Kocur | C24: Lukáš | D24: Orel Šitbořice | E24: 1977 | F24: 3 | G24: LMB | H24: MB | I24: 0.02663194444 | J24: 30 | K24: 00:03:31.101
A25: 2 | B25: Kazda | C25: Petr | E25: 1970 | F25: 10 | G25: LMB | H25: MB | I25: 0.02898148148 | J25: 25 | K25: 00:03:49.725
A26: 3 | B26: Čermák | C26: Bedřich | D26: Atletic Třebíč | E26: 1974 | F26: 12 | G26: LMB | H26: MB | I26: 0.02962962963 | J26: 21 | K26: 00:03:54.862
A27: 4 | B27: Jiřikovský | C27: Pavel | E27: 1973 | F27: 13 | G27: LMB | H27: MB | I27: 0.0296875 | J27: 18 | K27: 00:03:55.321
A28: 5 | B28: Horák | C28: Petr | D28: Orel Silůvky | E28: 1976 | F28: 15 | G28: LMB | H28: MB | I28: 0.03114583333 | J28: 16 | K28: 00:04:06.881
A29: 6 | B29: Tvarůžka | C29: Tomáš | D29: Oněmec.cz | E29: 1972 | F29: 25 | G29: LMB | H29: MB | I29: 0.03358796296 | J29: 15 | K29: 00:04:26.239
A30: 7 | B30: Frýbort | C30: David | D30: AK Rosice | E30: 1974 | F30: 31 | G30: LMB | H30: MB | I30: 0.03554398148 | J30: 14 | K30: 00:04:41.743
A31: 8 | B31: Provazník | C31: Zdeněk | D31: Orel Vyškov | E31: 1974 | F31: 32 | G31: LMB | H31: MB | I31: 0.03609953704 | J31: 13 | K31: 00:04:46.147
A32: 9 | B32: Dvořák | C32: Jiří | D32: Atletic Třebíč | E32: 1969 | F32: 33 | G32: LMB | H32: MB | I32: 0.0366087963 | J32: 12 | K32: 00:04:50.183
A33: 10 | B33: Spargel | C33: Ladislav | E33: 1973 | F33: 41 | G33: LMB | H33: MB | I33: 0.04398148148 | J33: 11 | K33: 00:05:48.624
A34: DNF | B34: Goldschmidt | C34: Roman | D34: SKK Mor.Krumlov | E34: 1973 | F34: DNF | G34: LMB | H34: MB | I34: DNF | J34: 0
A35: LMC | B35: L: Muži 50 - 59
A36: 1 | B36: Kratochvíl | C36: Pavel | D36: Atletic Třebíč | E36: 1960 | F36: 7 | G36: LMC | H36: MC | I36: 0.02827546296 | J36: 30 | K36: 00:03:44.128
A37: 2 | B37: Zálešák | C37: Josef | D37: Orel Vyškov | E37: 1967 | F37: 14 | G37: LMC | H37: MC | I37: 0.03064814815 | J37: 25 | K37: 00:04:02.936
A38: 3 | B38: Jančařík | C38: Petr | D38: AAC Brno - Orel Židenice | E38: 1968 | F38: 16 | G38: LMC | H38: MC | I38: 0.03141203704 | J38: 21 | K38: 00:04:08.991
A39: 4 | B39: Křepela | C39: Luděk | E39: 1964 | F39: 23 | G39: LMC | H39: MC | I39: 0.03292824074 | J39: 18 | K39: 00:04:21.009
A40: 5 | B40: Němec | C40: Bedřich | D40: Hornice | E40: 1964 | F40: 24 | G40: LMC | H40: MC | I40: 0.03353009259 | J40: 16 | K40: 00:04:25.780
A41: 6 | B41: Mezera | C41: Pavel | D41: Bílovice nad Svitavou | E41: 1968 | F41: 26 | G41: LMC | H41: MC | I41: 0.03392361111 | J41: 15 | K41: 00:04:28.899
A42: 7 | B42: Míka | C42: Ivo | D42: Orel Obřany | E42: 1966 | F42: 28 | G42: LMC | H42: MC | I42: 0.03430555556 | J42: 14 | K42: 00:04:31.927
A43: 8 | B43: Bulín | C43: Jindřich | D43: TJ Sokol Plaveč | E43: 1967 | F43: 40 | G43: LMC | H43: MC | I43: 0.04377314815 | J43: 13 | K43: 00:05:46.972
A44: 9 | B44: Halbrštat | C44: Petr | D44: Znojmo | E44: 1967 | F44: 43 | G44: LMC | H44: MC | I44: 0.04556712963 | J44: 12 | K44: 00:06:01.193
A45: LMD | B45: L: Muži nad 60
A46: 1 | B46: Januška | C46: Ivan | D46: Šanov | E46: 1958 | F46: 18 | G46: LMD | H46: MD | I46: 0.03195601852 | J46: 30 | K46: 00:04:13.303
A47: 2 | B47: Nováček | C47: Josef | D47: SDH Čučice | E47: 1958 | F47: 22 | G47: LMD | H47: MD | I47: 0.0325 | J47: 25 | K47: 00:04:17.615
A48: 3 | B48: Bobek | C48: Josef | D48: TJ Znojmo | E48: 1949 | F48: 27 | G48: LMD | H48: MD | I48: 0.03412037037 | J48: 21 | K48: 00:04:30.459
A49: 4 | B49: Danielovič | C49: Leo | D49: Hradiště Znojmo | E49: 1958 | F49: 29 | G49: LMD | H49: MD | I49: 0.03462962963 | J49: 18 | K49: 00:04:34.495
A50: 5 | B50: Čáp | C50: Bohuslav | D50: Orel Hradec Králové | E50: 1951 | F50: 35 | G50: LMD | H50: MD | I50: 0.03774305556 | J50: 16 | K50: 00:04:59.174
A51: 6 | B51: Gross | C51: Luděk | D51: GPOA Znojmo | E51: 1953 | F51: 36 | G51: LMD | H51: MD | I51: 0.03842592593 | J51: 15 | K51: 00:05:04.587
A52: 7 | B52: Vacek | C52: Vladimír | D52: Poušov | E52: 1951 | F52: 37 | G52: LMD | H52: MD | I52: 0.03917824074 | J52: 14 | K52: 00:05:10.550
A53: 8 | B53: Bubeník | C53: Jiří | D53: Orel Vyškov | E53: 1944 | F53: 39 | G53: LMD | H53: MD | I53: 0.04309027778 | J53: 13 | K53: 00:05:41.560
A54: 9 | B54: Pecháček | C54: Miroslav | D54: Orel Dolní Čermná | E54: 1948 | F54: 42 | G54: LMD | H54: MD | I54: 0.04428240741 | J54: 12 | K54: 00:05:51.009
A55: 10 | B55: Tomíšek | C55: Jindřich | D55: Orel Horní Moštěnice | E55: 1939 | F55: 44 | G55: LMD | H55: MD | I55: 0.04861111111 | J55: 11 | K55: 00:06:25.321
A57: Výsledky podle lokálních kategorií | D57: =IF(ISNA(VLOOKUP($A$4&"xM4xANO",'Závody a tratě'!$L:$L,1,0)),"NEBODOVANÝ ZÁVOD","") -> NEBODOVANÝ ZÁVOD | E57: Trať: | F57: ="M4 ("&(VLOOKUP($A$4&"xM4",'Závody a tratě'!$A:$F,5,0))&")" -> M4 (Muži 4,5 km) | I57: Délka: | J57: =VLOOKUP($A$4&"xM4",'Závody a tratě'!$A:$F,6,0) -> 4.5 | K57: km
A58: Poř. | B58: Příjmení | C58: Jméno | D58: Klub | E58: Rok narození | F58: Celkové pořadí | G58: Kat. | H58: Kat. ZBP | I58: Čas | J58: Body ZBP | K58: Čas na 1 km
A59: LMA | B59: L: Muži do 39
A60: 1 | B60: Říha | C60: Jaroslav | D60: Orel Kuřim | E60: 1999 | F60: 1 | G60: LMA | H60: MA | I60: 0.01085648148 | J60: 0 | K60: 00:03:28.444
A61: 2 | B61: Tomek | C61: Jiří | E61: 1997 | F61: 2 | G61: LMA | H61: MA | I61: 0.01097222222 | J61: 0 | K61: 00:03:30.667
A62: 3 | B62: Dvořáček | C62: Jan | D62: Orel Žatčany | E62: 2000 | F62: 3 | G62: LMA | H62: MA | I62: 0.01231481481 | J62: 0 | K62: 00:03:56.444
A63: 4 | B63: Zejda | C63: Jiří | D63: Orel Obřany | E63: 1985 | F63: 4 | G63: LMA | H63: MA | I63: 0.01289351852 | J63: 0 | K63: 00:04:07.556
A64: 5 | B64: Halas | C64: Pavel | D64: Orel Šitbořice | E64: 1999 | F64: 6 | G64: LMA | H64: MA | I64: 0.01302083333 | J64: 0 | K64: 00:04:10
A65: 6 | B65: Stix | C65: Antonín | D65: Ac Moravský Krumlov | E65: 2005 | F65: 8 | G65: LMA | H65: MA | I65: 0.01421296296 | J65: 0 | K65: 00:04:32.889
A66: 7 | B66: Provazník | C66: Rafael | D66: Orel Vyškov | E66: 2010 | F66: 10 | G66: LMA | H66: MA | I66: 0.01445601852 | J66: 0 | K66: 00:04:37.556
A67: 8 | B67: Křístel | C67: Martin | D67: Brno | E67: 1990 | F67: 11 | G67: LMA | H67: MA | I67: 0.01466435185 | J67: 0 | K67: 00:04:41.556
A68: 9 | B68: Stix | C68: Josef | D68: Ac Moravský Krumlov | E68: 2008 | F68: 13 | G68: LMA | H68: MA | I68: 0.01584490741 | J68: 0 | K68: 00:05:04.222
A69: 10 | B69: Limburský | C69: Jan | D69: Orel Obřany | E69: 2001 | F69: 15 | G69: LMA | H69: MA | I69: 0.01961805556 | J69: 0 | K69: 00:06:16.667
A70: LMB | B70: L: Muži 40 - 49
A71: 1 | B71: Navrátil | C71: Milan | D71: Orel Vyškov | E71: 1971 | F71: 5 | G71: LMB | H71: MB | I71: 0.01290509259 | J71: 0 | K71: 00:04:07.778
A72: 2 | B72: Kamenický | C72: Petr | E72: 1969 | F72: 7 | G72: LMB | H72: MB | I72: 0.01327546296 | J72: 0 | K72: 00:04:14.889
A73: 3 | B73: Dřevojan | C73: Kamil | E73: 1977 | F73: 12 | G73: LMB | H73: MB | I73: 0.01484953704 | J73: 0 | K73: 00:04:45.111
A74: 4 | B74: Jedlička | C74: Jan | D74: - | E74: 1973 | F74: 14 | G74: LMB | H74: MB | I74: 0.01709490741 | J74: 0 | K74: 00:05:28.222
A75: LMD | B75: L: Muži nad 60
A76: 1 | B76: Kobliha | C76: Milan | D76: LRS Vyškov | E76: 1957 | F76: 9 | G76: LMD | H76: MD | I76: 0.01422453704 | J76: 0 | K76: 00:04:33.111
A78: Výsledky podle lokálních kategorií | D78: =IF(ISNA(VLOOKUP($A$4&"xZ11xANO",'Závody a tratě'!$L:$L,1,0)),"NEBODOVANÝ ZÁVOD","") -> NEBODOVANÝ ZÁVOD | E78: Trať: | F78: ="Z11 ("&(VLOOKUP($A$4&"xZ11",'Závody a tratě'!$A:$F,5,0))&")" -> Z11 (Ženy 10,9 km) | I78: Délka: | J78: =VLOOKUP($A$4&"xZ11",'Závody a tratě'!$A:$F,6,0) -> 10.9 | K78: km
A79: Poř. | B79: Příjmení | C79: Jméno | D79: Klub | E79: Rok narození | F79: Celkové pořadí | G79: Kat. | H79: Kat. ZBP | I79: Čas | J79: Body ZBP | K79: Čas na 1 km
A80: LZB | B80: L: Ženy 35 - 44
A81: 1 | B81: Divišová-Václavková | C81: Silvie | D81: AK Drnovice | E81: 1975 | F81: 1 | G81: LZB | H81: ZB | I81: 0.03283564815 | J81: 0 | K81: 00:04:20.275
A82: 2 | B82: Sobotková | C82: Irena | D82: Macháček a spol | E82: 1980 | F82: 2 | G82: LZB | H82: ZB | I82: 0.04452546296 | J82: 0 | K82: 00:05:52.936
A84: Výsledky podle lokálních kategorií | D84: =IF(ISNA(VLOOKUP($A$4&"xZ4xANO",'Závody a tratě'!$L:$L,1,0)),"NEBODOVANÝ ZÁVOD","") ->  | E84: Trať: | F84: ="Z4 ("&(VLOOKUP($A$4&"xZ4",'Závody a tratě'!$A:$F,5,0))&")" -> Z4 (Ženy 4,5 km) | I84: Délka: | J84: =VLOOKUP($A$4&"xZ4",'Závody a tratě'!$A:$F,6,0) -> 4.5 | K84: km
A85: Poř. | B85: Příjmení | C85: Jméno | D85: Klub | E85: Rok narození | F85: Celkové pořadí | G85: Kat. | H85: Kat. ZBP | I85: Čas | J85: Body ZBP | K85: Čas na 1 km
A86: LZA | B86: L: Ženy do 34
A87: 1 | B87: Přistálová | C87: Veronika | D87: Znojmo | E87: 1984 | F87: 2 | G87: LZA | H87: ZA | I87: 0.01267361111 | J87: 30 | K87: 00:04:03.333
A88: 2 | B88: Švestková | C88: Soňa | D88: Znojmo | E88: 1988 | F88: 3 | G88: LZA | H88: ZA | I88: 0.01291666667 | J88: 25 | K88: 00:04:08
A89: 3 | B89: Chloupková | C89: Ilona | E89: 1984 | F89: 4 | G89: LZA | H89: ZA | I89: 0.01292824074 | J89: 21 | K89: 00:04:08.222
A90: 4 | B90: Saulenas | C90: Alexandra | D90: Masatchusetts | E90: 1994 | F90: 5 | G90: LZA | H90: ZA | I90: 0.01320601852 | J90: 18 | K90: 00:04:13.556
A91: 5 | B91: Strnadová | C91: Klára | D91: AK Drnovice | E91: 2001 | F91: 7 | G91: LZA | H91: ZA | I91: 0.0137962963 | J91: 16 | K91: 00:04:24.889
A92: 6 | B92: Machalová | C92: Denisa | D92: AK Drnovice | E92: 2000 | F92: 17 | G92: LZA | H92: ZA | I92: 0.01449074074 | J92: 15 | K92: 00:04:38.222
A93: 7 | B93: Maráková | C93: Blanka | D93: Orel-Židenice | E93: 2000 | F93: 19 | G93: LZA | H93: ZA | I93: 0.01466435185 | J93: 14 | K93: 00:04:41.556
A94: 8 | B94: Petrášová | C94: Dagmar | E94: 1987 | F94: 39 | G94: LZA | H94: ZA | I94: 0.01644675926 | J94: 13 | K94: 00:05:15.778
A95: 9 | B95: Dřevojanová | C95: Monika | E95: 1984 | F95: 45 | G95: LZA | H95: ZA | I95: 0.01711805556 | J95: 12 | K95: 00:05:28.667
A96: 10 | B96: Bartová | C96: Miroslava | E96: 1995 | F96: 47 | G96: LZA | H96: ZA | I96: 0.01721064815 | J96: 11 | K96: 00:05:30.444
A97: 10 | B97: Bartová | C97: Kristýna | E97: 1993 | F97: 47 | G97: LZA | H97: ZA | I97: 0.01721064815 | J97: 11 | K97: 00:05:30.444
A98: 12 | B98: Koukalová | C98: Veronika | E98: 1987 | F98: 50 | G98: LZA | H98: ZA | I98: 0.01728009259 | J98: 9 | K98: 00:05:31.778
A99: 14 | B99: Bulínová | C99: Jitka | D99: TJ Sokol Plaveč | E99: 1993 | F99: 53 | G99: LZA | H99: ZA | I99: 0.01734953704 | J99: 7 | K99: 00:05:33.111
A100: 16 | B100: Monika | C100: Budinská | E100: 1988 | F100: 56 | G100: LZA | H100: ZA | I100: 0.01945601852 | J100: 5 | K100: 00:06:13.556
A101: 18 | B101: Limburská | C101: Eliška | D101: Orel Obřany | E101: 1999 | F101: 59 | G101: LZA | H101: ZA | I101: 0.01957175926 | J101: 3 | K101: 00:06:15.778
A102: 20 | B102: Dokoupilová | C102: Emílie | D102: Orel Žatčany | E102: 2001 | F102: 71 | G102: LZA | H102: ZA | I102: 0.02424768519 | J102: 1 | K102: 00:07:45.556
A103: LZB | B103: L: Ženy 35 - 44
A104: 1 | B104: Horáková | C104: Šárka | D104: Orel Silůvky | E104: 1977 | F104: 5 | G104: LZB | H104: ZB | I104: 0.01320601852 | J104: 30 | K104: 00:04:13.556
A105: 2 | B105: Svobodová | C105: Martina | D105: Orel Obřany | E105: 1975 | F105: 15 | G105: LZB | H105: ZB | I105: 0.01418981481 | J105: 25 | K105: 00:04:32.444
A106: 3 | B106: Zdařilová | C106: Zuzana | D106: Orel Židenice | E106: 1983 | F106: 21 | G106: LZB | H106: ZB | I106: 0.01502314815 | J106: 21 | K106: 00:04:48.444
A107: 4 | B107: Maryšlerová | C107: Monika | D107: Orel Obřany | E107: 1974 | F107: 25 | G107: LZB | H107: ZB | I107: 0.01528935185 | J107: 18 | K107: 00:04:53.556
A108: 5 | B108: Čermáková | C108: Věra | D108: Karkulka Znojmo | E108: 1978 | F108: 31 | G108: LZB | H108: ZB | I108: 0.01550925926 | J108: 16 | K108: 00:04:57.778
A109: 6 | B109: Holubová | C109: Jana | D109: Blížkovice | E109: 1982 | F109: 35 | G109: LZB | H109: ZB | I109: 0.01621527778 | J109: 15 | K109: 00:05:11.333
A110: 7 | B110: Kupčíková | C110: Dagmar | E110: 1977 | F110: 41 | G110: LZB | H110: ZB | I110: 0.01679398148 | J110: 14 | K110: 00:05:22.444
A111: 8 | B111: Mlátilíková | C111: Tamara | E111: 1982 | F111: 43 | G111: LZB | H111: ZB | I111: 0.01699074074 | J111: 13 | K111: 00:05:26.222
A112: DNF | B112: Havlíčková | C112: Markéta | D112: Orel Vyškov | E112: 1978 | F112: DNF | G112: LZB | H112: ZB | I112: DNF | J112: 0
A113: LZC | B113: L: Ženy nad 45
A114: 1 | B114: Jančaříková | C114: Lenka | D114: AAC Brno - Orel Židenice | E114: 1970 | F114: 1 | G114: LZC | H114: ZC | I114: 0.01196759259 | J114: 30 | K114: 00:03:49.778
A115: 2 | B115: Hynštová | C115: Marie | D115: AK Drnovice | E115: 1957 | F115: 9 | G115: LZC | H115: ZC | I115: 0.01388888889 | J115: 25 | K115: 00:04:26.667
A116: 3 | B116: Slabáková | C116: Lenka | D116: Orel - Židenice | E116: 1966 | F116: 11 | G116: LZC | H116: ZC | I116: 0.01408564815 | J116: 21 | K116: 00:04:30.444
A117: 4 | B117: Dvořáková | C117: Eva | D117: Prostějov | E117: 1955 | F117: 13 | G117: LZC | H117: ZC | I117: 0.01417824074 | J117: 18 | K117: 00:04:32.222
A118: 5 | B118: Valášková | C118: Jana | D118: BBK Fitness | E118: 1965 | F118: 23 | G118: LZC | H118: ZC | I118: 0.01503472222 | J118: 16 | K118: 00:04:48.667
A119: 6 | B119: Kučerová | C119: Jana | D119: Rohatec | E119: 1971 | F119: 27 | G119: LZC | H119: ZC | I119: 0.01541666667 | J119: 15 | K119: 00:04:56
A120: 7 | B120: Skřivánková | C120: Dana | D120: Orel Vyškov | E120: 1967 | F120: 29 | G120: LZC | H120: ZC | I120: 0.01545138889 | J120: 14 | K120: 00:04:56.667
A121: 8 | B121: Vybíralová | C121: Pavla | D121: AK Rosice | E121: 1971 | F121: 33 | G121: LZC | H121: ZC | I121: 0.01555555556 | J121: 13 | K121: 00:04:58.667
A122: 9 | B122: Dvořáková | C122: Lenka | D122: Atletic Třebíč | E122: 1972 | F122: 37 | G122: LZC | H122: ZC | I122: 0.01640046296 | J122: 12 | K122: 00:05:14.889
A123: 10 | B123: Hrůzová | C123: Milena | D123: Orel Vyškov | E123: 1953 | F123: 62 | G123: LZC | H123: ZC | I123: 0.01986111111 | J123: 11 | K123: 00:06:21.333
A124: 11 | B124: Holíková | C124: Ida | D124: Znojemské běhání | E124: 1964 | F124: 65 | G124: LZC | H124: ZC | I124: 0.0202662037 | J124: 10 | K124: 00:06:29.111
A125: 12 | B125: Fučíková | C125: Hana | D125: Orel Obřany | E125: 1967 | F125: 68 | G125: LZC | H125: ZC | I125: 0.02103009259 | J125: 9 | K125: 00:06:43.778
A126: 13 | B126: Miková | C126: Renata | D126: Orel Obřany | E126: 1972 | F126: 74 | G126: LZC | H126: ZC | I126: 0.02538194444 | J126: 8 | K126: 00:08:07.333
A128: Výsledky podle kategorií ZBP | D128: =IF(ISNA(VLOOKUP($A$4&"xM11xANO",'Závody a tratě'!$L:$L,1,0)),"NEBODOVANÝ ZÁVOD","") ->  | E128: Trať: | F128: ="M11 ("&(VLOOKUP($A$4&"xM11",'Závody a tratě'!$A:$F,5,0))&")" -> M11 (Muži 10,9 km) | I128: Délka: | J128: =VLOOKUP($A$4&"xM11",'Závody a tratě'!$A:$F,6,0) -> 10.9 | K128: km
A129: Poř. | B129: Příjmení | C129: Jméno | D129: Klub | E129: Rok narození | F129: Celkové pořadí | G129: Kat. | H129: Kat. ZBP | I129: Čas | J129: Body ZBP | K129: Čas na 1 km
A130: MA | B130: Muži do 39
A131: 1 | B131: Soural | C131: Lukáš | D131: Orel-Židenice/VSK UNI BRNO | E131: 1982 | F131: 1 | G131: LMA | H131: MA | I131: 0.02547453704 | J131: 30 | K131: 00:03:21.927
A132: 2 | B132: Dvořák | C132: Pavel | D132: AC Prostějov | E132: 1982 | F132: 2 | G132: LMA | H132: MA | I132: 0.02563657407 | J132: 25 | K132: 00:03:23.211
A133: 3 | B133: Čabala | C133: Vojtěch | D133: Rabbits Znojmo | E133: 1993 | F133: 4 | G133: LMA | H133: MA | I133: 0.02675925926 | J133: 21 | K133: 00:03:32.110
A134: 4 | B134: Hochman | C134: Zdeněk | D134: Orel Blučina | E134: 1985 | F134: 5 | G134: LMA | H134: MA | I134: 0.02759259259 | J134: 18 | K134: 00:03:38.716
A135: 5 | B135: Nezveda | C135: David | D135: Spartak Třebíč | E135: 1998 | F135: 6 | G135: LMA | H135: MA | I135: 0.02824074074 | J135: 16 | K135: 00:03:43.853
A136: 6 | B136: Koudelka | C136: Lukáš | D136: AK Drnovice | E136: 1983 | F136: 8 | G136: LMA | H136: MA | I136: 0.02842592593 | J136: 15 | K136: 00:03:45.321
A137: 7 | B137: Hrdina | C137: Tomáš | D137: AC Moravská Slavie | E137: 1979 | F137: 9 | G137: LMA | H137: MA | I137: 0.02887731481 | J137: 14 | K137: 00:03:48.899
A138: 8 | B138: Pokorný | C138: Ondřej | E138: 2001 | F138: 11 | G138: LMA | H138: MA | I138: 0.02934027778 | J138: 13 | K138: 00:03:52.569
A139: 9 | B139: Holub | C139: Pavel | D139: Rabbits Znojmo | E139: 1980 | F139: 17 | G139: LMA | H139: MA | I139: 0.03162037037 | J139: 12 | K139: 00:04:10.642
A140: 10 | B140: Štěpánek | C140: Radek | D140: Orel Obřany | E140: 1998 | F140: 19 | G140: LMA | H140: MA | I140: 0.03209490741 | J140: 11 | K140: 00:04:14.404
A141: 11 | B141: Bláha | C141: Daniel | E141: 2002 | F141: 20 | G141: LMA | H141: MA | I141: 0.03215277778 | J141: 10 | K141: 00:04:14.862
A142: 12 | B142: Souček | C142: Tomáš | D142: Rabbits Znojmo | E142: 1989 | F142: 21 | G142: LMA | H142: MA | I142: 0.03219907407 | J142: 9 | K142: 00:04:15.229
A143: 13 | B143: Foltýn | C143: Jiří | D143: Kuřim | E143: 1981 | F143: 30 | G143: LMA | H143: MA | I143: 0.03481481481 | J143: 8 | K143: 00:04:35.963
A144: 14 | B144: Kupčík | C144: Roman | E144: 1985 | F144: 34 | G144: LMA | H144: MA | I144: 0.03671296296 | J144: 7 | K144: 00:04:51.009
A145: 15 | B145: Cenek | C145: Ivo | E145: 1987 | F145: 38 | G145: LMA | H145: MA | I145: 0.04018518519 | J145: 6 | K145: 00:05:18.532
A146: MB | B146: Muži 40 - 49
A147: 1 | B147: Kocur | C147: Lukáš | D147: Orel Šitbořice | E147: 1977 | F147: 3 | G147: LMB | H147: MB | I147: 0.02663194444 | J147: 30 | K147: 00:03:31.101
A148: 2 | B148: Kazda | C148: Petr | E148: 1970 | F148: 10 | G148: LMB | H148: MB | I148: 0.02898148148 | J148: 25 | K148: 00:03:49.725
A149: 3 | B149: Čermák | C149: Bedřich | D149: Atletic Třebíč | E149: 1974 | F149: 12 | G149: LMB | H149: MB | I149: 0.02962962963 | J149: 21 | K149: 00:03:54.862
A150: 4 | B150: Jiřikovský | C150: Pavel | E150: 1973 | F150: 13 | G150: LMB | H150: MB | I150: 0.0296875 | J150: 18 | K150: 00:03:55.321
A151: 5 | B151: Horák | C151: Petr | D151: Orel Silůvky | E151: 1976 | F151: 15 | G151: LMB | H151: MB | I151: 0.03114583333 | J151: 16 | K151: 00:04:06.881
A152: 6 | B152: Tvarůžka | C152: Tomáš | D152: Oněmec.cz | E152: 1972 | F152: 25 | G152: LMB | H152: MB | I152: 0.03358796296 | J152: 15 | K152: 00:04:26.239
A153: 7 | B153: Frýbort | C153: David | D153: AK Rosice | E153: 1974 | F153: 31 | G153: LMB | H153: MB | I153: 0.03554398148 | J153: 14 | K153: 00:04:41.743
A154: 8 | B154: Provazník | C154: Zdeněk | D154: Orel Vyškov | E154: 1974 | F154: 32 | G154: LMB | H154: MB | I154: 0.03609953704 | J154: 13 | K154: 00:04:46.147
A155: 9 | B155: Dvořák | C155: Jiří | D155: Atletic Třebíč | E155: 1969 | F155: 33 | G155: LMB | H155: MB | I155: 0.0366087963 | J155: 12 | K155: 00:04:50.183
A156: 10 | B156: Spargel | C156: Ladislav | E156: 1973 | F156: 41 | G156: LMB | H156: MB | I156: 0.04398148148 | J156: 11 | K156: 00:05:48.624
A157: DNF | B157: Goldschmidt | C157: Roman | D157: SKK Mor.Krumlov | E157: 1973 | F157: DNF | G157: LMB | H157: MB | I157: DNF | J157: 0
A158: MC | B158: Muži 50 - 59
A159: 1 | B159: Kratochvíl | C159: Pavel | D159: Atletic Třebíč | E159: 1960 | F159: 7 | G159: LMC | H159: MC | I159: 0.02827546296 | J159: 30 | K159: 00:03:44.128
A160: 2 | B160: Zálešák | C160: Josef | D160: Orel Vyškov | E160: 1967 | F160: 14 | G160: LMC | H160: MC | I160: 0.03064814815 | J160: 25 | K160: 00:04:02.936
A161: 3 | B161: Jančařík | C161: Petr | D161: AAC Brno - Orel Židenice | E161: 1968 | F161: 16 | G161: LMC | H161: MC | I161: 0.03141203704 | J161: 21 | K161: 00:04:08.991
A162: 4 | B162: Křepela | C162: Luděk | E162: 1964 | F162: 23 | G162: LMC | H162: MC | I162: 0.03292824074 | J162: 18 | K162: 00:04:21.009
A163: 5 | B163: Němec | C163: Bedřich | D163: Hornice | E163: 1964 | F163: 24 | G163: LMC | H163: MC | I163: 0.03353009259 | J163: 16 | K163: 00:04:25.780
A164: 6 | B164: Mezera | C164: Pavel | D164: Bílovice nad Svitavou | E164: 1968 | F164: 26 | G164: LMC | H164: MC | I164: 0.03392361111 | J164: 15 | K164: 00:04:28.899
A165: 7 | B165: Míka | C165: Ivo | D165: Orel Obřany | E165: 1966 | F165: 28 | G165: LMC | H165: MC | I165: 0.03430555556 | J165: 14 | K165: 00:04:31.927
A166: 8 | B166: Bulín | C166: Jindřich | D166: TJ Sokol Plaveč | E166: 1967 | F166: 40 | G166: LMC | H166: MC | I166: 0.04377314815 | J166: 13 | K166: 00:05:46.972
A167: 9 | B167: Halbrštat | C167: Petr | D167: Znojmo | E167: 1967 | F167: 43 | G167: LMC | H167: MC | I167: 0.04556712963 | J167: 12 | K167: 00:06:01.193
A168: MD | B168: Muži nad 60
A169: 1 | B169: Januška | C169: Ivan | D169: Šanov | E169: 1958 | F169: 18 | G169: LMD | H169: MD | I169: 0.03195601852 | J169: 30 | K169: 00:04:13.303
A170: 2 | B170: Nováček | C170: Josef | D170: SDH Čučice | E170: 1958 | F170: 22 | G170: LMD | H170: MD | I170: 0.0325 | J170: 25 | K170: 00:04:17.615
A171: 3 | B171: Bobek | C171: Josef | D171: TJ Znojmo | E171: 1949 | F171: 27 | G171: LMD | H171: MD | I171: 0.03412037037 | J171: 21 | K171: 00:04:30.459
A172: 4 | B172: Danielovič | C172: Leo | D172: Hradiště Znojmo | E172: 1958 | F172: 29 | G172: LMD | H172: MD | I172: 0.03462962963 | J172: 18 | K172: 00:04:34.495
A173: 5 | B173: Čáp | C173: Bohuslav | D173: Orel Hradec Králové | E173: 1951 | F173: 35 | G173: LMD | H173: MD | I173: 0.03774305556 | J173: 16 | K173: 00:04:59.174
A174: 6 | B174: Gross | C174: Luděk | D174: GPOA Znojmo | E174: 1953 | F174: 36 | G174: LMD | H174: MD | I174: 0.03842592593 | J174: 15 | K174: 00:05:04.587
A175: 7 | B175: Vacek | C175: Vladimír | D175: Poušov | E175: 1951 | F175: 37 | G175: LMD | H175: MD | I175: 0.03917824074 | J175: 14 | K175: 00:05:10.550
A176: 8 | B176: Bubeník | C176: Jiří | D176: Orel Vyškov | E176: 1944 | F176: 39 | G176: LMD | H176: MD | I176: 0.04309027778 | J176: 13 | K176: 00:05:41.560
A177: 9 | B177: Pecháček | C177: Miroslav | D177: Orel Dolní Čermná | E177: 1948 | F177: 42 | G177: LMD | H177: MD | I177: 0.04428240741 | J177: 12 | K177: 00:05:51.009
A178: 10 | B178: Tomíšek | C178: Jindřich | D178: Orel Horní Moštěnice | E178: 1939 | F178: 44 | G178: LMD | H178: MD | I178: 0.04861111111 | J178: 11 | K178: 00:06:25.321
A180: Výsledky podle kategorií ZBP | D180: =IF(ISNA(VLOOKUP($A$4&"xM4xANO",'Závody a tratě'!$L:$L,1,0)),"NEBODOVANÝ ZÁVOD","") -> NEBODOVANÝ ZÁVOD | E180: Trať: | F180: ="M4 ("&(VLOOKUP($A$4&"xM4",'Závody a tratě'!$A:$F,5,0))&")" -> M4 (Muži 4,5 km) | I180: Délka: | J180: =VLOOKUP($A$4&"xM4",'Závody a tratě'!$A:$F,6,0) -> 4.5 | K180: km
A181: Poř. | B181: Příjmení | C181: Jméno | D181: Klub | E181: Rok narození | F181: Celkové pořadí | G181: Kat. | H181: Kat. ZBP | I181: Čas | J181: Body ZBP | K181: Čas na 1 km
A182: MA | B182: Muži do 39
A183: 1 | B183: Říha | C183: Jaroslav | D183: Orel Kuřim | E183: 1999 | F183: 1 | G183: LMA | H183: MA | I183: 0.01085648148 | J183: 0 | K183: 00:03:28.444
A184: 2 | B184: Tomek | C184: Jiří | E184: 1997 | F184: 2 | G184: LMA | H184: MA | I184: 0.01097222222 | J184: 0 | K184: 00:03:30.667
A185: 3 | B185: Dvořáček | C185: Jan | D185: Orel Žatčany | E185: 2000 | F185: 3 | G185: LMA | H185: MA | I185: 0.01231481481 | J185: 0 | K185: 00:03:56.444
A186: 4 | B186: Zejda | C186: Jiří | D186: Orel Obřany | E186: 1985 | F186: 4 | G186: LMA | H186: MA | I186: 0.01289351852 | J186: 0 | K186: 00:04:07.556
A187: 5 | B187: Halas | C187: Pavel | D187: Orel Šitbořice | E187: 1999 | F187: 6 | G187: LMA | H187: MA | I187: 0.01302083333 | J187: 0 | K187: 00:04:10
A188: 6 | B188: Stix | C188: Antonín | D188: Ac Moravský Krumlov | E188: 2005 | F188: 8 | G188: LMA | H188: MA | I188: 0.01421296296 | J188: 0 | K188: 00:04:32.889
A189: 7 | B189: Provazník | C189: Rafael | D189: Orel Vyškov | E189: 2010 | F189: 10 | G189: LMA | H189: MA | I189: 0.01445601852 | J189: 0 | K189: 00:04:37.556
A190: 8 | B190: Křístel | C190: Martin | D190: Brno | E190: 1990 | F190: 11 | G190: LMA | H190: MA | I190: 0.01466435185 | J190: 0 | K190: 00:04:41.556
A191: 9 | B191: Stix | C191: Josef | D191: Ac Moravský Krumlov | E191: 2008 | F191: 13 | G191: LMA | H191: MA | I191: 0.01584490741 | J191: 0 | K191: 00:05:04.222
A192: 10 | B192: Limburský | C192: Jan | D192: Orel Obřany | E192: 2001 | F192: 15 | G192: LMA | H192: MA | I192: 0.01961805556 | J192: 0 | K192: 00:06:16.667
A193: MB | B193: Muži 40 - 49
A194: 1 | B194: Navrátil | C194: Milan | D194: Orel Vyškov | E194: 1971 | F194: 5 | G194: LMB | H194: MB | I194: 0.01290509259 | J194: 0 | K194: 00:04:07.778
A195: 2 | B195: Kamenický | C195: Petr | E195: 1969 | F195: 7 | G195: LMB | H195: MB | I195: 0.01327546296 | J195: 0 | K195: 00:04:14.889
A196: 3 | B196: Dřevojan | C196: Kamil | E196: 1977 | F196: 12 | G196: LMB | H196: MB | I196: 0.01484953704 | J196: 0 | K196: 00:04:45.111
A197: 4 | B197: Jedlička | C197: Jan | D197: - | E197: 1973 | F197: 14 | G197: LMB | H197: MB | I197: 0.01709490741 | J197: 0 | K197: 00:05:28.222
A198: MD | B198: Muži nad 60
A199: 1 | B199: Kobliha | C199: Milan | D199: LRS Vyškov | E199: 1957 | F199: 9 | G199: LMD | H199: MD | I199: 0.01422453704 | J199: 0 | K199: 00:04:33.111
A201: Výsledky podle kategorií ZBP | D201: =IF(ISNA(VLOOKUP($A$4&"xZ11xANO",'Závody a tratě'!$L:$L,1,0)),"NEBODOVANÝ ZÁVOD","") -> NEBODOVANÝ ZÁVOD | E201: Trať: | F201: ="Z11 ("&(VLOOKUP($A$4&"xZ11",'Závody a tratě'!$A:$F,5,0))&")" -> Z11 (Ženy 10,9 km) | I201: Délka: | J201: =VLOOKUP($A$4&"xZ11",'Závody a tratě'!$A:$F,6,0) -> 10.9 | K201: km
A202: Poř. | B202: Příjmení | C202: Jméno | D202: Klub | E202: Rok narození | F202: Celkové pořadí | G202: Kat. | H202: Kat. ZBP | I202: Čas | J202: Body ZBP | K202: Čas na 1 km
A203: ZB | B203: Ženy 35 - 44
A204: 1 | B204: Divišová-Václavková | C204: Silvie | D204: AK Drnovice | E204: 1975 | F204: 1 | G204: LZB | H204: ZB | I204: 0.03283564815 | J204: 0 | K204: 00:04:20.275
A205: 2 | B205: Sobotková | C205: Irena | D205: Macháček a spol | E205: 1980 | F205: 2 | G205: LZB | H205: ZB | I205: 0.04452546296 | J205: 0 | K205: 00:05:52.936
A207: Výsledky podle kategorií ZBP | D207: =IF(ISNA(VLOOKUP($A$4&"xZ4xANO",'Závody a tratě'!$L:$L,1,0)),"NEBODOVANÝ ZÁVOD","") ->  | E207: Trať: | F207: ="Z4 ("&(VLOOKUP($A$4&"xZ4",'Závody a tratě'!$A:$F,5,0))&")" -> Z4 (Ženy 4,5 km) | I207: Délka: | J207: =VLOOKUP($A$4&"xZ4",'Závody a tratě'!$A:$F,6,0) -> 4.5 | K207: km
A208: Poř. | B208: Příjmení | C208: Jméno | D208: Klub | E208: Rok narození | F208: Celkové pořadí | G208: Kat. | H208: Kat. ZBP | I208: Čas | J208: Body ZBP | K208: Čas na 1 km
... 149 more rows

Sheet Závody a tratě
A1: ID String | B1: ID závodu | C1: Název závodu | D1: ID tratě | E1: Název tratě | F1: Délka (km) | G1: Datum | H1: Součást ZBP | I1: Počasí | J1: Teplota | K1: Povrch | L1: ID String 2
A2: =B2&"x"&D2 -> 1xH | B2: 1 | C2: „Sokolák“ Plaveč u Znojma | D2: H | E2: Hobby 3 km | F2: 3 | G2: 2018-09-01 | H2: Ne | I2: zamračeno, trvalý déšť | J2: 18°C | K2: terén a mírné převýšení | L2: =B2&"x"&D2&"x"&UPPER(H2) -> 1xHxNE
A3: 1xM6 | B3: 1 | C3: „Sokolák“ Plaveč u Znojma | D3: M6 | E3: Muži 6 km | F3: 6 | G3: 2016-09-01 | H3: Ano | I3: zamračeno, trvalý déšť | J3: 18°C | K3: terén a mírné převýšení | L3: 1xM6xANO
A4: 1xZ3 | B4: 1 | C4: „Sokolák“ Plaveč u Znojma | D4: Z3 | E4: Ženy 3 km | F4: 3 | G4: 2018-09-01 | H4: Ano | I4: zamračeno, trvalý déšť | J4: 18°C | K4: terén a mírné převýšení | L4: 1xZ3xANO
A5: 2xM10 | B5: 2 | C5: Borovinská desítka | D5: M10 | E5: Muži 10 km | F5: 10 | G5: 2018-09-29 | H5: Ano | K5: asfalt | L5: 2xM10xANO
A6: 2xZ6 | B6: 2 | C6: Borovinská desítka | D6: Z6 | E6: Ženy 6,7 km | F6: 6.7 | G6: 2018-09-29 | H6: Ano | K6: asfalt | L6: 2xZ6xANO
A7: 3xM11 | B7: 3 | C7: Krumlovský běh | D7: M11 | E7: Muži 10,9 km | F7: 10.9 | G7: 2018-10-20 | H7: Ano | K7: asfalt | L7: 3xM11xANO
A8: 3xM4 | B8: 3 | C8: Krumlovský běh | D8: M4 | E8: Muži 4,5 km | F8: 4.5 | G8: 2018-10-20 | H8: Ne | K8: asfalt | L8: 3xM4xNE
A9: 3xZ11 | B9: 3 | C9: Krumlovský běh | D9: Z11 | E9: Ženy 10,9 km | F9: 10.9 | G9: 2018-10-20 | H9: Ne | K9: asfalt | L9: 3xZ11xNE
A10: 3xZ4 | B10: 3 | C10: Krumlovský běh | D10: Z4 | E10: Ženy 4,5 km | F10: 4.5 | G10: 2018-10-20 | H10: Ano | K10: asfalt | L10: 3xZ4xANO
A11: 4xH4 | B11: 4 | C11: Běh Avanti | D11: H4 | E11: Hobby 4,5 km | F11: 4.5 | G11: 2018-11-03 | H11: Ne | I11: zataženo | J11: 11°C | K11: asfalt, polní cesty | L11: 4xH4xNE
A12: 4xM9 | B12: 4 | C12: Běh Avanti | D12: M9 | E12: Muži 9 km | F12: 9 | G12: 2018-11-03 | H12: Ano | I12: zataženo | J12: 11°C | K12: asfalt, polní cesty | L12: 4xM9xANO
A13: 4xZ4 | B13: 4 | C13: Běh Avanti | D13: Z4 | E13: Ženy 4,5 km | F13: 4.5 | G13: 2018-11-03 | H13: Ano | I13: zataženo | J13: 11°C | K13: asfalt, polní cesty | L13: 4xZ4xANO
A14: x | L14: xx
A15: x | L15: xx
A16: x | L16: xx
A17: x | L17: xx
A18: x | L18: xx
A19: x | L19: xx
A20: x | L20: xx
A21: x | L21: xx
A22: x | L22: xx
A23: x | L23: xx
A24: x | L24: xx
A25: x | L25: xx
A26: x | L26: xx
A27: x | L27: xx
A28: x | L28: xx
A29: x | L29: xx
A30: x | L30: xx
A31: x | L31: xx
A32: x | L32: xx
A33: x | L33: xx
A34: =B34&"x"&D34 -> x | L34: =B34&"x"&D34&"x"&UPPER(H34) -> xx
A35: x | L35: xx
A36: x | L36: xx
A37: x | L37: xx
A38: x | L38: xx
A39: x | L39: xx
A40: x | L40: xx
A41: x | L41: xx
A42: x | L42: xx
A43: x | L43: xx
A44: x | L44: xx
A45: x | L45: xx
A46: x | L46: xx
A47: x | L47: xx
A48: x | L48: xx
A49: x | L49: xx
A50: x | L50: xx
A51: x | L51: xx
A52: x | L52: xx
A53: x | L53: xx
A54: x | L54: xx
A55: x | L55: xx
A56: x | L56: xx
A57: x | L57: xx
A58: x | L58: xx
A59: x | L59: xx
A60: x | L60: xx
A61: x | L61: xx
A62: x | L62: xx
A63: x | L63: xx
A64: x | L64: xx
A65: x | L65: xx
A66: =B66&"x"&D66 -> x | L66: =B66&"x"&D66&"x"&UPPER(H66) -> xx
A67: x | L67: xx
A68: x | L68: xx
A69: x | L69: xx
A70: x | L70: xx
A71: x | L71: xx
A72: x | L72: xx
A73: x | L73: xx
A74: x | L74: xx
A75: x | L75: xx
A76: x | L76: xx
A77: x | L77: xx
A78: x | L78: xx
A79: x | L79: xx
A80: x | L80: xx
A81: x | L81: xx
A82: x | L82: xx
A83: x | L83: xx
A84: x | L84: xx
A85: x | L85: xx
A86: x | L86: xx
A87: x | L87: xx
A88: x | L88: xx
A89: x | L89: xx
A90: x | L90: xx
A91: x | L91: xx
A92: x | L92: xx
A93: x | L93: xx
A94: x | L94: xx
A95: x | L95: xx
A96: x | L96: xx
A97: x | L97: xx
A98: =B98&"x"&D98 -> x | L98: xx
A99: x | L99: xx
A100: x | L100: xx

Sheet Kategorie ZBP
A1: ID | B1: Pohlaví | C1: OD | D1: DO | E1: Kategorie | F1: Název kategorie
A2: =IF(B2<>"",UPPER(B2)&TEXT(C2,"0000"),"ZZ") -> M0001 | B2: m | C2: 1 | D2: 1958 | E2: MD | F2: Muži nad 60
A3: M1959 | B3: m | C3: 1959 | D3: 1968 | E3: MC | F3: Muži 50 - 59
A4: M1969 | B4: m | C4: 1969 | D4: 1978 | E4: MB | F4: Muži 40 - 49
A5: M1979 | B5: m | C5: 1979 | D5: 2018 | E5: MA | F5: Muži do 39
A6: Z0001 | B6: z | C6: 1 | D6: 1973 | E6: ZC | F6: Ženy nad 45
A7: Z1974 | B7: z | C7: 1974 | D7: 1983 | E7: ZB | F7: Ženy 35 - 44
A8: Z1984 | B8: z | C8: 1984 | D8: 2018 | E8: ZA | F8: Ženy do 34
A9: ZZ
A10: ZZ
A11: ZZ
A12: ZZ
A13: ZZ
A14: ZZ
A15: ZZ
A16: ZZ
A17: ZZ
A18: ZZ
A19: ZZ
A20: ZZ
A21: ZZ
A22: ZZ
A23: ZZ
A24: ZZ
A25: ZZ
A26: ZZ
A27: ZZ
A28: ZZ
A29: ZZ
A30: ZZ

Sheet Kategorie lokální
A1: ID | B1: ID závodu | C1: Pohlaví | D1: OD | E1: DO | F1: Kategorie | G1: Název kategorie
A2: =IF(B2<>"",TEXT(B2,"000")&UPPER(C2)&TEXT(D2,"0000"),"X") -> 001M0001 | B2: 1 | C2: m | D2: 1 | E2: 1958 | F2: LMD | G2: L: Muži od 60
A3: 001M1959 | B3: 1 | C3: m | D3: 1959 | E3: 1968 | F3: LMC | G3: L: Muži 50 - 59
A4: 001M1969 | B4: 1 | C4: m | D4: 1969 | E4: 1978 | F4: LMB | G4: L: Muži 40 - 49
A5: 001M1979 | B5: 1 | C5: m | D5: 1979 | E5: 2018 | F5: LMA | G5: L: Muži do 39
A6: 001Z0001 | B6: 1 | C6: z | D6: 1 | E6: 1983 | F6: LZB | G6: L: Ženy od 35
A7: 001Z1984 | B7: 1 | C7: z | D7: 1984 | E7: 2018 | F7: LZA | G7: L: Ženy do 34
A8: 002M0001 | B8: 2 | C8: m | D8: 1 | E8: 1948 | F8: LME | G8: L: Muži nad 70
A9: 002M1949 | B9: 2 | C9: m | D9: 1949 | E9: 1958 | F9: LMD | G9: L: Muži 60 - 69
A10: 002M1959 | B10: 2 | C10: m | D10: 1959 | E10: 1968 | F10: LMC | G10: L: Muži 50 - 59
A11: 002M1969 | B11: 2 | C11: m | D11: 1969 | E11: 1978 | F11: LMB | G11: L: Muži 40 - 49
A12: 002M1979 | B12: 2 | C12: m | D12: 1979 | E12: 2018 | F12: LMA | G12: L: Muži do 39
A13: 002Z0001 | B13: 2 | C13: z | D13: 1 | E13: 1973 | F13: LZC | G13: L: Ženy od 45
A14: 002Z1974 | B14: 2 | C14: z | D14: 1974 | E14: 1983 | F14: LZB | G14: L: Ženy 35 - 44
A15: 002Z1984 | B15: 2 | C15: z | D15: 1984 | E15: 2018 | F15: LZA | G15: L: Ženy do 34
A16: 003M0001 | B16: 3 | C16: m | D16: 1 | E16: 1958 | F16: LMD | G16: L: Muži nad 60
A17: 003M1959 | B17: 3 | C17: m | D17: 1959 | E17: 1968 | F17: LMC | G17: L: Muži 50 - 59
A18: 003M1969 | B18: 3 | C18: m | D18: 1969 | E18: 1978 | F18: LMB | G18: L: Muži 40 - 49
A19: 003M1979 | B19: 3 | C19: m | D19: 1979 | E19: 2018 | F19: LMA | G19: L: Muži do 39
A20: 003Z0001 | B20: 3 | C20: z | D20: 1 | E20: 1973 | F20: LZC | G20: L: Ženy nad 45
A21: 003Z1974 | B21: 3 | C21: z | D21: 1974 | E21: 1983 | F21: LZB | G21: L: Ženy 35 - 44
A22: 003Z1984 | B22: 3 | C22: z | D22: 1984 | E22: 2018 | F22: LZA | G22: L: Ženy do 34
A23: 004M0001 | B23: 4 | C23: m | D23: 1 | E23: 1958 | F23: LMD | G23: L: Muži nad 60
A24: 004M1959 | B24: 4 | C24: m | D24: 1959 | E24: 1968 | F24: LMC | G24: L: Muži 50 - 59
A25: 004M1969 | B25: 4 | C25: m | D25: 1969 | E25: 1978 | F25: LMB | G25: L: Muži 40 - 49
A26: 004M1979 | B26: 4 | C26: m | D26: 1979 | E26: 2018 | F26: LMA | G26: L: Muži do 39
A27: 004Z0001 | B27: 4 | C27: z | D27: 1 | E27: 1973 | F27: LZC | G27: L: Ženy nad 45
A28: 004Z1974 | B28: 4 | C28: z | D28: 1974 | E28: 1983 | F28: LZB | G28: L: Ženy 35 - 44
A29: 004Z1984 | B29: 4 | C29: z | D29: 1984 | E29: 2018 | F29: LZA | G29: L: Ženy do 34
A30: X
A31: X
A32: X
A33: X
A34: X
A35: X
A36: X
A37: X
A38: X
A39: X
A40: X
A41: X
A42: X
A43: X
A44: X
A45: X
A46: X
A47: X
A48: X
A49: X
A50: X
A51: X
A52: X
A53: X
A54: X
A55: X
A56: X
A57: X
A58: X
A59: X
A60: X
A61: X
A62: X
A63: X
A64: X
A65: X
A66: =IF(B66<>"",TEXT(B66,"000")&UPPER(C66)&TEXT(D66,"0000"),"X") -> X
A67: X
A68: X
A69: X
A70: X
A71: X
A72: X
A73: X
A74: X
A75: X
A76: X
A77: X
A78: X
A79: X
A80: X
A81: X
A82: X
A83: X
A84: X
A85: X
A86: X
A87: X
A88: X
A89: X
A90: X
A91: X
A92: X
A93: X
A94: X
A95: X
A96: X
A97: X
A98: X
A99: X
A100: X
A101: X
A102: X
A103: X
A104: X
A105: X
A106: X
A107: X
A108: X
A109: X
A110: X
A111: X
A112: X
A113: X
A114: X
A115: X
A116: X
A117: X
A118: X
A119: X
A120: X
A121: X
A122: X
A123: X
A124: X
A125: X
A126: X
A127: X
A128: X
A129: X
A130: =IF(B130<>"",TEXT(B130,"000")&UPPER(C130)&TEXT(D130,"0000"),"X") -> X
A131: X
A132: X
A133: X
A134: X
A135: X
A136: X
A137: X
A138: X
A139: X
A140: X
A141: X
A142: X
A143: X
A144: X
A145: X
A146: X
A147: X
A148: X
A149: X
A150: X
A151: X
A152: X
A153: X
A154: X
A155: X
A156: X
A157: X
A158: X
A159: X
A160: X
A161: X
A162: X
A163: X
A164: X
A165: X
A166: X
A167: X
A168: X
A169: X
A170: X
A171: X
A172: X
A173: X
A174: X
A175: X
A176: X
A177: X
A178: X
A179: X
A180: X
A181: X
A182: X
A183: X
A184: X
A185: X
A186: X
A187: X
A188: X
A189: X
A190: X
A191: X
A192: X
A193: X
A194: =IF(B194<>"",TEXT(B194,"000")&UPPER(C194)&TEXT(D194,"0000"),"X") -> X
A195: X
A196: X
A197: X
A198: X
A199: X
A200: X
... 100 more rows

Sheet Body ZBP
A1: Pořadí v kategorii | B1: Body
A2: 1 | B2: 30
A3: 2 | B3: 25
A4: 3 | B4: 21
A5: 4 | B5: 18
A6: 5 | B6: 16
A7: 6 | B7: 15
A8: 7 | B8: 14
A9: 8 | B9: 13
A10: 9 | B10: 12
A11: 10 | B11: 11
A12: 11 | B12: 10
A13: 12 | B13: 9
A14: 13 | B14: 8
A15: 14 | B15: 7
A16: 15 | B16: 6
A17: 16 | B17: 5
A18: 17 | B18: 4
A19: 18 | B19: 3
A20: 19 | B20: 2
A21: 20 | B21: 1

Sheet Config
A1: ID závodu | B1: Název závodu | C1: Seznam závodů je aktuální? | D1: TRUE | G1: Výsleky podle lokálních kategorií | K1: Trať: | L1: Trat (Nazev Trate) | O1: Délka: | P1: Delka | Q1: km
A2: 1 | B2: 1: „Sokolák“ Plaveč u Znojma | C2: Konfigurace aktuální a beze změn? | D2: TRUE | G2: Poř. | H2: Příjmení | I2: Jméno | J2: Klub | K2: Rok narození | L2: Celkové pořadí | M2: Kat. | N2: Kat. ZBP | O2: Čas | P2: Body ZBP | Q2: Čas na 1 km
A3: 2 | B3: 2: Borovinská desítka | C3: Data beze změn? | D3: TRUE | G3: Kat. | H3: Kat Popis
A4: 3 | B4: 3: Krumlovský běh | C4: Výběr závodu ve výsledcích beze změn? | D4: TRUE | O4: 0 | Q4: 00:00:00
A5: 4 | B5: 4: Běh Avanti | C5: Chyby v "Registrace ZBP" | D5: =IF(($F$5-$E$5)<>0,TRUE,FALSE) -> FALSE | E5: =COUNT('Registrace ZBP'!U:U) -> 254 | F5: =SUM('Registrace ZBP'!U:U) -> 254 | O5: 0 | Q5: 00:00:00
C6: Chyby v "Stopky" | D6: =IF(($F$6-$E$6)<>0,TRUE,FALSE) -> FALSE | E6: =COUNTA(Stopky!G:G)-1 -> 2999 | F6: =COUNTIF(Stopky!G:G,"OK") -> 2999
C7: Nevalidní data v "Registrace ZBP" | D7: FALSE
C8: Nevalidní data v "Stopky" | D8: FALSE
C9: Vkládat pouze hodnoty | D9: TRUE
C10: Aktivovat SheetChange | D10: TRUE
C12: Vynutit výchozí závod | D12: 3 | E12: =_xlfn.IFNA(MATCH(D12,$A$2:$A$100,0),"X") -> 3 | F12: =IFERROR(LOOKUP(2,1/(A:A<>""),ROW(A:A)),0) -> 5
G18: Povolené údaje
G19: Pohlaví
G20: m
G21: z
